Workbook

Sheet Einzelposten
E3: K | G3: Kassa | H3: 30 | I3: =SUMIF($E$11:$E$210,$E3,I$11:I$210) -> 0 | J3: =SUMIF($E$11:$E$210,$E3,J$11:J$210) -> 346.9 | M3: =H3+I3-J3 -> -316.9
E4: B | G4: Bank | H4: 100 | I4: =SUMIF($E$11:$E$210,$E4,I$11:I$210) -> 2000 | J4: =SUMIF($E$11:$E$210,$E4,J$11:J$210) -> 0 | M4: =H4+I4-J4 -> 2100
G5: non-cash-transactions | I5: =SUMIF($E$11:$E$210,"",I$11:I$210) -> 0 | J5: =SUMIF($E$11:$E$210,"",J$11:J$210) -> 27.78 | L5: =IF(ROUND(SUM(M3:M5),2)=ROUND(SUM(H3:H5,I11:I210)-SUM(J11:J210),2),"",FALSE) ->  | M5: =H5+I5-J5 -> -27.78
D7: www.rvo.at | G7: =CONCATENATE("Einzelposten Monat(e) ",SUBTOTAL(5,C11:C210)," bis ",SUBTOTAL(4,C11:C210)) -> Einzelposten Monat(e) 1 bis 12 | I7: =ROUND(SUBTOTAL(9,I11:I210),2) -> 2000 | J7: =ROUND(SUBTOTAL(9,J11:J210),2) -> 374.68 | K7: =ROUND(SUBTOTAL(9,K11:K210),2) -> 1625.32 | L7: =Übersicht!E2 -> TRUE | M7: =Übersicht!F2 ->  | Q7: =SUBTOTAL(9,Q11:Q210) -> 0 | R7: 2000 | S7: 0 | T7: 0 | U7: 0 | V7: =SUBTOTAL(9,V11:V210) -> 0 | W7: -27.78 | X7: 0 | Y7: 0 | Z7: 0 | AA7: 0 | AB7: 0 | AC7: -5.9 | AD7: 0 | AE7: 0 | AF7: -300 | AG7: 0 | AH7: -41 | AI7: 0 | AJ7: 0 | AK7: 0 | AL7: 0 | AM7: 0 | AN7: 0 | AO7: 0 | AP7: 0 | AQ7: =SUBTOTAL(9,AQ11:AQ210) -> 0 | AR7: 0 | AS7: 0 | AT7: 2000 | AU7: 346.9 | AV7: 0 | AW7: 0 | AX7: -27.78
A8: ENr | C8: Monat | D8: Zahlungs- Datum | E8: B-Art | F8: B-Nr | G8: Text | H8: WEB Re-Datum | I8: Bewegung | K8: Betrag | L8: Konto | M8: Kontobezeichnung | N8: cf | O8: monat konto | P8: mcf | Q8: =Übersicht!C31 -> Anlagenzugang | R8: =Übersicht!C3 -> Erlöse | S8: =Übersicht!C4 -> sonstige Erlöse | T8: =Übersicht!C5 -> Wareneinkauf | U8: =Übersicht!C6 -> Fremdleistungen | V8: =Übersicht!C7 -> Personalkosten | W8: =Übersicht!C8 -> AFA, Absetzung f. Abnutzung | X8: =Übersicht!C9 -> GWG, geringwertige Wirtschaftsgüter | Y8: =Übersicht!C10 -> Abgaben und Beiträge | Z8: =Übersicht!C11 -> Instandhaltungen, Kleinmaterialien | AA8: =Übersicht!C12 -> Energie-, Betriebskosten | AB8: =Übersicht!C13 -> Porto-, Fracht-, Transportaufwand d. Dritte | AC8: =Übersicht!C14 -> KFZ-Aufwand (ohne AfA, Leasing u. Kilometergeld | AD8: =Übersicht!C15 -> Reise-, Fahrtspesen, Taggelder (inkl. Kilometergelder) | AE8: =Übersicht!C16 -> Telekommunikation | AF8: =Übersicht!C17 -> Geschäftsmieten, Leasing, Raumkosten | AG8: =Übersicht!C18 -> Lizenz- u. Wartungsgebühren, Provisionen | AH8: =Übersicht!C19 -> Büromaterial, Fachliteratur | AI8: =Übersicht!C20 -> Werbung, Repräsentationen | AJ8: =Übersicht!C21 -> Versicherung, Beratung | AK8: =Übersicht!C22 -> Pflichtversicherung Unternehmer (SVA) | AL8: =Übersicht!C23 -> Aus- und Fortbildung, Seminare | AM8: =Übersicht!C24 -> Spesen des Geldverkehrs | AN8: =Übersicht!C25 -> sonstige Aufwendungen | AO8: =Übersicht!C26 -> Zinsen und ähnliche Aufwendungen | AP8: =Übersicht!C32 -> Durchläufer, Finanzamt ESt | AQ8: =Übersicht!C33 -> Durchläufer, Finanzierung (betrieblich) | AR8: =Übersicht!C34 -> Durchläufer, Privat (Einlagen/Entnahmen) | AS8: =Übersicht!C35 -> Durchläufer, sonstiges | AT8: cash flow ein/operativ | AU8: cash flow aus/operativ | AV8: cash flow saldo/invest | AW8: cash flow saldo/finanz | AX8: cash flow saldo/finanz | AY8: Salden Kassa/Bank | AZ8: PDF-Beleg- Namen | BA8: PDF-Beleg anzeigen
A10: ENr | B10: Tag | C10: M | D10: Z-Dat | E10: BA | F10: BNr | G10: Text | H10: Re-Dat | I10: Einnahme | J10: Ausgabe | K10: Betrag | L10: Konto | M10: Kontobezeichnung | N10: cf | O10: mk | P10: mcf | Q10: 000 | R10: 400 | S10: 430 | T10: 500 | U10: 580 | V10: 600 | W10: 700 | X10: 705 | Y10: 710 | Z10: 720 | AA10: 725 | AB10: 730 | AC10: 732 | AD10: 735 | AE10: 739 | AF10: 740 | AG10: 748 | AH10: 760 | AI10: 765 | AJ10: 770 | AK10: 771 | AL10: 775 | AM10: 780 | AN10: 790 | AO10: 830 | AP10: 992 | AQ10: 995 | AR10: 998 | AS10: 999 | AT10: o | AU10: o | AV10: i | AW10: f | AY10: Saldo | AZ10: Belege | BA10: =HYPERLINK(CONCATENATE(YEAR(D11),AZ10)) -> 2025Belege
A11: 1 | B11: =DAY(D11) -> 3 | C11: =IF(ISBLANK(D11)=TRUE,"",MONTH(D11)) -> 1 | D11: 2025-01-03 | E11: k | F11: 001 | G11: Beispiel Büromaterial | J11: 18 | K11: =ROUND(I11-J11,2) -> -18 | L11: 760 | M11: =IF(ISBLANK(L11),"",VLOOKUP(L11,Übersicht!$B$3:$C$35,2,FALSE)) -> Büromaterial, Fachliteratur | N11: =IF(OR(L11="700",L11="999",L11="998",L11="992",ISBLANK(L11)),"",IF(L11="995","f",IF(LEFT(L11,1)="0","i","o"))) -> o | O11: =CONCATENATE(TEXT(C11,"00"),L11) -> 01760 | P11: =CONCATENATE(TEXT(C11,"00"),N11) -> 01o | Q11: =IF($L11=Q$10,$K11,"") ->  | R11: =IF($L11=R$10,$K11,"") ->  | Z11: =IF($L11=Z$10,$K11,"") ->  | AF11: =IF($L11=AF$10,$K11,"") ->  | AH11: -18 | AT11: =IF($N11=AT$10,$I11,"") -> 0 | AU11: =IF($N11=AU$10,$J11,"") -> 18 | AV11: =IF($N11=AV$10,$K11,"") ->  | AW11: =IF($N11=AW$10,$I11-$J11,"") ->  | AY11: =IF(ISBLANK(D11),"",_xlfn.IFNA(SUM(SUMIFS(I$11:I11,E$11:E11,E11),ROUND(SUMIFS(J$11:J11,E$11:E11,E11)*-1,2),VLOOKUP(E11,$E$2:$H$5,4,FALSE)),"non-cash")) -> 12 | AZ11: k001 | BA11: =IF(ISBLANK(AZ11),"",HYPERLINK(CONCATENATE($BA$10,"\",AZ11,".pdf"),"anzeigen")) -> anzeigen
A12: 2 | B12: =DAY(D12) -> 3 | C12: 1 | D12: 2025-01-03 | E12: b | F12: 001 | G12: Beispiel Barerlöse | I12: 2000 | K12: =ROUND(I12-J12,2) -> 2000 | L12: 400 | M12: =IF(ISBLANK(L12),"",VLOOKUP(L12,Übersicht!$B$3:$C$35,2,FALSE)) -> Erlöse | N12: =IF(OR(L12="700",L12="999",L12="998",L12="992",ISBLANK(L12)),"",IF(L12="995","f",IF(LEFT(L12,1)="0","i","o"))) -> o | O12: 01400 | P12: 01o | R12: 2000 | AT12: 2000 | AU12: 0 | AY12: =IF(ISBLANK(D12),"",_xlfn.IFNA(SUM(SUMIFS(I$11:I12,E$11:E12,E12),ROUND(SUMIFS(J$11:J12,E$11:E12,E12)*-1,2),VLOOKUP(E12,$E$2:$H$5,4,FALSE)),"non-cash")) -> 2100 | BA12: =IF(ISBLANK(AZ12),"",HYPERLINK(CONCATENATE($BA$10,"\",AZ12,".pdf"),"anzeigen")) -> 
A13: 3 | B13: 0 | K13: 0 | M13: =IF(ISBLANK(L13),"",VLOOKUP(L13,Übersicht!$B$3:$C$35,2,FALSE)) ->  | Z13: =IF($L13=Z$10,$K13,"") ->  | AX13: 0 | AY13: =IF(ISBLANK(D13),"",_xlfn.IFNA(SUM(SUMIFS(I$11:I13,E$11:E13,E13),ROUND(SUMIFS(J$11:J13,E$11:E13,E13)*-1,2),VLOOKUP(E13,$E$2:$H$5,4,FALSE)),"non-cash")) -> 
A14: 4 | B14: 0 | G14: Obige Beispielzeilen lassen sich überschreiben oder die Zellinhalte | K14: 0 | M14: =IF(ISBLANK(L14),"",VLOOKUP(L14,Übersicht!$B$3:$C$35,2,FALSE)) ->  | R14: =IF($L14=R$10,$K14,"") ->  | AX14: 0 | AY14: =IF(ISBLANK(D14),"",_xlfn.IFNA(SUM(SUMIFS(I$11:I14,E$11:E14,E14),ROUND(SUMIFS(J$11:J14,E$11:E14,E14)*-1,2),VLOOKUP(E14,$E$2:$H$5,4,FALSE)),"non-cash")) -> 
A15: 5 | B15: 0 | G15: einzeln entfernen. | K15: 0 | M15: =IF(ISBLANK(L15),"",VLOOKUP(L15,Übersicht!$B$3:$C$35,2,FALSE)) ->  | AX15: 0 | AY15: =IF(ISBLANK(D15),"",_xlfn.IFNA(SUM(SUMIFS(I$11:I15,E$11:E15,E15),ROUND(SUMIFS(J$11:J15,E$11:E15,E15)*-1,2),VLOOKUP(E15,$E$2:$H$5,4,FALSE)),"non-cash")) -> 
A16: 6 | B16: 0 | K16: 0 | M16: =IF(ISBLANK(L16),"",VLOOKUP(L16,Übersicht!$B$3:$C$35,2,FALSE)) ->  | AX16: 0 | AY16: =IF(ISBLANK(D16),"",_xlfn.IFNA(SUM(SUMIFS(I$11:I16,E$11:E16,E16),ROUND(SUMIFS(J$11:J16,E$11:E16,E16)*-1,2),VLOOKUP(E16,$E$2:$H$5,4,FALSE)),"non-cash")) -> 
A17: 7 | B17: 0 | G17: Nicht veränderbare Zellen sind geschütz, so kann nicht viel schief laufen. | K17: 0 | M17: =IF(ISBLANK(L17),"",VLOOKUP(L17,Übersicht!$B$3:$C$35,2,FALSE)) ->  | AF17: =IF($L17=AF$10,$K17,"") ->  | AX17: 0 | AY17: =IF(ISBLANK(D17),"",_xlfn.IFNA(SUM(SUMIFS(I$11:I17,E$11:E17,E17),ROUND(SUMIFS(J$11:J17,E$11:E17,E17)*-1,2),VLOOKUP(E17,$E$2:$H$5,4,FALSE)),"non-cash")) -> 
A18: 8 | B18: 0 | K18: 0 | M18: =IF(ISBLANK(L18),"",VLOOKUP(L18,Übersicht!$B$3:$C$35,2,FALSE)) ->  | AX18: 0 | AY18: =IF(ISBLANK(D18),"",_xlfn.IFNA(SUM(SUMIFS(I$11:I18,E$11:E18,E18),ROUND(SUMIFS(J$11:J18,E$11:E18,E18)*-1,2),VLOOKUP(E18,$E$2:$H$5,4,FALSE)),"non-cash")) -> 
A19: 9 | B19: 0 | G19: Die Kontonummern/Bezeichnungen finden Sie im Register "Übersicht". | K19: 0 | M19: =IF(ISBLANK(L19),"",VLOOKUP(L19,Übersicht!$B$3:$C$35,2,FALSE)) ->  | AX19: 0 | AY19: =IF(ISBLANK(D19),"",_xlfn.IFNA(SUM(SUMIFS(I$11:I19,E$11:E19,E19),ROUND(SUMIFS(J$11:J19,E$11:E19,E19)*-1,2),VLOOKUP(E19,$E$2:$H$5,4,FALSE)),"non-cash")) -> 
A20: 10 | B20: 0 | K20: 0 | M20: =IF(ISBLANK(L20),"",VLOOKUP(L20,Übersicht!$B$3:$C$35,2,FALSE)) ->  | AX20: 0 | AY20: =IF(ISBLANK(D20),"",_xlfn.IFNA(SUM(SUMIFS(I$11:I20,E$11:E20,E20),ROUND(SUMIFS(J$11:J20,E$11:E20,E20)*-1,2),VLOOKUP(E20,$E$2:$H$5,4,FALSE)),"non-cash")) -> 
A21: 11 | B21: 0 | G21: Kommentare finden Sie in obigen Zellen mit den "roten" Ecken. | K21: 0 | M21: =IF(ISBLANK(L21),"",VLOOKUP(L21,Übersicht!$B$3:$C$35,2,FALSE)) ->  | AX21: 0 | AY21: =IF(ISBLANK(D21),"",_xlfn.IFNA(SUM(SUMIFS(I$11:I21,E$11:E21,E21),ROUND(SUMIFS(J$11:J21,E$11:E21,E21)*-1,2),VLOOKUP(E21,$E$2:$H$5,4,FALSE)),"non-cash")) -> 
A22: 12 | B22: 0 | G22: Zum Einblenden bewegen Sie den Mauszeiger auf die jeweilige Zelle. | K22: 0 | M22: =IF(ISBLANK(L22),"",VLOOKUP(L22,Übersicht!$B$3:$C$35,2,FALSE)) ->  | AX22: 0 | AY22: =IF(ISBLANK(D22),"",_xlfn.IFNA(SUM(SUMIFS(I$11:I22,E$11:E22,E22),ROUND(SUMIFS(J$11:J22,E$11:E22,E22)*-1,2),VLOOKUP(E22,$E$2:$H$5,4,FALSE)),"non-cash")) -> 
A23: 13 | B23: 0 | K23: 0 | M23: =IF(ISBLANK(L23),"",VLOOKUP(L23,Übersicht!$B$3:$C$35,2,FALSE)) ->  | Z23: =IF($L23=Z$10,$K23,"") ->  | AX23: 0 | AY23: =IF(ISBLANK(D23),"",_xlfn.IFNA(SUM(SUMIFS(I$11:I23,E$11:E23,E23),ROUND(SUMIFS(J$11:J23,E$11:E23,E23)*-1,2),VLOOKUP(E23,$E$2:$H$5,4,FALSE)),"non-cash")) -> 
A24: 14 | B24: 0 | G24: Diese Datei für 200 Zeilen steht kostenlos zur Verfügung! | K24: 0 | M24: =IF(ISBLANK(L24),"",VLOOKUP(L24,Übersicht!$B$3:$C$35,2,FALSE)) ->  | R24: =IF($L24=R$10,$K24,"") ->  | AX24: 0 | AY24: =IF(ISBLANK(D24),"",_xlfn.IFNA(SUM(SUMIFS(I$11:I24,E$11:E24,E24),ROUND(SUMIFS(J$11:J24,E$11:E24,E24)*-1,2),VLOOKUP(E24,$E$2:$H$5,4,FALSE)),"non-cash")) -> 
A25: 15 | B25: 0 | K25: 0 | M25: =IF(ISBLANK(L25),"",VLOOKUP(L25,Übersicht!$B$3:$C$35,2,FALSE)) ->  | AX25: 0 | AY25: =IF(ISBLANK(D25),"",_xlfn.IFNA(SUM(SUMIFS(I$11:I25,E$11:E25,E25),ROUND(SUMIFS(J$11:J25,E$11:E25,E25)*-1,2),VLOOKUP(E25,$E$2:$H$5,4,FALSE)),"non-cash")) -> 
A26: 16 | B26: 0 | G26: und nun, viel erfolg | K26: 0 | M26: =IF(ISBLANK(L26),"",VLOOKUP(L26,Übersicht!$B$3:$C$35,2,FALSE)) ->  | AX26: 0 | AY26: =IF(ISBLANK(D26),"",_xlfn.IFNA(SUM(SUMIFS(I$11:I26,E$11:E26,E26),ROUND(SUMIFS(J$11:J26,E$11:E26,E26)*-1,2),VLOOKUP(E26,$E$2:$H$5,4,FALSE)),"non-cash")) -> 
A27: 17 | B27: 0 | G27: rvo.at | K27: 0 | M27: =IF(ISBLANK(L27),"",VLOOKUP(L27,Übersicht!$B$3:$C$35,2,FALSE)) ->  | AF27: =IF($L27=AF$10,$K27,"") ->  | AX27: 0 | AY27: =IF(ISBLANK(D27),"",_xlfn.IFNA(SUM(SUMIFS(I$11:I27,E$11:E27,E27),ROUND(SUMIFS(J$11:J27,E$11:E27,E27)*-1,2),VLOOKUP(E27,$E$2:$H$5,4,FALSE)),"non-cash")) -> 
A28: 18 | B28: 0 | K28: 0 | M28: =IF(ISBLANK(L28),"",VLOOKUP(L28,Übersicht!$B$3:$C$35,2,FALSE)) ->  | AX28: 0 | AY28: =IF(ISBLANK(D28),"",_xlfn.IFNA(SUM(SUMIFS(I$11:I28,E$11:E28,E28),ROUND(SUMIFS(J$11:J28,E$11:E28,E28)*-1,2),VLOOKUP(E28,$E$2:$H$5,4,FALSE)),"non-cash")) -> 
A29: 19 | B29: 31 | C29: 1 | D29: 2025-01-31 | G29: afa 01 d.J. (manuelle Eingabe lt. Register Anlagen) | J29: 27.78 | K29: -27.78 | L29: 700 | M29: =IF(ISBLANK(L29),"",VLOOKUP(L29,Übersicht!$B$3:$C$35,2,FALSE)) -> AFA, Absetzung f. Abnutzung | O29: 01700 | P29: 01 | W29: -27.78 | AX29: -27.78 | AY29: =IF(ISBLANK(D29),"",_xlfn.IFNA(SUM(SUMIFS(I$11:I29,E$11:E29,E29),ROUND(SUMIFS(J$11:J29,E$11:E29,E29)*-1,2),VLOOKUP(E29,$E$2:$H$5,4,FALSE)),"non-cash")) -> non-cash
A30: 20 | B30: 2 | C30: 2 | D30: 2025-02-02 | E30: k | F30: 002 | G30: büromaterial | J30: 23 | K30: -23 | L30: 760 | M30: =IF(ISBLANK(L30),"",VLOOKUP(L30,Übersicht!$B$3:$C$35,2,FALSE)) -> Büromaterial, Fachliteratur | N30: o | O30: 02760 | P30: 02o | AH30: -23 | AT30: 0 | AU30: 23 | AY30: =IF(ISBLANK(D30),"",_xlfn.IFNA(SUM(SUMIFS(I$11:I30,E$11:E30,E30),ROUND(SUMIFS(J$11:J30,E$11:E30,E30)*-1,2),VLOOKUP(E30,$E$2:$H$5,4,FALSE)),"non-cash")) -> -11 | AZ30: k002 | BA30: anzeigen
A31: 21 | B31: 10 | C31: 10 | D31: 2025-10-10 | E31: k | F31: 004 | G31: carwash | J31: 5.9 | K31: -5.9 | L31: 732 | M31: =IF(ISBLANK(L31),"",VLOOKUP(L31,Übersicht!$B$3:$C$35,2,FALSE)) -> KFZ-Aufwand (ohne AfA, Leasing u. Kilometergeld | N31: o | O31: 10732 | P31: 10o | AC31: -5.9 | AT31: 0 | AU31: 5.9 | AW31: =IF($N31=AW$10,$I31-$J31,"") ->  | AY31: =IF(ISBLANK(D31),"",_xlfn.IFNA(SUM(SUMIFS(I$11:I31,E$11:E31,E31),ROUND(SUMIFS(J$11:J31,E$11:E31,E31)*-1,2),VLOOKUP(E31,$E$2:$H$5,4,FALSE)),"non-cash")) -> -16.9 | AZ31: k004 | BA31: anzeigen
A32: 22 | B32: 31 | C32: 12 | D32: 2025-12-31 | E32: k | G32: arbeitsplatzpauschale klein | J32: 300 | K32: -300 | L32: 740 | M32: =IF(ISBLANK(L32),"",VLOOKUP(L32,Übersicht!$B$3:$C$35,2,FALSE)) -> Geschäftsmieten, Leasing, Raumkosten | N32: o | O32: 12740 | P32: 12o | AF32: -300 | AT32: 0 | AU32: 300 | AY32: =IF(ISBLANK(D32),"",_xlfn.IFNA(SUM(SUMIFS(I$11:I32,E$11:E32,E32),ROUND(SUMIFS(J$11:J32,E$11:E32,E32)*-1,2),VLOOKUP(E32,$E$2:$H$5,4,FALSE)),"non-cash")) -> -316.9 | AZ32: k | BA32: anzeigen
A33: 23 | B33: 0 | K33: 0 | M33: =IF(ISBLANK(L33),"",VLOOKUP(L33,Übersicht!$B$3:$C$35,2,FALSE)) ->  | Z33: =IF($L33=Z$10,$K33,"") ->  | AX33: 0 | AY33: =IF(ISBLANK(D33),"",_xlfn.IFNA(SUM(SUMIFS(I$11:I33,E$11:E33,E33),ROUND(SUMIFS(J$11:J33,E$11:E33,E33)*-1,2),VLOOKUP(E33,$E$2:$H$5,4,FALSE)),"non-cash")) -> 
A34: 24 | B34: 0 | K34: 0 | M34: =IF(ISBLANK(L34),"",VLOOKUP(L34,Übersicht!$B$3:$C$35,2,FALSE)) ->  | R34: =IF($L34=R$10,$K34,"") ->  | AX34: 0 | AY34: =IF(ISBLANK(D34),"",_xlfn.IFNA(SUM(SUMIFS(I$11:I34,E$11:E34,E34),ROUND(SUMIFS(J$11:J34,E$11:E34,E34)*-1,2),VLOOKUP(E34,$E$2:$H$5,4,FALSE)),"non-cash")) -> 
A35: 25 | B35: 0 | K35: 0 | M35: =IF(ISBLANK(L35),"",VLOOKUP(L35,Übersicht!$B$3:$C$35,2,FALSE)) ->  | AX35: 0 | AY35: =IF(ISBLANK(D35),"",_xlfn.IFNA(SUM(SUMIFS(I$11:I35,E$11:E35,E35),ROUND(SUMIFS(J$11:J35,E$11:E35,E35)*-1,2),VLOOKUP(E35,$E$2:$H$5,4,FALSE)),"non-cash")) -> 
A36: 26 | B36: 0 | K36: 0 | M36: =IF(ISBLANK(L36),"",VLOOKUP(L36,Übersicht!$B$3:$C$35,2,FALSE)) ->  | AX36: 0 | AY36: =IF(ISBLANK(D36),"",_xlfn.IFNA(SUM(SUMIFS(I$11:I36,E$11:E36,E36),ROUND(SUMIFS(J$11:J36,E$11:E36,E36)*-1,2),VLOOKUP(E36,$E$2:$H$5,4,FALSE)),"non-cash")) -> 
A37: 27 | B37: 0 | K37: 0 | M37: =IF(ISBLANK(L37),"",VLOOKUP(L37,Übersicht!$B$3:$C$35,2,FALSE)) ->  | AF37: =IF($L37=AF$10,$K37,"") ->  | AX37: 0 | AY37: =IF(ISBLANK(D37),"",_xlfn.IFNA(SUM(SUMIFS(I$11:I37,E$11:E37,E37),ROUND(SUMIFS(J$11:J37,E$11:E37,E37)*-1,2),VLOOKUP(E37,$E$2:$H$5,4,FALSE)),"non-cash")) -> 
A38: 28 | B38: 0 | K38: 0 | M38: =IF(ISBLANK(L38),"",VLOOKUP(L38,Übersicht!$B$3:$C$35,2,FALSE)) ->  | AX38: 0 | AY38: =IF(ISBLANK(D38),"",_xlfn.IFNA(SUM(SUMIFS(I$11:I38,E$11:E38,E38),ROUND(SUMIFS(J$11:J38,E$11:E38,E38)*-1,2),VLOOKUP(E38,$E$2:$H$5,4,FALSE)),"non-cash")) -> 
A39: 29 | B39: 0 | K39: 0 | M39: =IF(ISBLANK(L39),"",VLOOKUP(L39,Übersicht!$B$3:$C$35,2,FALSE)) ->  | AX39: 0 | AY39: =IF(ISBLANK(D39),"",_xlfn.IFNA(SUM(SUMIFS(I$11:I39,E$11:E39,E39),ROUND(SUMIFS(J$11:J39,E$11:E39,E39)*-1,2),VLOOKUP(E39,$E$2:$H$5,4,FALSE)),"non-cash")) -> 
A40: 30 | B40: 0 | K40: 0 | M40: =IF(ISBLANK(L40),"",VLOOKUP(L40,Übersicht!$B$3:$C$35,2,FALSE)) ->  | AX40: 0 | AY40: =IF(ISBLANK(D40),"",_xlfn.IFNA(SUM(SUMIFS(I$11:I40,E$11:E40,E40),ROUND(SUMIFS(J$11:J40,E$11:E40,E40)*-1,2),VLOOKUP(E40,$E$2:$H$5,4,FALSE)),"non-cash")) -> 
A41: 31 | B41: 0 | K41: 0 | M41: =IF(ISBLANK(L41),"",VLOOKUP(L41,Übersicht!$B$3:$C$35,2,FALSE)) ->  | AX41: 0 | AY41: =IF(ISBLANK(D41),"",_xlfn.IFNA(SUM(SUMIFS(I$11:I41,E$11:E41,E41),ROUND(SUMIFS(J$11:J41,E$11:E41,E41)*-1,2),VLOOKUP(E41,$E$2:$H$5,4,FALSE)),"non-cash")) -> 
A42: 32 | B42: 0 | K42: 0 | M42: =IF(ISBLANK(L42),"",VLOOKUP(L42,Übersicht!$B$3:$C$35,2,FALSE)) ->  | AX42: 0 | AY42: =IF(ISBLANK(D42),"",_xlfn.IFNA(SUM(SUMIFS(I$11:I42,E$11:E42,E42),ROUND(SUMIFS(J$11:J42,E$11:E42,E42)*-1,2),VLOOKUP(E42,$E$2:$H$5,4,FALSE)),"non-cash")) -> 
A43: 33 | B43: 0 | C43: =IF(ISBLANK(D43)=TRUE,"",MONTH(D43)) ->  | K43: 0 | M43: =IF(ISBLANK(L43),"",VLOOKUP(L43,Übersicht!$B$3:$C$35,2,FALSE)) ->  | O43: =CONCATENATE(TEXT(C43,"00"),L43) ->  | P43: =CONCATENATE(TEXT(C43,"00"),N43) ->  | Q43: =IF($L43=Q$10,$K43,"") ->  | Z43: =IF($L43=Z$10,$K43,"") ->  | AT43: =IF($N43=AT$10,$I43,"") ->  | AU43: =IF($N43=AU$10,$J43,"") ->  | AV43: =IF($N43=AV$10,$K43,"") ->  | AX43: 0 | AY43: =IF(ISBLANK(D43),"",_xlfn.IFNA(SUM(SUMIFS(I$11:I43,E$11:E43,E43),ROUND(SUMIFS(J$11:J43,E$11:E43,E43)*-1,2),VLOOKUP(E43,$E$2:$H$5,4,FALSE)),"non-cash")) -> 
A44: 34 | B44: 0 | K44: 0 | M44: =IF(ISBLANK(L44),"",VLOOKUP(L44,Übersicht!$B$3:$C$35,2,FALSE)) ->  | R44: =IF($L44=R$10,$K44,"") ->  | AX44: 0 | AY44: =IF(ISBLANK(D44),"",_xlfn.IFNA(SUM(SUMIFS(I$11:I44,E$11:E44,E44),ROUND(SUMIFS(J$11:J44,E$11:E44,E44)*-1,2),VLOOKUP(E44,$E$2:$H$5,4,FALSE)),"non-cash")) -> 
A45: 35 | B45: 0 | K45: 0 | M45: =IF(ISBLANK(L45),"",VLOOKUP(L45,Übersicht!$B$3:$C$35,2,FALSE)) ->  | AX45: 0 | AY45: =IF(ISBLANK(D45),"",_xlfn.IFNA(SUM(SUMIFS(I$11:I45,E$11:E45,E45),ROUND(SUMIFS(J$11:J45,E$11:E45,E45)*-1,2),VLOOKUP(E45,$E$2:$H$5,4,FALSE)),"non-cash")) -> 
A46: 36 | B46: 0 | K46: 0 | M46: =IF(ISBLANK(L46),"",VLOOKUP(L46,Übersicht!$B$3:$C$35,2,FALSE)) ->  | AX46: 0 | AY46: =IF(ISBLANK(D46),"",_xlfn.IFNA(SUM(SUMIFS(I$11:I46,E$11:E46,E46),ROUND(SUMIFS(J$11:J46,E$11:E46,E46)*-1,2),VLOOKUP(E46,$E$2:$H$5,4,FALSE)),"non-cash")) -> 
A47: 37 | B47: 0 | K47: 0 | M47: =IF(ISBLANK(L47),"",VLOOKUP(L47,Übersicht!$B$3:$C$35,2,FALSE)) ->  | AF47: =IF($L47=AF$10,$K47,"") ->  | AX47: 0 | AY47: =IF(ISBLANK(D47),"",_xlfn.IFNA(SUM(SUMIFS(I$11:I47,E$11:E47,E47),ROUND(SUMIFS(J$11:J47,E$11:E47,E47)*-1,2),VLOOKUP(E47,$E$2:$H$5,4,FALSE)),"non-cash")) -> 
A48: 38 | B48: 0 | K48: 0 | M48: =IF(ISBLANK(L48),"",VLOOKUP(L48,Übersicht!$B$3:$C$35,2,FALSE)) ->  | AX48: 0 | AY48: =IF(ISBLANK(D48),"",_xlfn.IFNA(SUM(SUMIFS(I$11:I48,E$11:E48,E48),ROUND(SUMIFS(J$11:J48,E$11:E48,E48)*-1,2),VLOOKUP(E48,$E$2:$H$5,4,FALSE)),"non-cash")) -> 
A49: 39 | B49: 0 | K49: 0 | M49: =IF(ISBLANK(L49),"",VLOOKUP(L49,Übersicht!$B$3:$C$35,2,FALSE)) ->  | AX49: 0 | AY49: =IF(ISBLANK(D49),"",_xlfn.IFNA(SUM(SUMIFS(I$11:I49,E$11:E49,E49),ROUND(SUMIFS(J$11:J49,E$11:E49,E49)*-1,2),VLOOKUP(E49,$E$2:$H$5,4,FALSE)),"non-cash")) -> 
A50: 40 | B50: 0 | K50: 0 | M50: =IF(ISBLANK(L50),"",VLOOKUP(L50,Übersicht!$B$3:$C$35,2,FALSE)) ->  | AX50: 0 | AY50: =IF(ISBLANK(D50),"",_xlfn.IFNA(SUM(SUMIFS(I$11:I50,E$11:E50,E50),ROUND(SUMIFS(J$11:J50,E$11:E50,E50)*-1,2),VLOOKUP(E50,$E$2:$H$5,4,FALSE)),"non-cash")) -> 
A51: 41 | B51: 0 | K51: 0 | M51: =IF(ISBLANK(L51),"",VLOOKUP(L51,Übersicht!$B$3:$C$35,2,FALSE)) ->  | AW51: =IF($N51=AW$10,$I51-$J51,"") ->  | AX51: 0 | AY51: =IF(ISBLANK(D51),"",_xlfn.IFNA(SUM(SUMIFS(I$11:I51,E$11:E51,E51),ROUND(SUMIFS(J$11:J51,E$11:E51,E51)*-1,2),VLOOKUP(E51,$E$2:$H$5,4,FALSE)),"non-cash")) -> 
A52: 42 | B52: 0 | K52: 0 | M52: =IF(ISBLANK(L52),"",VLOOKUP(L52,Übersicht!$B$3:$C$35,2,FALSE)) ->  | AX52: 0 | AY52: =IF(ISBLANK(D52),"",_xlfn.IFNA(SUM(SUMIFS(I$11:I52,E$11:E52,E52),ROUND(SUMIFS(J$11:J52,E$11:E52,E52)*-1,2),VLOOKUP(E52,$E$2:$H$5,4,FALSE)),"non-cash")) -> 
A53: 43 | B53: 0 | K53: 0 | M53: =IF(ISBLANK(L53),"",VLOOKUP(L53,Übersicht!$B$3:$C$35,2,FALSE)) ->  | Z53: =IF($L53=Z$10,$K53,"") ->  | AX53: 0 | AY53: =IF(ISBLANK(D53),"",_xlfn.IFNA(SUM(SUMIFS(I$11:I53,E$11:E53,E53),ROUND(SUMIFS(J$11:J53,E$11:E53,E53)*-1,2),VLOOKUP(E53,$E$2:$H$5,4,FALSE)),"non-cash")) -> 
A54: 44 | B54: 0 | K54: 0 | M54: =IF(ISBLANK(L54),"",VLOOKUP(L54,Übersicht!$B$3:$C$35,2,FALSE)) ->  | R54: =IF($L54=R$10,$K54,"") ->  | AX54: 0 | AY54: =IF(ISBLANK(D54),"",_xlfn.IFNA(SUM(SUMIFS(I$11:I54,E$11:E54,E54),ROUND(SUMIFS(J$11:J54,E$11:E54,E54)*-1,2),VLOOKUP(E54,$E$2:$H$5,4,FALSE)),"non-cash")) -> 
A55: 45 | B55: 0 | K55: 0 | M55: =IF(ISBLANK(L55),"",VLOOKUP(L55,Übersicht!$B$3:$C$35,2,FALSE)) ->  | AX55: 0 | AY55: =IF(ISBLANK(D55),"",_xlfn.IFNA(SUM(SUMIFS(I$11:I55,E$11:E55,E55),ROUND(SUMIFS(J$11:J55,E$11:E55,E55)*-1,2),VLOOKUP(E55,$E$2:$H$5,4,FALSE)),"non-cash")) -> 
A56: 46 | B56: 0 | K56: 0 | M56: =IF(ISBLANK(L56),"",VLOOKUP(L56,Übersicht!$B$3:$C$35,2,FALSE)) ->  | AX56: 0 | AY56: =IF(ISBLANK(D56),"",_xlfn.IFNA(SUM(SUMIFS(I$11:I56,E$11:E56,E56),ROUND(SUMIFS(J$11:J56,E$11:E56,E56)*-1,2),VLOOKUP(E56,$E$2:$H$5,4,FALSE)),"non-cash")) -> 
A57: 47 | B57: 0 | K57: 0 | M57: =IF(ISBLANK(L57),"",VLOOKUP(L57,Übersicht!$B$3:$C$35,2,FALSE)) ->  | AF57: =IF($L57=AF$10,$K57,"") ->  | AX57: 0 | AY57: =IF(ISBLANK(D57),"",_xlfn.IFNA(SUM(SUMIFS(I$11:I57,E$11:E57,E57),ROUND(SUMIFS(J$11:J57,E$11:E57,E57)*-1,2),VLOOKUP(E57,$E$2:$H$5,4,FALSE)),"non-cash")) -> 
A58: 48 | B58: 0 | K58: 0 | M58: =IF(ISBLANK(L58),"",VLOOKUP(L58,Übersicht!$B$3:$C$35,2,FALSE)) ->  | AX58: 0 | AY58: =IF(ISBLANK(D58),"",_xlfn.IFNA(SUM(SUMIFS(I$11:I58,E$11:E58,E58),ROUND(SUMIFS(J$11:J58,E$11:E58,E58)*-1,2),VLOOKUP(E58,$E$2:$H$5,4,FALSE)),"non-cash")) -> 
A59: 49 | B59: 0 | K59: 0 | M59: =IF(ISBLANK(L59),"",VLOOKUP(L59,Übersicht!$B$3:$C$35,2,FALSE)) ->  | AX59: 0 | AY59: =IF(ISBLANK(D59),"",_xlfn.IFNA(SUM(SUMIFS(I$11:I59,E$11:E59,E59),ROUND(SUMIFS(J$11:J59,E$11:E59,E59)*-1,2),VLOOKUP(E59,$E$2:$H$5,4,FALSE)),"non-cash")) -> 
A60: 50 | B60: 0 | K60: 0 | M60: =IF(ISBLANK(L60),"",VLOOKUP(L60,Übersicht!$B$3:$C$35,2,FALSE)) ->  | AX60: 0 | AY60: =IF(ISBLANK(D60),"",_xlfn.IFNA(SUM(SUMIFS(I$11:I60,E$11:E60,E60),ROUND(SUMIFS(J$11:J60,E$11:E60,E60)*-1,2),VLOOKUP(E60,$E$2:$H$5,4,FALSE)),"non-cash")) -> 
A61: 51 | B61: 0 | K61: 0 | M61: =IF(ISBLANK(L61),"",VLOOKUP(L61,Übersicht!$B$3:$C$35,2,FALSE)) ->  | AX61: 0 | AY61: =IF(ISBLANK(D61),"",_xlfn.IFNA(SUM(SUMIFS(I$11:I61,E$11:E61,E61),ROUND(SUMIFS(J$11:J61,E$11:E61,E61)*-1,2),VLOOKUP(E61,$E$2:$H$5,4,FALSE)),"non-cash")) -> 
A62: 52 | B62: 0 | K62: 0 | M62: =IF(ISBLANK(L62),"",VLOOKUP(L62,Übersicht!$B$3:$C$35,2,FALSE)) ->  | AX62: 0 | AY62: =IF(ISBLANK(D62),"",_xlfn.IFNA(SUM(SUMIFS(I$11:I62,E$11:E62,E62),ROUND(SUMIFS(J$11:J62,E$11:E62,E62)*-1,2),VLOOKUP(E62,$E$2:$H$5,4,FALSE)),"non-cash")) -> 
A63: 53 | B63: 0 | K63: =ROUND(I63-J63,2) -> 0 | M63: =IF(ISBLANK(L63),"",VLOOKUP(L63,Übersicht!$B$3:$C$35,2,FALSE)) ->  | AX63: 0 | AY63: =IF(ISBLANK(D63),"",_xlfn.IFNA(SUM(SUMIFS(I$11:I63,E$11:E63,E63),ROUND(SUMIFS(J$11:J63,E$11:E63,E63)*-1,2),VLOOKUP(E63,$E$2:$H$5,4,FALSE)),"non-cash")) -> 
A64: 54 | B64: 0 | K64: 0 | M64: =IF(ISBLANK(L64),"",VLOOKUP(L64,Übersicht!$B$3:$C$35,2,FALSE)) ->  | AX64: 0 | AY64: =IF(ISBLANK(D64),"",_xlfn.IFNA(SUM(SUMIFS(I$11:I64,E$11:E64,E64),ROUND(SUMIFS(J$11:J64,E$11:E64,E64)*-1,2),VLOOKUP(E64,$E$2:$H$5,4,FALSE)),"non-cash")) -> 
A65: 55 | B65: 0 | K65: 0 | M65: =IF(ISBLANK(L65),"",VLOOKUP(L65,Übersicht!$B$3:$C$35,2,FALSE)) ->  | AX65: 0 | AY65: =IF(ISBLANK(D65),"",_xlfn.IFNA(SUM(SUMIFS(I$11:I65,E$11:E65,E65),ROUND(SUMIFS(J$11:J65,E$11:E65,E65)*-1,2),VLOOKUP(E65,$E$2:$H$5,4,FALSE)),"non-cash")) -> 
A66: 56 | B66: 0 | K66: 0 | M66: =IF(ISBLANK(L66),"",VLOOKUP(L66,Übersicht!$B$3:$C$35,2,FALSE)) ->  | AX66: 0 | AY66: =IF(ISBLANK(D66),"",_xlfn.IFNA(SUM(SUMIFS(I$11:I66,E$11:E66,E66),ROUND(SUMIFS(J$11:J66,E$11:E66,E66)*-1,2),VLOOKUP(E66,$E$2:$H$5,4,FALSE)),"non-cash")) -> 
A67: 57 | B67: 0 | K67: 0 | M67: =IF(ISBLANK(L67),"",VLOOKUP(L67,Übersicht!$B$3:$C$35,2,FALSE)) ->  | AX67: 0 | AY67: =IF(ISBLANK(D67),"",_xlfn.IFNA(SUM(SUMIFS(I$11:I67,E$11:E67,E67),ROUND(SUMIFS(J$11:J67,E$11:E67,E67)*-1,2),VLOOKUP(E67,$E$2:$H$5,4,FALSE)),"non-cash")) -> 
A68: 58 | B68: 0 | K68: 0 | M68: =IF(ISBLANK(L68),"",VLOOKUP(L68,Übersicht!$B$3:$C$35,2,FALSE)) ->  | AX68: 0 | AY68: =IF(ISBLANK(D68),"",_xlfn.IFNA(SUM(SUMIFS(I$11:I68,E$11:E68,E68),ROUND(SUMIFS(J$11:J68,E$11:E68,E68)*-1,2),VLOOKUP(E68,$E$2:$H$5,4,FALSE)),"non-cash")) -> 
A69: 59 | B69: 0 | K69: 0 | M69: =IF(ISBLANK(L69),"",VLOOKUP(L69,Übersicht!$B$3:$C$35,2,FALSE)) ->  | AX69: 0 | AY69: =IF(ISBLANK(D69),"",_xlfn.IFNA(SUM(SUMIFS(I$11:I69,E$11:E69,E69),ROUND(SUMIFS(J$11:J69,E$11:E69,E69)*-1,2),VLOOKUP(E69,$E$2:$H$5,4,FALSE)),"non-cash")) -> 
A70: 60 | B70: 0 | K70: 0 | M70: =IF(ISBLANK(L70),"",VLOOKUP(L70,Übersicht!$B$3:$C$35,2,FALSE)) ->  | R70: =IF($L70=R$10,$K70,"") ->  | AX70: 0 | AY70: =IF(ISBLANK(D70),"",_xlfn.IFNA(SUM(SUMIFS(I$11:I70,E$11:E70,E70),ROUND(SUMIFS(J$11:J70,E$11:E70,E70)*-1,2),VLOOKUP(E70,$E$2:$H$5,4,FALSE)),"non-cash")) -> 
A71: 61 | B71: 0 | K71: 0 | M71: =IF(ISBLANK(L71),"",VLOOKUP(L71,Übersicht!$B$3:$C$35,2,FALSE)) ->  | R71: =IF($L71=R$10,$K71,"") ->  | AA71: =IF($L71=AA$10,$K71,"") ->  | AB71: =IF($L71=AB$10,$K71,"") ->  | AW71: =IF($N71=AW$10,$I71-$J71,"") ->  | AX71: 0 | AY71: =IF(ISBLANK(D71),"",_xlfn.IFNA(SUM(SUMIFS(I$11:I71,E$11:E71,E71),ROUND(SUMIFS(J$11:J71,E$11:E71,E71)*-1,2),VLOOKUP(E71,$E$2:$H$5,4,FALSE)),"non-cash")) -> 
A72: 62 | B72: 0 | K72: 0 | M72: =IF(ISBLANK(L72),"",VLOOKUP(L72,Übersicht!$B$3:$C$35,2,FALSE)) ->  | AX72: 0 | AY72: =IF(ISBLANK(D72),"",_xlfn.IFNA(SUM(SUMIFS(I$11:I72,E$11:E72,E72),ROUND(SUMIFS(J$11:J72,E$11:E72,E72)*-1,2),VLOOKUP(E72,$E$2:$H$5,4,FALSE)),"non-cash")) -> 
A73: 63 | B73: 0 | K73: 0 | M73: =IF(ISBLANK(L73),"",VLOOKUP(L73,Übersicht!$B$3:$C$35,2,FALSE)) ->  | AF73: =IF($L73=AF$10,$K73,"") ->  | AL73: =IF($L73=AL$10,$K73,"") ->  | AM73: =IF($L73=AM$10,$K73,"") ->  | AX73: 0 | AY73: =IF(ISBLANK(D73),"",_xlfn.IFNA(SUM(SUMIFS(I$11:I73,E$11:E73,E73),ROUND(SUMIFS(J$11:J73,E$11:E73,E73)*-1,2),VLOOKUP(E73,$E$2:$H$5,4,FALSE)),"non-cash")) -> 
A74: 64 | B74: 0 | K74: 0 | M74: =IF(ISBLANK(L74),"",VLOOKUP(L74,Übersicht!$B$3:$C$35,2,FALSE)) ->  | AX74: 0 | AY74: =IF(ISBLANK(D74),"",_xlfn.IFNA(SUM(SUMIFS(I$11:I74,E$11:E74,E74),ROUND(SUMIFS(J$11:J74,E$11:E74,E74)*-1,2),VLOOKUP(E74,$E$2:$H$5,4,FALSE)),"non-cash")) -> 
A75: 65 | B75: 0 | C75: =IF(ISBLANK(D75)=TRUE,"",MONTH(D75)) ->  | K75: 0 | M75: =IF(ISBLANK(L75),"",VLOOKUP(L75,Übersicht!$B$3:$C$35,2,FALSE)) ->  | O75: =CONCATENATE(TEXT(C75,"00"),L75) ->  | P75: =CONCATENATE(TEXT(C75,"00"),N75) ->  | Q75: =IF($L75=Q$10,$K75,"") ->  | AT75: =IF($N75=AT$10,$I75,"") ->  | AU75: =IF($N75=AU$10,$J75,"") ->  | AV75: =IF($N75=AV$10,$K75,"") ->  | AX75: 0 | AY75: =IF(ISBLANK(D75),"",_xlfn.IFNA(SUM(SUMIFS(I$11:I75,E$11:E75,E75),ROUND(SUMIFS(J$11:J75,E$11:E75,E75)*-1,2),VLOOKUP(E75,$E$2:$H$5,4,FALSE)),"non-cash")) -> 
A76: 66 | B76: =DAY(D76) -> 0 | K76: 0 | M76: =IF(ISBLANK(L76),"",VLOOKUP(L76,Übersicht!$B$3:$C$35,2,FALSE)) ->  | N76: =IF(OR(L76="700",L76="999",L76="998",L76="992",ISBLANK(L76)),"",IF(L76="995","f",IF(LEFT(L76,1)="0","i","o"))) ->  | AX76: 0 | AY76: =IF(ISBLANK(D76),"",_xlfn.IFNA(SUM(SUMIFS(I$11:I76,E$11:E76,E76),ROUND(SUMIFS(J$11:J76,E$11:E76,E76)*-1,2),VLOOKUP(E76,$E$2:$H$5,4,FALSE)),"non-cash")) ->  | BA76: =IF(ISBLANK(AZ76),"",HYPERLINK(CONCATENATE($BA$10,"\",AZ76,".pdf"),"anzeigen")) -> 
A77: 67 | B77: 0 | K77: 0 | M77: =IF(ISBLANK(L77),"",VLOOKUP(L77,Übersicht!$B$3:$C$35,2,FALSE)) ->  | AX77: 0 | AY77: =IF(ISBLANK(D77),"",_xlfn.IFNA(SUM(SUMIFS(I$11:I77,E$11:E77,E77),ROUND(SUMIFS(J$11:J77,E$11:E77,E77)*-1,2),VLOOKUP(E77,$E$2:$H$5,4,FALSE)),"non-cash")) -> 
A78: 68 | B78: 0 | K78: 0 | M78: =IF(ISBLANK(L78),"",VLOOKUP(L78,Übersicht!$B$3:$C$35,2,FALSE)) ->  | AX78: 0 | AY78: =IF(ISBLANK(D78),"",_xlfn.IFNA(SUM(SUMIFS(I$11:I78,E$11:E78,E78),ROUND(SUMIFS(J$11:J78,E$11:E78,E78)*-1,2),VLOOKUP(E78,$E$2:$H$5,4,FALSE)),"non-cash")) -> 
A79: 69 | B79: 0 | K79: 0 | M79: =IF(ISBLANK(L79),"",VLOOKUP(L79,Übersicht!$B$3:$C$35,2,FALSE)) ->  | AX79: 0 | AY79: =IF(ISBLANK(D79),"",_xlfn.IFNA(SUM(SUMIFS(I$11:I79,E$11:E79,E79),ROUND(SUMIFS(J$11:J79,E$11:E79,E79)*-1,2),VLOOKUP(E79,$E$2:$H$5,4,FALSE)),"non-cash")) -> 
A80: 70 | B80: 0 | K80: 0 | M80: =IF(ISBLANK(L80),"",VLOOKUP(L80,Übersicht!$B$3:$C$35,2,FALSE)) ->  | AX80: 0 | AY80: =IF(ISBLANK(D80),"",_xlfn.IFNA(SUM(SUMIFS(I$11:I80,E$11:E80,E80),ROUND(SUMIFS(J$11:J80,E$11:E80,E80)*-1,2),VLOOKUP(E80,$E$2:$H$5,4,FALSE)),"non-cash")) -> 
A81: 71 | B81: 0 | K81: 0 | M81: =IF(ISBLANK(L81),"",VLOOKUP(L81,Übersicht!$B$3:$C$35,2,FALSE)) ->  | R81: =IF($L81=R$10,$K81,"") ->  | AX81: 0 | AY81: =IF(ISBLANK(D81),"",_xlfn.IFNA(SUM(SUMIFS(I$11:I81,E$11:E81,E81),ROUND(SUMIFS(J$11:J81,E$11:E81,E81)*-1,2),VLOOKUP(E81,$E$2:$H$5,4,FALSE)),"non-cash")) -> 
A82: 72 | B82: 0 | K82: 0 | M82: =IF(ISBLANK(L82),"",VLOOKUP(L82,Übersicht!$B$3:$C$35,2,FALSE)) ->  | AX82: 0 | AY82: =IF(ISBLANK(D82),"",_xlfn.IFNA(SUM(SUMIFS(I$11:I82,E$11:E82,E82),ROUND(SUMIFS(J$11:J82,E$11:E82,E82)*-1,2),VLOOKUP(E82,$E$2:$H$5,4,FALSE)),"non-cash")) -> 
A83: 73 | B83: 0 | K83: 0 | M83: =IF(ISBLANK(L83),"",VLOOKUP(L83,Übersicht!$B$3:$C$35,2,FALSE)) ->  | AF83: =IF($L83=AF$10,$K83,"") ->  | AM83: =IF($L83=AM$10,$K83,"") ->  | AX83: 0 | AY83: =IF(ISBLANK(D83),"",_xlfn.IFNA(SUM(SUMIFS(I$11:I83,E$11:E83,E83),ROUND(SUMIFS(J$11:J83,E$11:E83,E83)*-1,2),VLOOKUP(E83,$E$2:$H$5,4,FALSE)),"non-cash")) -> 
A84: 74 | B84: 0 | K84: 0 | M84: =IF(ISBLANK(L84),"",VLOOKUP(L84,Übersicht!$B$3:$C$35,2,FALSE)) ->  | AX84: 0 | AY84: =IF(ISBLANK(D84),"",_xlfn.IFNA(SUM(SUMIFS(I$11:I84,E$11:E84,E84),ROUND(SUMIFS(J$11:J84,E$11:E84,E84)*-1,2),VLOOKUP(E84,$E$2:$H$5,4,FALSE)),"non-cash")) -> 
A85: 75 | B85: 0 | K85: 0 | M85: =IF(ISBLANK(L85),"",VLOOKUP(L85,Übersicht!$B$3:$C$35,2,FALSE)) ->  | AX85: 0 | AY85: =IF(ISBLANK(D85),"",_xlfn.IFNA(SUM(SUMIFS(I$11:I85,E$11:E85,E85),ROUND(SUMIFS(J$11:J85,E$11:E85,E85)*-1,2),VLOOKUP(E85,$E$2:$H$5,4,FALSE)),"non-cash")) -> 
A86: 76 | B86: 0 | K86: 0 | M86: =IF(ISBLANK(L86),"",VLOOKUP(L86,Übersicht!$B$3:$C$35,2,FALSE)) ->  | AX86: 0 | AY86: =IF(ISBLANK(D86),"",_xlfn.IFNA(SUM(SUMIFS(I$11:I86,E$11:E86,E86),ROUND(SUMIFS(J$11:J86,E$11:E86,E86)*-1,2),VLOOKUP(E86,$E$2:$H$5,4,FALSE)),"non-cash")) -> 
A87: 77 | B87: 0 | K87: 0 | M87: =IF(ISBLANK(L87),"",VLOOKUP(L87,Übersicht!$B$3:$C$35,2,FALSE)) ->  | AX87: 0 | AY87: =IF(ISBLANK(D87),"",_xlfn.IFNA(SUM(SUMIFS(I$11:I87,E$11:E87,E87),ROUND(SUMIFS(J$11:J87,E$11:E87,E87)*-1,2),VLOOKUP(E87,$E$2:$H$5,4,FALSE)),"non-cash")) -> 
A88: 78 | B88: 0 | K88: 0 | M88: =IF(ISBLANK(L88),"",VLOOKUP(L88,Übersicht!$B$3:$C$35,2,FALSE)) ->  | AX88: 0 | AY88: =IF(ISBLANK(D88),"",_xlfn.IFNA(SUM(SUMIFS(I$11:I88,E$11:E88,E88),ROUND(SUMIFS(J$11:J88,E$11:E88,E88)*-1,2),VLOOKUP(E88,$E$2:$H$5,4,FALSE)),"non-cash")) -> 
A89: 79 | B89: 0 | K89: 0 | M89: =IF(ISBLANK(L89),"",VLOOKUP(L89,Übersicht!$B$3:$C$35,2,FALSE)) ->  | AX89: 0 | AY89: =IF(ISBLANK(D89),"",_xlfn.IFNA(SUM(SUMIFS(I$11:I89,E$11:E89,E89),ROUND(SUMIFS(J$11:J89,E$11:E89,E89)*-1,2),VLOOKUP(E89,$E$2:$H$5,4,FALSE)),"non-cash")) -> 
A90: 80 | B90: 0 | K90: 0 | M90: =IF(ISBLANK(L90),"",VLOOKUP(L90,Übersicht!$B$3:$C$35,2,FALSE)) ->  | AX90: 0 | AY90: =IF(ISBLANK(D90),"",_xlfn.IFNA(SUM(SUMIFS(I$11:I90,E$11:E90,E90),ROUND(SUMIFS(J$11:J90,E$11:E90,E90)*-1,2),VLOOKUP(E90,$E$2:$H$5,4,FALSE)),"non-cash")) -> 
A91: 81 | B91: 0 | K91: 0 | M91: =IF(ISBLANK(L91),"",VLOOKUP(L91,Übersicht!$B$3:$C$35,2,FALSE)) ->  | R91: =IF($L91=R$10,$K91,"") ->  | AB91: =IF($L91=AB$10,$K91,"") ->  | AW91: =IF($N91=AW$10,$I91-$J91,"") ->  | AX91: 0 | AY91: =IF(ISBLANK(D91),"",_xlfn.IFNA(SUM(SUMIFS(I$11:I91,E$11:E91,E91),ROUND(SUMIFS(J$11:J91,E$11:E91,E91)*-1,2),VLOOKUP(E91,$E$2:$H$5,4,FALSE)),"non-cash")) -> 
A92: 82 | B92: 0 | K92: 0 | M92: =IF(ISBLANK(L92),"",VLOOKUP(L92,Übersicht!$B$3:$C$35,2,FALSE)) ->  | AX92: 0 | AY92: =IF(ISBLANK(D92),"",_xlfn.IFNA(SUM(SUMIFS(I$11:I92,E$11:E92,E92),ROUND(SUMIFS(J$11:J92,E$11:E92,E92)*-1,2),VLOOKUP(E92,$E$2:$H$5,4,FALSE)),"non-cash")) -> 
A93: 83 | B93: 0 | K93: 0 | M93: =IF(ISBLANK(L93),"",VLOOKUP(L93,Übersicht!$B$3:$C$35,2,FALSE)) ->  | AF93: =IF($L93=AF$10,$K93,"") ->  | AM93: =IF($L93=AM$10,$K93,"") ->  | AX93: 0 | AY93: =IF(ISBLANK(D93),"",_xlfn.IFNA(SUM(SUMIFS(I$11:I93,E$11:E93,E93),ROUND(SUMIFS(J$11:J93,E$11:E93,E93)*-1,2),VLOOKUP(E93,$E$2:$H$5,4,FALSE)),"non-cash")) -> 
A94: 84 | B94: 0 | K94: 0 | M94: =IF(ISBLANK(L94),"",VLOOKUP(L94,Übersicht!$B$3:$C$35,2,FALSE)) ->  | AX94: 0 | AY94: =IF(ISBLANK(D94),"",_xlfn.IFNA(SUM(SUMIFS(I$11:I94,E$11:E94,E94),ROUND(SUMIFS(J$11:J94,E$11:E94,E94)*-1,2),VLOOKUP(E94,$E$2:$H$5,4,FALSE)),"non-cash")) -> 
A95: 85 | B95: 0 | K95: 0 | M95: =IF(ISBLANK(L95),"",VLOOKUP(L95,Übersicht!$B$3:$C$35,2,FALSE)) ->  | AX95: 0 | AY95: =IF(ISBLANK(D95),"",_xlfn.IFNA(SUM(SUMIFS(I$11:I95,E$11:E95,E95),ROUND(SUMIFS(J$11:J95,E$11:E95,E95)*-1,2),VLOOKUP(E95,$E$2:$H$5,4,FALSE)),"non-cash")) -> 
A96: 86 | B96: 0 | K96: 0 | M96: =IF(ISBLANK(L96),"",VLOOKUP(L96,Übersicht!$B$3:$C$35,2,FALSE)) ->  | AX96: 0 | AY96: =IF(ISBLANK(D96),"",_xlfn.IFNA(SUM(SUMIFS(I$11:I96,E$11:E96,E96),ROUND(SUMIFS(J$11:J96,E$11:E96,E96)*-1,2),VLOOKUP(E96,$E$2:$H$5,4,FALSE)),"non-cash")) -> 
A97: 87 | B97: 0 | K97: 0 | M97: =IF(ISBLANK(L97),"",VLOOKUP(L97,Übersicht!$B$3:$C$35,2,FALSE)) ->  | AX97: 0 | AY97: =IF(ISBLANK(D97),"",_xlfn.IFNA(SUM(SUMIFS(I$11:I97,E$11:E97,E97),ROUND(SUMIFS(J$11:J97,E$11:E97,E97)*-1,2),VLOOKUP(E97,$E$2:$H$5,4,FALSE)),"non-cash")) -> 
A98: 88 | B98: 0 | K98: 0 | M98: =IF(ISBLANK(L98),"",VLOOKUP(L98,Übersicht!$B$3:$C$35,2,FALSE)) ->  | AX98: 0 | AY98: =IF(ISBLANK(D98),"",_xlfn.IFNA(SUM(SUMIFS(I$11:I98,E$11:E98,E98),ROUND(SUMIFS(J$11:J98,E$11:E98,E98)*-1,2),VLOOKUP(E98,$E$2:$H$5,4,FALSE)),"non-cash")) -> 
A99: 89 | B99: 0 | K99: 0 | M99: =IF(ISBLANK(L99),"",VLOOKUP(L99,Übersicht!$B$3:$C$35,2,FALSE)) ->  | AX99: 0 | AY99: =IF(ISBLANK(D99),"",_xlfn.IFNA(SUM(SUMIFS(I$11:I99,E$11:E99,E99),ROUND(SUMIFS(J$11:J99,E$11:E99,E99)*-1,2),VLOOKUP(E99,$E$2:$H$5,4,FALSE)),"non-cash")) -> 
A100: 90 | B100: 0 | K100: 0 | M100: =IF(ISBLANK(L100),"",VLOOKUP(L100,Übersicht!$B$3:$C$35,2,FALSE)) ->  | AX100: 0 | AY100: =IF(ISBLANK(D100),"",_xlfn.IFNA(SUM(SUMIFS(I$11:I100,E$11:E100,E100),ROUND(SUMIFS(J$11:J100,E$11:E100,E100)*-1,2),VLOOKUP(E100,$E$2:$H$5,4,FALSE)),"non-cash")) -> 
A101: 91 | B101: 0 | K101: 0 | M101: =IF(ISBLANK(L101),"",VLOOKUP(L101,Übersicht!$B$3:$C$35,2,FALSE)) ->  | R101: =IF($L101=R$10,$K101,"") ->  | AX101: 0 | AY101: =IF(ISBLANK(D101),"",_xlfn.IFNA(SUM(SUMIFS(I$11:I101,E$11:E101,E101),ROUND(SUMIFS(J$11:J101,E$11:E101,E101)*-1,2),VLOOKUP(E101,$E$2:$H$5,4,FALSE)),"non-cash")) -> 
A102: 92 | B102: 0 | K102: 0 | M102: =IF(ISBLANK(L102),"",VLOOKUP(L102,Übersicht!$B$3:$C$35,2,FALSE)) ->  | AX102: 0 | AY102: =IF(ISBLANK(D102),"",_xlfn.IFNA(SUM(SUMIFS(I$11:I102,E$11:E102,E102),ROUND(SUMIFS(J$11:J102,E$11:E102,E102)*-1,2),VLOOKUP(E102,$E$2:$H$5,4,FALSE)),"non-cash")) -> 
A103: 93 | B103: 0 | K103: 0 | M103: =IF(ISBLANK(L103),"",VLOOKUP(L103,Übersicht!$B$3:$C$35,2,FALSE)) ->  | AF103: =IF($L103=AF$10,$K103,"") ->  | AM103: =IF($L103=AM$10,$K103,"") ->  | AX103: 0 | AY103: =IF(ISBLANK(D103),"",_xlfn.IFNA(SUM(SUMIFS(I$11:I103,E$11:E103,E103),ROUND(SUMIFS(J$11:J103,E$11:E103,E103)*-1,2),VLOOKUP(E103,$E$2:$H$5,4,FALSE)),"non-cash")) -> 
A104: 94 | B104: 0 | K104: 0 | M104: =IF(ISBLANK(L104),"",VLOOKUP(L104,Übersicht!$B$3:$C$35,2,FALSE)) ->  | AX104: 0 | AY104: =IF(ISBLANK(D104),"",_xlfn.IFNA(SUM(SUMIFS(I$11:I104,E$11:E104,E104),ROUND(SUMIFS(J$11:J104,E$11:E104,E104)*-1,2),VLOOKUP(E104,$E$2:$H$5,4,FALSE)),"non-cash")) -> 
A105: 95 | B105: 0 | K105: 0 | M105: =IF(ISBLANK(L105),"",VLOOKUP(L105,Übersicht!$B$3:$C$35,2,FALSE)) ->  | AX105: 0 | AY105: =IF(ISBLANK(D105),"",_xlfn.IFNA(SUM(SUMIFS(I$11:I105,E$11:E105,E105),ROUND(SUMIFS(J$11:J105,E$11:E105,E105)*-1,2),VLOOKUP(E105,$E$2:$H$5,4,FALSE)),"non-cash")) -> 
A106: 96 | B106: 0 | K106: 0 | M106: =IF(ISBLANK(L106),"",VLOOKUP(L106,Übersicht!$B$3:$C$35,2,FALSE)) ->  | AX106: 0 | AY106: =IF(ISBLANK(D106),"",_xlfn.IFNA(SUM(SUMIFS(I$11:I106,E$11:E106,E106),ROUND(SUMIFS(J$11:J106,E$11:E106,E106)*-1,2),VLOOKUP(E106,$E$2:$H$5,4,FALSE)),"non-cash")) -> 
A107: 97 | B107: 0 | C107: =IF(ISBLANK(D107)=TRUE,"",MONTH(D107)) ->  | K107: 0 | M107: =IF(ISBLANK(L107),"",VLOOKUP(L107,Übersicht!$B$3:$C$35,2,FALSE)) ->  | O107: =CONCATENATE(TEXT(C107,"00"),L107) ->  | P107: =CONCATENATE(TEXT(C107,"00"),N107) ->  | Q107: =IF($L107=Q$10,$K107,"") ->  | AT107: =IF($N107=AT$10,$I107,"") ->  | AU107: =IF($N107=AU$10,$J107,"") ->  | AV107: =IF($N107=AV$10,$K107,"") ->  | AX107: 0 | AY107: =IF(ISBLANK(D107),"",_xlfn.IFNA(SUM(SUMIFS(I$11:I107,E$11:E107,E107),ROUND(SUMIFS(J$11:J107,E$11:E107,E107)*-1,2),VLOOKUP(E107,$E$2:$H$5,4,FALSE)),"non-cash")) -> 
A108: 98 | B108: 0 | K108: 0 | M108: =IF(ISBLANK(L108),"",VLOOKUP(L108,Übersicht!$B$3:$C$35,2,FALSE)) ->  | AX108: 0 | AY108: =IF(ISBLANK(D108),"",_xlfn.IFNA(SUM(SUMIFS(I$11:I108,E$11:E108,E108),ROUND(SUMIFS(J$11:J108,E$11:E108,E108)*-1,2),VLOOKUP(E108,$E$2:$H$5,4,FALSE)),"non-cash")) -> 
A109: 99 | B109: 0 | K109: 0 | M109: =IF(ISBLANK(L109),"",VLOOKUP(L109,Übersicht!$B$3:$C$35,2,FALSE)) ->  | AX109: 0 | AY109: =IF(ISBLANK(D109),"",_xlfn.IFNA(SUM(SUMIFS(I$11:I109,E$11:E109,E109),ROUND(SUMIFS(J$11:J109,E$11:E109,E109)*-1,2),VLOOKUP(E109,$E$2:$H$5,4,FALSE)),"non-cash")) -> 
A110: 100 | B110: 0 | K110: 0 | M110: =IF(ISBLANK(L110),"",VLOOKUP(L110,Übersicht!$B$3:$C$35,2,FALSE)) ->  | AX110: 0 | AY110: =IF(ISBLANK(D110),"",_xlfn.IFNA(SUM(SUMIFS(I$11:I110,E$11:E110,E110),ROUND(SUMIFS(J$11:J110,E$11:E110,E110)*-1,2),VLOOKUP(E110,$E$2:$H$5,4,FALSE)),"non-cash")) -> 
A111: 101 | B111: 0 | K111: 0 | M111: =IF(ISBLANK(L111),"",VLOOKUP(L111,Übersicht!$B$3:$C$35,2,FALSE)) ->  | R111: =IF($L111=R$10,$K111,"") ->  | AB111: =IF($L111=AB$10,$K111,"") ->  | AW111: =IF($N111=AW$10,$I111-$J111,"") ->  | AX111: 0 | AY111: =IF(ISBLANK(D111),"",_xlfn.IFNA(SUM(SUMIFS(I$11:I111,E$11:E111,E111),ROUND(SUMIFS(J$11:J111,E$11:E111,E111)*-1,2),VLOOKUP(E111,$E$2:$H$5,4,FALSE)),"non-cash")) -> 
A112: 102 | B112: 0 | K112: 0 | M112: =IF(ISBLANK(L112),"",VLOOKUP(L112,Übersicht!$B$3:$C$35,2,FALSE)) ->  | AX112: 0 | AY112: =IF(ISBLANK(D112),"",_xlfn.IFNA(SUM(SUMIFS(I$11:I112,E$11:E112,E112),ROUND(SUMIFS(J$11:J112,E$11:E112,E112)*-1,2),VLOOKUP(E112,$E$2:$H$5,4,FALSE)),"non-cash")) -> 
A113: 103 | B113: 0 | K113: 0 | M113: =IF(ISBLANK(L113),"",VLOOKUP(L113,Übersicht!$B$3:$C$35,2,FALSE)) ->  | AF113: =IF($L113=AF$10,$K113,"") ->  | AM113: =IF($L113=AM$10,$K113,"") ->  | AX113: 0 | AY113: =IF(ISBLANK(D113),"",_xlfn.IFNA(SUM(SUMIFS(I$11:I113,E$11:E113,E113),ROUND(SUMIFS(J$11:J113,E$11:E113,E113)*-1,2),VLOOKUP(E113,$E$2:$H$5,4,FALSE)),"non-cash")) -> 
A114: 104 | B114: 0 | K114: 0 | M114: =IF(ISBLANK(L114),"",VLOOKUP(L114,Übersicht!$B$3:$C$35,2,FALSE)) ->  | AX114: 0 | AY114: =IF(ISBLANK(D114),"",_xlfn.IFNA(SUM(SUMIFS(I$11:I114,E$11:E114,E114),ROUND(SUMIFS(J$11:J114,E$11:E114,E114)*-1,2),VLOOKUP(E114,$E$2:$H$5,4,FALSE)),"non-cash")) -> 
A115: 105 | B115: 0 | K115: 0 | M115: =IF(ISBLANK(L115),"",VLOOKUP(L115,Übersicht!$B$3:$C$35,2,FALSE)) ->  | AX115: 0 | AY115: =IF(ISBLANK(D115),"",_xlfn.IFNA(SUM(SUMIFS(I$11:I115,E$11:E115,E115),ROUND(SUMIFS(J$11:J115,E$11:E115,E115)*-1,2),VLOOKUP(E115,$E$2:$H$5,4,FALSE)),"non-cash")) -> 
A116: 106 | B116: 0 | K116: 0 | M116: =IF(ISBLANK(L116),"",VLOOKUP(L116,Übersicht!$B$3:$C$35,2,FALSE)) ->  | AX116: 0 | AY116: =IF(ISBLANK(D116),"",_xlfn.IFNA(SUM(SUMIFS(I$11:I116,E$11:E116,E116),ROUND(SUMIFS(J$11:J116,E$11:E116,E116)*-1,2),VLOOKUP(E116,$E$2:$H$5,4,FALSE)),"non-cash")) -> 
A117: 107 | B117: 0 | K117: 0 | M117: =IF(ISBLANK(L117),"",VLOOKUP(L117,Übersicht!$B$3:$C$35,2,FALSE)) ->  | AX117: 0 | AY117: =IF(ISBLANK(D117),"",_xlfn.IFNA(SUM(SUMIFS(I$11:I117,E$11:E117,E117),ROUND(SUMIFS(J$11:J117,E$11:E117,E117)*-1,2),VLOOKUP(E117,$E$2:$H$5,4,FALSE)),"non-cash")) -> 
A118: 108 | B118: 0 | K118: 0 | M118: =IF(ISBLANK(L118),"",VLOOKUP(L118,Übersicht!$B$3:$C$35,2,FALSE)) ->  | AX118: 0 | AY118: =IF(ISBLANK(D118),"",_xlfn.IFNA(SUM(SUMIFS(I$11:I118,E$11:E118,E118),ROUND(SUMIFS(J$11:J118,E$11:E118,E118)*-1,2),VLOOKUP(E118,$E$2:$H$5,4,FALSE)),"non-cash")) -> 
A119: 109 | B119: 0 | K119: 0 | M119: =IF(ISBLANK(L119),"",VLOOKUP(L119,Übersicht!$B$3:$C$35,2,FALSE)) ->  | AX119: 0 | AY119: =IF(ISBLANK(D119),"",_xlfn.IFNA(SUM(SUMIFS(I$11:I119,E$11:E119,E119),ROUND(SUMIFS(J$11:J119,E$11:E119,E119)*-1,2),VLOOKUP(E119,$E$2:$H$5,4,FALSE)),"non-cash")) -> 
A120: 110 | B120: 0 | K120: 0 | M120: =IF(ISBLANK(L120),"",VLOOKUP(L120,Übersicht!$B$3:$C$35,2,FALSE)) ->  | AX120: 0 | AY120: =IF(ISBLANK(D120),"",_xlfn.IFNA(SUM(SUMIFS(I$11:I120,E$11:E120,E120),ROUND(SUMIFS(J$11:J120,E$11:E120,E120)*-1,2),VLOOKUP(E120,$E$2:$H$5,4,FALSE)),"non-cash")) -> 
A121: 111 | B121: 0 | K121: 0 | M121: =IF(ISBLANK(L121),"",VLOOKUP(L121,Übersicht!$B$3:$C$35,2,FALSE)) ->  | R121: =IF($L121=R$10,$K121,"") ->  | AX121: 0 | AY121: =IF(ISBLANK(D121),"",_xlfn.IFNA(SUM(SUMIFS(I$11:I121,E$11:E121,E121),ROUND(SUMIFS(J$11:J121,E$11:E121,E121)*-1,2),VLOOKUP(E121,$E$2:$H$5,4,FALSE)),"non-cash")) -> 
A122: 112 | B122: 0 | K122: 0 | M122: =IF(ISBLANK(L122),"",VLOOKUP(L122,Übersicht!$B$3:$C$35,2,FALSE)) ->  | AX122: 0 | AY122: =IF(ISBLANK(D122),"",_xlfn.IFNA(SUM(SUMIFS(I$11:I122,E$11:E122,E122),ROUND(SUMIFS(J$11:J122,E$11:E122,E122)*-1,2),VLOOKUP(E122,$E$2:$H$5,4,FALSE)),"non-cash")) -> 
A123: 113 | B123: 0 | K123: 0 | M123: =IF(ISBLANK(L123),"",VLOOKUP(L123,Übersicht!$B$3:$C$35,2,FALSE)) ->  | AF123: =IF($L123=AF$10,$K123,"") ->  | AM123: =IF($L123=AM$10,$K123,"") ->  | AX123: 0 | AY123: =IF(ISBLANK(D123),"",_xlfn.IFNA(SUM(SUMIFS(I$11:I123,E$11:E123,E123),ROUND(SUMIFS(J$11:J123,E$11:E123,E123)*-1,2),VLOOKUP(E123,$E$2:$H$5,4,FALSE)),"non-cash")) -> 
A124: 114 | B124: 0 | K124: 0 | M124: =IF(ISBLANK(L124),"",VLOOKUP(L124,Übersicht!$B$3:$C$35,2,FALSE)) ->  | AX124: 0 | AY124: =IF(ISBLANK(D124),"",_xlfn.IFNA(SUM(SUMIFS(I$11:I124,E$11:E124,E124),ROUND(SUMIFS(J$11:J124,E$11:E124,E124)*-1,2),VLOOKUP(E124,$E$2:$H$5,4,FALSE)),"non-cash")) -> 
A125: 115 | B125: 0 | K125: 0 | M125: =IF(ISBLANK(L125),"",VLOOKUP(L125,Übersicht!$B$3:$C$35,2,FALSE)) ->  | AX125: 0 | AY125: =IF(ISBLANK(D125),"",_xlfn.IFNA(SUM(SUMIFS(I$11:I125,E$11:E125,E125),ROUND(SUMIFS(J$11:J125,E$11:E125,E125)*-1,2),VLOOKUP(E125,$E$2:$H$5,4,FALSE)),"non-cash")) -> 
A126: 116 | B126: 0 | K126: 0 | M126: =IF(ISBLANK(L126),"",VLOOKUP(L126,Übersicht!$B$3:$C$35,2,FALSE)) ->  | AX126: 0 | AY126: =IF(ISBLANK(D126),"",_xlfn.IFNA(SUM(SUMIFS(I$11:I126,E$11:E126,E126),ROUND(SUMIFS(J$11:J126,E$11:E126,E126)*-1,2),VLOOKUP(E126,$E$2:$H$5,4,FALSE)),"non-cash")) -> 
A127: 117 | B127: 0 | K127: =ROUND(I127-J127,2) -> 0 | M127: =IF(ISBLANK(L127),"",VLOOKUP(L127,Übersicht!$B$3:$C$35,2,FALSE)) ->  | AX127: 0 | AY127: =IF(ISBLANK(D127),"",_xlfn.IFNA(SUM(SUMIFS(I$11:I127,E$11:E127,E127),ROUND(SUMIFS(J$11:J127,E$11:E127,E127)*-1,2),VLOOKUP(E127,$E$2:$H$5,4,FALSE)),"non-cash")) -> 
A128: 118 | B128: 0 | K128: 0 | M128: =IF(ISBLANK(L128),"",VLOOKUP(L128,Übersicht!$B$3:$C$35,2,FALSE)) ->  | AX128: 0 | AY128: =IF(ISBLANK(D128),"",_xlfn.IFNA(SUM(SUMIFS(I$11:I128,E$11:E128,E128),ROUND(SUMIFS(J$11:J128,E$11:E128,E128)*-1,2),VLOOKUP(E128,$E$2:$H$5,4,FALSE)),"non-cash")) -> 
A129: 119 | B129: 0 | K129: 0 | M129: =IF(ISBLANK(L129),"",VLOOKUP(L129,Übersicht!$B$3:$C$35,2,FALSE)) ->  | AX129: 0 | AY129: =IF(ISBLANK(D129),"",_xlfn.IFNA(SUM(SUMIFS(I$11:I129,E$11:E129,E129),ROUND(SUMIFS(J$11:J129,E$11:E129,E129)*-1,2),VLOOKUP(E129,$E$2:$H$5,4,FALSE)),"non-cash")) -> 
A130: 120 | B130: 0 | K130: 0 | M130: =IF(ISBLANK(L130),"",VLOOKUP(L130,Übersicht!$B$3:$C$35,2,FALSE)) ->  | AX130: 0 | AY130: =IF(ISBLANK(D130),"",_xlfn.IFNA(SUM(SUMIFS(I$11:I130,E$11:E130,E130),ROUND(SUMIFS(J$11:J130,E$11:E130,E130)*-1,2),VLOOKUP(E130,$E$2:$H$5,4,FALSE)),"non-cash")) -> 
A131: 121 | B131: 0 | K131: 0 | M131: =IF(ISBLANK(L131),"",VLOOKUP(L131,Übersicht!$B$3:$C$35,2,FALSE)) ->  | R131: =IF($L131=R$10,$K131,"") ->  | AB131: =IF($L131=AB$10,$K131,"") ->  | AW131: =IF($N131=AW$10,$I131-$J131,"") ->  | AX131: 0 | AY131: =IF(ISBLANK(D131),"",_xlfn.IFNA(SUM(SUMIFS(I$11:I131,E$11:E131,E131),ROUND(SUMIFS(J$11:J131,E$11:E131,E131)*-1,2),VLOOKUP(E131,$E$2:$H$5,4,FALSE)),"non-cash")) -> 
A132: 122 | B132: 0 | K132: 0 | M132: =IF(ISBLANK(L132),"",VLOOKUP(L132,Übersicht!$B$3:$C$35,2,FALSE)) ->  | AX132: 0 | AY132: =IF(ISBLANK(D132),"",_xlfn.IFNA(SUM(SUMIFS(I$11:I132,E$11:E132,E132),ROUND(SUMIFS(J$11:J132,E$11:E132,E132)*-1,2),VLOOKUP(E132,$E$2:$H$5,4,FALSE)),"non-cash")) -> 
A133: 123 | B133: 0 | K133: 0 | M133: =IF(ISBLANK(L133),"",VLOOKUP(L133,Übersicht!$B$3:$C$35,2,FALSE)) ->  | AF133: =IF($L133=AF$10,$K133,"") ->  | AM133: =IF($L133=AM$10,$K133,"") ->  | AX133: 0 | AY133: =IF(ISBLANK(D133),"",_xlfn.IFNA(SUM(SUMIFS(I$11:I133,E$11:E133,E133),ROUND(SUMIFS(J$11:J133,E$11:E133,E133)*-1,2),VLOOKUP(E133,$E$2:$H$5,4,FALSE)),"non-cash")) -> 
A134: 124 | B134: 0 | K134: 0 | M134: =IF(ISBLANK(L134),"",VLOOKUP(L134,Übersicht!$B$3:$C$35,2,FALSE)) ->  | AX134: 0 | AY134: =IF(ISBLANK(D134),"",_xlfn.IFNA(SUM(SUMIFS(I$11:I134,E$11:E134,E134),ROUND(SUMIFS(J$11:J134,E$11:E134,E134)*-1,2),VLOOKUP(E134,$E$2:$H$5,4,FALSE)),"non-cash")) -> 
A135: 125 | B135: 0 | K135: 0 | M135: =IF(ISBLANK(L135),"",VLOOKUP(L135,Übersicht!$B$3:$C$35,2,FALSE)) ->  | AA135: =IF($L135=AA$10,$K135,"") ->  | AX135: 0 | AY135: =IF(ISBLANK(D135),"",_xlfn.IFNA(SUM(SUMIFS(I$11:I135,E$11:E135,E135),ROUND(SUMIFS(J$11:J135,E$11:E135,E135)*-1,2),VLOOKUP(E135,$E$2:$H$5,4,FALSE)),"non-cash")) -> 
A136: 126 | B136: 0 | K136: 0 | M136: =IF(ISBLANK(L136),"",VLOOKUP(L136,Übersicht!$B$3:$C$35,2,FALSE)) ->  | AX136: 0 | AY136: =IF(ISBLANK(D136),"",_xlfn.IFNA(SUM(SUMIFS(I$11:I136,E$11:E136,E136),ROUND(SUMIFS(J$11:J136,E$11:E136,E136)*-1,2),VLOOKUP(E136,$E$2:$H$5,4,FALSE)),"non-cash")) -> 
A137: 127 | B137: 0 | K137: 0 | M137: =IF(ISBLANK(L137),"",VLOOKUP(L137,Übersicht!$B$3:$C$35,2,FALSE)) ->  | AL137: =IF($L137=AL$10,$K137,"") ->  | AX137: 0 | AY137: =IF(ISBLANK(D137),"",_xlfn.IFNA(SUM(SUMIFS(I$11:I137,E$11:E137,E137),ROUND(SUMIFS(J$11:J137,E$11:E137,E137)*-1,2),VLOOKUP(E137,$E$2:$H$5,4,FALSE)),"non-cash")) -> 
A138: 128 | B138: 0 | K138: 0 | M138: =IF(ISBLANK(L138),"",VLOOKUP(L138,Übersicht!$B$3:$C$35,2,FALSE)) ->  | AX138: 0 | AY138: =IF(ISBLANK(D138),"",_xlfn.IFNA(SUM(SUMIFS(I$11:I138,E$11:E138,E138),ROUND(SUMIFS(J$11:J138,E$11:E138,E138)*-1,2),VLOOKUP(E138,$E$2:$H$5,4,FALSE)),"non-cash")) -> 
A139: 129 | B139: 0 | C139: =IF(ISBLANK(D139)=TRUE,"",MONTH(D139)) ->  | K139: 0 | M139: =IF(ISBLANK(L139),"",VLOOKUP(L139,Übersicht!$B$3:$C$35,2,FALSE)) ->  | O139: =CONCATENATE(TEXT(C139,"00"),L139) ->  | P139: =CONCATENATE(TEXT(C139,"00"),N139) ->  | AT139: =IF($N139=AT$10,$I139,"") ->  | AU139: =IF($N139=AU$10,$J139,"") ->  | AV139: =IF($N139=AV$10,$K139,"") ->  | AX139: 0 | AY139: =IF(ISBLANK(D139),"",_xlfn.IFNA(SUM(SUMIFS(I$11:I139,E$11:E139,E139),ROUND(SUMIFS(J$11:J139,E$11:E139,E139)*-1,2),VLOOKUP(E139,$E$2:$H$5,4,FALSE)),"non-cash")) -> 
A140: 130 | B140: =DAY(D140) -> 0 | K140: 0 | M140: =IF(ISBLANK(L140),"",VLOOKUP(L140,Übersicht!$B$3:$C$35,2,FALSE)) ->  | N140: =IF(OR(L140="700",L140="999",L140="998",L140="992",ISBLANK(L140)),"",IF(L140="995","f",IF(LEFT(L140,1)="0","i","o"))) ->  | AX140: 0 | AY140: =IF(ISBLANK(D140),"",_xlfn.IFNA(SUM(SUMIFS(I$11:I140,E$11:E140,E140),ROUND(SUMIFS(J$11:J140,E$11:E140,E140)*-1,2),VLOOKUP(E140,$E$2:$H$5,4,FALSE)),"non-cash")) ->  | BA140: =IF(ISBLANK(AZ140),"",HYPERLINK(CONCATENATE($BA$10,"\",AZ140,".pdf"),"anzeigen")) -> 
A141: 131 | B141: 0 | K141: 0 | M141: =IF(ISBLANK(L141),"",VLOOKUP(L141,Übersicht!$B$3:$C$35,2,FALSE)) ->  | R141: =IF($L141=R$10,$K141,"") ->  | S141: =IF($L141=S$10,$K141,"") ->  | Z141: =IF($L141=Z$10,$K141,"") ->  | AX141: 0 | AY141: =IF(ISBLANK(D141),"",_xlfn.IFNA(SUM(SUMIFS(I$11:I141,E$11:E141,E141),ROUND(SUMIFS(J$11:J141,E$11:E141,E141)*-1,2),VLOOKUP(E141,$E$2:$H$5,4,FALSE)),"non-cash")) -> 
A142: 132 | B142: 0 | K142: 0 | M142: =IF(ISBLANK(L142),"",VLOOKUP(L142,Übersicht!$B$3:$C$35,2,FALSE)) ->  | Q142: =IF($L142=Q$10,$K142,"") ->  | AX142: 0 | AY142: =IF(ISBLANK(D142),"",_xlfn.IFNA(SUM(SUMIFS(I$11:I142,E$11:E142,E142),ROUND(SUMIFS(J$11:J142,E$11:E142,E142)*-1,2),VLOOKUP(E142,$E$2:$H$5,4,FALSE)),"non-cash")) -> 
A143: 133 | B143: 0 | K143: 0 | M143: =IF(ISBLANK(L143),"",VLOOKUP(L143,Übersicht!$B$3:$C$35,2,FALSE)) ->  | AF143: =IF($L143=AF$10,$K143,"") ->  | AM143: =IF($L143=AM$10,$K143,"") ->  | AX143: 0 | AY143: =IF(ISBLANK(D143),"",_xlfn.IFNA(SUM(SUMIFS(I$11:I143,E$11:E143,E143),ROUND(SUMIFS(J$11:J143,E$11:E143,E143)*-1,2),VLOOKUP(E143,$E$2:$H$5,4,FALSE)),"non-cash")) -> 
A144: 134 | B144: 0 | K144: 0 | M144: =IF(ISBLANK(L144),"",VLOOKUP(L144,Übersicht!$B$3:$C$35,2,FALSE)) ->  | AX144: 0 | AY144: =IF(ISBLANK(D144),"",_xlfn.IFNA(SUM(SUMIFS(I$11:I144,E$11:E144,E144),ROUND(SUMIFS(J$11:J144,E$11:E144,E144)*-1,2),VLOOKUP(E144,$E$2:$H$5,4,FALSE)),"non-cash")) -> 
A145: 135 | B145: 0 | K145: 0 | M145: =IF(ISBLANK(L145),"",VLOOKUP(L145,Übersicht!$B$3:$C$35,2,FALSE)) ->  | AX145: 0 | AY145: =IF(ISBLANK(D145),"",_xlfn.IFNA(SUM(SUMIFS(I$11:I145,E$11:E145,E145),ROUND(SUMIFS(J$11:J145,E$11:E145,E145)*-1,2),VLOOKUP(E145,$E$2:$H$5,4,FALSE)),"non-cash")) -> 
A146: 136 | B146: 0 | K146: 0 | M146: =IF(ISBLANK(L146),"",VLOOKUP(L146,Übersicht!$B$3:$C$35,2,FALSE)) ->  | AX146: 0 | AY146: =IF(ISBLANK(D146),"",_xlfn.IFNA(SUM(SUMIFS(I$11:I146,E$11:E146,E146),ROUND(SUMIFS(J$11:J146,E$11:E146,E146)*-1,2),VLOOKUP(E146,$E$2:$H$5,4,FALSE)),"non-cash")) -> 
A147: 137 | B147: 0 | K147: 0 | M147: =IF(ISBLANK(L147),"",VLOOKUP(L147,Übersicht!$B$3:$C$35,2,FALSE)) ->  | V147: =IF($L147=V$10,$K147,"") ->  | AX147: 0 | AY147: =IF(ISBLANK(D147),"",_xlfn.IFNA(SUM(SUMIFS(I$11:I147,E$11:E147,E147),ROUND(SUMIFS(J$11:J147,E$11:E147,E147)*-1,2),VLOOKUP(E147,$E$2:$H$5,4,FALSE)),"non-cash")) -> 
A148: 138 | B148: 0 | K148: 0 | M148: =IF(ISBLANK(L148),"",VLOOKUP(L148,Übersicht!$B$3:$C$35,2,FALSE)) ->  | AX148: 0 | AY148: =IF(ISBLANK(D148),"",_xlfn.IFNA(SUM(SUMIFS(I$11:I148,E$11:E148,E148),ROUND(SUMIFS(J$11:J148,E$11:E148,E148)*-1,2),VLOOKUP(E148,$E$2:$H$5,4,FALSE)),"non-cash")) -> 
A149: 139 | B149: 0 | K149: 0 | M149: =IF(ISBLANK(L149),"",VLOOKUP(L149,Übersicht!$B$3:$C$35,2,FALSE)) ->  | AX149: 0 | AY149: =IF(ISBLANK(D149),"",_xlfn.IFNA(SUM(SUMIFS(I$11:I149,E$11:E149,E149),ROUND(SUMIFS(J$11:J149,E$11:E149,E149)*-1,2),VLOOKUP(E149,$E$2:$H$5,4,FALSE)),"non-cash")) -> 
A150: 140 | B150: 0 | K150: 0 | M150: =IF(ISBLANK(L150),"",VLOOKUP(L150,Übersicht!$B$3:$C$35,2,FALSE)) ->  | AX150: 0 | AY150: =IF(ISBLANK(D150),"",_xlfn.IFNA(SUM(SUMIFS(I$11:I150,E$11:E150,E150),ROUND(SUMIFS(J$11:J150,E$11:E150,E150)*-1,2),VLOOKUP(E150,$E$2:$H$5,4,FALSE)),"non-cash")) -> 
A151: 141 | B151: 0 | K151: 0 | M151: =IF(ISBLANK(L151),"",VLOOKUP(L151,Übersicht!$B$3:$C$35,2,FALSE)) ->  | AB151: =IF($L151=AB$10,$K151,"") ->  | AW151: =IF($N151=AW$10,$I151-$J151,"") ->  | AX151: 0 | AY151: =IF(ISBLANK(D151),"",_xlfn.IFNA(SUM(SUMIFS(I$11:I151,E$11:E151,E151),ROUND(SUMIFS(J$11:J151,E$11:E151,E151)*-1,2),VLOOKUP(E151,$E$2:$H$5,4,FALSE)),"non-cash")) -> 
A152: 142 | B152: 0 | K152: 0 | M152: =IF(ISBLANK(L152),"",VLOOKUP(L152,Übersicht!$B$3:$C$35,2,FALSE)) ->  | AX152: 0 | AY152: =IF(ISBLANK(D152),"",_xlfn.IFNA(SUM(SUMIFS(I$11:I152,E$11:E152,E152),ROUND(SUMIFS(J$11:J152,E$11:E152,E152)*-1,2),VLOOKUP(E152,$E$2:$H$5,4,FALSE)),"non-cash")) -> 
A153: 143 | B153: 0 | K153: 0 | M153: =IF(ISBLANK(L153),"",VLOOKUP(L153,Übersicht!$B$3:$C$35,2,FALSE)) ->  | AF153: =IF($L153=AF$10,$K153,"") ->  | AM153: =IF($L153=AM$10,$K153,"") ->  | AX153: 0 | AY153: =IF(ISBLANK(D153),"",_xlfn.IFNA(SUM(SUMIFS(I$11:I153,E$11:E153,E153),ROUND(SUMIFS(J$11:J153,E$11:E153,E153)*-1,2),VLOOKUP(E153,$E$2:$H$5,4,FALSE)),"non-cash")) -> 
A154: 144 | B154: 0 | K154: 0 | M154: =IF(ISBLANK(L154),"",VLOOKUP(L154,Übersicht!$B$3:$C$35,2,FALSE)) ->  | AX154: 0 | AY154: =IF(ISBLANK(D154),"",_xlfn.IFNA(SUM(SUMIFS(I$11:I154,E$11:E154,E154),ROUND(SUMIFS(J$11:J154,E$11:E154,E154)*-1,2),VLOOKUP(E154,$E$2:$H$5,4,FALSE)),"non-cash")) -> 
A155: 145 | B155: 0 | K155: 0 | M155: =IF(ISBLANK(L155),"",VLOOKUP(L155,Übersicht!$B$3:$C$35,2,FALSE)) ->  | AX155: 0 | AY155: =IF(ISBLANK(D155),"",_xlfn.IFNA(SUM(SUMIFS(I$11:I155,E$11:E155,E155),ROUND(SUMIFS(J$11:J155,E$11:E155,E155)*-1,2),VLOOKUP(E155,$E$2:$H$5,4,FALSE)),"non-cash")) -> 
A156: 146 | B156: 0 | K156: 0 | M156: =IF(ISBLANK(L156),"",VLOOKUP(L156,Übersicht!$B$3:$C$35,2,FALSE)) ->  | AX156: 0 | AY156: =IF(ISBLANK(D156),"",_xlfn.IFNA(SUM(SUMIFS(I$11:I156,E$11:E156,E156),ROUND(SUMIFS(J$11:J156,E$11:E156,E156)*-1,2),VLOOKUP(E156,$E$2:$H$5,4,FALSE)),"non-cash")) -> 
A157: 147 | B157: 0 | K157: 0 | M157: =IF(ISBLANK(L157),"",VLOOKUP(L157,Übersicht!$B$3:$C$35,2,FALSE)) ->  | AX157: 0 | AY157: =IF(ISBLANK(D157),"",_xlfn.IFNA(SUM(SUMIFS(I$11:I157,E$11:E157,E157),ROUND(SUMIFS(J$11:J157,E$11:E157,E157)*-1,2),VLOOKUP(E157,$E$2:$H$5,4,FALSE)),"non-cash")) -> 
A158: 148 | B158: 0 | K158: 0 | M158: =IF(ISBLANK(L158),"",VLOOKUP(L158,Übersicht!$B$3:$C$35,2,FALSE)) ->  | AX158: 0 | AY158: =IF(ISBLANK(D158),"",_xlfn.IFNA(SUM(SUMIFS(I$11:I158,E$11:E158,E158),ROUND(SUMIFS(J$11:J158,E$11:E158,E158)*-1,2),VLOOKUP(E158,$E$2:$H$5,4,FALSE)),"non-cash")) -> 
A159: 149 | B159: 0 | K159: 0 | M159: =IF(ISBLANK(L159),"",VLOOKUP(L159,Übersicht!$B$3:$C$35,2,FALSE)) ->  | AB159: =IF($L159=AB$10,$K159,"") ->  | AC159: =IF($L159=AC$10,$K159,"") ->  | AD159: =IF($L159=AD$10,$K159,"") ->  | AE159: =IF($L159=AE$10,$K159,"") ->  | AX159: 0 | AY159: =IF(ISBLANK(D159),"",_xlfn.IFNA(SUM(SUMIFS(I$11:I159,E$11:E159,E159),ROUND(SUMIFS(J$11:J159,E$11:E159,E159)*-1,2),VLOOKUP(E159,$E$2:$H$5,4,FALSE)),"non-cash")) -> 
A160: 150 | B160: 0 | K160: 0 | M160: =IF(ISBLANK(L160),"",VLOOKUP(L160,Übersicht!$B$3:$C$35,2,FALSE)) ->  | AX160: 0 | AY160: =IF(ISBLANK(D160),"",_xlfn.IFNA(SUM(SUMIFS(I$11:I160,E$11:E160,E160),ROUND(SUMIFS(J$11:J160,E$11:E160,E160)*-1,2),VLOOKUP(E160,$E$2:$H$5,4,FALSE)),"non-cash")) -> 
A161: 151 | B161: 0 | K161: 0 | M161: =IF(ISBLANK(L161),"",VLOOKUP(L161,Übersicht!$B$3:$C$35,2,FALSE)) ->  | AX161: 0 | AY161: =IF(ISBLANK(D161),"",_xlfn.IFNA(SUM(SUMIFS(I$11:I161,E$11:E161,E161),ROUND(SUMIFS(J$11:J161,E$11:E161,E161)*-1,2),VLOOKUP(E161,$E$2:$H$5,4,FALSE)),"non-cash")) -> 
A162: 152 | B162: 0 | K162: 0 | M162: =IF(ISBLANK(L162),"",VLOOKUP(L162,Übersicht!$B$3:$C$35,2,FALSE)) ->  | AX162: 0 | AY162: =IF(ISBLANK(D162),"",_xlfn.IFNA(SUM(SUMIFS(I$11:I162,E$11:E162,E162),ROUND(SUMIFS(J$11:J162,E$11:E162,E162)*-1,2),VLOOKUP(E162,$E$2:$H$5,4,FALSE)),"non-cash")) -> 
A163: 153 | B163: 0 | K163: 0 | M163: =IF(ISBLANK(L163),"",VLOOKUP(L163,Übersicht!$B$3:$C$35,2,FALSE)) ->  | AF163: =IF($L163=AF$10,$K163,"") ->  | AM163: =IF($L163=AM$10,$K163,"") ->  | AX163: 0 | AY163: =IF(ISBLANK(D163),"",_xlfn.IFNA(SUM(SUMIFS(I$11:I163,E$11:E163,E163),ROUND(SUMIFS(J$11:J163,E$11:E163,E163)*-1,2),VLOOKUP(E163,$E$2:$H$5,4,FALSE)),"non-cash")) -> 
A164: 154 | B164: 0 | K164: 0 | M164: =IF(ISBLANK(L164),"",VLOOKUP(L164,Übersicht!$B$3:$C$35,2,FALSE)) ->  | AX164: 0 | AY164: =IF(ISBLANK(D164),"",_xlfn.IFNA(SUM(SUMIFS(I$11:I164,E$11:E164,E164),ROUND(SUMIFS(J$11:J164,E$11:E164,E164)*-1,2),VLOOKUP(E164,$E$2:$H$5,4,FALSE)),"non-cash")) -> 
A165: 155 | B165: 0 | K165: 0 | M165: =IF(ISBLANK(L165),"",VLOOKUP(L165,Übersicht!$B$3:$C$35,2,FALSE)) ->  | AX165: 0 | AY165: =IF(ISBLANK(D165),"",_xlfn.IFNA(SUM(SUMIFS(I$11:I165,E$11:E165,E165),ROUND(SUMIFS(J$11:J165,E$11:E165,E165)*-1,2),VLOOKUP(E165,$E$2:$H$5,4,FALSE)),"non-cash")) -> 
A166: 156 | B166: 0 | K166: 0 | M166: =IF(ISBLANK(L166),"",VLOOKUP(L166,Übersicht!$B$3:$C$35,2,FALSE)) ->  | AX166: 0 | AY166: =IF(ISBLANK(D166),"",_xlfn.IFNA(SUM(SUMIFS(I$11:I166,E$11:E166,E166),ROUND(SUMIFS(J$11:J166,E$11:E166,E166)*-1,2),VLOOKUP(E166,$E$2:$H$5,4,FALSE)),"non-cash")) -> 
A167: 157 | B167: 0 | K167: 0 | M167: =IF(ISBLANK(L167),"",VLOOKUP(L167,Übersicht!$B$3:$C$35,2,FALSE)) ->  | AX167: 0 | AY167: =IF(ISBLANK(D167),"",_xlfn.IFNA(SUM(SUMIFS(I$11:I167,E$11:E167,E167),ROUND(SUMIFS(J$11:J167,E$11:E167,E167)*-1,2),VLOOKUP(E167,$E$2:$H$5,4,FALSE)),"non-cash")) -> 
A168: 158 | B168: 0 | K168: 0 | M168: =IF(ISBLANK(L168),"",VLOOKUP(L168,Übersicht!$B$3:$C$35,2,FALSE)) ->  | AX168: 0 | AY168: =IF(ISBLANK(D168),"",_xlfn.IFNA(SUM(SUMIFS(I$11:I168,E$11:E168,E168),ROUND(SUMIFS(J$11:J168,E$11:E168,E168)*-1,2),VLOOKUP(E168,$E$2:$H$5,4,FALSE)),"non-cash")) -> 
A169: 159 | B169: 0 | K169: 0 | M169: =IF(ISBLANK(L169),"",VLOOKUP(L169,Übersicht!$B$3:$C$35,2,FALSE)) ->  | AX169: 0 | AY169: =IF(ISBLANK(D169),"",_xlfn.IFNA(SUM(SUMIFS(I$11:I169,E$11:E169,E169),ROUND(SUMIFS(J$11:J169,E$11:E169,E169)*-1,2),VLOOKUP(E169,$E$2:$H$5,4,FALSE)),"non-cash")) -> 
A170: 160 | B170: 0 | K170: 0 | M170: =IF(ISBLANK(L170),"",VLOOKUP(L170,Übersicht!$B$3:$C$35,2,FALSE)) ->  | AX170: 0 | AY170: =IF(ISBLANK(D170),"",_xlfn.IFNA(SUM(SUMIFS(I$11:I170,E$11:E170,E170),ROUND(SUMIFS(J$11:J170,E$11:E170,E170)*-1,2),VLOOKUP(E170,$E$2:$H$5,4,FALSE)),"non-cash")) -> 
A171: 161 | B171: 0 | C171: =IF(ISBLANK(D171)=TRUE,"",MONTH(D171)) ->  | K171: 0 | M171: =IF(ISBLANK(L171),"",VLOOKUP(L171,Übersicht!$B$3:$C$35,2,FALSE)) ->  | O171: =CONCATENATE(TEXT(C171,"00"),L171) ->  | P171: =CONCATENATE(TEXT(C171,"00"),N171) ->  | AT171: =IF($N171=AT$10,$I171,"") ->  | AU171: =IF($N171=AU$10,$J171,"") ->  | AV171: =IF($N171=AV$10,$K171,"") ->  | AW171: =IF($N171=AW$10,$I171-$J171,"") ->  | AX171: 0 | AY171: =IF(ISBLANK(D171),"",_xlfn.IFNA(SUM(SUMIFS(I$11:I171,E$11:E171,E171),ROUND(SUMIFS(J$11:J171,E$11:E171,E171)*-1,2),VLOOKUP(E171,$E$2:$H$5,4,FALSE)),"non-cash")) -> 
A172: 162 | B172: 0 | K172: 0 | M172: =IF(ISBLANK(L172),"",VLOOKUP(L172,Übersicht!$B$3:$C$35,2,FALSE)) ->  | AX172: 0 | AY172: =IF(ISBLANK(D172),"",_xlfn.IFNA(SUM(SUMIFS(I$11:I172,E$11:E172,E172),ROUND(SUMIFS(J$11:J172,E$11:E172,E172)*-1,2),VLOOKUP(E172,$E$2:$H$5,4,FALSE)),"non-cash")) -> 
A173: 163 | B173: 0 | K173: 0 | M173: =IF(ISBLANK(L173),"",VLOOKUP(L173,Übersicht!$B$3:$C$35,2,FALSE)) ->  | AF173: =IF($L173=AF$10,$K173,"") ->  | AM173: =IF($L173=AM$10,$K173,"") ->  | AX173: 0 | AY173: =IF(ISBLANK(D173),"",_xlfn.IFNA(SUM(SUMIFS(I$11:I173,E$11:E173,E173),ROUND(SUMIFS(J$11:J173,E$11:E173,E173)*-1,2),VLOOKUP(E173,$E$2:$H$5,4,FALSE)),"non-cash")) -> 
A174: 164 | B174: 0 | K174: 0 | M174: =IF(ISBLANK(L174),"",VLOOKUP(L174,Übersicht!$B$3:$C$35,2,FALSE)) ->  | AX174: 0 | AY174: =IF(ISBLANK(D174),"",_xlfn.IFNA(SUM(SUMIFS(I$11:I174,E$11:E174,E174),ROUND(SUMIFS(J$11:J174,E$11:E174,E174)*-1,2),VLOOKUP(E174,$E$2:$H$5,4,FALSE)),"non-cash")) -> 
A175: 165 | B175: 0 | K175: 0 | M175: =IF(ISBLANK(L175),"",VLOOKUP(L175,Übersicht!$B$3:$C$35,2,FALSE)) ->  | AX175: 0 | AY175: =IF(ISBLANK(D175),"",_xlfn.IFNA(SUM(SUMIFS(I$11:I175,E$11:E175,E175),ROUND(SUMIFS(J$11:J175,E$11:E175,E175)*-1,2),VLOOKUP(E175,$E$2:$H$5,4,FALSE)),"non-cash")) -> 
A176: 166 | B176: 0 | K176: 0 | M176: =IF(ISBLANK(L176),"",VLOOKUP(L176,Übersicht!$B$3:$C$35,2,FALSE)) ->  | AX176: 0 | AY176: =IF(ISBLANK(D176),"",_xlfn.IFNA(SUM(SUMIFS(I$11:I176,E$11:E176,E176),ROUND(SUMIFS(J$11:J176,E$11:E176,E176)*-1,2),VLOOKUP(E176,$E$2:$H$5,4,FALSE)),"non-cash")) -> 
A177: 167 | B177: 0 | K177: 0 | M177: =IF(ISBLANK(L177),"",VLOOKUP(L177,Übersicht!$B$3:$C$35,2,FALSE)) ->  | V177: =IF($L177=V$10,$K177,"") ->  | AX177: 0 | AY177: =IF(ISBLANK(D177),"",_xlfn.IFNA(SUM(SUMIFS(I$11:I177,E$11:E177,E177),ROUND(SUMIFS(J$11:J177,E$11:E177,E177)*-1,2),VLOOKUP(E177,$E$2:$H$5,4,FALSE)),"non-cash")) -> 
A178: 168 | B178: 0 | K178: 0 | M178: =IF(ISBLANK(L178),"",VLOOKUP(L178,Übersicht!$B$3:$C$35,2,FALSE)) ->  | R178: =IF($L178=R$10,$K178,"") ->  | AX178: 0 | AY178: =IF(ISBLANK(D178),"",_xlfn.IFNA(SUM(SUMIFS(I$11:I178,E$11:E178,E178),ROUND(SUMIFS(J$11:J178,E$11:E178,E178)*-1,2),VLOOKUP(E178,$E$2:$H$5,4,FALSE)),"non-cash")) -> 
A179: 169 | B179: 0 | K179: 0 | M179: =IF(ISBLANK(L179),"",VLOOKUP(L179,Übersicht!$B$3:$C$35,2,FALSE)) ->  | AX179: 0 | AY179: =IF(ISBLANK(D179),"",_xlfn.IFNA(SUM(SUMIFS(I$11:I179,E$11:E179,E179),ROUND(SUMIFS(J$11:J179,E$11:E179,E179)*-1,2),VLOOKUP(E179,$E$2:$H$5,4,FALSE)),"non-cash")) -> 
A180: 170 | B180: 0 | K180: 0 | M180: =IF(ISBLANK(L180),"",VLOOKUP(L180,Übersicht!$B$3:$C$35,2,FALSE)) ->  | AX180: 0 | AY180: =IF(ISBLANK(D180),"",_xlfn.IFNA(SUM(SUMIFS(I$11:I180,E$11:E180,E180),ROUND(SUMIFS(J$11:J180,E$11:E180,E180)*-1,2),VLOOKUP(E180,$E$2:$H$5,4,FALSE)),"non-cash")) -> 
A181: 171 | B181: 0 | K181: 0 | M181: =IF(ISBLANK(L181),"",VLOOKUP(L181,Übersicht!$B$3:$C$35,2,FALSE)) ->  | AX181: 0 | AY181: =IF(ISBLANK(D181),"",_xlfn.IFNA(SUM(SUMIFS(I$11:I181,E$11:E181,E181),ROUND(SUMIFS(J$11:J181,E$11:E181,E181)*-1,2),VLOOKUP(E181,$E$2:$H$5,4,FALSE)),"non-cash")) -> 
A182: 172 | B182: 0 | K182: 0 | M182: =IF(ISBLANK(L182),"",VLOOKUP(L182,Übersicht!$B$3:$C$35,2,FALSE)) ->  | AX182: 0 | AY182: =IF(ISBLANK(D182),"",_xlfn.IFNA(SUM(SUMIFS(I$11:I182,E$11:E182,E182),ROUND(SUMIFS(J$11:J182,E$11:E182,E182)*-1,2),VLOOKUP(E182,$E$2:$H$5,4,FALSE)),"non-cash")) -> 
A183: 173 | B183: 0 | K183: 0 | M183: =IF(ISBLANK(L183),"",VLOOKUP(L183,Übersicht!$B$3:$C$35,2,FALSE)) ->  | AF183: =IF($L183=AF$10,$K183,"") ->  | AM183: =IF($L183=AM$10,$K183,"") ->  | AX183: 0 | AY183: =IF(ISBLANK(D183),"",_xlfn.IFNA(SUM(SUMIFS(I$11:I183,E$11:E183,E183),ROUND(SUMIFS(J$11:J183,E$11:E183,E183)*-1,2),VLOOKUP(E183,$E$2:$H$5,4,FALSE)),"non-cash")) -> 
A184: 174 | B184: 0 | K184: 0 | M184: =IF(ISBLANK(L184),"",VLOOKUP(L184,Übersicht!$B$3:$C$35,2,FALSE)) ->  | AX184: 0 | AY184: =IF(ISBLANK(D184),"",_xlfn.IFNA(SUM(SUMIFS(I$11:I184,E$11:E184,E184),ROUND(SUMIFS(J$11:J184,E$11:E184,E184)*-1,2),VLOOKUP(E184,$E$2:$H$5,4,FALSE)),"non-cash")) -> 
A185: 175 | B185: 0 | K185: 0 | M185: =IF(ISBLANK(L185),"",VLOOKUP(L185,Übersicht!$B$3:$C$35,2,FALSE)) ->  | AX185: 0 | AY185: =IF(ISBLANK(D185),"",_xlfn.IFNA(SUM(SUMIFS(I$11:I185,E$11:E185,E185),ROUND(SUMIFS(J$11:J185,E$11:E185,E185)*-1,2),VLOOKUP(E185,$E$2:$H$5,4,FALSE)),"non-cash")) -> 
A186: 176 | B186: 0 | K186: 0 | M186: =IF(ISBLANK(L186),"",VLOOKUP(L186,Übersicht!$B$3:$C$35,2,FALSE)) ->  | AX186: 0 | AY186: =IF(ISBLANK(D186),"",_xlfn.IFNA(SUM(SUMIFS(I$11:I186,E$11:E186,E186),ROUND(SUMIFS(J$11:J186,E$11:E186,E186)*-1,2),VLOOKUP(E186,$E$2:$H$5,4,FALSE)),"non-cash")) -> 
A187: 177 | B187: 0 | K187: 0 | M187: =IF(ISBLANK(L187),"",VLOOKUP(L187,Übersicht!$B$3:$C$35,2,FALSE)) ->  | AX187: 0 | AY187: =IF(ISBLANK(D187),"",_xlfn.IFNA(SUM(SUMIFS(I$11:I187,E$11:E187,E187),ROUND(SUMIFS(J$11:J187,E$11:E187,E187)*-1,2),VLOOKUP(E187,$E$2:$H$5,4,FALSE)),"non-cash")) -> 
A188: 178 | B188: 0 | K188: 0 | M188: =IF(ISBLANK(L188),"",VLOOKUP(L188,Übersicht!$B$3:$C$35,2,FALSE)) ->  | AX188: 0 | AY188: =IF(ISBLANK(D188),"",_xlfn.IFNA(SUM(SUMIFS(I$11:I188,E$11:E188,E188),ROUND(SUMIFS(J$11:J188,E$11:E188,E188)*-1,2),VLOOKUP(E188,$E$2:$H$5,4,FALSE)),"non-cash")) -> 
A189: 179 | B189: 0 | K189: 0 | M189: =IF(ISBLANK(L189),"",VLOOKUP(L189,Übersicht!$B$3:$C$35,2,FALSE)) ->  | AX189: 0 | AY189: =IF(ISBLANK(D189),"",_xlfn.IFNA(SUM(SUMIFS(I$11:I189,E$11:E189,E189),ROUND(SUMIFS(J$11:J189,E$11:E189,E189)*-1,2),VLOOKUP(E189,$E$2:$H$5,4,FALSE)),"non-cash")) -> 
A190: 180 | B190: 0 | K190: 0 | M190: =IF(ISBLANK(L190),"",VLOOKUP(L190,Übersicht!$B$3:$C$35,2,FALSE)) ->  | AX190: 0 | AY190: =IF(ISBLANK(D190),"",_xlfn.IFNA(SUM(SUMIFS(I$11:I190,E$11:E190,E190),ROUND(SUMIFS(J$11:J190,E$11:E190,E190)*-1,2),VLOOKUP(E190,$E$2:$H$5,4,FALSE)),"non-cash")) -> 
A191: 181 | B191: 0 | K191: =ROUND(I191-J191,2) -> 0 | M191: =IF(ISBLANK(L191),"",VLOOKUP(L191,Übersicht!$B$3:$C$35,2,FALSE)) ->  | AW191: =IF($N191=AW$10,$I191-$J191,"") ->  | AX191: 0 | AY191: =IF(ISBLANK(D191),"",_xlfn.IFNA(SUM(SUMIFS(I$11:I191,E$11:E191,E191),ROUND(SUMIFS(J$11:J191,E$11:E191,E191)*-1,2),VLOOKUP(E191,$E$2:$H$5,4,FALSE)),"non-cash")) -> 
A192: 182 | B192: 0 | K192: 0 | M192: =IF(ISBLANK(L192),"",VLOOKUP(L192,Übersicht!$B$3:$C$35,2,FALSE)) ->  | AX192: 0 | AY192: =IF(ISBLANK(D192),"",_xlfn.IFNA(SUM(SUMIFS(I$11:I192,E$11:E192,E192),ROUND(SUMIFS(J$11:J192,E$11:E192,E192)*-1,2),VLOOKUP(E192,$E$2:$H$5,4,FALSE)),"non-cash")) -> 
A193: 183 | B193: 0 | K193: 0 | M193: =IF(ISBLANK(L193),"",VLOOKUP(L193,Übersicht!$B$3:$C$35,2,FALSE)) ->  | AF193: =IF($L193=AF$10,$K193,"") ->  | AM193: =IF($L193=AM$10,$K193,"") ->  | AX193: 0 | AY193: =IF(ISBLANK(D193),"",_xlfn.IFNA(SUM(SUMIFS(I$11:I193,E$11:E193,E193),ROUND(SUMIFS(J$11:J193,E$11:E193,E193)*-1,2),VLOOKUP(E193,$E$2:$H$5,4,FALSE)),"non-cash")) -> 
A194: 184 | B194: 0 | K194: 0 | M194: =IF(ISBLANK(L194),"",VLOOKUP(L194,Übersicht!$B$3:$C$35,2,FALSE)) ->  | AX194: 0 | AY194: =IF(ISBLANK(D194),"",_xlfn.IFNA(SUM(SUMIFS(I$11:I194,E$11:E194,E194),ROUND(SUMIFS(J$11:J194,E$11:E194,E194)*-1,2),VLOOKUP(E194,$E$2:$H$5,4,FALSE)),"non-cash")) -> 
A195: 185 | B195: 0 | K195: 0 | M195: =IF(ISBLANK(L195),"",VLOOKUP(L195,Übersicht!$B$3:$C$35,2,FALSE)) ->  | AX195: 0 | AY195: =IF(ISBLANK(D195),"",_xlfn.IFNA(SUM(SUMIFS(I$11:I195,E$11:E195,E195),ROUND(SUMIFS(J$11:J195,E$11:E195,E195)*-1,2),VLOOKUP(E195,$E$2:$H$5,4,FALSE)),"non-cash")) -> 
A196: 186 | B196: 0 | K196: 0 | M196: =IF(ISBLANK(L196),"",VLOOKUP(L196,Übersicht!$B$3:$C$35,2,FALSE)) ->  | AX196: 0 | AY196: =IF(ISBLANK(D196),"",_xlfn.IFNA(SUM(SUMIFS(I$11:I196,E$11:E196,E196),ROUND(SUMIFS(J$11:J196,E$11:E196,E196)*-1,2),VLOOKUP(E196,$E$2:$H$5,4,FALSE)),"non-cash")) -> 
A197: 187 | B197: 0 | K197: 0 | M197: =IF(ISBLANK(L197),"",VLOOKUP(L197,Übersicht!$B$3:$C$35,2,FALSE)) ->  | V197: =IF($L197=V$10,$K197,"") ->  | AX197: 0 | AY197: =IF(ISBLANK(D197),"",_xlfn.IFNA(SUM(SUMIFS(I$11:I197,E$11:E197,E197),ROUND(SUMIFS(J$11:J197,E$11:E197,E197)*-1,2),VLOOKUP(E197,$E$2:$H$5,4,FALSE)),"non-cash")) -> 
A198: 188 | B198: 0 | K198: 0 | M198: =IF(ISBLANK(L198),"",VLOOKUP(L198,Übersicht!$B$3:$C$35,2,FALSE)) ->  | AX198: 0 | AY198: =IF(ISBLANK(D198),"",_xlfn.IFNA(SUM(SUMIFS(I$11:I198,E$11:E198,E198),ROUND(SUMIFS(J$11:J198,E$11:E198,E198)*-1,2),VLOOKUP(E198,$E$2:$H$5,4,FALSE)),"non-cash")) -> 
A199: 189 | B199: 0 | K199: 0 | M199: =IF(ISBLANK(L199),"",VLOOKUP(L199,Übersicht!$B$3:$C$35,2,FALSE)) ->  | AA199: =IF($L199=AA$10,$K199,"") ->  | AX199: 0 | AY199: =IF(ISBLANK(D199),"",_xlfn.IFNA(SUM(SUMIFS(I$11:I199,E$11:E199,E199),ROUND(SUMIFS(J$11:J199,E$11:E199,E199)*-1,2),VLOOKUP(E199,$E$2:$H$5,4,FALSE)),"non-cash")) -> 
A200: 190 | B200: 0 | K200: 0 | M200: =IF(ISBLANK(L200),"",VLOOKUP(L200,Übersicht!$B$3:$C$35,2,FALSE)) ->  | AX200: 0 | AY200: =IF(ISBLANK(D200),"",_xlfn.IFNA(SUM(SUMIFS(I$11:I200,E$11:E200,E200),ROUND(SUMIFS(J$11:J200,E$11:E200,E200)*-1,2),VLOOKUP(E200,$E$2:$H$5,4,FALSE)),"non-cash")) -> 
A201: 191 | B201: 0 | K201: 0 | M201: =IF(ISBLANK(L201),"",VLOOKUP(L201,Übersicht!$B$3:$C$35,2,FALSE)) ->  | AL201: =IF($L201=AL$10,$K201,"") ->  | AX201: 0 | AY201: =IF(ISBLANK(D201),"",_xlfn.IFNA(SUM(SUMIFS(I$11:I201,E$11:E201,E201),ROUND(SUMIFS(J$11:J201,E$11:E201,E201)*-1,2),VLOOKUP(E201,$E$2:$H$5,4,FALSE)),"non-cash")) -> 
A202: 192 | B202: 0 | K202: 0 | M202: =IF(ISBLANK(L202),"",VLOOKUP(L202,Übersicht!$B$3:$C$35,2,FALSE)) ->  | AX202: 0 | AY202: =IF(ISBLANK(D202),"",_xlfn.IFNA(SUM(SUMIFS(I$11:I202,E$11:E202,E202),ROUND(SUMIFS(J$11:J202,E$11:E202,E202)*-1,2),VLOOKUP(E202,$E$2:$H$5,4,FALSE)),"non-cash")) -> 
A203: 193 | B203: 0 | C203: =IF(ISBLANK(D203)=TRUE,"",MONTH(D203)) ->  | K203: 0 | M203: =IF(ISBLANK(L203),"",VLOOKUP(L203,Übersicht!$B$3:$C$35,2,FALSE)) ->  | O203: =CONCATENATE(TEXT(C203,"00"),L203) ->  | P203: =CONCATENATE(TEXT(C203,"00"),N203) ->  | AF203: =IF($L203=AF$10,$K203,"") ->  | AM203: =IF($L203=AM$10,$K203,"") ->  | AT203: =IF($N203=AT$10,$I203,"") ->  | AU203: =IF($N203=AU$10,$J203,"") ->  | AV203: =IF($N203=AV$10,$K203,"") ->  | AX203: 0 | AY203: =IF(ISBLANK(D203),"",_xlfn.IFNA(SUM(SUMIFS(I$11:I203,E$11:E203,E203),ROUND(SUMIFS(J$11:J203,E$11:E203,E203)*-1,2),VLOOKUP(E203,$E$2:$H$5,4,FALSE)),"non-cash")) -> 
A204: 194 | B204: =DAY(D204) -> 0 | K204: 0 | M204: =IF(ISBLANK(L204),"",VLOOKUP(L204,Übersicht!$B$3:$C$35,2,FALSE)) ->  | N204: =IF(OR(L204="700",L204="999",L204="998",L204="992",ISBLANK(L204)),"",IF(L204="995","f",IF(LEFT(L204,1)="0","i","o"))) ->  | AX204: 0 | AY204: =IF(ISBLANK(D204),"",_xlfn.IFNA(SUM(SUMIFS(I$11:I204,E$11:E204,E204),ROUND(SUMIFS(J$11:J204,E$11:E204,E204)*-1,2),VLOOKUP(E204,$E$2:$H$5,4,FALSE)),"non-cash")) ->  | BA204: =IF(ISBLANK(AZ204),"",HYPERLINK(CONCATENATE($BA$10,"\",AZ204,".pdf"),"anzeigen")) -> 
... 6 more rows

Sheet Anlagen
D1: Anlagenzugänge lt. Übersicht | I1: =Übersicht!D31 -> 0 | V1: http://www.rvo.at/
Y2: A b s c h r e i b u n g i n d e n M o n a t e n d e s A f A - J a h r e s (linear verteilt) | AM2: A f A - V o r s c h a u a u f d i e f o l g e n d e n f ü n f J a h r e (bei fortgesetzter linearer AfA) | AX2: Abschreibungs-Vergleich zu degressiver AfA des Wirtschaftsgutes und bei fiktiven AfA-Beginn "Jänner" eines Jahres (Ganzjahresabschreibung)
D3: Anlagen des Jahres | E3: 2016 | H3: =SUBTOTAL(9,H6:H20) -> 1000 | I3: 800 | J3: 0 | K3: 0 | L3: 0 | M3: 1800 | N3: 500 | O3: 500 | P3: 333.33 | R3: =SUBTOTAL(9,R6:R20) -> 0 | S3: =SUBTOTAL(9,S6:S20) -> 0 | T3: =SUBTOTAL(9,T6:T20) -> 833.33 | U3: =SUBTOTAL(9,U6:U20) -> 0 | V3: =SUBTOTAL(9,V6:V20) -> 966.67 | X3: www.rvo.at | Y3: =SUBTOTAL(9,Y6:Y20) -> 27.7775 | Z3: 27.7775 | AA3: 27.7775 | AB3: 27.7775 | AC3: 27.7775 | AD3: 27.7775 | AE3: 27.7775 | AF3: 27.7775 | AG3: 27.7775 | AH3: 27.7775 | AI3: 27.7775 | AJ3: 27.7775 | AK3: 333.33 | AL3: =IF(ISBLANK($E3),"",AND(ROUND(SUM(Y3:AJ3),2)=ROUND(SUM($P3,$R3),2))) -> TRUE | AM3: =SUBTOTAL(9,AM6:AM20) -> 166.66 | AN3: 800.01 | AO3: 0 | AP3: 800.01 | AQ3: 0 | AR3: 800.01 | AS3: 0 | AT3: 800.01 | AU3: 0 | AV3: 800.01
A5: ENr | B5: ANr | C5: Art | D5: Anlagenbezeichnung | E5: A/N Datum | F5: ND | G5: Rest- wert | H5: A-Bestand | I5: (+) Zugang | J5: (-) Abzüge | K5: (-) Abgang | L5: (+/-) UB | M5: E-Bestand | N5: BW-Anfang | O5: kum. AfA Anfang | P5: lineare AfA d.J. | Q5: Monate | R5: Sonder- Afa d.J | S5: Zu- schreibg | T5: kum.AfA Ende | U5: Rest-BW Abgänge | V5: BW-Ende | W5: RND | X5: Anmerkung | Y5: AfA Jan | Z5: AfA Feb | AA5: AfA März | AB5: AfA Apr | AC5: AfA Mai | AD5: AfA Juni | AE5: AfA Juli | AF5: AfA August | AG5: AfA Sep | AH5: AfA Okt | AI5: AfA Nov | AJ5: AfA Dez | AK5: Afa gesamt | AL5: SUMME | AM5: =CONCATENATE("AfA ",RIGHT($E$3,4)+1) -> AfA 2017 | AN5: =CONCATENATE("BW ",RIGHT($E$3,4)+1) -> BW 2017 | AO5: =CONCATENATE("AfA ",RIGHT($E$3,4)+2) -> AfA 2018 | AP5: =CONCATENATE("BW ",RIGHT($E$3,4)+2) -> BW 2018 | AQ5: =CONCATENATE("AfA ",RIGHT($E$3,4)+3) -> AfA 2019 | AR5: =CONCATENATE("BW ",RIGHT($E$3,4)+3) -> BW 2019 | AS5: =CONCATENATE("AfA ",RIGHT($E$3,4)+4) -> AfA 2020 | AT5: =CONCATENATE("BW ",RIGHT($E$3,4)+4) -> BW 2020 | AU5: =CONCATENATE("AfA ",RIGHT($E$3,4)+5) -> AfA 2021 | AV5: =CONCATENATE("BW ",RIGHT($E$3,4)+5) -> BW 2021 | AW5: =CONCATENATE("RND ",RIGHT($E$3,4)+5) -> RND 2021 | AX5: lineare AfA + AfA-% | AZ5: arithmetisch-degresssive AfA + AfA% 1. u. 2. Jahr + AfA-Degressionsbetrag ff (digitale Abschreibung) | BE5: geometrisch-degressive AfA + AfA% 1. u. 2. Jahr + gdAfA% ff (Doppelratenabschreibung) | BJ5: degressive AfA bei fixen dAfA% 1. u. 2. Jahr + AfA% + AfABetrag ff (BW linear auf absolute RND verteilt)
A6: 1 | B6: 1 | C6: bga | D6: BeispielComputer | E6: 2019-07-01 | F6: 3 | G6: 0.01 | H6: 1000 | M6: =IF(ISBLANK(E6),"",ROUND(SUM(H6:L6),2)) -> 1000 | N6: 500 | O6: 500 | P6: =IF(ISBLANK(F6),"",IF(Q6="GwG",I6,ROUND(IF(SLN(H6+I6+J6+L6,G6,F6)*Q6/12<H6+I6+J6+L6-O6-G6,SLN(H6+I6+J6+L6,G6,F6)*Q6/12,N6-G6),2))) -> 333.33 | Q6: =IF(ISBLANK(F6),"",IF(ISBLANK(I6),12,IF(MONTH(E6)<7,12,6))) -> 12 | T6: =IF(ISBLANK(F6),"",ROUND(H6+SUM(I6:L6)-V6+S6,2)) -> 833.33 | V6: =IF(ISBLANK(E6),"",ROUND(SUM(N6,I6,J6,L6,S6)-SUM(P6,R6,U6),2)) -> 166.67 | W6: =IF(ISBLANK(F6),"",IF(P6=0,0,IF(Q6="GwG",0,ROUND(SUM(V6,G6*-1)/P6*Q6/12,1)))) -> 0.5 | Y6: =IF(ISBLANK($E6),"",IF(ISBLANK($I6),IF(SUM($P6,$R6)=0,0,SUM($P6,$R6)/12),IF(13-MONTH($E6)<12,"",SUM($P6,$R6)/(13-MONTH($E6))))) -> 27.7775 | Z6: =IF(ISBLANK($E6),"",IF(ISBLANK($I6),IF(SUM($P6,$R6)=0,0,SUM($P6,$R6)/12),IF(13-MONTH($E6)<11,"",SUM($P6,$R6)/(13-MONTH($E6))))) -> 27.7775 | AA6: =IF(ISBLANK($E6),"",IF(ISBLANK($I6),IF(SUM($P6,$R6)=0,0,SUM($P6,$R6)/12),IF(13-MONTH($E6)<10,"",SUM($P6,$R6)/(13-MONTH($E6))))) -> 27.7775 | AB6: =IF(ISBLANK($E6),"",IF(ISBLANK($I6),IF(SUM($P6,$R6)=0,0,SUM($P6,$R6)/12),IF(13-MONTH($E6)<9,"",SUM($P6,$R6)/(13-MONTH($E6))))) -> 27.7775 | AC6: =IF(ISBLANK($E6),"",IF(ISBLANK($I6),IF(SUM($P6,$R6)=0,0,SUM($P6,$R6)/12),IF(13-MONTH($E6)<8,"",SUM($P6,$R6)/(13-MONTH($E6))))) -> 27.7775 | AD6: =IF(ISBLANK($E6),"",IF(ISBLANK($I6),IF(SUM($P6,$R6)=0,0,SUM($P6,$R6)/12),IF(13-MONTH($E6)<7,"",SUM($P6,$R6)/(13-MONTH($E6))))) -> 27.7775 | AE6: =IF(ISBLANK($E6),"",IF(ISBLANK($I6),IF(SUM($P6,$R6)=0,0,SUM($P6,$R6)/12),IF(13-MONTH($E6)<6,"",SUM($P6,$R6)/(13-MONTH($E6))))) -> 27.7775 | AF6: =IF(ISBLANK($E6),"",IF(ISBLANK($I6),IF(SUM($P6,$R6)=0,0,SUM($P6,$R6)/12),IF(13-MONTH($E6)<5,"",SUM($P6,$R6)/(13-MONTH($E6))))) -> 27.7775 | AG6: =IF(ISBLANK($E6),"",IF(ISBLANK($I6),IF(SUM($P6,$R6)=0,0,SUM($P6,$R6)/12),IF(13-MONTH($E6)<4,"",SUM($P6,$R6)/(13-MONTH($E6))))) -> 27.7775 | AH6: =IF(ISBLANK($E6),"",IF(ISBLANK($I6),IF(SUM($P6,$R6)=0,0,SUM($P6,$R6)/12),IF(13-MONTH($E6)<3,"",SUM($P6,$R6)/(13-MONTH($E6))))) -> 27.7775 | AI6: =IF(ISBLANK($E6),"",IF(ISBLANK($I6),IF(SUM($P6,$R6)=0,0,SUM($P6,$R6)/12),IF(13-MONTH($E6)<2,"",SUM($P6,$R6)/(13-MONTH($E6))))) -> 27.7775 | AJ6: =IF(ISBLANK($E6),"",IF(ISBLANK($I6),IF(SUM($P6,$R6)=0,0,SUM($P6,$R6)/12),IF(13-MONTH($E6)<1,"",SUM($P6,$R6)/(13-MONTH($E6))))) -> 27.7775 | AK6: =SUM(Y6:AJ6) -> 333.33 | AL6: =IF(ISBLANK($E6),"",AND(ROUND(SUM(Y6:AJ6),2)=ROUND(SUM($P6,$R6),2))) -> TRUE | AM6: =IF(ISBLANK(F6),0,IF(ROUND(SLN(M6,G6,F6),2)+T6<M6,ROUND(SLN(M6,G6,F6),2),ROUND(M6-T6-G6,2))) -> 166.66 | AN6: =IF(ISBLANK(D6),"",ROUND(V6-AM6,2)) -> 0.01 | AO6: =IF(ISBLANK(F6),0,IF(ROUND(SLN(M6,G6,F6),2)+T6+AM6<M6,ROUND(SLN(M6,G6,F6),2),ROUND(M6-T6-AM6-G6,2))) -> 0 | AP6: =IF(ISBLANK(D6),"",ROUND(AN6-AO6,2)) -> 0.01 | AQ6: =IF(ISBLANK(F6),0,IF(ROUND(SLN(M6,G6,F6),2)+T6+AM6+AO6<M6,ROUND(SLN(M6,G6,F6),2),ROUND(M6-T6-AM6-AO6-G6,2))) -> 0 | AR6: =IF(ISBLANK(D6),"",ROUND(AP6-AQ6,2)) -> 0.01 | AS6: =IF(ISBLANK(F6),0,IF(ROUND(SLN(M6,G6,F6),2)+T6+AM6+AO6+AQ6<M6,ROUND(SLN(M6,G6,F6),2),ROUND(M6-T6-AM6-AO6-AQ6-G6,2))) -> 0 | AT6: =IF(ISBLANK(D6),"",ROUND(AR6-AS6,2)) -> 0.01 | AU6: =IF(ISBLANK(F6),0,IF(ROUND(SLN(M6,G6,F6),2)+T6+AM6+AO6+AQ6+AS6<M6,ROUND(SLN(M6,G6,F6),2),ROUND(M6-T6-AM6-AO6-AQ6-AS6-G6,2))) -> 0 | AV6: =IF(ISBLANK(D6),"",ROUND(AT6-AU6,2)) -> 0.01 | AW6: =IF(ISBLANK(F6),"",IF(W6-5<0,0,W6-5)) -> 0 | AX6: =IF(ISBLANK(F6),"",SLN(SUM(H6:I6),G6,F6)) -> 333.33 | AY6: =IF(ISBLANK(F6),"",1/F6) -> 0.3333333333 | AZ6: =IF(ISBLANK(F6),"",SYD(SUM(H6:I6),G6,F6,1)) -> 499.995 | BA6: =IF(ISBLANK(F6),"",AZ6/SUM(H6:I6)) -> 0.499995 | BB6: =IF(ISBLANK(F6),"",BD6*(F6-1)) -> 333.33 | BC6: =IF(ISBLANK(F6),"",BB6/SUM(H6:I6)) -> 0.33333 | BD6: =IF(ISBLANK(F6),"",((SUM(H6:I6)-G6)*2)/(F6*(F6+1))) -> 166.665 | BE6: =IF(ISBLANK(F6),"",DDB(SUM(H6:I6),G6,F6,1)) -> 666.6666667 | BF6: =IF(ISBLANK(F6),"",BE6/SUM(H6:I6)) -> 0.6666666667 | BG6: =IF(ISBLANK(F6),"",DDB(SUM(H6:I6),G6,F6,2)) -> 222.2222222 | BH6: =IF(ISBLANK(F6),"",BG6/SUM(H6:I6)) -> 0.2222222222 | BI6: =IF(ISBLANK(F6),"",2/F6) -> 0.6666666667 | BJ6: =IF(ISBLANK(F6),"",(SUM(H6:I6)-G6)*BK6) -> 299.997 | BK6: 0.3 | BL6: =IF(ISBLANK(F6),"",((SUM(H6:I6)-G6)-BJ6)*BN6) -> 209.9979 | BM6: =IF(ISBLANK(F6),"",BL6/SUM(H6:I6)) -> 0.2099979 | BN6: 0.3 | BO6: =IF(ISBLANK(F6),"",((SUM(H6:I6)-G6)-BJ6-BL6)/((F6)-IF(BL6>0,2,1))) -> 489.9951
A7: 2 | B7: 2 | C7: kunst | D7: BeispielÖlgemälde | E7: 2016-03-01 | I7: 800 | M7: 800 | P7: =IF(ISBLANK(F7),"",IF(Q7="GwG",I7,ROUND(IF(SLN(H7+I7+J7+L7,G7,F7)*Q7/12<H7+I7+J7+L7-O7-G7,SLN(H7+I7+J7+L7,G7,F7)*Q7/12,N7-G7),2))) ->  | Q7: =IF(ISBLANK(F7),"",IF(ISBLANK(I7),12,IF(MONTH(E7)<7,12,6))) ->  | V7: 800 | AA7: 0 | AB7: 0 | AC7: 0 | AD7: 0 | AE7: 0 | AF7: 0 | AG7: 0 | AH7: 0 | AI7: 0 | AJ7: 0 | AK7: 0 | AL7: =IF(ISBLANK($E7),"",AND(ROUND(SUM(Y7:AJ7),2)=ROUND(SUM($P7,$R7),2))) -> TRUE | AM7: =IF(ISBLANK(F7),0,IF(ROUND(SLN(M7,G7,F7),2)+T7<M7,ROUND(SLN(M7,G7,F7),2),ROUND(M7-T7-G7,2))) -> 0 | AN7: =IF(ISBLANK(D7),"",ROUND(V7-AM7,2)) -> 800 | AO7: =IF(ISBLANK(F7),0,IF(ROUND(SLN(M7,G7,F7),2)+T7+AM7<M7,ROUND(SLN(M7,G7,F7),2),ROUND(M7-T7-AM7-G7,2))) -> 0 | AP7: =IF(ISBLANK(D7),"",ROUND(AN7-AO7,2)) -> 800 | AQ7: =IF(ISBLANK(F7),0,IF(ROUND(SLN(M7,G7,F7),2)+T7+AM7+AO7<M7,ROUND(SLN(M7,G7,F7),2),ROUND(M7-T7-AM7-AO7-G7,2))) -> 0 | AR7: =IF(ISBLANK(D7),"",ROUND(AP7-AQ7,2)) -> 800 | AS7: =IF(ISBLANK(F7),0,IF(ROUND(SLN(M7,G7,F7),2)+T7+AM7+AO7+AQ7<M7,ROUND(SLN(M7,G7,F7),2),ROUND(M7-T7-AM7-AO7-AQ7-G7,2))) -> 0 | AT7: =IF(ISBLANK(D7),"",ROUND(AR7-AS7,2)) -> 800 | AU7: =IF(ISBLANK(F7),0,IF(ROUND(SLN(M7,G7,F7),2)+T7+AM7+AO7+AQ7+AS7<M7,ROUND(SLN(M7,G7,F7),2),ROUND(M7-T7-AM7-AO7-AQ7-AS7-G7,2))) -> 0 | AV7: =IF(ISBLANK(D7),"",ROUND(AT7-AU7,2)) -> 800 | AW7: =IF(ISBLANK(F7),"",IF(W7-5<0,0,W7-5)) ->  | BK7: 0.3 | BN7: 0.3
A8: 3 | AK8: 0 | AM8: 0 | AO8: 0 | AQ8: 0 | AS8: 0 | AU8: 0 | BK8: 0.3 | BN8: 0.3
A9: 4 | AK9: 0 | AM9: 0 | AO9: 0 | AQ9: 0 | AS9: 0 | AU9: 0 | BK9: 0.3 | BN9: 0.3
A10: 5 | AK10: 0 | AM10: 0 | AO10: 0 | AQ10: 0 | AS10: 0 | AU10: 0 | BK10: 0.3 | BN10: 0.3
A11: 6 | AK11: 0 | AM11: 0 | AO11: 0 | AQ11: 0 | AS11: 0 | AU11: 0 | BK11: 0.3 | BN11: 0.3
A12: 7 | AK12: 0 | AM12: 0 | AO12: 0 | AQ12: 0 | AS12: 0 | AU12: 0 | BK12: 0.3 | BN12: 0.3
A13: 8 | AK13: 0 | AM13: 0 | AO13: 0 | AQ13: 0 | AS13: 0 | AU13: 0 | BK13: 0.3 | BN13: 0.3
A14: 9 | AK14: 0 | AM14: 0 | AO14: 0 | AQ14: 0 | AS14: 0 | AU14: 0 | BK14: 0.3 | BN14: 0.3
A15: 10 | AK15: 0 | AM15: 0 | AO15: 0 | AQ15: 0 | AS15: 0 | AU15: 0 | BK15: 0.3 | BN15: 0.3
A16: 11 | AK16: 0 | AM16: 0 | AO16: 0 | AQ16: 0 | AS16: 0 | AU16: 0 | BK16: 0.3 | BN16: 0.3
A17: 12 | AK17: 0 | AM17: 0 | AO17: 0 | AQ17: 0 | AS17: 0 | AU17: 0 | BK17: 0.3 | BN17: 0.3
A18: 13 | AK18: 0 | AM18: 0 | AO18: 0 | AQ18: 0 | AS18: 0 | AU18: 0 | BK18: 0.3 | BN18: 0.3
A19: 14 | AK19: 0 | AM19: 0 | AO19: 0 | AQ19: 0 | AS19: 0 | AU19: 0 | BK19: 0.3 | BN19: 0.3
A20: 15 | AK20: 0 | AM20: 0 | AO20: 0 | AQ20: 0 | AS20: 0 | AU20: 0 | BK20: 0.3 | BN20: 0.3

Sheet Übersicht
A1: www.rvo.at | C1: Auswertungen für das/die Monat(e) | D1: =CONCATENATE(SUBTOTAL(5,Einzelposten!C11:C210)," bis ",SUBTOTAL(4,Einzelposten!C11:C210)) -> 1 bis 12 | E1: http://www.rvo.at/ | G1: =D69 -> 1625.32 | I1: Basispauschalierung | L1: Kleinunternehmerpauschalierung | O1: Branchenpauschalierung | R1: Weitere Pauschalierungen
A2: ein/aus | B2: Konto | C2: Einnahmen/Ausgaben | D2: brutto | E2: =AND(ROUND(Einzelposten!I7-Einzelposten!J7,2)=ROUND(SUM(D3:D26,D32:D35)-D31,2)) -> TRUE | F2: =IF(E2=TRUE," ",CONCATENATE("€ ",ROUND(Einzelposten!I7-Einzelposten!J7-(SUM(D3:D26,D32:D35)-D31),2),)) ->  | G2: ESt-Kennzahl | I2: BA-Prozent: | L2: BA-Prozent: | O2: VO-Prozent:
A3: ein | B3: 400 | C3: Erlöse | D3: =Einzelposten!R7 -> 2000 | F3: =ROUND(IF(D3=0,0,D3/E$4),3) -> 1 | G3: 9040 | I3: =IF(ISBLANK(J2),"","max. Euro") ->  | J3: =IF(J2=-6%,-13200,IF(J2=-12%,-26400,"")) ->  | L3: (Ab Kalenderjahr 2020 ff) | O3: (Nichtbuchführende Gewerbe) | R3: Gaststätten- u. Beherbergungsgewerbe
A4: ein | B4: 430 | C4: sonstige Erlöse | D4: =Einzelposten!S7 -> 0 | E4: =SUM(D3:D4) -> 2000 | F4: 0 | G4: 9040 | I4: Einnahmen | J4: =E4 -> 2000 | L4: Einnahmen | M4: =E4 -> 2000 | O4: Einnahmen | P4: =E4 -> 2000 | R4: Lebensmitteleinzel- u. Gemischtwarenhändler
A5: aus | B5: 500 | C5: Wareneinkauf | D5: =Einzelposten!T7 -> 0 | F5: 0 | G5: 9100 | I5: =D5 -> 0 | L5: pauschaliert | O5: =D5 -> 0 | R5: Drogisten
A6: aus | B6: 580 | C6: Fremdleistungen | D6: =Einzelposten!U7 -> 0 | F6: 0 | G6: 9110 | I6: =D6 -> 0 | L6: pauschaliert | O6: =D6 -> 0 | R6: Handelsvertreter
A7: aus | B7: 600 | C7: Personalkosten | D7: =Einzelposten!V7 -> 0 | F7: =ROUND(IF(D7=0,0,D7/E$4),3) -> 0 | G7: 9130 | I7: =D7 -> 0 | L7: pauschaliert | O7: =D7 -> 0 | R7: Künstler- und Schriftsteller
A8: aus | B8: 700 | C8: AFA, Absetzung f. Abnutzung | D8: =Einzelposten!W7 -> -27.78 | F8: -0.014 | G8: 9130 | I8: pauschaliert | L8: pauschaliert | O8: =D8 -> -27.78 | R8: Sportler
A9: aus | B9: 705 | C9: GWG, geringwertige Wirtschaftsgüter | D9: =Einzelposten!X7 -> 0 | F9: 0 | G9: 9130 | I9: pauschaliert | L9: pauschaliert | O9: =D9 -> 0 | R9: Tagesmütter
A10: aus | B10: 710 | C10: Abgaben und Beiträge | D10: =Einzelposten!Y7 -> 0 | F10: 0 | G10: 9230 | I10: pauschaliert | L10: pauschaliert | O10: pauschaliert
A11: aus | B11: 720 | C11: Instandhaltungen, Kleinmaterialien | D11: =Einzelposten!Z7 -> 0 | F11: 0 | G11: 9230 | I11: pauschaliert | L11: pauschaliert | O11: pauschaliert | R11: Werbungskostenpauschalierung
A12: aus | B12: 725 | C12: Energie-, Betriebskosten | D12: =Einzelposten!AA7 -> 0 | F12: 0 | G12: 9230 | I12: pauschaliert | L12: pauschaliert | O12: =D12 -> 0 | R12: Vorübergehend beschäftigte Arbeitnehmer
A13: aus | B13: 730 | C13: Porto-, Fracht-, Transportaufwand d. Dritte | D13: =Einzelposten!AB7 -> 0 | F13: 0 | G13: 9230 | I13: pauschaliert | L13: pauschaliert | O13: =D13 -> 0 | R13: Pauschale BA / WK bei Vereinstätigkeit
A14: aus | B14: 732 | C14: KFZ-Aufwand (ohne AfA, Leasing u. Kilometergeld | D14: =Einzelposten!AC7 -> -5.9 | F14: -0.003 | G14: 9170 | I14: pauschaliert | L14: pauschaliert | O14: pauschaliert
A15: aus | B15: 735 | C15: Reise-, Fahrtspesen, Taggelder (inkl. Kilometergelder) | D15: =Einzelposten!AD7 -> 0 | F15: 0 | G15: 9160 | I15: =IF(J15="Rsp verrechnet!",D15,0) -> 0 | J15: Rsp verrechnet! | L15: pauschaliert | O15: pauschaliert | R15: Land- und Forstwirte
A16: aus | B16: 739 | C16: Telekommunikation | D16: =Einzelposten!AE7 -> 0 | F16: 0 | G16: 9230 | I16: pauschaliert | L16: pauschaliert | O16: =D16 -> 0
A17: aus | B17: 740 | C17: Geschäftsmieten, Leasing, Raumkosten | D17: =Einzelposten!AF7 -> -300 | F17: -0.15 | G17: 9180 | I17: =IF($J17="mit Arbeitsplatzpauschale!",D17,0) -> 0 | J17: ohne Arbeitsplatzpauschale! | L17: =IF($M17="mit Arbeitsplatzpauschale!",D17,0) -> 0 | M17: ohne Arbeitsplatzpauschale! | O17: =D17 -> -300
A18: aus | B18: 748 | C18: Lizenz- u. Wartungsgebühren, Provisionen | D18: =Einzelposten!AG7 -> 0 | F18: 0 | G18: 9190 | I18: pauschaliert | L18: pauschaliert | O18: pauschaliert
A19: aus | B19: 760 | C19: Büromaterial, Fachliteratur | D19: =Einzelposten!AH7 -> -41 | F19: -0.021 | G19: 9230 | I19: pauschaliert | L19: pauschaliert | O19: pauschaliert
A20: aus | B20: 765 | C20: Werbung, Repräsentationen | D20: =Einzelposten!AI7 -> 0 | F20: 0 | G20: 9200 | I20: pauschaliert | L20: pauschaliert | O20: pauschaliert
A21: aus | B21: 770 | C21: Versicherung, Beratung | D21: =Einzelposten!AJ$7 -> 0 | F21: 0 | G21: 9230 | I21: pauschaliert | L21: pauschaliert | O21: pauschaliert
A22: aus | B22: 771 | C22: Pflichtversicherung Unternehmer (SVA) | D22: =Einzelposten!AK$7 -> 0 | F22: 0 | G22: 9225 | I22: =D22 -> 0 | J22: =SUM(I5:I22) -> 0 | L22: =D22 -> 0 | M22: =SUM(L17:L22) -> 0 | O22: =D22 -> 0 | P22: =SUM(O5:O22) -> -327.78
A23: aus | B23: 775 | C23: Aus- und Fortbildung, Seminare | D23: =Einzelposten!AL7 -> 0 | F23: 0 | G23: 9230 | I23: pauschaliert | L23: pauschaliert | O23: pauschaliert
A24: aus | B24: 780 | C24: Spesen des Geldverkehrs | D24: =Einzelposten!AM7 -> 0 | F24: 0 | G24: 9230 | I24: pauschaliert | L24: pauschaliert | O24: pauschaliert
A25: aus | B25: 790 | C25: sonstige Aufwendungen | D25: =Einzelposten!AN7 -> 0 | F25: 0 | G25: 9230 | I25: pauschaliert | L25: pauschaliert | O25: pauschaliert
A26: aus | B26: 830 | C26: Zinsen und ähnliche Aufwendungen | D26: =Einzelposten!AO7 -> 0 | E26: =SUM(D5:D26) -> -374.68 | F26: 0 | G26: 9220 | I26: pauschaliert | J26: =IF(ISBLANK(J2),#N/A,ROUND(MAX(SUM(J4,I15)*J2,J3),2)) ->  | L26: pauschaliert | M26: =IF(ISBLANK(M2),#N/A,ROUND(M2*M4,2)) ->  | O26: pauschaliert | P26: =IF(ISBLANK(P2),#N/A,ROUND(P2*P4,2)) -> 
C27: =IF(D27<0," V e r l u s t"," G e w i n n ( Ü b e r s c h u s s )") -> G e w i n n ( Ü b e r s c h u s s ) | D27: =ROUND(SUBTOTAL(9,D3:D26),2) -> 1625.32 | E27: =SUM(E3:E26) -> 1625.32 | F27: =SUM(F3:F26) -> 0.812 | J27: =SUM(J4:J26) ->  | M27: =SUM(M4:M26) ->  | P27: =SUM(P4:P26) -> 
C29: =C$1 -> Auswertungen für das/die Monat(e) | D29: =D$1 -> 1 bis 12 | I29: Info: | J29: usp.gv.at | L29: Info: | M29: usp.gv.at | O29: Info: | P29: usp.gv.at
B30: Konto | C30: nicht-einnahmen/ausgabenwirksam | D30: brutto | I30: BA-Prozent: | J30: usp.gv.at | L30: BA-Prozent: | M30: ris.bka.gv.at | O30: VO-Prozent: | P30: ris.bka.gv.at
B31: 000 | C31: Anlagenzugang | D31: =Einzelposten!Q7*-1 -> 0 | O31: Gewerbe:
B32: 992 | C32: Durchläufer, Finanzamt ESt | D32: =Einzelposten!AP7 -> 0 | I32: =IF(ISBLANK(J2),"","(Vorjahresumsatz < 220.000,-)") ->  | L32: =IF(ISBLANK(M2),"","Achtung: Jahresumsatzgrenze!") -> 
B33: 995 | C33: Durchläufer, Finanzierung (betrieblich) | D33: =Einzelposten!AQ7 -> 0 | I33: =IF(ISBLANK(J2),"","Achtung:") ->  | J33: =IF(ISBLANK(J2),"","Bindefristen!") ->  | L33: =IF(ISBLANK(M2),"","Achtung:") ->  | M33: =IF(ISBLANK(M2),"","Bindefristen!") -> 
B34: 998 | C34: Durchläufer, Privat (Einlagen/Entnahmen) | D34: =Einzelposten!AR7 -> 0
B35: 999 | C35: Durchläufer, sonstiges | D35: =Einzelposten!AS7 -> 0
C37: =C$1 -> Auswertungen für das/die Monat(e) | D37: =D$1 -> 1 bis 12 | E37: =AND(D53=0) -> TRUE | F37: =IF(ROUND(D53,0)=0,"",D53) -> 
A38: Monate | C38: cash flow | D38: cf / gesamt | E38: je Monat € | F38: Prozent
A39: =SUBTOTAL(4,Einzelposten!C11:C210)-SUBTOTAL(5,Einzelposten!C11:C210)+1 -> 12 | C39: Zuflüsse operativer Bereich | D39: =Einzelposten!AT7 -> 2000 | E39: =D39/A39 -> 166.6666667 | F39: 1
A40: =A$39 -> 12 | C40: Abflüsse operativer Bereich | D40: =Einzelposten!AU7*-1 -> -346.9 | E40: =D40/A40 -> -28.90833333 | F40: =ROUND(D40/D39,3) -> -0.173
A41: =A$39 -> 12 | C41: Saldo operativer Bereich | D41: =SUM(D39:D40) -> 1653.1 | E41: =SUM(E39:E40) -> 137.7583333 | F41: =SUM(F39:F40) -> 0.827
A42: =A$39 -> 12 | C42: Saldo Investitionsbereich | D42: =Einzelposten!AV7 -> 0 | E42: =D42/A42 -> 0 | F42: =ROUND(D42/D$39,3) -> 0
A43: =A$39 -> 12 | C43: Saldo Finanzierungsbereich | D43: =Einzelposten!AW7 -> 0 | E43: =D43/A43 -> 0 | F43: =ROUND(D43/D$39,3) -> 0
C44: c a s h f l o w | D44: =SUM(D41:D43) -> 1653.1 | E44: =SUM(E41:E43) -> 137.7583333 | F44: =SUM(F41:F43) -> 0.827
C45: Kontrolle | D45: Jahr € | E45: Monat €
B46: + | C46: cash flow | D46: =D44 -> 1653.1
B47: - | C47: nicht ausgabenwirksame Aufwände | D47: =Einzelposten!AX7 -> -27.78
D48: =SUM(D46:D47) -> 1625.32
B49: - | C49: Ergebnis | D49: =D27*-1 -> -1625.32
B50: + | C50: Anlagenzugänge | D50: =D31 -> 0
B51: - | C51: Durchläufer | D51: =SUM(D32:D35)*-1 -> 0
C52: Kontrolle Differenz | D52: =ROUND(SUM(D48:D51),2) -> 0
C54: =C37 -> Auswertungen für das/die Monat(e) | D54: =D37 -> 1 bis 12 | E54: =AND(D60=D27) -> TRUE | F54: =IF(E54=TRUE,"",D60-D27) -> 
A55: Monate | C55: EBITDA | D55: ebitda/gesamt | E55: je Monat € | F55: Jahresprognose
A56: =A39 -> 12 | C56: EBITDA (Ergebnis vor Zinsen u. Afa) | D56: =ROUND(D27-D8-D9-D26,2) -> 1653.1 | E56: =D56/A56 -> 137.7583333 | F56: =ROUND(E56*12,0) -> 1653
A57: =A56 -> 12 | C57: Finanzergebnis (Zinsen) | D57: =D26 -> 0 | E57: =D57/A57 -> 0 | F57: =ROUND(E57*12,0) -> 0
A58: =A56 -> 12 | C58: Ergebnis nach Zinsen, vor Afa | D58: =SUM(D56:D57) -> 1653.1 | E58: =D58/A58 -> 137.7583333 | F58: =ROUND(E58*12,0) -> 1653
A59: =A56 -> 12 | C59: Afa | D59: =D8+D9 -> -27.78 | E59: =D59/A59 -> -2.315 | F59: =ROUND(E59*12,0) -> -28
C60: =IF(D60<0," V e r l u s t"," G e w i n n") -> G e w i n n | D60: =ROUND(SUM(D58:D59),2) -> 1625.32 | E60: =ROUND(SUM(E58:E59),2) -> 135.44 | F60: =SUM(F58:F59) -> 1625
C62: =C$1 -> Auswertungen für das/die Monat(e) | D62: =D$1 -> 1 bis 12 | E62: FA 99 999/9999
A63: Monate | B63: Jahr | C63: ESt-Vorschau | D63: BMG | E63: Prozent | F63: Steuer
A64: =A39 -> 12 | B64: 2025 | C64: Gewinn "Ist" (betriebliche Einkünfte) | D64: =D27 -> 1625.32
C65: Gewinn "Plan bis Jahresende"
C66: Gewinn vor Freibeträge | D66: =ROUND(SUM(D64:D65),2) -> 1625.32 | E66: begünst. Invest. | F66: Max / Min
B67: 0.1 | C67: IFB, Investitionsfreibetrag (ab 2023) | D67: =ROUND(IF(ISBLANK(E67),0,E67*B67*-1),2) -> 0 | F67: der Anlagen | G67: 9227 / 9229
B68: 0.15 | C68: IFB, Investitionsfreibetrag (ab 2023) | D68: =ROUND(IF(ISBLANK(E68),0,E68*B68*-1),2) -> 0 | F68: d.Öko-Anlagen
C69: Zwischensumme Gewinn abzgl. IFBs | D69: =SUM(D66:D68) -> 1625.32
B70: 0.15 | C70: GFB, Grundfreibetrag | D70: =ROUND(F70*-1,2) -> -243.79 | E70: 0 | F70: =ROUNDDOWN(MIN(MAX(SUM(D64,D65,D67:D68),0),33000)*B70,2) -> 243.79 | G70: - / 9221
C71: GFB, investitionsbedingter FB | D71: =IF(ISBLANK(E71),0,ROUND(MIN(E71,F71)*-1,2)) -> 0 | F71: =ROUND(IF(D69<33000,0,IF(D69<178000,D69*0.13-4290,IF(D69<353000,(D69-178000)*0.07+18850,IF(D69<583000,(D69-353000)*0.045+31100,41450)))),2) -> 0 | G71: 9227 / 9229
C72: Einkünfte gesamt | D72: =SUM(D69:D71) -> 1381.53 | E72: Ist-Werte | F72: Max / Min
C73: Sonderausgaben
C74: Einkünfte nach Sonderausgaben | D74: =ROUND(IF(SUM(D72:D73)<0,0,SUM(D72:D73)),2) -> 1381.53
B75: =ROUND(IF(D74>36400,0.12,IF(D74>14600,0.1,IF(D74>7300,0.08,0.06)))-SUM(B81/100,B82/100),3) -> 0.06 | C75: =CONCATENATE("außergew. Belastungen ",B75*-100,"% Selbstbh.") -> außergew. Belastungen -6% Selbstbh. | D75: =ROUND(IF(E75<F75,0,(E75-F75)*-1),2) -> 0 | F75: =ROUND(D74*B75,2) -> 82.89
C76: außergew. Belastungen ohne Selbstb.
B77: 1 | C77: Einkommen - Steuer | D77: =ROUND(IF(SUM(D74:D76)<0,0,SUM(D74:D76)),2) -> 1381.53 | E77: =F77/D77 -> 0 | F77: =ROUND(IF(D77<13308,0,IF(D77<21617,(D77-13308)*-0.2,IF(D77<35836,(D77-21617)*-0.3-1661.8,IF(D77<69166,(D77-35836)*-0.4-5927.5,IF(D77<103072,(D77-69166)*-0.48-19259.5,IF(D77<1000000,(D77-103072)*-0.5-35534.38,(D77-1000000)*-0.55-483998.38)))))),2) -> 0 | G77: bmf.gv.at
C78: Familienbonus Plus (ab 2019/22) | E78: =IF($B$114<2019,"",F78/D$127) -> 
C79: Kindermehrbetrag (ab 2019/22) | E79: =IF($B$114<2019,"",F79/D$127) -> 
C80: Zwischensumme | F80: =ROUND(IF(SUM(F77,F78)>0,F79,SUM(F77,F78:F79)),2) -> 0
C81: =IF(SUM(B81,F81)=1,"Einkommen Ehe-/Lebenspartner < 6000,-/Jahr","Alleinverdiener, -erzieherabsetzbetrag") -> Alleinverdiener, -erzieherabsetzbetrag | D81: =IF(SUM(B81:B82)=0,"",CONCATENATE(SUM(B81:B82)," Kind(er)")) ->  | E81: =F81/D$77 -> 0 | F81: =IF(ISBLANK(B81),0,IF(B81=1,601,IF(B81=2,813,1081))) -> 0
C82: weitere Kinderzugschläg zum AVAB | E82: =F82/D$77 -> 0 | F82: =IF(ISBLANK(B82),0,B82*268) -> 0
C83: Zwischensumme | F83: =ROUND(SUM(F80:F82),2) -> 0
C84: Unterhaltsabsetzbetrag | E84: =F84/D$77 -> 0
A85: =IF(D65=0,$A$39,12) -> 12 | C85: =IF(F85<=0,"Einkommensteuer (ESt) des Jahres","ESt-Gutschrift aus Negativsteuer") -> Einkommensteuer (ESt) des Jahres | D85: =F85 -> 0 | E85: =SUM(E77:E84) -> 0 | F85: =ROUND(IF(F83>0,F83,IF(SUM(F83:F84)>0,0,SUM(F83:F84))),0) -> 0
C86: - ESt-Vorauszahlung 1. Quartal | G86: =IF(B81>2,"MKZ","") -> 
C87: - ESt-Vorauszahlung 2. Quartal
C88: - ESt-Vorauszahlung 3. Quartal | G88: =IF(G87="inkl. MKZ für",IF(ISBLANK(G89),ROUND((SUM(B81,B82)-2)*12,0),""),"") -> 
C89: - ESt-Vorauszahlung 4. Quartal
C90: =IF(F90<=0,"ESt-Nachzahlung des Jahres","ESt-Überzahlung des Jahres") -> ESt-Nachzahlung des Jahres | F90: =SUM(F85:F89) -> 0 | G90: =IF(G87="inkl. MKZ für",IF(B81>2,IF(ISBLANK(G89),ROUND(G88*24.4,2),ROUND(G89*24.4,2)),""),"") -> 
C91: Jahreseinkommen nach ESt | D91: =SUM(D77,D85) -> 1381.53 | E91: =IF(D77<=13308,"",CONCATENATE("(Grenzsteuersatz .. ",IF(D77<=21617,"20 %",IF(D77<=35836,"30 %",IF(D77<=69166,"40 %",IF(D77<=103072,"48 %",IF(D77<=1000000,"50 %","55 %"))))),")")) -> 
C115: =C$1 -> Auswertungen für das/die Monat(e) | D115: =D$1 -> 1 bis 12
A116: Monate | B116: Prozent | C116: SV-Vorschau | D116: bis jetzt € | E116: je Monat € | F116: Prognose Jahr € | G116: Bmgs
A117: =IF(D65=0,A64,12) -> 12 | B117: 1 | C117: Gewinn nach Freibeträge | D117: =D72 -> 1381.53 | E117: =D117/A117 -> 115.1275 | F117: =E117*12 -> 1381.53
A118: =A$117 -> 12 | B118: =ROUND(D118/D$117,3) -> 0 | C118: KV, PV -Vorschreibung 1. Quartal | E118: 0
A119: 12 | B119: 0 | C119: KV, PV -Vorschreibung 2. Quartal | E119: 0
A120: 12 | B120: 0 | C120: KV, PV -Vorschreibung 3. Quartal | E120: 0
A121: 12 | B121: 0 | C121: KV, PV -Vorschreibung 4. Quartal | E121: 0
A122: 12 | B122: 1 | C122: SV-Bemessungsgrundlage | D122: =SUM(D117:D121) -> 1381.53 | E122: =SUM(E117:E121) -> 115.1275
A123: 12 | C123: UV .. Unfallversicherung | D123: =E123*A123 -> -144.84 | E123: -12.07 | F123: Mindestbmg | G123: Höchstbmg | H123: aktuelle Werte
A124: 12 | B124: -0.185 | C124: PV .. Pensionsversicherung | D124: =E124*A124 -> -1223.442 | E124: =IF(E122<F124,F124*B124,IF(E122>G124,G124*B124,E122*B124)) -> -101.9535 | F124: 551.1 | G124: 7525 | H124: svs.at
A125: 12 | B125: -0.068 | C125: KV .. Krankenversicherung | D125: =E125*A125 -> -449.6976 | E125: =IF(E122<F125,F125*B125,IF(E122>G125,G125*B125,E122*B125)) -> -37.4748 | F125: 551.1 | G125: 7525
A126: 12 | B126: -0.0153 | C126: Sevo .. Selbständigenvorsorge (ab 2008) | D126: =E126*A126 -> -699.633504 | E126: =IF(E122<F126,F126*B126,IF(E122>G126,G126*B126,E122*B126)) -> -58.302792 | F126: 3810.64 | G126: 3810.64
A127: 12 | B127: -0.06 | C127: AV .. Arbeitslosenversicherung (ab 2009) | D127: =E127*A127 -> -2743.6608 | E127: =IF(E122<F127,F127*B127,IF(E122>G127,G127*B127,E122*B127)) -> -228.6384 | F127: 3810.64 | G127: 3810.64
A128: 12 | B128: =ROUND(D128/D122,3) -> -3.808 | C128: derzeitige SV dieses Jahres, ca. | D128: =SUM(D123:D127) -> -5261.273904 | E128: =SUM(E123:E127) -> -438.439492
C129: UV, KV, PV - Zahlung 1. Quartal d. J.
C130: UV, KV, PV - Zahlung 2. Quartal d. J.
C131: UV, KV, PV - Zahlung 3. Quartal d. J.
C132: UV, KV, PV - Zahlung 4. Quartal d. J.
C133: KV, PV Rückstellung/Vorauszahlung d. J. | F133: =IF(E122>G124,ROUND(D134*-1,2),IF(E122<F125,ROUND(D134*-1,2),IF(D134>0,0,ROUND(SUM(D128:D133)*-1/(1+SUM(B124:B125)*-1),2)))) -> 5261.27 | G133: RSt / Vzhlg
C134: =IF(D134>0,"KV, PV - Überzahlung dieses Jahres","KV, PV - Nachzahlung dieses Jahres") -> KV, PV - Nachzahlung dieses Jahres | D134: =SUM(D128:D133) -> -5261.273904 | E134: =D134/A128 -> -438.439492

Sheet Monate
D1: 01 | E1: 02 | F1: 03 | G1: 04 | H1: 05 | I1: 06 | J1: 07 | K1: 08 | L1: 09 | M1: 10 | N1: 11 | O1: 12
A2: ein/aus | B2: rvo.at | C2: Einnahmen/Ausgaben | D2: Januar | E2: Februar | F2: März | G2: April | H2: Mai | I2: Juni | J2: Juli | K2: August | L2: September | M2: Oktober | N2: November | O2: Dezember | P2: gesamt
A3: ein | B3: 400 | C3: =Übersicht!C3 -> Erlöse | D3: =SUMIF(Einzelposten!$O$11:$O$210,CONCATENATE(D$1,$B3),Einzelposten!$K$11:$K$210) -> 2000 | E3: =SUMIF(Einzelposten!$O$11:$O$210,CONCATENATE(E$1,$B3),Einzelposten!$K$11:$K$210) -> 0 | F3: =SUMIF(Einzelposten!$O$11:$O$210,CONCATENATE(F$1,$B3),Einzelposten!$K$11:$K$210) -> 0 | G3: =SUMIF(Einzelposten!$O$11:$O$210,CONCATENATE(G$1,$B3),Einzelposten!$K$11:$K$210) -> 0 | H3: =SUMIF(Einzelposten!$O$11:$O$210,CONCATENATE(H$1,$B3),Einzelposten!$K$11:$K$210) -> 0 | I3: =SUMIF(Einzelposten!$O$11:$O$210,CONCATENATE(I$1,$B3),Einzelposten!$K$11:$K$210) -> 0 | J3: =SUMIF(Einzelposten!$O$11:$O$210,CONCATENATE(J$1,$B3),Einzelposten!$K$11:$K$210) -> 0 | K3: =SUMIF(Einzelposten!$O$11:$O$210,CONCATENATE(K$1,$B3),Einzelposten!$K$11:$K$210) -> 0 | L3: =SUMIF(Einzelposten!$O$11:$O$210,CONCATENATE(L$1,$B3),Einzelposten!$K$11:$K$210) -> 0 | M3: =SUMIF(Einzelposten!$O$11:$O$210,CONCATENATE(M$1,$B3),Einzelposten!$K$11:$K$210) -> 0 | N3: =SUMIF(Einzelposten!$O$11:$O$210,CONCATENATE(N$1,$B3),Einzelposten!$K$11:$K$210) -> 0 | O3: =SUMIF(Einzelposten!$O$11:$O$210,CONCATENATE(O$1,$B3),Einzelposten!$K$11:$K$210) -> 0 | P3: =SUM(D3:O3) -> 2000
A4: ein | B4: 430 | C4: =Übersicht!C4 -> sonstige Erlöse | D4: =SUMIF(Einzelposten!$O$11:$O$210,CONCATENATE(D$1,$B4),Einzelposten!$K$11:$K$210) -> 0 | E4: =SUMIF(Einzelposten!$O$11:$O$210,CONCATENATE(E$1,$B4),Einzelposten!$K$11:$K$210) -> 0 | F4: =SUMIF(Einzelposten!$O$11:$O$210,CONCATENATE(F$1,$B4),Einzelposten!$K$11:$K$210) -> 0 | G4: =SUMIF(Einzelposten!$O$11:$O$210,CONCATENATE(G$1,$B4),Einzelposten!$K$11:$K$210) -> 0 | H4: =SUMIF(Einzelposten!$O$11:$O$210,CONCATENATE(H$1,$B4),Einzelposten!$K$11:$K$210) -> 0 | I4: =SUMIF(Einzelposten!$O$11:$O$210,CONCATENATE(I$1,$B4),Einzelposten!$K$11:$K$210) -> 0 | J4: =SUMIF(Einzelposten!$O$11:$O$210,CONCATENATE(J$1,$B4),Einzelposten!$K$11:$K$210) -> 0 | K4: =SUMIF(Einzelposten!$O$11:$O$210,CONCATENATE(K$1,$B4),Einzelposten!$K$11:$K$210) -> 0 | L4: =SUMIF(Einzelposten!$O$11:$O$210,CONCATENATE(L$1,$B4),Einzelposten!$K$11:$K$210) -> 0 | M4: =SUMIF(Einzelposten!$O$11:$O$210,CONCATENATE(M$1,$B4),Einzelposten!$K$11:$K$210) -> 0 | N4: =SUMIF(Einzelposten!$O$11:$O$210,CONCATENATE(N$1,$B4),Einzelposten!$K$11:$K$210) -> 0 | O4: =SUMIF(Einzelposten!$O$11:$O$210,CONCATENATE(O$1,$B4),Einzelposten!$K$11:$K$210) -> 0 | P4: =SUM(D4:O4) -> 0
A5: aus | B5: 500 | C5: =Übersicht!C5 -> Wareneinkauf | D5: =SUMIF(Einzelposten!$O$11:$O$210,CONCATENATE(D$1,$B5),Einzelposten!$K$11:$K$210) -> 0 | E5: =SUMIF(Einzelposten!$O$11:$O$210,CONCATENATE(E$1,$B5),Einzelposten!$K$11:$K$210) -> 0 | F5: =SUMIF(Einzelposten!$O$11:$O$210,CONCATENATE(F$1,$B5),Einzelposten!$K$11:$K$210) -> 0 | G5: =SUMIF(Einzelposten!$O$11:$O$210,CONCATENATE(G$1,$B5),Einzelposten!$K$11:$K$210) -> 0 | H5: =SUMIF(Einzelposten!$O$11:$O$210,CONCATENATE(H$1,$B5),Einzelposten!$K$11:$K$210) -> 0 | I5: =SUMIF(Einzelposten!$O$11:$O$210,CONCATENATE(I$1,$B5),Einzelposten!$K$11:$K$210) -> 0 | J5: =SUMIF(Einzelposten!$O$11:$O$210,CONCATENATE(J$1,$B5),Einzelposten!$K$11:$K$210) -> 0 | K5: =SUMIF(Einzelposten!$O$11:$O$210,CONCATENATE(K$1,$B5),Einzelposten!$K$11:$K$210) -> 0 | L5: =SUMIF(Einzelposten!$O$11:$O$210,CONCATENATE(L$1,$B5),Einzelposten!$K$11:$K$210) -> 0 | M5: =SUMIF(Einzelposten!$O$11:$O$210,CONCATENATE(M$1,$B5),Einzelposten!$K$11:$K$210) -> 0 | N5: =SUMIF(Einzelposten!$O$11:$O$210,CONCATENATE(N$1,$B5),Einzelposten!$K$11:$K$210) -> 0 | O5: =SUMIF(Einzelposten!$O$11:$O$210,CONCATENATE(O$1,$B5),Einzelposten!$K$11:$K$210) -> 0 | P5: 0
A6: aus | B6: 580 | C6: =Übersicht!C6 -> Fremdleistungen | D6: =SUMIF(Einzelposten!$O$11:$O$210,CONCATENATE(D$1,$B6),Einzelposten!$K$11:$K$210) -> 0 | E6: =SUMIF(Einzelposten!$O$11:$O$210,CONCATENATE(E$1,$B6),Einzelposten!$K$11:$K$210) -> 0 | F6: =SUMIF(Einzelposten!$O$11:$O$210,CONCATENATE(F$1,$B6),Einzelposten!$K$11:$K$210) -> 0 | G6: =SUMIF(Einzelposten!$O$11:$O$210,CONCATENATE(G$1,$B6),Einzelposten!$K$11:$K$210) -> 0 | H6: =SUMIF(Einzelposten!$O$11:$O$210,CONCATENATE(H$1,$B6),Einzelposten!$K$11:$K$210) -> 0 | I6: =SUMIF(Einzelposten!$O$11:$O$210,CONCATENATE(I$1,$B6),Einzelposten!$K$11:$K$210) -> 0 | J6: =SUMIF(Einzelposten!$O$11:$O$210,CONCATENATE(J$1,$B6),Einzelposten!$K$11:$K$210) -> 0 | K6: =SUMIF(Einzelposten!$O$11:$O$210,CONCATENATE(K$1,$B6),Einzelposten!$K$11:$K$210) -> 0 | L6: =SUMIF(Einzelposten!$O$11:$O$210,CONCATENATE(L$1,$B6),Einzelposten!$K$11:$K$210) -> 0 | M6: =SUMIF(Einzelposten!$O$11:$O$210,CONCATENATE(M$1,$B6),Einzelposten!$K$11:$K$210) -> 0 | N6: =SUMIF(Einzelposten!$O$11:$O$210,CONCATENATE(N$1,$B6),Einzelposten!$K$11:$K$210) -> 0 | O6: =SUMIF(Einzelposten!$O$11:$O$210,CONCATENATE(O$1,$B6),Einzelposten!$K$11:$K$210) -> 0 | P6: 0
A7: aus | B7: 600 | C7: =Übersicht!C7 -> Personalkosten | D7: =SUMIF(Einzelposten!$O$11:$O$210,CONCATENATE(D$1,$B7),Einzelposten!$K$11:$K$210) -> 0 | E7: =SUMIF(Einzelposten!$O$11:$O$210,CONCATENATE(E$1,$B7),Einzelposten!$K$11:$K$210) -> 0 | F7: =SUMIF(Einzelposten!$O$11:$O$210,CONCATENATE(F$1,$B7),Einzelposten!$K$11:$K$210) -> 0 | G7: =SUMIF(Einzelposten!$O$11:$O$210,CONCATENATE(G$1,$B7),Einzelposten!$K$11:$K$210) -> 0 | H7: =SUMIF(Einzelposten!$O$11:$O$210,CONCATENATE(H$1,$B7),Einzelposten!$K$11:$K$210) -> 0 | I7: =SUMIF(Einzelposten!$O$11:$O$210,CONCATENATE(I$1,$B7),Einzelposten!$K$11:$K$210) -> 0 | J7: =SUMIF(Einzelposten!$O$11:$O$210,CONCATENATE(J$1,$B7),Einzelposten!$K$11:$K$210) -> 0 | K7: =SUMIF(Einzelposten!$O$11:$O$210,CONCATENATE(K$1,$B7),Einzelposten!$K$11:$K$210) -> 0 | L7: =SUMIF(Einzelposten!$O$11:$O$210,CONCATENATE(L$1,$B7),Einzelposten!$K$11:$K$210) -> 0 | M7: =SUMIF(Einzelposten!$O$11:$O$210,CONCATENATE(M$1,$B7),Einzelposten!$K$11:$K$210) -> 0 | N7: =SUMIF(Einzelposten!$O$11:$O$210,CONCATENATE(N$1,$B7),Einzelposten!$K$11:$K$210) -> 0 | O7: =SUMIF(Einzelposten!$O$11:$O$210,CONCATENATE(O$1,$B7),Einzelposten!$K$11:$K$210) -> 0 | P7: =SUM(D7:O7) -> 0
A8: aus | B8: 700 | C8: =Übersicht!C8 -> AFA, Absetzung f. Abnutzung | D8: =SUMIF(Einzelposten!$O$11:$O$210,CONCATENATE(D$1,$B8),Einzelposten!$K$11:$K$210) -> -27.78 | E8: =SUMIF(Einzelposten!$O$11:$O$210,CONCATENATE(E$1,$B8),Einzelposten!$K$11:$K$210) -> 0 | F8: =SUMIF(Einzelposten!$O$11:$O$210,CONCATENATE(F$1,$B8),Einzelposten!$K$11:$K$210) -> 0 | G8: =SUMIF(Einzelposten!$O$11:$O$210,CONCATENATE(G$1,$B8),Einzelposten!$K$11:$K$210) -> 0 | H8: =SUMIF(Einzelposten!$O$11:$O$210,CONCATENATE(H$1,$B8),Einzelposten!$K$11:$K$210) -> 0 | I8: =SUMIF(Einzelposten!$O$11:$O$210,CONCATENATE(I$1,$B8),Einzelposten!$K$11:$K$210) -> 0 | J8: =SUMIF(Einzelposten!$O$11:$O$210,CONCATENATE(J$1,$B8),Einzelposten!$K$11:$K$210) -> 0 | K8: =SUMIF(Einzelposten!$O$11:$O$210,CONCATENATE(K$1,$B8),Einzelposten!$K$11:$K$210) -> 0 | L8: =SUMIF(Einzelposten!$O$11:$O$210,CONCATENATE(L$1,$B8),Einzelposten!$K$11:$K$210) -> 0 | M8: =SUMIF(Einzelposten!$O$11:$O$210,CONCATENATE(M$1,$B8),Einzelposten!$K$11:$K$210) -> 0 | N8: =SUMIF(Einzelposten!$O$11:$O$210,CONCATENATE(N$1,$B8),Einzelposten!$K$11:$K$210) -> 0 | O8: =SUMIF(Einzelposten!$O$11:$O$210,CONCATENATE(O$1,$B8),Einzelposten!$K$11:$K$210) -> 0 | P8: -27.78
A9: aus | B9: 705 | C9: =Übersicht!C9 -> GWG, geringwertige Wirtschaftsgüter | D9: =SUMIF(Einzelposten!$O$11:$O$210,CONCATENATE(D$1,$B9),Einzelposten!$K$11:$K$210) -> 0 | E9: =SUMIF(Einzelposten!$O$11:$O$210,CONCATENATE(E$1,$B9),Einzelposten!$K$11:$K$210) -> 0 | F9: =SUMIF(Einzelposten!$O$11:$O$210,CONCATENATE(F$1,$B9),Einzelposten!$K$11:$K$210) -> 0 | G9: =SUMIF(Einzelposten!$O$11:$O$210,CONCATENATE(G$1,$B9),Einzelposten!$K$11:$K$210) -> 0 | H9: =SUMIF(Einzelposten!$O$11:$O$210,CONCATENATE(H$1,$B9),Einzelposten!$K$11:$K$210) -> 0 | I9: =SUMIF(Einzelposten!$O$11:$O$210,CONCATENATE(I$1,$B9),Einzelposten!$K$11:$K$210) -> 0 | J9: =SUMIF(Einzelposten!$O$11:$O$210,CONCATENATE(J$1,$B9),Einzelposten!$K$11:$K$210) -> 0 | K9: =SUMIF(Einzelposten!$O$11:$O$210,CONCATENATE(K$1,$B9),Einzelposten!$K$11:$K$210) -> 0 | L9: =SUMIF(Einzelposten!$O$11:$O$210,CONCATENATE(L$1,$B9),Einzelposten!$K$11:$K$210) -> 0 | M9: =SUMIF(Einzelposten!$O$11:$O$210,CONCATENATE(M$1,$B9),Einzelposten!$K$11:$K$210) -> 0 | N9: =SUMIF(Einzelposten!$O$11:$O$210,CONCATENATE(N$1,$B9),Einzelposten!$K$11:$K$210) -> 0 | O9: =SUMIF(Einzelposten!$O$11:$O$210,CONCATENATE(O$1,$B9),Einzelposten!$K$11:$K$210) -> 0 | P9: 0
A10: aus | B10: 710 | C10: =Übersicht!C10 -> Abgaben und Beiträge | D10: =SUMIF(Einzelposten!$O$11:$O$210,CONCATENATE(D$1,$B10),Einzelposten!$K$11:$K$210) -> 0 | E10: =SUMIF(Einzelposten!$O$11:$O$210,CONCATENATE(E$1,$B10),Einzelposten!$K$11:$K$210) -> 0 | F10: =SUMIF(Einzelposten!$O$11:$O$210,CONCATENATE(F$1,$B10),Einzelposten!$K$11:$K$210) -> 0 | G10: =SUMIF(Einzelposten!$O$11:$O$210,CONCATENATE(G$1,$B10),Einzelposten!$K$11:$K$210) -> 0 | H10: =SUMIF(Einzelposten!$O$11:$O$210,CONCATENATE(H$1,$B10),Einzelposten!$K$11:$K$210) -> 0 | I10: =SUMIF(Einzelposten!$O$11:$O$210,CONCATENATE(I$1,$B10),Einzelposten!$K$11:$K$210) -> 0 | J10: =SUMIF(Einzelposten!$O$11:$O$210,CONCATENATE(J$1,$B10),Einzelposten!$K$11:$K$210) -> 0 | K10: =SUMIF(Einzelposten!$O$11:$O$210,CONCATENATE(K$1,$B10),Einzelposten!$K$11:$K$210) -> 0 | L10: =SUMIF(Einzelposten!$O$11:$O$210,CONCATENATE(L$1,$B10),Einzelposten!$K$11:$K$210) -> 0 | M10: =SUMIF(Einzelposten!$O$11:$O$210,CONCATENATE(M$1,$B10),Einzelposten!$K$11:$K$210) -> 0 | N10: =SUMIF(Einzelposten!$O$11:$O$210,CONCATENATE(N$1,$B10),Einzelposten!$K$11:$K$210) -> 0 | O10: =SUMIF(Einzelposten!$O$11:$O$210,CONCATENATE(O$1,$B10),Einzelposten!$K$11:$K$210) -> 0 | P10: 0
A11: aus | B11: 720 | C11: =Übersicht!C11 -> Instandhaltungen, Kleinmaterialien | D11: =SUMIF(Einzelposten!$O$11:$O$210,CONCATENATE(D$1,$B11),Einzelposten!$K$11:$K$210) -> 0 | E11: =SUMIF(Einzelposten!$O$11:$O$210,CONCATENATE(E$1,$B11),Einzelposten!$K$11:$K$210) -> 0 | F11: =SUMIF(Einzelposten!$O$11:$O$210,CONCATENATE(F$1,$B11),Einzelposten!$K$11:$K$210) -> 0 | G11: =SUMIF(Einzelposten!$O$11:$O$210,CONCATENATE(G$1,$B11),Einzelposten!$K$11:$K$210) -> 0 | H11: =SUMIF(Einzelposten!$O$11:$O$210,CONCATENATE(H$1,$B11),Einzelposten!$K$11:$K$210) -> 0 | I11: =SUMIF(Einzelposten!$O$11:$O$210,CONCATENATE(I$1,$B11),Einzelposten!$K$11:$K$210) -> 0 | J11: =SUMIF(Einzelposten!$O$11:$O$210,CONCATENATE(J$1,$B11),Einzelposten!$K$11:$K$210) -> 0 | K11: =SUMIF(Einzelposten!$O$11:$O$210,CONCATENATE(K$1,$B11),Einzelposten!$K$11:$K$210) -> 0 | L11: =SUMIF(Einzelposten!$O$11:$O$210,CONCATENATE(L$1,$B11),Einzelposten!$K$11:$K$210) -> 0 | M11: =SUMIF(Einzelposten!$O$11:$O$210,CONCATENATE(M$1,$B11),Einzelposten!$K$11:$K$210) -> 0 | N11: =SUMIF(Einzelposten!$O$11:$O$210,CONCATENATE(N$1,$B11),Einzelposten!$K$11:$K$210) -> 0 | O11: =SUMIF(Einzelposten!$O$11:$O$210,CONCATENATE(O$1,$B11),Einzelposten!$K$11:$K$210) -> 0 | P11: 0
A12: aus | B12: 725 | C12: =Übersicht!C12 -> Energie-, Betriebskosten | D12: =SUMIF(Einzelposten!$O$11:$O$210,CONCATENATE(D$1,$B12),Einzelposten!$K$11:$K$210) -> 0 | E12: =SUMIF(Einzelposten!$O$11:$O$210,CONCATENATE(E$1,$B12),Einzelposten!$K$11:$K$210) -> 0 | F12: =SUMIF(Einzelposten!$O$11:$O$210,CONCATENATE(F$1,$B12),Einzelposten!$K$11:$K$210) -> 0 | G12: =SUMIF(Einzelposten!$O$11:$O$210,CONCATENATE(G$1,$B12),Einzelposten!$K$11:$K$210) -> 0 | H12: =SUMIF(Einzelposten!$O$11:$O$210,CONCATENATE(H$1,$B12),Einzelposten!$K$11:$K$210) -> 0 | I12: =SUMIF(Einzelposten!$O$11:$O$210,CONCATENATE(I$1,$B12),Einzelposten!$K$11:$K$210) -> 0 | J12: =SUMIF(Einzelposten!$O$11:$O$210,CONCATENATE(J$1,$B12),Einzelposten!$K$11:$K$210) -> 0 | K12: =SUMIF(Einzelposten!$O$11:$O$210,CONCATENATE(K$1,$B12),Einzelposten!$K$11:$K$210) -> 0 | L12: =SUMIF(Einzelposten!$O$11:$O$210,CONCATENATE(L$1,$B12),Einzelposten!$K$11:$K$210) -> 0 | M12: =SUMIF(Einzelposten!$O$11:$O$210,CONCATENATE(M$1,$B12),Einzelposten!$K$11:$K$210) -> 0 | N12: =SUMIF(Einzelposten!$O$11:$O$210,CONCATENATE(N$1,$B12),Einzelposten!$K$11:$K$210) -> 0 | O12: =SUMIF(Einzelposten!$O$11:$O$210,CONCATENATE(O$1,$B12),Einzelposten!$K$11:$K$210) -> 0 | P12: 0
A13: aus | B13: 730 | C13: =Übersicht!C13 -> Porto-, Fracht-, Transportaufwand d. Dritte | D13: =SUMIF(Einzelposten!$O$11:$O$210,CONCATENATE(D$1,$B13),Einzelposten!$K$11:$K$210) -> 0 | E13: =SUMIF(Einzelposten!$O$11:$O$210,CONCATENATE(E$1,$B13),Einzelposten!$K$11:$K$210) -> 0 | F13: =SUMIF(Einzelposten!$O$11:$O$210,CONCATENATE(F$1,$B13),Einzelposten!$K$11:$K$210) -> 0 | G13: =SUMIF(Einzelposten!$O$11:$O$210,CONCATENATE(G$1,$B13),Einzelposten!$K$11:$K$210) -> 0 | H13: =SUMIF(Einzelposten!$O$11:$O$210,CONCATENATE(H$1,$B13),Einzelposten!$K$11:$K$210) -> 0 | I13: =SUMIF(Einzelposten!$O$11:$O$210,CONCATENATE(I$1,$B13),Einzelposten!$K$11:$K$210) -> 0 | J13: =SUMIF(Einzelposten!$O$11:$O$210,CONCATENATE(J$1,$B13),Einzelposten!$K$11:$K$210) -> 0 | K13: =SUMIF(Einzelposten!$O$11:$O$210,CONCATENATE(K$1,$B13),Einzelposten!$K$11:$K$210) -> 0 | L13: =SUMIF(Einzelposten!$O$11:$O$210,CONCATENATE(L$1,$B13),Einzelposten!$K$11:$K$210) -> 0 | M13: =SUMIF(Einzelposten!$O$11:$O$210,CONCATENATE(M$1,$B13),Einzelposten!$K$11:$K$210) -> 0 | N13: =SUMIF(Einzelposten!$O$11:$O$210,CONCATENATE(N$1,$B13),Einzelposten!$K$11:$K$210) -> 0 | O13: =SUMIF(Einzelposten!$O$11:$O$210,CONCATENATE(O$1,$B13),Einzelposten!$K$11:$K$210) -> 0 | P13: 0
A14: aus | B14: 732 | C14: =Übersicht!C14 -> KFZ-Aufwand (ohne AfA, Leasing u. Kilometergeld | D14: =SUMIF(Einzelposten!$O$11:$O$210,CONCATENATE(D$1,$B14),Einzelposten!$K$11:$K$210) -> 0 | E14: =SUMIF(Einzelposten!$O$11:$O$210,CONCATENATE(E$1,$B14),Einzelposten!$K$11:$K$210) -> 0 | F14: =SUMIF(Einzelposten!$O$11:$O$210,CONCATENATE(F$1,$B14),Einzelposten!$K$11:$K$210) -> 0 | G14: =SUMIF(Einzelposten!$O$11:$O$210,CONCATENATE(G$1,$B14),Einzelposten!$K$11:$K$210) -> 0 | H14: =SUMIF(Einzelposten!$O$11:$O$210,CONCATENATE(H$1,$B14),Einzelposten!$K$11:$K$210) -> 0 | I14: =SUMIF(Einzelposten!$O$11:$O$210,CONCATENATE(I$1,$B14),Einzelposten!$K$11:$K$210) -> 0 | J14: =SUMIF(Einzelposten!$O$11:$O$210,CONCATENATE(J$1,$B14),Einzelposten!$K$11:$K$210) -> 0 | K14: =SUMIF(Einzelposten!$O$11:$O$210,CONCATENATE(K$1,$B14),Einzelposten!$K$11:$K$210) -> 0 | L14: =SUMIF(Einzelposten!$O$11:$O$210,CONCATENATE(L$1,$B14),Einzelposten!$K$11:$K$210) -> 0 | M14: =SUMIF(Einzelposten!$O$11:$O$210,CONCATENATE(M$1,$B14),Einzelposten!$K$11:$K$210) -> -5.9 | N14: =SUMIF(Einzelposten!$O$11:$O$210,CONCATENATE(N$1,$B14),Einzelposten!$K$11:$K$210) -> 0 | O14: =SUMIF(Einzelposten!$O$11:$O$210,CONCATENATE(O$1,$B14),Einzelposten!$K$11:$K$210) -> 0 | P14: -5.9
A15: aus | B15: 735 | C15: =Übersicht!C15 -> Reise-, Fahrtspesen, Taggelder (inkl. Kilometergelder) | D15: =SUMIF(Einzelposten!$O$11:$O$210,CONCATENATE(D$1,$B15),Einzelposten!$K$11:$K$210) -> 0 | E15: =SUMIF(Einzelposten!$O$11:$O$210,CONCATENATE(E$1,$B15),Einzelposten!$K$11:$K$210) -> 0 | F15: =SUMIF(Einzelposten!$O$11:$O$210,CONCATENATE(F$1,$B15),Einzelposten!$K$11:$K$210) -> 0 | G15: =SUMIF(Einzelposten!$O$11:$O$210,CONCATENATE(G$1,$B15),Einzelposten!$K$11:$K$210) -> 0 | H15: =SUMIF(Einzelposten!$O$11:$O$210,CONCATENATE(H$1,$B15),Einzelposten!$K$11:$K$210) -> 0 | I15: =SUMIF(Einzelposten!$O$11:$O$210,CONCATENATE(I$1,$B15),Einzelposten!$K$11:$K$210) -> 0 | J15: =SUMIF(Einzelposten!$O$11:$O$210,CONCATENATE(J$1,$B15),Einzelposten!$K$11:$K$210) -> 0 | K15: =SUMIF(Einzelposten!$O$11:$O$210,CONCATENATE(K$1,$B15),Einzelposten!$K$11:$K$210) -> 0 | L15: =SUMIF(Einzelposten!$O$11:$O$210,CONCATENATE(L$1,$B15),Einzelposten!$K$11:$K$210) -> 0 | M15: =SUMIF(Einzelposten!$O$11:$O$210,CONCATENATE(M$1,$B15),Einzelposten!$K$11:$K$210) -> 0 | N15: =SUMIF(Einzelposten!$O$11:$O$210,CONCATENATE(N$1,$B15),Einzelposten!$K$11:$K$210) -> 0 | O15: =SUMIF(Einzelposten!$O$11:$O$210,CONCATENATE(O$1,$B15),Einzelposten!$K$11:$K$210) -> 0 | P15: 0
A16: aus | B16: 739 | C16: =Übersicht!C16 -> Telekommunikation | D16: =SUMIF(Einzelposten!$O$11:$O$210,CONCATENATE(D$1,$B16),Einzelposten!$K$11:$K$210) -> 0 | E16: =SUMIF(Einzelposten!$O$11:$O$210,CONCATENATE(E$1,$B16),Einzelposten!$K$11:$K$210) -> 0 | F16: =SUMIF(Einzelposten!$O$11:$O$210,CONCATENATE(F$1,$B16),Einzelposten!$K$11:$K$210) -> 0 | G16: =SUMIF(Einzelposten!$O$11:$O$210,CONCATENATE(G$1,$B16),Einzelposten!$K$11:$K$210) -> 0 | H16: =SUMIF(Einzelposten!$O$11:$O$210,CONCATENATE(H$1,$B16),Einzelposten!$K$11:$K$210) -> 0 | I16: =SUMIF(Einzelposten!$O$11:$O$210,CONCATENATE(I$1,$B16),Einzelposten!$K$11:$K$210) -> 0 | J16: =SUMIF(Einzelposten!$O$11:$O$210,CONCATENATE(J$1,$B16),Einzelposten!$K$11:$K$210) -> 0 | K16: =SUMIF(Einzelposten!$O$11:$O$210,CONCATENATE(K$1,$B16),Einzelposten!$K$11:$K$210) -> 0 | L16: =SUMIF(Einzelposten!$O$11:$O$210,CONCATENATE(L$1,$B16),Einzelposten!$K$11:$K$210) -> 0 | M16: =SUMIF(Einzelposten!$O$11:$O$210,CONCATENATE(M$1,$B16),Einzelposten!$K$11:$K$210) -> 0 | N16: =SUMIF(Einzelposten!$O$11:$O$210,CONCATENATE(N$1,$B16),Einzelposten!$K$11:$K$210) -> 0 | O16: =SUMIF(Einzelposten!$O$11:$O$210,CONCATENATE(O$1,$B16),Einzelposten!$K$11:$K$210) -> 0 | P16: 0
A17: aus | B17: 740 | C17: =Übersicht!C17 -> Geschäftsmieten, Leasing, Raumkosten | D17: =SUMIF(Einzelposten!$O$11:$O$210,CONCATENATE(D$1,$B17),Einzelposten!$K$11:$K$210) -> 0 | E17: =SUMIF(Einzelposten!$O$11:$O$210,CONCATENATE(E$1,$B17),Einzelposten!$K$11:$K$210) -> 0 | F17: =SUMIF(Einzelposten!$O$11:$O$210,CONCATENATE(F$1,$B17),Einzelposten!$K$11:$K$210) -> 0 | G17: =SUMIF(Einzelposten!$O$11:$O$210,CONCATENATE(G$1,$B17),Einzelposten!$K$11:$K$210) -> 0 | H17: =SUMIF(Einzelposten!$O$11:$O$210,CONCATENATE(H$1,$B17),Einzelposten!$K$11:$K$210) -> 0 | I17: =SUMIF(Einzelposten!$O$11:$O$210,CONCATENATE(I$1,$B17),Einzelposten!$K$11:$K$210) -> 0 | J17: =SUMIF(Einzelposten!$O$11:$O$210,CONCATENATE(J$1,$B17),Einzelposten!$K$11:$K$210) -> 0 | K17: =SUMIF(Einzelposten!$O$11:$O$210,CONCATENATE(K$1,$B17),Einzelposten!$K$11:$K$210) -> 0 | L17: =SUMIF(Einzelposten!$O$11:$O$210,CONCATENATE(L$1,$B17),Einzelposten!$K$11:$K$210) -> 0 | M17: =SUMIF(Einzelposten!$O$11:$O$210,CONCATENATE(M$1,$B17),Einzelposten!$K$11:$K$210) -> 0 | N17: =SUMIF(Einzelposten!$O$11:$O$210,CONCATENATE(N$1,$B17),Einzelposten!$K$11:$K$210) -> 0 | O17: =SUMIF(Einzelposten!$O$11:$O$210,CONCATENATE(O$1,$B17),Einzelposten!$K$11:$K$210) -> -300 | P17: -300
A18: aus | B18: 748 | C18: =Übersicht!C18 -> Lizenz- u. Wartungsgebühren, Provisionen | D18: =SUMIF(Einzelposten!$O$11:$O$210,CONCATENATE(D$1,$B18),Einzelposten!$K$11:$K$210) -> 0 | E18: =SUMIF(Einzelposten!$O$11:$O$210,CONCATENATE(E$1,$B18),Einzelposten!$K$11:$K$210) -> 0 | F18: =SUMIF(Einzelposten!$O$11:$O$210,CONCATENATE(F$1,$B18),Einzelposten!$K$11:$K$210) -> 0 | G18: =SUMIF(Einzelposten!$O$11:$O$210,CONCATENATE(G$1,$B18),Einzelposten!$K$11:$K$210) -> 0 | H18: =SUMIF(Einzelposten!$O$11:$O$210,CONCATENATE(H$1,$B18),Einzelposten!$K$11:$K$210) -> 0 | I18: =SUMIF(Einzelposten!$O$11:$O$210,CONCATENATE(I$1,$B18),Einzelposten!$K$11:$K$210) -> 0 | J18: =SUMIF(Einzelposten!$O$11:$O$210,CONCATENATE(J$1,$B18),Einzelposten!$K$11:$K$210) -> 0 | K18: =SUMIF(Einzelposten!$O$11:$O$210,CONCATENATE(K$1,$B18),Einzelposten!$K$11:$K$210) -> 0 | L18: =SUMIF(Einzelposten!$O$11:$O$210,CONCATENATE(L$1,$B18),Einzelposten!$K$11:$K$210) -> 0 | M18: =SUMIF(Einzelposten!$O$11:$O$210,CONCATENATE(M$1,$B18),Einzelposten!$K$11:$K$210) -> 0 | N18: =SUMIF(Einzelposten!$O$11:$O$210,CONCATENATE(N$1,$B18),Einzelposten!$K$11:$K$210) -> 0 | O18: =SUMIF(Einzelposten!$O$11:$O$210,CONCATENATE(O$1,$B18),Einzelposten!$K$11:$K$210) -> 0 | P18: 0
A19: aus | B19: 760 | C19: =Übersicht!C19 -> Büromaterial, Fachliteratur | D19: =SUMIF(Einzelposten!$O$11:$O$210,CONCATENATE(D$1,$B19),Einzelposten!$K$11:$K$210) -> -18 | E19: =SUMIF(Einzelposten!$O$11:$O$210,CONCATENATE(E$1,$B19),Einzelposten!$K$11:$K$210) -> -23 | F19: =SUMIF(Einzelposten!$O$11:$O$210,CONCATENATE(F$1,$B19),Einzelposten!$K$11:$K$210) -> 0 | G19: =SUMIF(Einzelposten!$O$11:$O$210,CONCATENATE(G$1,$B19),Einzelposten!$K$11:$K$210) -> 0 | H19: =SUMIF(Einzelposten!$O$11:$O$210,CONCATENATE(H$1,$B19),Einzelposten!$K$11:$K$210) -> 0 | I19: =SUMIF(Einzelposten!$O$11:$O$210,CONCATENATE(I$1,$B19),Einzelposten!$K$11:$K$210) -> 0 | J19: =SUMIF(Einzelposten!$O$11:$O$210,CONCATENATE(J$1,$B19),Einzelposten!$K$11:$K$210) -> 0 | K19: =SUMIF(Einzelposten!$O$11:$O$210,CONCATENATE(K$1,$B19),Einzelposten!$K$11:$K$210) -> 0 | L19: =SUMIF(Einzelposten!$O$11:$O$210,CONCATENATE(L$1,$B19),Einzelposten!$K$11:$K$210) -> 0 | M19: =SUMIF(Einzelposten!$O$11:$O$210,CONCATENATE(M$1,$B19),Einzelposten!$K$11:$K$210) -> 0 | N19: =SUMIF(Einzelposten!$O$11:$O$210,CONCATENATE(N$1,$B19),Einzelposten!$K$11:$K$210) -> 0 | O19: =SUMIF(Einzelposten!$O$11:$O$210,CONCATENATE(O$1,$B19),Einzelposten!$K$11:$K$210) -> 0 | P19: -41
A20: aus | B20: 765 | C20: =Übersicht!C20 -> Werbung, Repräsentationen | D20: =SUMIF(Einzelposten!$O$11:$O$210,CONCATENATE(D$1,$B20),Einzelposten!$K$11:$K$210) -> 0 | E20: =SUMIF(Einzelposten!$O$11:$O$210,CONCATENATE(E$1,$B20),Einzelposten!$K$11:$K$210) -> 0 | F20: =SUMIF(Einzelposten!$O$11:$O$210,CONCATENATE(F$1,$B20),Einzelposten!$K$11:$K$210) -> 0 | G20: =SUMIF(Einzelposten!$O$11:$O$210,CONCATENATE(G$1,$B20),Einzelposten!$K$11:$K$210) -> 0 | H20: =SUMIF(Einzelposten!$O$11:$O$210,CONCATENATE(H$1,$B20),Einzelposten!$K$11:$K$210) -> 0 | I20: =SUMIF(Einzelposten!$O$11:$O$210,CONCATENATE(I$1,$B20),Einzelposten!$K$11:$K$210) -> 0 | J20: =SUMIF(Einzelposten!$O$11:$O$210,CONCATENATE(J$1,$B20),Einzelposten!$K$11:$K$210) -> 0 | K20: =SUMIF(Einzelposten!$O$11:$O$210,CONCATENATE(K$1,$B20),Einzelposten!$K$11:$K$210) -> 0 | L20: =SUMIF(Einzelposten!$O$11:$O$210,CONCATENATE(L$1,$B20),Einzelposten!$K$11:$K$210) -> 0 | M20: =SUMIF(Einzelposten!$O$11:$O$210,CONCATENATE(M$1,$B20),Einzelposten!$K$11:$K$210) -> 0 | N20: =SUMIF(Einzelposten!$O$11:$O$210,CONCATENATE(N$1,$B20),Einzelposten!$K$11:$K$210) -> 0 | O20: =SUMIF(Einzelposten!$O$11:$O$210,CONCATENATE(O$1,$B20),Einzelposten!$K$11:$K$210) -> 0 | P20: =SUM(D20:O20) -> 0
A21: aus | B21: 770 | C21: =Übersicht!C21 -> Versicherung, Beratung | D21: =SUMIF(Einzelposten!$O$11:$O$210,CONCATENATE(D$1,$B21),Einzelposten!$K$11:$K$210) -> 0 | E21: =SUMIF(Einzelposten!$O$11:$O$210,CONCATENATE(E$1,$B21),Einzelposten!$K$11:$K$210) -> 0 | F21: =SUMIF(Einzelposten!$O$11:$O$210,CONCATENATE(F$1,$B21),Einzelposten!$K$11:$K$210) -> 0 | G21: =SUMIF(Einzelposten!$O$11:$O$210,CONCATENATE(G$1,$B21),Einzelposten!$K$11:$K$210) -> 0 | H21: =SUMIF(Einzelposten!$O$11:$O$210,CONCATENATE(H$1,$B21),Einzelposten!$K$11:$K$210) -> 0 | I21: =SUMIF(Einzelposten!$O$11:$O$210,CONCATENATE(I$1,$B21),Einzelposten!$K$11:$K$210) -> 0 | J21: =SUMIF(Einzelposten!$O$11:$O$210,CONCATENATE(J$1,$B21),Einzelposten!$K$11:$K$210) -> 0 | K21: =SUMIF(Einzelposten!$O$11:$O$210,CONCATENATE(K$1,$B21),Einzelposten!$K$11:$K$210) -> 0 | L21: =SUMIF(Einzelposten!$O$11:$O$210,CONCATENATE(L$1,$B21),Einzelposten!$K$11:$K$210) -> 0 | M21: =SUMIF(Einzelposten!$O$11:$O$210,CONCATENATE(M$1,$B21),Einzelposten!$K$11:$K$210) -> 0 | N21: =SUMIF(Einzelposten!$O$11:$O$210,CONCATENATE(N$1,$B21),Einzelposten!$K$11:$K$210) -> 0 | O21: =SUMIF(Einzelposten!$O$11:$O$210,CONCATENATE(O$1,$B21),Einzelposten!$K$11:$K$210) -> 0 | P21: 0
A22: aus | B22: 771 | C22: =Übersicht!C22 -> Pflichtversicherung Unternehmer (SVA) | D22: =SUMIF(Einzelposten!$O$11:$O$210,CONCATENATE(D$1,$B22),Einzelposten!$K$11:$K$210) -> 0 | E22: =SUMIF(Einzelposten!$O$11:$O$210,CONCATENATE(E$1,$B22),Einzelposten!$K$11:$K$210) -> 0 | F22: =SUMIF(Einzelposten!$O$11:$O$210,CONCATENATE(F$1,$B22),Einzelposten!$K$11:$K$210) -> 0 | G22: =SUMIF(Einzelposten!$O$11:$O$210,CONCATENATE(G$1,$B22),Einzelposten!$K$11:$K$210) -> 0 | H22: =SUMIF(Einzelposten!$O$11:$O$210,CONCATENATE(H$1,$B22),Einzelposten!$K$11:$K$210) -> 0 | I22: =SUMIF(Einzelposten!$O$11:$O$210,CONCATENATE(I$1,$B22),Einzelposten!$K$11:$K$210) -> 0 | J22: =SUMIF(Einzelposten!$O$11:$O$210,CONCATENATE(J$1,$B22),Einzelposten!$K$11:$K$210) -> 0 | K22: =SUMIF(Einzelposten!$O$11:$O$210,CONCATENATE(K$1,$B22),Einzelposten!$K$11:$K$210) -> 0 | L22: =SUMIF(Einzelposten!$O$11:$O$210,CONCATENATE(L$1,$B22),Einzelposten!$K$11:$K$210) -> 0 | M22: =SUMIF(Einzelposten!$O$11:$O$210,CONCATENATE(M$1,$B22),Einzelposten!$K$11:$K$210) -> 0 | N22: =SUMIF(Einzelposten!$O$11:$O$210,CONCATENATE(N$1,$B22),Einzelposten!$K$11:$K$210) -> 0 | O22: =SUMIF(Einzelposten!$O$11:$O$210,CONCATENATE(O$1,$B22),Einzelposten!$K$11:$K$210) -> 0 | P22: 0
A23: aus | B23: 775 | C23: =Übersicht!C23 -> Aus- und Fortbildung, Seminare | D23: =SUMIF(Einzelposten!$O$11:$O$210,CONCATENATE(D$1,$B23),Einzelposten!$K$11:$K$210) -> 0 | E23: =SUMIF(Einzelposten!$O$11:$O$210,CONCATENATE(E$1,$B23),Einzelposten!$K$11:$K$210) -> 0 | F23: =SUMIF(Einzelposten!$O$11:$O$210,CONCATENATE(F$1,$B23),Einzelposten!$K$11:$K$210) -> 0 | G23: =SUMIF(Einzelposten!$O$11:$O$210,CONCATENATE(G$1,$B23),Einzelposten!$K$11:$K$210) -> 0 | H23: =SUMIF(Einzelposten!$O$11:$O$210,CONCATENATE(H$1,$B23),Einzelposten!$K$11:$K$210) -> 0 | I23: =SUMIF(Einzelposten!$O$11:$O$210,CONCATENATE(I$1,$B23),Einzelposten!$K$11:$K$210) -> 0 | J23: =SUMIF(Einzelposten!$O$11:$O$210,CONCATENATE(J$1,$B23),Einzelposten!$K$11:$K$210) -> 0 | K23: =SUMIF(Einzelposten!$O$11:$O$210,CONCATENATE(K$1,$B23),Einzelposten!$K$11:$K$210) -> 0 | L23: =SUMIF(Einzelposten!$O$11:$O$210,CONCATENATE(L$1,$B23),Einzelposten!$K$11:$K$210) -> 0 | M23: =SUMIF(Einzelposten!$O$11:$O$210,CONCATENATE(M$1,$B23),Einzelposten!$K$11:$K$210) -> 0 | N23: =SUMIF(Einzelposten!$O$11:$O$210,CONCATENATE(N$1,$B23),Einzelposten!$K$11:$K$210) -> 0 | O23: =SUMIF(Einzelposten!$O$11:$O$210,CONCATENATE(O$1,$B23),Einzelposten!$K$11:$K$210) -> 0 | P23: 0
A24: aus | B24: 780 | C24: =Übersicht!C24 -> Spesen des Geldverkehrs | D24: =SUMIF(Einzelposten!$O$11:$O$210,CONCATENATE(D$1,$B24),Einzelposten!$K$11:$K$210) -> 0 | E24: =SUMIF(Einzelposten!$O$11:$O$210,CONCATENATE(E$1,$B24),Einzelposten!$K$11:$K$210) -> 0 | F24: =SUMIF(Einzelposten!$O$11:$O$210,CONCATENATE(F$1,$B24),Einzelposten!$K$11:$K$210) -> 0 | G24: =SUMIF(Einzelposten!$O$11:$O$210,CONCATENATE(G$1,$B24),Einzelposten!$K$11:$K$210) -> 0 | H24: =SUMIF(Einzelposten!$O$11:$O$210,CONCATENATE(H$1,$B24),Einzelposten!$K$11:$K$210) -> 0 | I24: =SUMIF(Einzelposten!$O$11:$O$210,CONCATENATE(I$1,$B24),Einzelposten!$K$11:$K$210) -> 0 | J24: =SUMIF(Einzelposten!$O$11:$O$210,CONCATENATE(J$1,$B24),Einzelposten!$K$11:$K$210) -> 0 | K24: =SUMIF(Einzelposten!$O$11:$O$210,CONCATENATE(K$1,$B24),Einzelposten!$K$11:$K$210) -> 0 | L24: =SUMIF(Einzelposten!$O$11:$O$210,CONCATENATE(L$1,$B24),Einzelposten!$K$11:$K$210) -> 0 | M24: =SUMIF(Einzelposten!$O$11:$O$210,CONCATENATE(M$1,$B24),Einzelposten!$K$11:$K$210) -> 0 | N24: =SUMIF(Einzelposten!$O$11:$O$210,CONCATENATE(N$1,$B24),Einzelposten!$K$11:$K$210) -> 0 | O24: =SUMIF(Einzelposten!$O$11:$O$210,CONCATENATE(O$1,$B24),Einzelposten!$K$11:$K$210) -> 0 | P24: 0
A25: aus | B25: 790 | C25: =Übersicht!C25 -> sonstige Aufwendungen | D25: =SUMIF(Einzelposten!$O$11:$O$210,CONCATENATE(D$1,$B25),Einzelposten!$K$11:$K$210) -> 0 | E25: =SUMIF(Einzelposten!$O$11:$O$210,CONCATENATE(E$1,$B25),Einzelposten!$K$11:$K$210) -> 0 | F25: =SUMIF(Einzelposten!$O$11:$O$210,CONCATENATE(F$1,$B25),Einzelposten!$K$11:$K$210) -> 0 | G25: =SUMIF(Einzelposten!$O$11:$O$210,CONCATENATE(G$1,$B25),Einzelposten!$K$11:$K$210) -> 0 | H25: =SUMIF(Einzelposten!$O$11:$O$210,CONCATENATE(H$1,$B25),Einzelposten!$K$11:$K$210) -> 0 | I25: =SUMIF(Einzelposten!$O$11:$O$210,CONCATENATE(I$1,$B25),Einzelposten!$K$11:$K$210) -> 0 | J25: =SUMIF(Einzelposten!$O$11:$O$210,CONCATENATE(J$1,$B25),Einzelposten!$K$11:$K$210) -> 0 | K25: =SUMIF(Einzelposten!$O$11:$O$210,CONCATENATE(K$1,$B25),Einzelposten!$K$11:$K$210) -> 0 | L25: =SUMIF(Einzelposten!$O$11:$O$210,CONCATENATE(L$1,$B25),Einzelposten!$K$11:$K$210) -> 0 | M25: =SUMIF(Einzelposten!$O$11:$O$210,CONCATENATE(M$1,$B25),Einzelposten!$K$11:$K$210) -> 0 | N25: =SUMIF(Einzelposten!$O$11:$O$210,CONCATENATE(N$1,$B25),Einzelposten!$K$11:$K$210) -> 0 | O25: =SUMIF(Einzelposten!$O$11:$O$210,CONCATENATE(O$1,$B25),Einzelposten!$K$11:$K$210) -> 0 | P25: 0
A26: aus | B26: 830 | C26: =Übersicht!C26 -> Zinsen und ähnliche Aufwendungen | D26: =SUMIF(Einzelposten!$O$11:$O$210,CONCATENATE(D$1,$B26),Einzelposten!$K$11:$K$210) -> 0 | E26: =SUMIF(Einzelposten!$O$11:$O$210,CONCATENATE(E$1,$B26),Einzelposten!$K$11:$K$210) -> 0 | F26: =SUMIF(Einzelposten!$O$11:$O$210,CONCATENATE(F$1,$B26),Einzelposten!$K$11:$K$210) -> 0 | G26: =SUMIF(Einzelposten!$O$11:$O$210,CONCATENATE(G$1,$B26),Einzelposten!$K$11:$K$210) -> 0 | H26: =SUMIF(Einzelposten!$O$11:$O$210,CONCATENATE(H$1,$B26),Einzelposten!$K$11:$K$210) -> 0 | I26: =SUMIF(Einzelposten!$O$11:$O$210,CONCATENATE(I$1,$B26),Einzelposten!$K$11:$K$210) -> 0 | J26: =SUMIF(Einzelposten!$O$11:$O$210,CONCATENATE(J$1,$B26),Einzelposten!$K$11:$K$210) -> 0 | K26: =SUMIF(Einzelposten!$O$11:$O$210,CONCATENATE(K$1,$B26),Einzelposten!$K$11:$K$210) -> 0 | L26: =SUMIF(Einzelposten!$O$11:$O$210,CONCATENATE(L$1,$B26),Einzelposten!$K$11:$K$210) -> 0 | M26: =SUMIF(Einzelposten!$O$11:$O$210,CONCATENATE(M$1,$B26),Einzelposten!$K$11:$K$210) -> 0 | N26: =SUMIF(Einzelposten!$O$11:$O$210,CONCATENATE(N$1,$B26),Einzelposten!$K$11:$K$210) -> 0 | O26: =SUMIF(Einzelposten!$O$11:$O$210,CONCATENATE(O$1,$B26),Einzelposten!$K$11:$K$210) -> 0 | P26: 0
C27: =IF(P27<0," V e r l u s t"," G e w i n n ( Ü b e r s c h u s s )") -> G e w i n n ( Ü b e r s c h u s s ) | D27: =SUM(D3:D26) -> 1954.22 | E27: =SUM(E3:E26) -> -23 | F27: 0 | G27: 0 | H27: 0 | I27: 0 | J27: 0 | K27: 0 | L27: 0 | M27: -5.9 | N27: 0 | O27: -300 | P27: 1625.32
B29: rvo.at | C29: EBITDA | D29: Januar | E29: Februar | F29: März | G29: April | H29: Mai | I29: Juni | J29: Juli | K29: August | L29: September | M29: Oktober | N29: November | O29: Dezember | P29: gesamt
C30: Umsatz | D30: =SUM(D3:D4) -> 2000 | E30: =SUM(E3:E4) -> 0 | F30: 0 | G30: 0 | H30: 0 | I30: 0 | J30: 0 | K30: 0 | L30: 0 | M30: 0 | N30: 0 | O30: 0 | P30: =SUM(D30:O30) -> 2000
C31: Direkter Aufwand (WES, Fremdl.) | D31: =SUM(D5:D6) -> 0 | E31: =SUM(E5:E6) -> 0 | F31: 0 | G31: 0 | H31: 0 | I31: 0 | J31: 0 | K31: 0 | L31: 0 | M31: 0 | N31: 0 | O31: 0 | P31: =SUM(D31:O31) -> 0
C32: Rohertrag | D32: =SUM(D30:D31) -> 2000 | E32: =SUM(E30:E31) -> 0 | F32: 0 | G32: 0 | H32: 0 | I32: 0 | J32: 0 | K32: 0 | L32: 0 | M32: 0 | N32: 0 | O32: 0 | P32: =SUM(P30:P31) -> 2000
C33: Personalkosten u. Overheads | D33: =SUM(D7,D10:D25) -> -18 | E33: =SUM(E7,E10:E25) -> -23 | F33: 0 | G33: 0 | H33: 0 | I33: 0 | J33: 0 | K33: 0 | L33: 0 | M33: -5.9 | N33: 0 | O33: -300 | P33: =SUM(D33:O33) -> -346.9
C34: EBITDA (Ergebnis vor Zinsen u. Afa) | D34: =SUM(D32:D33) -> 1982 | E34: =SUM(E32:E33) -> -23 | F34: 0 | G34: 0 | H34: 0 | I34: 0 | J34: 0 | K34: 0 | L34: 0 | M34: -5.9 | N34: 0 | O34: -300 | P34: =SUM(P32:P33) -> 1653.1
C35: Finanzergebnis (Zinsen) | D35: =D26 -> 0 | E35: =E26 -> 0 | F35: 0 | G35: 0 | H35: 0 | I35: 0 | J35: 0 | K35: 0 | L35: 0 | M35: 0 | N35: 0 | O35: 0 | P35: =SUM(D35:O35) -> 0
C36: Ergebnis nach Zinsen, vor Afa | D36: =SUM(D34:D35) -> 1982 | E36: =SUM(E34:E35) -> -23 | F36: 0 | G36: 0 | H36: 0 | I36: 0 | J36: 0 | K36: 0 | L36: 0 | M36: -5.9 | N36: 0 | O36: -300 | P36: =SUM(P34:P35) -> 1653.1
C37: Afa | D37: =SUM(D8:D9) -> -27.78 | E37: =SUM(E8:E9) -> 0 | F37: 0 | G37: 0 | H37: 0 | I37: 0 | J37: 0 | K37: 0 | L37: 0 | M37: 0 | N37: 0 | O37: 0 | P37: =SUM(D37:O37) -> -27.78
C38: =IF(P38<0," V e r l u s t"," G e w i n n ( Ü b e r s c h u s s )") -> G e w i n n ( Ü b e r s c h u s s ) | D38: =SUM(D36:D37) -> 1954.22 | E38: =SUM(E36:E37) -> -23 | F38: 0 | G38: 0 | H38: 0 | I38: 0 | J38: 0 | K38: 0 | L38: 0 | M38: -5.9 | N38: 0 | O38: -300 | P38: =SUM(P36:P37) -> 1625.32
B40: rvo.at | C40: Cashflow | D40: Januar | E40: Februar | F40: März | G40: April | H40: Mai | I40: Juni | J40: Juli | K40: August | L40: September | M40: Oktober | N40: November | O40: Dezember | P40: gesamt
B41: o | C41: Zuflüsse operativer Bereich | D41: =SUMIF(Einzelposten!$P$11:$P$210,CONCATENATE(D$1,$B41),Einzelposten!$AT$11:$AT$210) -> 2000 | E41: =SUMIF(Einzelposten!$P$11:$P$210,CONCATENATE(E$1,$B41),Einzelposten!$AT$11:$AT$210) -> 0 | F41: =SUMIF(Einzelposten!$P$11:$P$210,CONCATENATE(F$1,$B41),Einzelposten!$AT$11:$AT$210) -> 0 | G41: =SUMIF(Einzelposten!$P$11:$P$210,CONCATENATE(G$1,$B41),Einzelposten!$AT$11:$AT$210) -> 0 | H41: =SUMIF(Einzelposten!$P$11:$P$210,CONCATENATE(H$1,$B41),Einzelposten!$AT$11:$AT$210) -> 0 | I41: =SUMIF(Einzelposten!$P$11:$P$210,CONCATENATE(I$1,$B41),Einzelposten!$AT$11:$AT$210) -> 0 | J41: =SUMIF(Einzelposten!$P$11:$P$210,CONCATENATE(J$1,$B41),Einzelposten!$AT$11:$AT$210) -> 0 | K41: =SUMIF(Einzelposten!$P$11:$P$210,CONCATENATE(K$1,$B41),Einzelposten!$AT$11:$AT$210) -> 0 | L41: =SUMIF(Einzelposten!$P$11:$P$210,CONCATENATE(L$1,$B41),Einzelposten!$AT$11:$AT$210) -> 0 | M41: =SUMIF(Einzelposten!$P$11:$P$210,CONCATENATE(M$1,$B41),Einzelposten!$AT$11:$AT$210) -> 0 | N41: =SUMIF(Einzelposten!$P$11:$P$210,CONCATENATE(N$1,$B41),Einzelposten!$AT$11:$AT$210) -> 0 | O41: =SUMIF(Einzelposten!$P$11:$P$210,CONCATENATE(O$1,$B41),Einzelposten!$AT$11:$AT$210) -> 0 | P41: =SUM(D41:O41) -> 2000
B42: o | C42: Abflüsse operativer Bereich | D42: =SUMIF(Einzelposten!$P$11:$P$210,CONCATENATE(D$1,$B42),Einzelposten!$AU$11:$AU$210)*-1 -> -18 | E42: =SUMIF(Einzelposten!$P$11:$P$210,CONCATENATE(E$1,$B42),Einzelposten!$AU$11:$AU$210)*-1 -> -23 | F42: =SUMIF(Einzelposten!$P$11:$P$210,CONCATENATE(F$1,$B42),Einzelposten!$AU$11:$AU$210)*-1 -> 0 | G42: =SUMIF(Einzelposten!$P$11:$P$210,CONCATENATE(G$1,$B42),Einzelposten!$AU$11:$AU$210)*-1 -> 0 | H42: =SUMIF(Einzelposten!$P$11:$P$210,CONCATENATE(H$1,$B42),Einzelposten!$AU$11:$AU$210)*-1 -> 0 | I42: =SUMIF(Einzelposten!$P$11:$P$210,CONCATENATE(I$1,$B42),Einzelposten!$AU$11:$AU$210)*-1 -> 0 | J42: =SUMIF(Einzelposten!$P$11:$P$210,CONCATENATE(J$1,$B42),Einzelposten!$AU$11:$AU$210)*-1 -> 0 | K42: =SUMIF(Einzelposten!$P$11:$P$210,CONCATENATE(K$1,$B42),Einzelposten!$AU$11:$AU$210)*-1 -> 0 | L42: =SUMIF(Einzelposten!$P$11:$P$210,CONCATENATE(L$1,$B42),Einzelposten!$AU$11:$AU$210)*-1 -> 0 | M42: =SUMIF(Einzelposten!$P$11:$P$210,CONCATENATE(M$1,$B42),Einzelposten!$AU$11:$AU$210)*-1 -> -5.9 | N42: =SUMIF(Einzelposten!$P$11:$P$210,CONCATENATE(N$1,$B42),Einzelposten!$AU$11:$AU$210)*-1 -> 0 | O42: =SUMIF(Einzelposten!$P$11:$P$210,CONCATENATE(O$1,$B42),Einzelposten!$AU$11:$AU$210)*-1 -> -300 | P42: -346.9
B43: o | C43: Saldo operativer Bereich | D43: =SUM(D41:D42) -> 1982 | E43: =SUM(E41:E42) -> -23 | F43: 0 | G43: 0 | H43: 0 | I43: 0 | J43: 0 | K43: 0 | L43: 0 | M43: -5.9 | N43: 0 | O43: -300 | P43: =SUM(P41:P42) -> 1653.1
B44: i | C44: Saldo Investitionsbereich (netto) | D44: =SUMIF(Einzelposten!$P$11:$P$210,CONCATENATE(D$1,$B44),Einzelposten!$AV$11:$AV$210) -> 0 | E44: =SUMIF(Einzelposten!$P$11:$P$210,CONCATENATE(E$1,$B44),Einzelposten!$AV$11:$AV$210) -> 0 | F44: =SUMIF(Einzelposten!$P$11:$P$210,CONCATENATE(F$1,$B44),Einzelposten!$AV$11:$AV$210) -> 0 | G44: =SUMIF(Einzelposten!$P$11:$P$210,CONCATENATE(G$1,$B44),Einzelposten!$AV$11:$AV$210) -> 0 | H44: =SUMIF(Einzelposten!$P$11:$P$210,CONCATENATE(H$1,$B44),Einzelposten!$AV$11:$AV$210) -> 0 | I44: =SUMIF(Einzelposten!$P$11:$P$210,CONCATENATE(I$1,$B44),Einzelposten!$AV$11:$AV$210) -> 0 | J44: =SUMIF(Einzelposten!$P$11:$P$210,CONCATENATE(J$1,$B44),Einzelposten!$AV$11:$AV$210) -> 0 | K44: =SUMIF(Einzelposten!$P$11:$P$210,CONCATENATE(K$1,$B44),Einzelposten!$AV$11:$AV$210) -> 0 | L44: =SUMIF(Einzelposten!$P$11:$P$210,CONCATENATE(L$1,$B44),Einzelposten!$AV$11:$AV$210) -> 0 | M44: =SUMIF(Einzelposten!$P$11:$P$210,CONCATENATE(M$1,$B44),Einzelposten!$AV$11:$AV$210) -> 0 | N44: =SUMIF(Einzelposten!$P$11:$P$210,CONCATENATE(N$1,$B44),Einzelposten!$AV$11:$AV$210) -> 0 | O44: =SUMIF(Einzelposten!$P$11:$P$210,CONCATENATE(O$1,$B44),Einzelposten!$AV$11:$AV$210) -> 0 | P44: 0
B45: f | C45: Saldo Finanzierungsbereich | D45: =SUMIF(Einzelposten!$P$11:$P$210,CONCATENATE(D$1,$B45),Einzelposten!$AW$11:$AW$210) -> 0 | E45: =SUMIF(Einzelposten!$P$11:$P$210,CONCATENATE(E$1,$B45),Einzelposten!$AW$11:$AW$210) -> 0 | F45: =SUMIF(Einzelposten!$P$11:$P$210,CONCATENATE(F$1,$B45),Einzelposten!$AW$11:$AW$210) -> 0 | G45: =SUMIF(Einzelposten!$P$11:$P$210,CONCATENATE(G$1,$B45),Einzelposten!$AW$11:$AW$210) -> 0 | H45: =SUMIF(Einzelposten!$P$11:$P$210,CONCATENATE(H$1,$B45),Einzelposten!$AW$11:$AW$210) -> 0 | I45: =SUMIF(Einzelposten!$P$11:$P$210,CONCATENATE(I$1,$B45),Einzelposten!$AW$11:$AW$210) -> 0 | J45: =SUMIF(Einzelposten!$P$11:$P$210,CONCATENATE(J$1,$B45),Einzelposten!$AW$11:$AW$210) -> 0 | K45: =SUMIF(Einzelposten!$P$11:$P$210,CONCATENATE(K$1,$B45),Einzelposten!$AW$11:$AW$210) -> 0 | L45: =SUMIF(Einzelposten!$P$11:$P$210,CONCATENATE(L$1,$B45),Einzelposten!$AW$11:$AW$210) -> 0 | M45: =SUMIF(Einzelposten!$P$11:$P$210,CONCATENATE(M$1,$B45),Einzelposten!$AW$11:$AW$210) -> 0 | N45: =SUMIF(Einzelposten!$P$11:$P$210,CONCATENATE(N$1,$B45),Einzelposten!$AW$11:$AW$210) -> 0 | O45: =SUMIF(Einzelposten!$P$11:$P$210,CONCATENATE(O$1,$B45),Einzelposten!$AW$11:$AW$210) -> 0 | P45: 0
C46: C a s h f l o w "betrieblich" | D46: =SUM(D43:D45) -> 1982 | E46: =SUM(E43:E45) -> -23 | F46: 0 | G46: 0 | H46: 0 | I46: 0 | J46: 0 | K46: 0 | L46: 0 | M46: -5.9 | N46: 0 | O46: -300 | P46: =SUM(P43:P45) -> 1653.1
B47: 992 | C47: Einkommensteuer bezahlt | D47: =SUMIF(Einzelposten!$O$11:$O$210,CONCATENATE(D$1,$B47),Einzelposten!$K$11:$K$210) -> 0 | E47: =SUMIF(Einzelposten!$O$11:$O$210,CONCATENATE(E$1,$B47),Einzelposten!$K$11:$K$210) -> 0 | F47: =SUMIF(Einzelposten!$O$11:$O$210,CONCATENATE(F$1,$B47),Einzelposten!$K$11:$K$210) -> 0 | G47: =SUMIF(Einzelposten!$O$11:$O$210,CONCATENATE(G$1,$B47),Einzelposten!$K$11:$K$210) -> 0 | H47: =SUMIF(Einzelposten!$O$11:$O$210,CONCATENATE(H$1,$B47),Einzelposten!$K$11:$K$210) -> 0 | I47: =SUMIF(Einzelposten!$O$11:$O$210,CONCATENATE(I$1,$B47),Einzelposten!$K$11:$K$210) -> 0 | J47: =SUMIF(Einzelposten!$O$11:$O$210,CONCATENATE(J$1,$B47),Einzelposten!$K$11:$K$210) -> 0 | K47: =SUMIF(Einzelposten!$O$11:$O$210,CONCATENATE(K$1,$B47),Einzelposten!$K$11:$K$210) -> 0 | L47: =SUMIF(Einzelposten!$O$11:$O$210,CONCATENATE(L$1,$B47),Einzelposten!$K$11:$K$210) -> 0 | M47: =SUMIF(Einzelposten!$O$11:$O$210,CONCATENATE(M$1,$B47),Einzelposten!$K$11:$K$210) -> 0 | N47: =SUMIF(Einzelposten!$O$11:$O$210,CONCATENATE(N$1,$B47),Einzelposten!$K$11:$K$210) -> 0 | O47: =SUMIF(Einzelposten!$O$11:$O$210,CONCATENATE(O$1,$B47),Einzelposten!$K$11:$K$210) -> 0 | P47: 0
B48: 998 | C48: Private Lebensführung | D48: =SUMIF(Einzelposten!$O$11:$O$210,CONCATENATE(D$1,$B48),Einzelposten!$K$11:$K$210) -> 0 | E48: =SUMIF(Einzelposten!$O$11:$O$210,CONCATENATE(E$1,$B48),Einzelposten!$K$11:$K$210) -> 0 | F48: =SUMIF(Einzelposten!$O$11:$O$210,CONCATENATE(F$1,$B48),Einzelposten!$K$11:$K$210) -> 0 | G48: =SUMIF(Einzelposten!$O$11:$O$210,CONCATENATE(G$1,$B48),Einzelposten!$K$11:$K$210) -> 0 | H48: =SUMIF(Einzelposten!$O$11:$O$210,CONCATENATE(H$1,$B48),Einzelposten!$K$11:$K$210) -> 0 | I48: =SUMIF(Einzelposten!$O$11:$O$210,CONCATENATE(I$1,$B48),Einzelposten!$K$11:$K$210) -> 0 | J48: =SUMIF(Einzelposten!$O$11:$O$210,CONCATENATE(J$1,$B48),Einzelposten!$K$11:$K$210) -> 0 | K48: =SUMIF(Einzelposten!$O$11:$O$210,CONCATENATE(K$1,$B48),Einzelposten!$K$11:$K$210) -> 0 | L48: =SUMIF(Einzelposten!$O$11:$O$210,CONCATENATE(L$1,$B48),Einzelposten!$K$11:$K$210) -> 0 | M48: =SUMIF(Einzelposten!$O$11:$O$210,CONCATENATE(M$1,$B48),Einzelposten!$K$11:$K$210) -> 0 | N48: =SUMIF(Einzelposten!$O$11:$O$210,CONCATENATE(N$1,$B48),Einzelposten!$K$11:$K$210) -> 0 | O48: =SUMIF(Einzelposten!$O$11:$O$210,CONCATENATE(O$1,$B48),Einzelposten!$K$11:$K$210) -> 0 | P48: 0
B49: 999 | C49: Private Durchläufer | D49: =SUMIF(Einzelposten!$O$11:$O$210,CONCATENATE(D$1,$B49),Einzelposten!$K$11:$K$210) -> 0 | E49: =SUMIF(Einzelposten!$O$11:$O$210,CONCATENATE(E$1,$B49),Einzelposten!$K$11:$K$210) -> 0 | F49: =SUMIF(Einzelposten!$O$11:$O$210,CONCATENATE(F$1,$B49),Einzelposten!$K$11:$K$210) -> 0 | G49: =SUMIF(Einzelposten!$O$11:$O$210,CONCATENATE(G$1,$B49),Einzelposten!$K$11:$K$210) -> 0 | H49: =SUMIF(Einzelposten!$O$11:$O$210,CONCATENATE(H$1,$B49),Einzelposten!$K$11:$K$210) -> 0 | I49: =SUMIF(Einzelposten!$O$11:$O$210,CONCATENATE(I$1,$B49),Einzelposten!$K$11:$K$210) -> 0 | J49: =SUMIF(Einzelposten!$O$11:$O$210,CONCATENATE(J$1,$B49),Einzelposten!$K$11:$K$210) -> 0 | K49: =SUMIF(Einzelposten!$O$11:$O$210,CONCATENATE(K$1,$B49),Einzelposten!$K$11:$K$210) -> 0 | L49: =SUMIF(Einzelposten!$O$11:$O$210,CONCATENATE(L$1,$B49),Einzelposten!$K$11:$K$210) -> 0 | M49: =SUMIF(Einzelposten!$O$11:$O$210,CONCATENATE(M$1,$B49),Einzelposten!$K$11:$K$210) -> 0 | N49: =SUMIF(Einzelposten!$O$11:$O$210,CONCATENATE(N$1,$B49),Einzelposten!$K$11:$K$210) -> 0 | O49: =SUMIF(Einzelposten!$O$11:$O$210,CONCATENATE(O$1,$B49),Einzelposten!$K$11:$K$210) -> 0 | P49: 0
C50: C a s h f l o w "total" | D50: =SUM(D46:D49) -> 1982 | E50: =SUM(E46:E49) -> -23 | F50: 0 | G50: 0 | H50: 0 | I50: 0 | J50: 0 | K50: 0 | L50: 0 | M50: -5.9 | N50: 0 | O50: -300 | P50: =SUM(P46:P49) -> 1653.1
C51: Cash at start of period | D51: =SUM(Einzelposten!H3:H4) -> 130 | E51: =D52 -> 2112 | F51: =E52 -> 2089 | G51: 2089 | H51: 2089 | I51: 2089 | J51: 2089 | K51: 2089 | L51: 2089 | M51: 2089 | N51: 2083.1 | O51: 2083.1 | P51: =D51 -> 130
C52: Cash at end of period | D52: =SUM(D50:D51) -> 2112 | E52: =SUM(E50:E51) -> 2089 | F52: 2089 | G52: 2089 | H52: 2089 | I52: 2089 | J52: 2089 | K52: 2089 | L52: 2089 | M52: 2083.1 | N52: 2083.1 | O52: 1783.1 | P52: 1783.1
O54: Kassa/Banksaldo: | P54: =SUM(Einzelposten!M3:M4) -> 1783.1

Sheet Cash
C1: 1 | D1: 2 | E1: 3 | F1: 4 | G1: 5 | H1: 6 | I1: 7 | J1: 8 | K1: 9 | L1: 10 | M1: 11 | N1: 12
C2: balance / saldo | G2: start | H2: + | I2: - | J2: end | K2: s + - e | L2: diff | N2: Year | O2: =O9 -> 2025
B3: =Einzelposten!E3 -> K | C3: =Einzelposten!G3 -> Kassa | F3: =B3 -> K | G3: =Einzelposten!H3 -> 30 | H3: =Einzelposten!I3 -> 0 | I3: =Einzelposten!J3 -> 346.9 | J3: =Einzelposten!M3 -> -316.9 | L3: =J3-G3 -> -346.9 | M3: =L3 -> -346.9
B4: =Einzelposten!E4 -> B | C4: =Einzelposten!G4 -> Bank | F4: =B4 -> B | G4: =Einzelposten!H4 -> 100 | H4: =Einzelposten!I4 -> 2000 | I4: =Einzelposten!J4 -> 0 | J4: =Einzelposten!M4 -> 2100 | L4: =J4-G4 -> 2000 | M4: =L4 -> 2000
B5: <> | C5: total cash funds | F5: =B5 -> <> | G5: =ROUND(SUM(G3:G4),2) -> 130 | H5: =ROUND(SUM(H3:H4),2) -> 2000 | I5: =ROUND(SUM(I3:I4),2) -> 346.9 | J5: =ROUND(SUM(J3:J4),2) -> 1783.1 | L5: =J5-G5 -> 1653.1 | M5: =L5 -> 1653.1 | O5: =A11 -> TRUE
B6: ="" ->  | C6: non-cash transactions | F6: =B6 ->  | H6: =Einzelposten!I5 -> 0 | I6: =Einzelposten!J5 -> 27.78 | J6: =Einzelposten!M5 -> -27.78 | L6: =J6-G6 -> -27.78 | M6: =L6 -> -27.78
G8: start | H8: + | I8: - | J8: end | K8: s + - e | L8: diff
B9: =VLOOKUP(C9,C3:F6,4,FALSE) -> B | C9: Bank | G9: =VLOOKUP($B$9,$B$3:$L$6,6,FALSE) -> 100 | H9: =VLOOKUP($B$9,$B$3:$L$6,7,FALSE) -> 2000 | I9: =VLOOKUP($B$9,$B$3:$L$6,8,FALSE) -> 0 | J9: =VLOOKUP($B$9,$B$3:$L$6,9,FALSE) -> 2100 | L9: =VLOOKUP($B$9,$B$3:$L$6,11,FALSE) -> 2000 | M9: =L9 -> 2000 | N9: Year | O9: =YEAR(Einzelposten!D11) -> 2025
A11: =AND(ROUND(J9-N45,2)=0) -> TRUE
A13: Day | B13: Rec | C13: January | D13: February | E13: March | F13: April | G13: May | H13: June | I13: July | J13: August | K13: September | L13: October | M13: November | N13: December | O13: Balance
A14: 0 | B14: =$B$9 -> B | C14: =ROUND(SUMIFS(Einzelposten!H3:H5,Einzelposten!E3:E5,B14),2) -> 100 | D14: =C45 -> 2100 | E14: =D45 -> 2100 | F14: 2100 | G14: 2100 | H14: 2100 | I14: 2100 | J14: 2100 | K14: 2100 | L14: 2100 | M14: 2100 | N14: 2100
A15: 1 | B15: B | C15: =ROUND(SUM(SUMIFS(Einzelposten!H3:H5,Einzelposten!E3:E5,B15),SUMIFS(Einzelposten!$I$11:$I$210,Einzelposten!$C$11:$C$210,$C$1,Einzelposten!$B$11:$B$210,$A15,Einzelposten!$E$11:$E$210,$B$9),SUMIFS(Einzelposten!$J$11:$J$210,Einzelposten!$C$11:$C$210,$C$1,Einzelposten!$B$11:$B$210,$A15,Einzelposten!$E$11:$E$210,$B$9)*-1),2) -> 100 | D15: =ROUND(SUM(C45,SUMIFS(Einzelposten!$I$11:$I$210,Einzelposten!$C$11:$C$210,D1,Einzelposten!$B$11:$B$210,$A15,Einzelposten!$E$11:$E$210,$B$9),SUMIFS(Einzelposten!$J$11:$J$210,Einzelposten!$C$11:$C$210,D1,Einzelposten!$B$11:$B$210,$A15,Einzelposten!$E$11:$E$210,$B$9)*-1),2) -> 2100 | E15: =ROUND(SUM(D45,SUMIFS(Einzelposten!$I$11:$I$210,Einzelposten!$C$11:$C$210,E1,Einzelposten!$B$11:$B$210,$A15,Einzelposten!$E$11:$E$210,$B$9),SUMIFS(Einzelposten!$J$11:$J$210,Einzelposten!$C$11:$C$210,E1,Einzelposten!$B$11:$B$210,$A15,Einzelposten!$E$11:$E$210,$B$9)*-1),2) -> 2100 | F15: =ROUND(SUM(E45,SUMIFS(Einzelposten!$I$11:$I$210,Einzelposten!$C$11:$C$210,F1,Einzelposten!$B$11:$B$210,$A15,Einzelposten!$E$11:$E$210,$B$9),SUMIFS(Einzelposten!$J$11:$J$210,Einzelposten!$C$11:$C$210,F1,Einzelposten!$B$11:$B$210,$A15,Einzelposten!$E$11:$E$210,$B$9)*-1),2) -> 2100 | G15: =ROUND(SUM(F45,SUMIFS(Einzelposten!$I$11:$I$210,Einzelposten!$C$11:$C$210,G1,Einzelposten!$B$11:$B$210,$A15,Einzelposten!$E$11:$E$210,$B$9),SUMIFS(Einzelposten!$J$11:$J$210,Einzelposten!$C$11:$C$210,G1,Einzelposten!$B$11:$B$210,$A15,Einzelposten!$E$11:$E$210,$B$9)*-1),2) -> 2100 | H15: =ROUND(SUM(G45,SUMIFS(Einzelposten!$I$11:$I$210,Einzelposten!$C$11:$C$210,H1,Einzelposten!$B$11:$B$210,$A15,Einzelposten!$E$11:$E$210,$B$9),SUMIFS(Einzelposten!$J$11:$J$210,Einzelposten!$C$11:$C$210,H1,Einzelposten!$B$11:$B$210,$A15,Einzelposten!$E$11:$E$210,$B$9)*-1),2) -> 2100 | I15: =ROUND(SUM(H45,SUMIFS(Einzelposten!$I$11:$I$210,Einzelposten!$C$11:$C$210,I1,Einzelposten!$B$11:$B$210,$A15,Einzelposten!$E$11:$E$210,$B$9),SUMIFS(Einzelposten!$J$11:$J$210,Einzelposten!$C$11:$C$210,I1,Einzelposten!$B$11:$B$210,$A15,Einzelposten!$E$11:$E$210,$B$9)*-1),2) -> 2100 | J15: =ROUND(SUM(I45,SUMIFS(Einzelposten!$I$11:$I$210,Einzelposten!$C$11:$C$210,J1,Einzelposten!$B$11:$B$210,$A15,Einzelposten!$E$11:$E$210,$B$9),SUMIFS(Einzelposten!$J$11:$J$210,Einzelposten!$C$11:$C$210,J1,Einzelposten!$B$11:$B$210,$A15,Einzelposten!$E$11:$E$210,$B$9)*-1),2) -> 2100 | K15: =ROUND(SUM(J45,SUMIFS(Einzelposten!$I$11:$I$210,Einzelposten!$C$11:$C$210,K1,Einzelposten!$B$11:$B$210,$A15,Einzelposten!$E$11:$E$210,$B$9),SUMIFS(Einzelposten!$J$11:$J$210,Einzelposten!$C$11:$C$210,K1,Einzelposten!$B$11:$B$210,$A15,Einzelposten!$E$11:$E$210,$B$9)*-1),2) -> 2100 | L15: =ROUND(SUM(K45,SUMIFS(Einzelposten!$I$11:$I$210,Einzelposten!$C$11:$C$210,L1,Einzelposten!$B$11:$B$210,$A15,Einzelposten!$E$11:$E$210,$B$9),SUMIFS(Einzelposten!$J$11:$J$210,Einzelposten!$C$11:$C$210,L1,Einzelposten!$B$11:$B$210,$A15,Einzelposten!$E$11:$E$210,$B$9)*-1),2) -> 2100 | M15: =ROUND(SUM(L45,SUMIFS(Einzelposten!$I$11:$I$210,Einzelposten!$C$11:$C$210,M1,Einzelposten!$B$11:$B$210,$A15,Einzelposten!$E$11:$E$210,$B$9),SUMIFS(Einzelposten!$J$11:$J$210,Einzelposten!$C$11:$C$210,M1,Einzelposten!$B$11:$B$210,$A15,Einzelposten!$E$11:$E$210,$B$9)*-1),2) -> 2100 | N15: =ROUND(SUM(M45,SUMIFS(Einzelposten!$I$11:$I$210,Einzelposten!$C$11:$C$210,N1,Einzelposten!$B$11:$B$210,$A15,Einzelposten!$E$11:$E$210,$B$9),SUMIFS(Einzelposten!$J$11:$J$210,Einzelposten!$C$11:$C$210,N1,Einzelposten!$B$11:$B$210,$A15,Einzelposten!$E$11:$E$210,$B$9)*-1),2) -> 2100
A16: 2 | B16: B | C16: =ROUND(SUM(C15,SUMIFS(Einzelposten!$I$11:$I$210,Einzelposten!$C$11:$C$210,C$1,Einzelposten!$B$11:$B$210,$A16,Einzelposten!$E$11:$E$210,$B$9),SUMIFS(Einzelposten!$J$11:$J$210,Einzelposten!$C$11:$C$210,C$1,Einzelposten!$B$11:$B$210,$A16,Einzelposten!$E$11:$E$210,$B$9)*-1),2) -> 100 | D16: =ROUND(SUM(D15,SUMIFS(Einzelposten!$I$11:$I$210,Einzelposten!$C$11:$C$210,D$1,Einzelposten!$B$11:$B$210,$A16,Einzelposten!$E$11:$E$210,$B$9),SUMIFS(Einzelposten!$J$11:$J$210,Einzelposten!$C$11:$C$210,D$1,Einzelposten!$B$11:$B$210,$A16,Einzelposten!$E$11:$E$210,$B$9)*-1),2) -> 2100 | E16: =ROUND(SUM(E15,SUMIFS(Einzelposten!$I$11:$I$210,Einzelposten!$C$11:$C$210,E$1,Einzelposten!$B$11:$B$210,$A16,Einzelposten!$E$11:$E$210,$B$9),SUMIFS(Einzelposten!$J$11:$J$210,Einzelposten!$C$11:$C$210,E$1,Einzelposten!$B$11:$B$210,$A16,Einzelposten!$E$11:$E$210,$B$9)*-1),2) -> 2100 | F16: =ROUND(SUM(F15,SUMIFS(Einzelposten!$I$11:$I$210,Einzelposten!$C$11:$C$210,F$1,Einzelposten!$B$11:$B$210,$A16,Einzelposten!$E$11:$E$210,$B$9),SUMIFS(Einzelposten!$J$11:$J$210,Einzelposten!$C$11:$C$210,F$1,Einzelposten!$B$11:$B$210,$A16,Einzelposten!$E$11:$E$210,$B$9)*-1),2) -> 2100 | G16: =ROUND(SUM(G15,SUMIFS(Einzelposten!$I$11:$I$210,Einzelposten!$C$11:$C$210,G$1,Einzelposten!$B$11:$B$210,$A16,Einzelposten!$E$11:$E$210,$B$9),SUMIFS(Einzelposten!$J$11:$J$210,Einzelposten!$C$11:$C$210,G$1,Einzelposten!$B$11:$B$210,$A16,Einzelposten!$E$11:$E$210,$B$9)*-1),2) -> 2100 | H16: =ROUND(SUM(H15,SUMIFS(Einzelposten!$I$11:$I$210,Einzelposten!$C$11:$C$210,H$1,Einzelposten!$B$11:$B$210,$A16,Einzelposten!$E$11:$E$210,$B$9),SUMIFS(Einzelposten!$J$11:$J$210,Einzelposten!$C$11:$C$210,H$1,Einzelposten!$B$11:$B$210,$A16,Einzelposten!$E$11:$E$210,$B$9)*-1),2) -> 2100 | I16: =ROUND(SUM(I15,SUMIFS(Einzelposten!$I$11:$I$210,Einzelposten!$C$11:$C$210,I$1,Einzelposten!$B$11:$B$210,$A16,Einzelposten!$E$11:$E$210,$B$9),SUMIFS(Einzelposten!$J$11:$J$210,Einzelposten!$C$11:$C$210,I$1,Einzelposten!$B$11:$B$210,$A16,Einzelposten!$E$11:$E$210,$B$9)*-1),2) -> 2100 | J16: =ROUND(SUM(J15,SUMIFS(Einzelposten!$I$11:$I$210,Einzelposten!$C$11:$C$210,J$1,Einzelposten!$B$11:$B$210,$A16,Einzelposten!$E$11:$E$210,$B$9),SUMIFS(Einzelposten!$J$11:$J$210,Einzelposten!$C$11:$C$210,J$1,Einzelposten!$B$11:$B$210,$A16,Einzelposten!$E$11:$E$210,$B$9)*-1),2) -> 2100 | K16: =ROUND(SUM(K15,SUMIFS(Einzelposten!$I$11:$I$210,Einzelposten!$C$11:$C$210,K$1,Einzelposten!$B$11:$B$210,$A16,Einzelposten!$E$11:$E$210,$B$9),SUMIFS(Einzelposten!$J$11:$J$210,Einzelposten!$C$11:$C$210,K$1,Einzelposten!$B$11:$B$210,$A16,Einzelposten!$E$11:$E$210,$B$9)*-1),2) -> 2100 | L16: =ROUND(SUM(L15,SUMIFS(Einzelposten!$I$11:$I$210,Einzelposten!$C$11:$C$210,L$1,Einzelposten!$B$11:$B$210,$A16,Einzelposten!$E$11:$E$210,$B$9),SUMIFS(Einzelposten!$J$11:$J$210,Einzelposten!$C$11:$C$210,L$1,Einzelposten!$B$11:$B$210,$A16,Einzelposten!$E$11:$E$210,$B$9)*-1),2) -> 2100 | M16: =ROUND(SUM(M15,SUMIFS(Einzelposten!$I$11:$I$210,Einzelposten!$C$11:$C$210,M$1,Einzelposten!$B$11:$B$210,$A16,Einzelposten!$E$11:$E$210,$B$9),SUMIFS(Einzelposten!$J$11:$J$210,Einzelposten!$C$11:$C$210,M$1,Einzelposten!$B$11:$B$210,$A16,Einzelposten!$E$11:$E$210,$B$9)*-1),2) -> 2100 | N16: =ROUND(SUM(N15,SUMIFS(Einzelposten!$I$11:$I$210,Einzelposten!$C$11:$C$210,N$1,Einzelposten!$B$11:$B$210,$A16,Einzelposten!$E$11:$E$210,$B$9),SUMIFS(Einzelposten!$J$11:$J$210,Einzelposten!$C$11:$C$210,N$1,Einzelposten!$B$11:$B$210,$A16,Einzelposten!$E$11:$E$210,$B$9)*-1),2) -> 2100
A17: 3 | B17: B | C17: =ROUND(SUM(C16,SUMIFS(Einzelposten!$I$11:$I$210,Einzelposten!$C$11:$C$210,C$1,Einzelposten!$B$11:$B$210,$A17,Einzelposten!$E$11:$E$210,$B$9),SUMIFS(Einzelposten!$J$11:$J$210,Einzelposten!$C$11:$C$210,C$1,Einzelposten!$B$11:$B$210,$A17,Einzelposten!$E$11:$E$210,$B$9)*-1),2) -> 2100 | D17: =ROUND(SUM(D16,SUMIFS(Einzelposten!$I$11:$I$210,Einzelposten!$C$11:$C$210,D$1,Einzelposten!$B$11:$B$210,$A17,Einzelposten!$E$11:$E$210,$B$9),SUMIFS(Einzelposten!$J$11:$J$210,Einzelposten!$C$11:$C$210,D$1,Einzelposten!$B$11:$B$210,$A17,Einzelposten!$E$11:$E$210,$B$9)*-1),2) -> 2100 | E17: =ROUND(SUM(E16,SUMIFS(Einzelposten!$I$11:$I$210,Einzelposten!$C$11:$C$210,E$1,Einzelposten!$B$11:$B$210,$A17,Einzelposten!$E$11:$E$210,$B$9),SUMIFS(Einzelposten!$J$11:$J$210,Einzelposten!$C$11:$C$210,E$1,Einzelposten!$B$11:$B$210,$A17,Einzelposten!$E$11:$E$210,$B$9)*-1),2) -> 2100 | F17: =ROUND(SUM(F16,SUMIFS(Einzelposten!$I$11:$I$210,Einzelposten!$C$11:$C$210,F$1,Einzelposten!$B$11:$B$210,$A17,Einzelposten!$E$11:$E$210,$B$9),SUMIFS(Einzelposten!$J$11:$J$210,Einzelposten!$C$11:$C$210,F$1,Einzelposten!$B$11:$B$210,$A17,Einzelposten!$E$11:$E$210,$B$9)*-1),2) -> 2100 | G17: =ROUND(SUM(G16,SUMIFS(Einzelposten!$I$11:$I$210,Einzelposten!$C$11:$C$210,G$1,Einzelposten!$B$11:$B$210,$A17,Einzelposten!$E$11:$E$210,$B$9),SUMIFS(Einzelposten!$J$11:$J$210,Einzelposten!$C$11:$C$210,G$1,Einzelposten!$B$11:$B$210,$A17,Einzelposten!$E$11:$E$210,$B$9)*-1),2) -> 2100 | H17: =ROUND(SUM(H16,SUMIFS(Einzelposten!$I$11:$I$210,Einzelposten!$C$11:$C$210,H$1,Einzelposten!$B$11:$B$210,$A17,Einzelposten!$E$11:$E$210,$B$9),SUMIFS(Einzelposten!$J$11:$J$210,Einzelposten!$C$11:$C$210,H$1,Einzelposten!$B$11:$B$210,$A17,Einzelposten!$E$11:$E$210,$B$9)*-1),2) -> 2100 | I17: =ROUND(SUM(I16,SUMIFS(Einzelposten!$I$11:$I$210,Einzelposten!$C$11:$C$210,I$1,Einzelposten!$B$11:$B$210,$A17,Einzelposten!$E$11:$E$210,$B$9),SUMIFS(Einzelposten!$J$11:$J$210,Einzelposten!$C$11:$C$210,I$1,Einzelposten!$B$11:$B$210,$A17,Einzelposten!$E$11:$E$210,$B$9)*-1),2) -> 2100 | J17: =ROUND(SUM(J16,SUMIFS(Einzelposten!$I$11:$I$210,Einzelposten!$C$11:$C$210,J$1,Einzelposten!$B$11:$B$210,$A17,Einzelposten!$E$11:$E$210,$B$9),SUMIFS(Einzelposten!$J$11:$J$210,Einzelposten!$C$11:$C$210,J$1,Einzelposten!$B$11:$B$210,$A17,Einzelposten!$E$11:$E$210,$B$9)*-1),2) -> 2100 | K17: =ROUND(SUM(K16,SUMIFS(Einzelposten!$I$11:$I$210,Einzelposten!$C$11:$C$210,K$1,Einzelposten!$B$11:$B$210,$A17,Einzelposten!$E$11:$E$210,$B$9),SUMIFS(Einzelposten!$J$11:$J$210,Einzelposten!$C$11:$C$210,K$1,Einzelposten!$B$11:$B$210,$A17,Einzelposten!$E$11:$E$210,$B$9)*-1),2) -> 2100 | L17: =ROUND(SUM(L16,SUMIFS(Einzelposten!$I$11:$I$210,Einzelposten!$C$11:$C$210,L$1,Einzelposten!$B$11:$B$210,$A17,Einzelposten!$E$11:$E$210,$B$9),SUMIFS(Einzelposten!$J$11:$J$210,Einzelposten!$C$11:$C$210,L$1,Einzelposten!$B$11:$B$210,$A17,Einzelposten!$E$11:$E$210,$B$9)*-1),2) -> 2100 | M17: =ROUND(SUM(M16,SUMIFS(Einzelposten!$I$11:$I$210,Einzelposten!$C$11:$C$210,M$1,Einzelposten!$B$11:$B$210,$A17,Einzelposten!$E$11:$E$210,$B$9),SUMIFS(Einzelposten!$J$11:$J$210,Einzelposten!$C$11:$C$210,M$1,Einzelposten!$B$11:$B$210,$A17,Einzelposten!$E$11:$E$210,$B$9)*-1),2) -> 2100 | N17: =ROUND(SUM(N16,SUMIFS(Einzelposten!$I$11:$I$210,Einzelposten!$C$11:$C$210,N$1,Einzelposten!$B$11:$B$210,$A17,Einzelposten!$E$11:$E$210,$B$9),SUMIFS(Einzelposten!$J$11:$J$210,Einzelposten!$C$11:$C$210,N$1,Einzelposten!$B$11:$B$210,$A17,Einzelposten!$E$11:$E$210,$B$9)*-1),2) -> 2100
A18: 4 | B18: B | C18: =ROUND(SUM(C17,SUMIFS(Einzelposten!$I$11:$I$210,Einzelposten!$C$11:$C$210,C$1,Einzelposten!$B$11:$B$210,$A18,Einzelposten!$E$11:$E$210,$B$9),SUMIFS(Einzelposten!$J$11:$J$210,Einzelposten!$C$11:$C$210,C$1,Einzelposten!$B$11:$B$210,$A18,Einzelposten!$E$11:$E$210,$B$9)*-1),2) -> 2100 | D18: =ROUND(SUM(D17,SUMIFS(Einzelposten!$I$11:$I$210,Einzelposten!$C$11:$C$210,D$1,Einzelposten!$B$11:$B$210,$A18,Einzelposten!$E$11:$E$210,$B$9),SUMIFS(Einzelposten!$J$11:$J$210,Einzelposten!$C$11:$C$210,D$1,Einzelposten!$B$11:$B$210,$A18,Einzelposten!$E$11:$E$210,$B$9)*-1),2) -> 2100 | E18: =ROUND(SUM(E17,SUMIFS(Einzelposten!$I$11:$I$210,Einzelposten!$C$11:$C$210,E$1,Einzelposten!$B$11:$B$210,$A18,Einzelposten!$E$11:$E$210,$B$9),SUMIFS(Einzelposten!$J$11:$J$210,Einzelposten!$C$11:$C$210,E$1,Einzelposten!$B$11:$B$210,$A18,Einzelposten!$E$11:$E$210,$B$9)*-1),2) -> 2100 | F18: =ROUND(SUM(F17,SUMIFS(Einzelposten!$I$11:$I$210,Einzelposten!$C$11:$C$210,F$1,Einzelposten!$B$11:$B$210,$A18,Einzelposten!$E$11:$E$210,$B$9),SUMIFS(Einzelposten!$J$11:$J$210,Einzelposten!$C$11:$C$210,F$1,Einzelposten!$B$11:$B$210,$A18,Einzelposten!$E$11:$E$210,$B$9)*-1),2) -> 2100 | G18: =ROUND(SUM(G17,SUMIFS(Einzelposten!$I$11:$I$210,Einzelposten!$C$11:$C$210,G$1,Einzelposten!$B$11:$B$210,$A18,Einzelposten!$E$11:$E$210,$B$9),SUMIFS(Einzelposten!$J$11:$J$210,Einzelposten!$C$11:$C$210,G$1,Einzelposten!$B$11:$B$210,$A18,Einzelposten!$E$11:$E$210,$B$9)*-1),2) -> 2100 | H18: =ROUND(SUM(H17,SUMIFS(Einzelposten!$I$11:$I$210,Einzelposten!$C$11:$C$210,H$1,Einzelposten!$B$11:$B$210,$A18,Einzelposten!$E$11:$E$210,$B$9),SUMIFS(Einzelposten!$J$11:$J$210,Einzelposten!$C$11:$C$210,H$1,Einzelposten!$B$11:$B$210,$A18,Einzelposten!$E$11:$E$210,$B$9)*-1),2) -> 2100 | I18: =ROUND(SUM(I17,SUMIFS(Einzelposten!$I$11:$I$210,Einzelposten!$C$11:$C$210,I$1,Einzelposten!$B$11:$B$210,$A18,Einzelposten!$E$11:$E$210,$B$9),SUMIFS(Einzelposten!$J$11:$J$210,Einzelposten!$C$11:$C$210,I$1,Einzelposten!$B$11:$B$210,$A18,Einzelposten!$E$11:$E$210,$B$9)*-1),2) -> 2100 | J18: =ROUND(SUM(J17,SUMIFS(Einzelposten!$I$11:$I$210,Einzelposten!$C$11:$C$210,J$1,Einzelposten!$B$11:$B$210,$A18,Einzelposten!$E$11:$E$210,$B$9),SUMIFS(Einzelposten!$J$11:$J$210,Einzelposten!$C$11:$C$210,J$1,Einzelposten!$B$11:$B$210,$A18,Einzelposten!$E$11:$E$210,$B$9)*-1),2) -> 2100 | K18: =ROUND(SUM(K17,SUMIFS(Einzelposten!$I$11:$I$210,Einzelposten!$C$11:$C$210,K$1,Einzelposten!$B$11:$B$210,$A18,Einzelposten!$E$11:$E$210,$B$9),SUMIFS(Einzelposten!$J$11:$J$210,Einzelposten!$C$11:$C$210,K$1,Einzelposten!$B$11:$B$210,$A18,Einzelposten!$E$11:$E$210,$B$9)*-1),2) -> 2100 | L18: =ROUND(SUM(L17,SUMIFS(Einzelposten!$I$11:$I$210,Einzelposten!$C$11:$C$210,L$1,Einzelposten!$B$11:$B$210,$A18,Einzelposten!$E$11:$E$210,$B$9),SUMIFS(Einzelposten!$J$11:$J$210,Einzelposten!$C$11:$C$210,L$1,Einzelposten!$B$11:$B$210,$A18,Einzelposten!$E$11:$E$210,$B$9)*-1),2) -> 2100 | M18: =ROUND(SUM(M17,SUMIFS(Einzelposten!$I$11:$I$210,Einzelposten!$C$11:$C$210,M$1,Einzelposten!$B$11:$B$210,$A18,Einzelposten!$E$11:$E$210,$B$9),SUMIFS(Einzelposten!$J$11:$J$210,Einzelposten!$C$11:$C$210,M$1,Einzelposten!$B$11:$B$210,$A18,Einzelposten!$E$11:$E$210,$B$9)*-1),2) -> 2100 | N18: =ROUND(SUM(N17,SUMIFS(Einzelposten!$I$11:$I$210,Einzelposten!$C$11:$C$210,N$1,Einzelposten!$B$11:$B$210,$A18,Einzelposten!$E$11:$E$210,$B$9),SUMIFS(Einzelposten!$J$11:$J$210,Einzelposten!$C$11:$C$210,N$1,Einzelposten!$B$11:$B$210,$A18,Einzelposten!$E$11:$E$210,$B$9)*-1),2) -> 2100
A19: 5 | B19: B | C19: =ROUND(SUM(C18,SUMIFS(Einzelposten!$I$11:$I$210,Einzelposten!$C$11:$C$210,C$1,Einzelposten!$B$11:$B$210,$A19,Einzelposten!$E$11:$E$210,$B$9),SUMIFS(Einzelposten!$J$11:$J$210,Einzelposten!$C$11:$C$210,C$1,Einzelposten!$B$11:$B$210,$A19,Einzelposten!$E$11:$E$210,$B$9)*-1),2) -> 2100 | D19: =ROUND(SUM(D18,SUMIFS(Einzelposten!$I$11:$I$210,Einzelposten!$C$11:$C$210,D$1,Einzelposten!$B$11:$B$210,$A19,Einzelposten!$E$11:$E$210,$B$9),SUMIFS(Einzelposten!$J$11:$J$210,Einzelposten!$C$11:$C$210,D$1,Einzelposten!$B$11:$B$210,$A19,Einzelposten!$E$11:$E$210,$B$9)*-1),2) -> 2100 | E19: =ROUND(SUM(E18,SUMIFS(Einzelposten!$I$11:$I$210,Einzelposten!$C$11:$C$210,E$1,Einzelposten!$B$11:$B$210,$A19,Einzelposten!$E$11:$E$210,$B$9),SUMIFS(Einzelposten!$J$11:$J$210,Einzelposten!$C$11:$C$210,E$1,Einzelposten!$B$11:$B$210,$A19,Einzelposten!$E$11:$E$210,$B$9)*-1),2) -> 2100 | F19: =ROUND(SUM(F18,SUMIFS(Einzelposten!$I$11:$I$210,Einzelposten!$C$11:$C$210,F$1,Einzelposten!$B$11:$B$210,$A19,Einzelposten!$E$11:$E$210,$B$9),SUMIFS(Einzelposten!$J$11:$J$210,Einzelposten!$C$11:$C$210,F$1,Einzelposten!$B$11:$B$210,$A19,Einzelposten!$E$11:$E$210,$B$9)*-1),2) -> 2100 | G19: =ROUND(SUM(G18,SUMIFS(Einzelposten!$I$11:$I$210,Einzelposten!$C$11:$C$210,G$1,Einzelposten!$B$11:$B$210,$A19,Einzelposten!$E$11:$E$210,$B$9),SUMIFS(Einzelposten!$J$11:$J$210,Einzelposten!$C$11:$C$210,G$1,Einzelposten!$B$11:$B$210,$A19,Einzelposten!$E$11:$E$210,$B$9)*-1),2) -> 2100 | H19: =ROUND(SUM(H18,SUMIFS(Einzelposten!$I$11:$I$210,Einzelposten!$C$11:$C$210,H$1,Einzelposten!$B$11:$B$210,$A19,Einzelposten!$E$11:$E$210,$B$9),SUMIFS(Einzelposten!$J$11:$J$210,Einzelposten!$C$11:$C$210,H$1,Einzelposten!$B$11:$B$210,$A19,Einzelposten!$E$11:$E$210,$B$9)*-1),2) -> 2100 | I19: =ROUND(SUM(I18,SUMIFS(Einzelposten!$I$11:$I$210,Einzelposten!$C$11:$C$210,I$1,Einzelposten!$B$11:$B$210,$A19,Einzelposten!$E$11:$E$210,$B$9),SUMIFS(Einzelposten!$J$11:$J$210,Einzelposten!$C$11:$C$210,I$1,Einzelposten!$B$11:$B$210,$A19,Einzelposten!$E$11:$E$210,$B$9)*-1),2) -> 2100 | J19: =ROUND(SUM(J18,SUMIFS(Einzelposten!$I$11:$I$210,Einzelposten!$C$11:$C$210,J$1,Einzelposten!$B$11:$B$210,$A19,Einzelposten!$E$11:$E$210,$B$9),SUMIFS(Einzelposten!$J$11:$J$210,Einzelposten!$C$11:$C$210,J$1,Einzelposten!$B$11:$B$210,$A19,Einzelposten!$E$11:$E$210,$B$9)*-1),2) -> 2100 | K19: =ROUND(SUM(K18,SUMIFS(Einzelposten!$I$11:$I$210,Einzelposten!$C$11:$C$210,K$1,Einzelposten!$B$11:$B$210,$A19,Einzelposten!$E$11:$E$210,$B$9),SUMIFS(Einzelposten!$J$11:$J$210,Einzelposten!$C$11:$C$210,K$1,Einzelposten!$B$11:$B$210,$A19,Einzelposten!$E$11:$E$210,$B$9)*-1),2) -> 2100 | L19: =ROUND(SUM(L18,SUMIFS(Einzelposten!$I$11:$I$210,Einzelposten!$C$11:$C$210,L$1,Einzelposten!$B$11:$B$210,$A19,Einzelposten!$E$11:$E$210,$B$9),SUMIFS(Einzelposten!$J$11:$J$210,Einzelposten!$C$11:$C$210,L$1,Einzelposten!$B$11:$B$210,$A19,Einzelposten!$E$11:$E$210,$B$9)*-1),2) -> 2100 | M19: =ROUND(SUM(M18,SUMIFS(Einzelposten!$I$11:$I$210,Einzelposten!$C$11:$C$210,M$1,Einzelposten!$B$11:$B$210,$A19,Einzelposten!$E$11:$E$210,$B$9),SUMIFS(Einzelposten!$J$11:$J$210,Einzelposten!$C$11:$C$210,M$1,Einzelposten!$B$11:$B$210,$A19,Einzelposten!$E$11:$E$210,$B$9)*-1),2) -> 2100 | N19: =ROUND(SUM(N18,SUMIFS(Einzelposten!$I$11:$I$210,Einzelposten!$C$11:$C$210,N$1,Einzelposten!$B$11:$B$210,$A19,Einzelposten!$E$11:$E$210,$B$9),SUMIFS(Einzelposten!$J$11:$J$210,Einzelposten!$C$11:$C$210,N$1,Einzelposten!$B$11:$B$210,$A19,Einzelposten!$E$11:$E$210,$B$9)*-1),2) -> 2100
A20: 6 | B20: B | C20: =ROUND(SUM(C19,SUMIFS(Einzelposten!$I$11:$I$210,Einzelposten!$C$11:$C$210,C$1,Einzelposten!$B$11:$B$210,$A20,Einzelposten!$E$11:$E$210,$B$9),SUMIFS(Einzelposten!$J$11:$J$210,Einzelposten!$C$11:$C$210,C$1,Einzelposten!$B$11:$B$210,$A20,Einzelposten!$E$11:$E$210,$B$9)*-1),2) -> 2100 | D20: =ROUND(SUM(D19,SUMIFS(Einzelposten!$I$11:$I$210,Einzelposten!$C$11:$C$210,D$1,Einzelposten!$B$11:$B$210,$A20,Einzelposten!$E$11:$E$210,$B$9),SUMIFS(Einzelposten!$J$11:$J$210,Einzelposten!$C$11:$C$210,D$1,Einzelposten!$B$11:$B$210,$A20,Einzelposten!$E$11:$E$210,$B$9)*-1),2) -> 2100 | E20: =ROUND(SUM(E19,SUMIFS(Einzelposten!$I$11:$I$210,Einzelposten!$C$11:$C$210,E$1,Einzelposten!$B$11:$B$210,$A20,Einzelposten!$E$11:$E$210,$B$9),SUMIFS(Einzelposten!$J$11:$J$210,Einzelposten!$C$11:$C$210,E$1,Einzelposten!$B$11:$B$210,$A20,Einzelposten!$E$11:$E$210,$B$9)*-1),2) -> 2100 | F20: =ROUND(SUM(F19,SUMIFS(Einzelposten!$I$11:$I$210,Einzelposten!$C$11:$C$210,F$1,Einzelposten!$B$11:$B$210,$A20,Einzelposten!$E$11:$E$210,$B$9),SUMIFS(Einzelposten!$J$11:$J$210,Einzelposten!$C$11:$C$210,F$1,Einzelposten!$B$11:$B$210,$A20,Einzelposten!$E$11:$E$210,$B$9)*-1),2) -> 2100 | G20: =ROUND(SUM(G19,SUMIFS(Einzelposten!$I$11:$I$210,Einzelposten!$C$11:$C$210,G$1,Einzelposten!$B$11:$B$210,$A20,Einzelposten!$E$11:$E$210,$B$9),SUMIFS(Einzelposten!$J$11:$J$210,Einzelposten!$C$11:$C$210,G$1,Einzelposten!$B$11:$B$210,$A20,Einzelposten!$E$11:$E$210,$B$9)*-1),2) -> 2100 | H20: =ROUND(SUM(H19,SUMIFS(Einzelposten!$I$11:$I$210,Einzelposten!$C$11:$C$210,H$1,Einzelposten!$B$11:$B$210,$A20,Einzelposten!$E$11:$E$210,$B$9),SUMIFS(Einzelposten!$J$11:$J$210,Einzelposten!$C$11:$C$210,H$1,Einzelposten!$B$11:$B$210,$A20,Einzelposten!$E$11:$E$210,$B$9)*-1),2) -> 2100 | I20: =ROUND(SUM(I19,SUMIFS(Einzelposten!$I$11:$I$210,Einzelposten!$C$11:$C$210,I$1,Einzelposten!$B$11:$B$210,$A20,Einzelposten!$E$11:$E$210,$B$9),SUMIFS(Einzelposten!$J$11:$J$210,Einzelposten!$C$11:$C$210,I$1,Einzelposten!$B$11:$B$210,$A20,Einzelposten!$E$11:$E$210,$B$9)*-1),2) -> 2100 | J20: =ROUND(SUM(J19,SUMIFS(Einzelposten!$I$11:$I$210,Einzelposten!$C$11:$C$210,J$1,Einzelposten!$B$11:$B$210,$A20,Einzelposten!$E$11:$E$210,$B$9),SUMIFS(Einzelposten!$J$11:$J$210,Einzelposten!$C$11:$C$210,J$1,Einzelposten!$B$11:$B$210,$A20,Einzelposten!$E$11:$E$210,$B$9)*-1),2) -> 2100 | K20: =ROUND(SUM(K19,SUMIFS(Einzelposten!$I$11:$I$210,Einzelposten!$C$11:$C$210,K$1,Einzelposten!$B$11:$B$210,$A20,Einzelposten!$E$11:$E$210,$B$9),SUMIFS(Einzelposten!$J$11:$J$210,Einzelposten!$C$11:$C$210,K$1,Einzelposten!$B$11:$B$210,$A20,Einzelposten!$E$11:$E$210,$B$9)*-1),2) -> 2100 | L20: =ROUND(SUM(L19,SUMIFS(Einzelposten!$I$11:$I$210,Einzelposten!$C$11:$C$210,L$1,Einzelposten!$B$11:$B$210,$A20,Einzelposten!$E$11:$E$210,$B$9),SUMIFS(Einzelposten!$J$11:$J$210,Einzelposten!$C$11:$C$210,L$1,Einzelposten!$B$11:$B$210,$A20,Einzelposten!$E$11:$E$210,$B$9)*-1),2) -> 2100 | M20: =ROUND(SUM(M19,SUMIFS(Einzelposten!$I$11:$I$210,Einzelposten!$C$11:$C$210,M$1,Einzelposten!$B$11:$B$210,$A20,Einzelposten!$E$11:$E$210,$B$9),SUMIFS(Einzelposten!$J$11:$J$210,Einzelposten!$C$11:$C$210,M$1,Einzelposten!$B$11:$B$210,$A20,Einzelposten!$E$11:$E$210,$B$9)*-1),2) -> 2100 | N20: =ROUND(SUM(N19,SUMIFS(Einzelposten!$I$11:$I$210,Einzelposten!$C$11:$C$210,N$1,Einzelposten!$B$11:$B$210,$A20,Einzelposten!$E$11:$E$210,$B$9),SUMIFS(Einzelposten!$J$11:$J$210,Einzelposten!$C$11:$C$210,N$1,Einzelposten!$B$11:$B$210,$A20,Einzelposten!$E$11:$E$210,$B$9)*-1),2) -> 2100
A21: 7 | B21: B | C21: =ROUND(SUM(C20,SUMIFS(Einzelposten!$I$11:$I$210,Einzelposten!$C$11:$C$210,C$1,Einzelposten!$B$11:$B$210,$A21,Einzelposten!$E$11:$E$210,$B$9),SUMIFS(Einzelposten!$J$11:$J$210,Einzelposten!$C$11:$C$210,C$1,Einzelposten!$B$11:$B$210,$A21,Einzelposten!$E$11:$E$210,$B$9)*-1),2) -> 2100 | D21: =ROUND(SUM(D20,SUMIFS(Einzelposten!$I$11:$I$210,Einzelposten!$C$11:$C$210,D$1,Einzelposten!$B$11:$B$210,$A21,Einzelposten!$E$11:$E$210,$B$9),SUMIFS(Einzelposten!$J$11:$J$210,Einzelposten!$C$11:$C$210,D$1,Einzelposten!$B$11:$B$210,$A21,Einzelposten!$E$11:$E$210,$B$9)*-1),2) -> 2100 | E21: =ROUND(SUM(E20,SUMIFS(Einzelposten!$I$11:$I$210,Einzelposten!$C$11:$C$210,E$1,Einzelposten!$B$11:$B$210,$A21,Einzelposten!$E$11:$E$210,$B$9),SUMIFS(Einzelposten!$J$11:$J$210,Einzelposten!$C$11:$C$210,E$1,Einzelposten!$B$11:$B$210,$A21,Einzelposten!$E$11:$E$210,$B$9)*-1),2) -> 2100 | F21: =ROUND(SUM(F20,SUMIFS(Einzelposten!$I$11:$I$210,Einzelposten!$C$11:$C$210,F$1,Einzelposten!$B$11:$B$210,$A21,Einzelposten!$E$11:$E$210,$B$9),SUMIFS(Einzelposten!$J$11:$J$210,Einzelposten!$C$11:$C$210,F$1,Einzelposten!$B$11:$B$210,$A21,Einzelposten!$E$11:$E$210,$B$9)*-1),2) -> 2100 | G21: =ROUND(SUM(G20,SUMIFS(Einzelposten!$I$11:$I$210,Einzelposten!$C$11:$C$210,G$1,Einzelposten!$B$11:$B$210,$A21,Einzelposten!$E$11:$E$210,$B$9),SUMIFS(Einzelposten!$J$11:$J$210,Einzelposten!$C$11:$C$210,G$1,Einzelposten!$B$11:$B$210,$A21,Einzelposten!$E$11:$E$210,$B$9)*-1),2) -> 2100 | H21: =ROUND(SUM(H20,SUMIFS(Einzelposten!$I$11:$I$210,Einzelposten!$C$11:$C$210,H$1,Einzelposten!$B$11:$B$210,$A21,Einzelposten!$E$11:$E$210,$B$9),SUMIFS(Einzelposten!$J$11:$J$210,Einzelposten!$C$11:$C$210,H$1,Einzelposten!$B$11:$B$210,$A21,Einzelposten!$E$11:$E$210,$B$9)*-1),2) -> 2100 | I21: =ROUND(SUM(I20,SUMIFS(Einzelposten!$I$11:$I$210,Einzelposten!$C$11:$C$210,I$1,Einzelposten!$B$11:$B$210,$A21,Einzelposten!$E$11:$E$210,$B$9),SUMIFS(Einzelposten!$J$11:$J$210,Einzelposten!$C$11:$C$210,I$1,Einzelposten!$B$11:$B$210,$A21,Einzelposten!$E$11:$E$210,$B$9)*-1),2) -> 2100 | J21: =ROUND(SUM(J20,SUMIFS(Einzelposten!$I$11:$I$210,Einzelposten!$C$11:$C$210,J$1,Einzelposten!$B$11:$B$210,$A21,Einzelposten!$E$11:$E$210,$B$9),SUMIFS(Einzelposten!$J$11:$J$210,Einzelposten!$C$11:$C$210,J$1,Einzelposten!$B$11:$B$210,$A21,Einzelposten!$E$11:$E$210,$B$9)*-1),2) -> 2100 | K21: =ROUND(SUM(K20,SUMIFS(Einzelposten!$I$11:$I$210,Einzelposten!$C$11:$C$210,K$1,Einzelposten!$B$11:$B$210,$A21,Einzelposten!$E$11:$E$210,$B$9),SUMIFS(Einzelposten!$J$11:$J$210,Einzelposten!$C$11:$C$210,K$1,Einzelposten!$B$11:$B$210,$A21,Einzelposten!$E$11:$E$210,$B$9)*-1),2) -> 2100 | L21: =ROUND(SUM(L20,SUMIFS(Einzelposten!$I$11:$I$210,Einzelposten!$C$11:$C$210,L$1,Einzelposten!$B$11:$B$210,$A21,Einzelposten!$E$11:$E$210,$B$9),SUMIFS(Einzelposten!$J$11:$J$210,Einzelposten!$C$11:$C$210,L$1,Einzelposten!$B$11:$B$210,$A21,Einzelposten!$E$11:$E$210,$B$9)*-1),2) -> 2100 | M21: =ROUND(SUM(M20,SUMIFS(Einzelposten!$I$11:$I$210,Einzelposten!$C$11:$C$210,M$1,Einzelposten!$B$11:$B$210,$A21,Einzelposten!$E$11:$E$210,$B$9),SUMIFS(Einzelposten!$J$11:$J$210,Einzelposten!$C$11:$C$210,M$1,Einzelposten!$B$11:$B$210,$A21,Einzelposten!$E$11:$E$210,$B$9)*-1),2) -> 2100 | N21: =ROUND(SUM(N20,SUMIFS(Einzelposten!$I$11:$I$210,Einzelposten!$C$11:$C$210,N$1,Einzelposten!$B$11:$B$210,$A21,Einzelposten!$E$11:$E$210,$B$9),SUMIFS(Einzelposten!$J$11:$J$210,Einzelposten!$C$11:$C$210,N$1,Einzelposten!$B$11:$B$210,$A21,Einzelposten!$E$11:$E$210,$B$9)*-1),2) -> 2100
A22: 8 | B22: B | C22: =ROUND(SUM(C21,SUMIFS(Einzelposten!$I$11:$I$210,Einzelposten!$C$11:$C$210,C$1,Einzelposten!$B$11:$B$210,$A22,Einzelposten!$E$11:$E$210,$B$9),SUMIFS(Einzelposten!$J$11:$J$210,Einzelposten!$C$11:$C$210,C$1,Einzelposten!$B$11:$B$210,$A22,Einzelposten!$E$11:$E$210,$B$9)*-1),2) -> 2100 | D22: =ROUND(SUM(D21,SUMIFS(Einzelposten!$I$11:$I$210,Einzelposten!$C$11:$C$210,D$1,Einzelposten!$B$11:$B$210,$A22,Einzelposten!$E$11:$E$210,$B$9),SUMIFS(Einzelposten!$J$11:$J$210,Einzelposten!$C$11:$C$210,D$1,Einzelposten!$B$11:$B$210,$A22,Einzelposten!$E$11:$E$210,$B$9)*-1),2) -> 2100 | E22: =ROUND(SUM(E21,SUMIFS(Einzelposten!$I$11:$I$210,Einzelposten!$C$11:$C$210,E$1,Einzelposten!$B$11:$B$210,$A22,Einzelposten!$E$11:$E$210,$B$9),SUMIFS(Einzelposten!$J$11:$J$210,Einzelposten!$C$11:$C$210,E$1,Einzelposten!$B$11:$B$210,$A22,Einzelposten!$E$11:$E$210,$B$9)*-1),2) -> 2100 | F22: =ROUND(SUM(F21,SUMIFS(Einzelposten!$I$11:$I$210,Einzelposten!$C$11:$C$210,F$1,Einzelposten!$B$11:$B$210,$A22,Einzelposten!$E$11:$E$210,$B$9),SUMIFS(Einzelposten!$J$11:$J$210,Einzelposten!$C$11:$C$210,F$1,Einzelposten!$B$11:$B$210,$A22,Einzelposten!$E$11:$E$210,$B$9)*-1),2) -> 2100 | G22: =ROUND(SUM(G21,SUMIFS(Einzelposten!$I$11:$I$210,Einzelposten!$C$11:$C$210,G$1,Einzelposten!$B$11:$B$210,$A22,Einzelposten!$E$11:$E$210,$B$9),SUMIFS(Einzelposten!$J$11:$J$210,Einzelposten!$C$11:$C$210,G$1,Einzelposten!$B$11:$B$210,$A22,Einzelposten!$E$11:$E$210,$B$9)*-1),2) -> 2100 | H22: =ROUND(SUM(H21,SUMIFS(Einzelposten!$I$11:$I$210,Einzelposten!$C$11:$C$210,H$1,Einzelposten!$B$11:$B$210,$A22,Einzelposten!$E$11:$E$210,$B$9),SUMIFS(Einzelposten!$J$11:$J$210,Einzelposten!$C$11:$C$210,H$1,Einzelposten!$B$11:$B$210,$A22,Einzelposten!$E$11:$E$210,$B$9)*-1),2) -> 2100 | I22: =ROUND(SUM(I21,SUMIFS(Einzelposten!$I$11:$I$210,Einzelposten!$C$11:$C$210,I$1,Einzelposten!$B$11:$B$210,$A22,Einzelposten!$E$11:$E$210,$B$9),SUMIFS(Einzelposten!$J$11:$J$210,Einzelposten!$C$11:$C$210,I$1,Einzelposten!$B$11:$B$210,$A22,Einzelposten!$E$11:$E$210,$B$9)*-1),2) -> 2100 | J22: =ROUND(SUM(J21,SUMIFS(Einzelposten!$I$11:$I$210,Einzelposten!$C$11:$C$210,J$1,Einzelposten!$B$11:$B$210,$A22,Einzelposten!$E$11:$E$210,$B$9),SUMIFS(Einzelposten!$J$11:$J$210,Einzelposten!$C$11:$C$210,J$1,Einzelposten!$B$11:$B$210,$A22,Einzelposten!$E$11:$E$210,$B$9)*-1),2) -> 2100 | K22: =ROUND(SUM(K21,SUMIFS(Einzelposten!$I$11:$I$210,Einzelposten!$C$11:$C$210,K$1,Einzelposten!$B$11:$B$210,$A22,Einzelposten!$E$11:$E$210,$B$9),SUMIFS(Einzelposten!$J$11:$J$210,Einzelposten!$C$11:$C$210,K$1,Einzelposten!$B$11:$B$210,$A22,Einzelposten!$E$11:$E$210,$B$9)*-1),2) -> 2100 | L22: =ROUND(SUM(L21,SUMIFS(Einzelposten!$I$11:$I$210,Einzelposten!$C$11:$C$210,L$1,Einzelposten!$B$11:$B$210,$A22,Einzelposten!$E$11:$E$210,$B$9),SUMIFS(Einzelposten!$J$11:$J$210,Einzelposten!$C$11:$C$210,L$1,Einzelposten!$B$11:$B$210,$A22,Einzelposten!$E$11:$E$210,$B$9)*-1),2) -> 2100 | M22: =ROUND(SUM(M21,SUMIFS(Einzelposten!$I$11:$I$210,Einzelposten!$C$11:$C$210,M$1,Einzelposten!$B$11:$B$210,$A22,Einzelposten!$E$11:$E$210,$B$9),SUMIFS(Einzelposten!$J$11:$J$210,Einzelposten!$C$11:$C$210,M$1,Einzelposten!$B$11:$B$210,$A22,Einzelposten!$E$11:$E$210,$B$9)*-1),2) -> 2100 | N22: =ROUND(SUM(N21,SUMIFS(Einzelposten!$I$11:$I$210,Einzelposten!$C$11:$C$210,N$1,Einzelposten!$B$11:$B$210,$A22,Einzelposten!$E$11:$E$210,$B$9),SUMIFS(Einzelposten!$J$11:$J$210,Einzelposten!$C$11:$C$210,N$1,Einzelposten!$B$11:$B$210,$A22,Einzelposten!$E$11:$E$210,$B$9)*-1),2) -> 2100
A23: 9 | B23: B | C23: =ROUND(SUM(C22,SUMIFS(Einzelposten!$I$11:$I$210,Einzelposten!$C$11:$C$210,C$1,Einzelposten!$B$11:$B$210,$A23,Einzelposten!$E$11:$E$210,$B$9),SUMIFS(Einzelposten!$J$11:$J$210,Einzelposten!$C$11:$C$210,C$1,Einzelposten!$B$11:$B$210,$A23,Einzelposten!$E$11:$E$210,$B$9)*-1),2) -> 2100 | D23: =ROUND(SUM(D22,SUMIFS(Einzelposten!$I$11:$I$210,Einzelposten!$C$11:$C$210,D$1,Einzelposten!$B$11:$B$210,$A23,Einzelposten!$E$11:$E$210,$B$9),SUMIFS(Einzelposten!$J$11:$J$210,Einzelposten!$C$11:$C$210,D$1,Einzelposten!$B$11:$B$210,$A23,Einzelposten!$E$11:$E$210,$B$9)*-1),2) -> 2100 | E23: =ROUND(SUM(E22,SUMIFS(Einzelposten!$I$11:$I$210,Einzelposten!$C$11:$C$210,E$1,Einzelposten!$B$11:$B$210,$A23,Einzelposten!$E$11:$E$210,$B$9),SUMIFS(Einzelposten!$J$11:$J$210,Einzelposten!$C$11:$C$210,E$1,Einzelposten!$B$11:$B$210,$A23,Einzelposten!$E$11:$E$210,$B$9)*-1),2) -> 2100 | F23: =ROUND(SUM(F22,SUMIFS(Einzelposten!$I$11:$I$210,Einzelposten!$C$11:$C$210,F$1,Einzelposten!$B$11:$B$210,$A23,Einzelposten!$E$11:$E$210,$B$9),SUMIFS(Einzelposten!$J$11:$J$210,Einzelposten!$C$11:$C$210,F$1,Einzelposten!$B$11:$B$210,$A23,Einzelposten!$E$11:$E$210,$B$9)*-1),2) -> 2100 | G23: =ROUND(SUM(G22,SUMIFS(Einzelposten!$I$11:$I$210,Einzelposten!$C$11:$C$210,G$1,Einzelposten!$B$11:$B$210,$A23,Einzelposten!$E$11:$E$210,$B$9),SUMIFS(Einzelposten!$J$11:$J$210,Einzelposten!$C$11:$C$210,G$1,Einzelposten!$B$11:$B$210,$A23,Einzelposten!$E$11:$E$210,$B$9)*-1),2) -> 2100 | H23: =ROUND(SUM(H22,SUMIFS(Einzelposten!$I$11:$I$210,Einzelposten!$C$11:$C$210,H$1,Einzelposten!$B$11:$B$210,$A23,Einzelposten!$E$11:$E$210,$B$9),SUMIFS(Einzelposten!$J$11:$J$210,Einzelposten!$C$11:$C$210,H$1,Einzelposten!$B$11:$B$210,$A23,Einzelposten!$E$11:$E$210,$B$9)*-1),2) -> 2100 | I23: =ROUND(SUM(I22,SUMIFS(Einzelposten!$I$11:$I$210,Einzelposten!$C$11:$C$210,I$1,Einzelposten!$B$11:$B$210,$A23,Einzelposten!$E$11:$E$210,$B$9),SUMIFS(Einzelposten!$J$11:$J$210,Einzelposten!$C$11:$C$210,I$1,Einzelposten!$B$11:$B$210,$A23,Einzelposten!$E$11:$E$210,$B$9)*-1),2) -> 2100 | J23: =ROUND(SUM(J22,SUMIFS(Einzelposten!$I$11:$I$210,Einzelposten!$C$11:$C$210,J$1,Einzelposten!$B$11:$B$210,$A23,Einzelposten!$E$11:$E$210,$B$9),SUMIFS(Einzelposten!$J$11:$J$210,Einzelposten!$C$11:$C$210,J$1,Einzelposten!$B$11:$B$210,$A23,Einzelposten!$E$11:$E$210,$B$9)*-1),2) -> 2100 | K23: =ROUND(SUM(K22,SUMIFS(Einzelposten!$I$11:$I$210,Einzelposten!$C$11:$C$210,K$1,Einzelposten!$B$11:$B$210,$A23,Einzelposten!$E$11:$E$210,$B$9),SUMIFS(Einzelposten!$J$11:$J$210,Einzelposten!$C$11:$C$210,K$1,Einzelposten!$B$11:$B$210,$A23,Einzelposten!$E$11:$E$210,$B$9)*-1),2) -> 2100 | L23: =ROUND(SUM(L22,SUMIFS(Einzelposten!$I$11:$I$210,Einzelposten!$C$11:$C$210,L$1,Einzelposten!$B$11:$B$210,$A23,Einzelposten!$E$11:$E$210,$B$9),SUMIFS(Einzelposten!$J$11:$J$210,Einzelposten!$C$11:$C$210,L$1,Einzelposten!$B$11:$B$210,$A23,Einzelposten!$E$11:$E$210,$B$9)*-1),2) -> 2100 | M23: =ROUND(SUM(M22,SUMIFS(Einzelposten!$I$11:$I$210,Einzelposten!$C$11:$C$210,M$1,Einzelposten!$B$11:$B$210,$A23,Einzelposten!$E$11:$E$210,$B$9),SUMIFS(Einzelposten!$J$11:$J$210,Einzelposten!$C$11:$C$210,M$1,Einzelposten!$B$11:$B$210,$A23,Einzelposten!$E$11:$E$210,$B$9)*-1),2) -> 2100 | N23: =ROUND(SUM(N22,SUMIFS(Einzelposten!$I$11:$I$210,Einzelposten!$C$11:$C$210,N$1,Einzelposten!$B$11:$B$210,$A23,Einzelposten!$E$11:$E$210,$B$9),SUMIFS(Einzelposten!$J$11:$J$210,Einzelposten!$C$11:$C$210,N$1,Einzelposten!$B$11:$B$210,$A23,Einzelposten!$E$11:$E$210,$B$9)*-1),2) -> 2100
A24: 10 | B24: B | C24: =ROUND(SUM(C23,SUMIFS(Einzelposten!$I$11:$I$210,Einzelposten!$C$11:$C$210,C$1,Einzelposten!$B$11:$B$210,$A24,Einzelposten!$E$11:$E$210,$B$9),SUMIFS(Einzelposten!$J$11:$J$210,Einzelposten!$C$11:$C$210,C$1,Einzelposten!$B$11:$B$210,$A24,Einzelposten!$E$11:$E$210,$B$9)*-1),2) -> 2100 | D24: =ROUND(SUM(D23,SUMIFS(Einzelposten!$I$11:$I$210,Einzelposten!$C$11:$C$210,D$1,Einzelposten!$B$11:$B$210,$A24,Einzelposten!$E$11:$E$210,$B$9),SUMIFS(Einzelposten!$J$11:$J$210,Einzelposten!$C$11:$C$210,D$1,Einzelposten!$B$11:$B$210,$A24,Einzelposten!$E$11:$E$210,$B$9)*-1),2) -> 2100 | E24: =ROUND(SUM(E23,SUMIFS(Einzelposten!$I$11:$I$210,Einzelposten!$C$11:$C$210,E$1,Einzelposten!$B$11:$B$210,$A24,Einzelposten!$E$11:$E$210,$B$9),SUMIFS(Einzelposten!$J$11:$J$210,Einzelposten!$C$11:$C$210,E$1,Einzelposten!$B$11:$B$210,$A24,Einzelposten!$E$11:$E$210,$B$9)*-1),2) -> 2100 | F24: =ROUND(SUM(F23,SUMIFS(Einzelposten!$I$11:$I$210,Einzelposten!$C$11:$C$210,F$1,Einzelposten!$B$11:$B$210,$A24,Einzelposten!$E$11:$E$210,$B$9),SUMIFS(Einzelposten!$J$11:$J$210,Einzelposten!$C$11:$C$210,F$1,Einzelposten!$B$11:$B$210,$A24,Einzelposten!$E$11:$E$210,$B$9)*-1),2) -> 2100 | G24: =ROUND(SUM(G23,SUMIFS(Einzelposten!$I$11:$I$210,Einzelposten!$C$11:$C$210,G$1,Einzelposten!$B$11:$B$210,$A24,Einzelposten!$E$11:$E$210,$B$9),SUMIFS(Einzelposten!$J$11:$J$210,Einzelposten!$C$11:$C$210,G$1,Einzelposten!$B$11:$B$210,$A24,Einzelposten!$E$11:$E$210,$B$9)*-1),2) -> 2100 | H24: =ROUND(SUM(H23,SUMIFS(Einzelposten!$I$11:$I$210,Einzelposten!$C$11:$C$210,H$1,Einzelposten!$B$11:$B$210,$A24,Einzelposten!$E$11:$E$210,$B$9),SUMIFS(Einzelposten!$J$11:$J$210,Einzelposten!$C$11:$C$210,H$1,Einzelposten!$B$11:$B$210,$A24,Einzelposten!$E$11:$E$210,$B$9)*-1),2) -> 2100 | I24: =ROUND(SUM(I23,SUMIFS(Einzelposten!$I$11:$I$210,Einzelposten!$C$11:$C$210,I$1,Einzelposten!$B$11:$B$210,$A24,Einzelposten!$E$11:$E$210,$B$9),SUMIFS(Einzelposten!$J$11:$J$210,Einzelposten!$C$11:$C$210,I$1,Einzelposten!$B$11:$B$210,$A24,Einzelposten!$E$11:$E$210,$B$9)*-1),2) -> 2100 | J24: =ROUND(SUM(J23,SUMIFS(Einzelposten!$I$11:$I$210,Einzelposten!$C$11:$C$210,J$1,Einzelposten!$B$11:$B$210,$A24,Einzelposten!$E$11:$E$210,$B$9),SUMIFS(Einzelposten!$J$11:$J$210,Einzelposten!$C$11:$C$210,J$1,Einzelposten!$B$11:$B$210,$A24,Einzelposten!$E$11:$E$210,$B$9)*-1),2) -> 2100 | K24: =ROUND(SUM(K23,SUMIFS(Einzelposten!$I$11:$I$210,Einzelposten!$C$11:$C$210,K$1,Einzelposten!$B$11:$B$210,$A24,Einzelposten!$E$11:$E$210,$B$9),SUMIFS(Einzelposten!$J$11:$J$210,Einzelposten!$C$11:$C$210,K$1,Einzelposten!$B$11:$B$210,$A24,Einzelposten!$E$11:$E$210,$B$9)*-1),2) -> 2100 | L24: =ROUND(SUM(L23,SUMIFS(Einzelposten!$I$11:$I$210,Einzelposten!$C$11:$C$210,L$1,Einzelposten!$B$11:$B$210,$A24,Einzelposten!$E$11:$E$210,$B$9),SUMIFS(Einzelposten!$J$11:$J$210,Einzelposten!$C$11:$C$210,L$1,Einzelposten!$B$11:$B$210,$A24,Einzelposten!$E$11:$E$210,$B$9)*-1),2) -> 2100 | M24: =ROUND(SUM(M23,SUMIFS(Einzelposten!$I$11:$I$210,Einzelposten!$C$11:$C$210,M$1,Einzelposten!$B$11:$B$210,$A24,Einzelposten!$E$11:$E$210,$B$9),SUMIFS(Einzelposten!$J$11:$J$210,Einzelposten!$C$11:$C$210,M$1,Einzelposten!$B$11:$B$210,$A24,Einzelposten!$E$11:$E$210,$B$9)*-1),2) -> 2100 | N24: =ROUND(SUM(N23,SUMIFS(Einzelposten!$I$11:$I$210,Einzelposten!$C$11:$C$210,N$1,Einzelposten!$B$11:$B$210,$A24,Einzelposten!$E$11:$E$210,$B$9),SUMIFS(Einzelposten!$J$11:$J$210,Einzelposten!$C$11:$C$210,N$1,Einzelposten!$B$11:$B$210,$A24,Einzelposten!$E$11:$E$210,$B$9)*-1),2) -> 2100
A25: 11 | B25: B | C25: =ROUND(SUM(C24,SUMIFS(Einzelposten!$I$11:$I$210,Einzelposten!$C$11:$C$210,C$1,Einzelposten!$B$11:$B$210,$A25,Einzelposten!$E$11:$E$210,$B$9),SUMIFS(Einzelposten!$J$11:$J$210,Einzelposten!$C$11:$C$210,C$1,Einzelposten!$B$11:$B$210,$A25,Einzelposten!$E$11:$E$210,$B$9)*-1),2) -> 2100 | D25: =ROUND(SUM(D24,SUMIFS(Einzelposten!$I$11:$I$210,Einzelposten!$C$11:$C$210,D$1,Einzelposten!$B$11:$B$210,$A25,Einzelposten!$E$11:$E$210,$B$9),SUMIFS(Einzelposten!$J$11:$J$210,Einzelposten!$C$11:$C$210,D$1,Einzelposten!$B$11:$B$210,$A25,Einzelposten!$E$11:$E$210,$B$9)*-1),2) -> 2100 | E25: =ROUND(SUM(E24,SUMIFS(Einzelposten!$I$11:$I$210,Einzelposten!$C$11:$C$210,E$1,Einzelposten!$B$11:$B$210,$A25,Einzelposten!$E$11:$E$210,$B$9),SUMIFS(Einzelposten!$J$11:$J$210,Einzelposten!$C$11:$C$210,E$1,Einzelposten!$B$11:$B$210,$A25,Einzelposten!$E$11:$E$210,$B$9)*-1),2) -> 2100 | F25: =ROUND(SUM(F24,SUMIFS(Einzelposten!$I$11:$I$210,Einzelposten!$C$11:$C$210,F$1,Einzelposten!$B$11:$B$210,$A25,Einzelposten!$E$11:$E$210,$B$9),SUMIFS(Einzelposten!$J$11:$J$210,Einzelposten!$C$11:$C$210,F$1,Einzelposten!$B$11:$B$210,$A25,Einzelposten!$E$11:$E$210,$B$9)*-1),2) -> 2100 | G25: =ROUND(SUM(G24,SUMIFS(Einzelposten!$I$11:$I$210,Einzelposten!$C$11:$C$210,G$1,Einzelposten!$B$11:$B$210,$A25,Einzelposten!$E$11:$E$210,$B$9),SUMIFS(Einzelposten!$J$11:$J$210,Einzelposten!$C$11:$C$210,G$1,Einzelposten!$B$11:$B$210,$A25,Einzelposten!$E$11:$E$210,$B$9)*-1),2) -> 2100 | H25: =ROUND(SUM(H24,SUMIFS(Einzelposten!$I$11:$I$210,Einzelposten!$C$11:$C$210,H$1,Einzelposten!$B$11:$B$210,$A25,Einzelposten!$E$11:$E$210,$B$9),SUMIFS(Einzelposten!$J$11:$J$210,Einzelposten!$C$11:$C$210,H$1,Einzelposten!$B$11:$B$210,$A25,Einzelposten!$E$11:$E$210,$B$9)*-1),2) -> 2100 | I25: =ROUND(SUM(I24,SUMIFS(Einzelposten!$I$11:$I$210,Einzelposten!$C$11:$C$210,I$1,Einzelposten!$B$11:$B$210,$A25,Einzelposten!$E$11:$E$210,$B$9),SUMIFS(Einzelposten!$J$11:$J$210,Einzelposten!$C$11:$C$210,I$1,Einzelposten!$B$11:$B$210,$A25,Einzelposten!$E$11:$E$210,$B$9)*-1),2) -> 2100 | J25: =ROUND(SUM(J24,SUMIFS(Einzelposten!$I$11:$I$210,Einzelposten!$C$11:$C$210,J$1,Einzelposten!$B$11:$B$210,$A25,Einzelposten!$E$11:$E$210,$B$9),SUMIFS(Einzelposten!$J$11:$J$210,Einzelposten!$C$11:$C$210,J$1,Einzelposten!$B$11:$B$210,$A25,Einzelposten!$E$11:$E$210,$B$9)*-1),2) -> 2100 | K25: =ROUND(SUM(K24,SUMIFS(Einzelposten!$I$11:$I$210,Einzelposten!$C$11:$C$210,K$1,Einzelposten!$B$11:$B$210,$A25,Einzelposten!$E$11:$E$210,$B$9),SUMIFS(Einzelposten!$J$11:$J$210,Einzelposten!$C$11:$C$210,K$1,Einzelposten!$B$11:$B$210,$A25,Einzelposten!$E$11:$E$210,$B$9)*-1),2) -> 2100 | L25: =ROUND(SUM(L24,SUMIFS(Einzelposten!$I$11:$I$210,Einzelposten!$C$11:$C$210,L$1,Einzelposten!$B$11:$B$210,$A25,Einzelposten!$E$11:$E$210,$B$9),SUMIFS(Einzelposten!$J$11:$J$210,Einzelposten!$C$11:$C$210,L$1,Einzelposten!$B$11:$B$210,$A25,Einzelposten!$E$11:$E$210,$B$9)*-1),2) -> 2100 | M25: =ROUND(SUM(M24,SUMIFS(Einzelposten!$I$11:$I$210,Einzelposten!$C$11:$C$210,M$1,Einzelposten!$B$11:$B$210,$A25,Einzelposten!$E$11:$E$210,$B$9),SUMIFS(Einzelposten!$J$11:$J$210,Einzelposten!$C$11:$C$210,M$1,Einzelposten!$B$11:$B$210,$A25,Einzelposten!$E$11:$E$210,$B$9)*-1),2) -> 2100 | N25: =ROUND(SUM(N24,SUMIFS(Einzelposten!$I$11:$I$210,Einzelposten!$C$11:$C$210,N$1,Einzelposten!$B$11:$B$210,$A25,Einzelposten!$E$11:$E$210,$B$9),SUMIFS(Einzelposten!$J$11:$J$210,Einzelposten!$C$11:$C$210,N$1,Einzelposten!$B$11:$B$210,$A25,Einzelposten!$E$11:$E$210,$B$9)*-1),2) -> 2100
A26: 12 | B26: B | C26: =ROUND(SUM(C25,SUMIFS(Einzelposten!$I$11:$I$210,Einzelposten!$C$11:$C$210,C$1,Einzelposten!$B$11:$B$210,$A26,Einzelposten!$E$11:$E$210,$B$9),SUMIFS(Einzelposten!$J$11:$J$210,Einzelposten!$C$11:$C$210,C$1,Einzelposten!$B$11:$B$210,$A26,Einzelposten!$E$11:$E$210,$B$9)*-1),2) -> 2100 | D26: =ROUND(SUM(D25,SUMIFS(Einzelposten!$I$11:$I$210,Einzelposten!$C$11:$C$210,D$1,Einzelposten!$B$11:$B$210,$A26,Einzelposten!$E$11:$E$210,$B$9),SUMIFS(Einzelposten!$J$11:$J$210,Einzelposten!$C$11:$C$210,D$1,Einzelposten!$B$11:$B$210,$A26,Einzelposten!$E$11:$E$210,$B$9)*-1),2) -> 2100 | E26: =ROUND(SUM(E25,SUMIFS(Einzelposten!$I$11:$I$210,Einzelposten!$C$11:$C$210,E$1,Einzelposten!$B$11:$B$210,$A26,Einzelposten!$E$11:$E$210,$B$9),SUMIFS(Einzelposten!$J$11:$J$210,Einzelposten!$C$11:$C$210,E$1,Einzelposten!$B$11:$B$210,$A26,Einzelposten!$E$11:$E$210,$B$9)*-1),2) -> 2100 | F26: =ROUND(SUM(F25,SUMIFS(Einzelposten!$I$11:$I$210,Einzelposten!$C$11:$C$210,F$1,Einzelposten!$B$11:$B$210,$A26,Einzelposten!$E$11:$E$210,$B$9),SUMIFS(Einzelposten!$J$11:$J$210,Einzelposten!$C$11:$C$210,F$1,Einzelposten!$B$11:$B$210,$A26,Einzelposten!$E$11:$E$210,$B$9)*-1),2) -> 2100 | G26: =ROUND(SUM(G25,SUMIFS(Einzelposten!$I$11:$I$210,Einzelposten!$C$11:$C$210,G$1,Einzelposten!$B$11:$B$210,$A26,Einzelposten!$E$11:$E$210,$B$9),SUMIFS(Einzelposten!$J$11:$J$210,Einzelposten!$C$11:$C$210,G$1,Einzelposten!$B$11:$B$210,$A26,Einzelposten!$E$11:$E$210,$B$9)*-1),2) -> 2100 | H26: =ROUND(SUM(H25,SUMIFS(Einzelposten!$I$11:$I$210,Einzelposten!$C$11:$C$210,H$1,Einzelposten!$B$11:$B$210,$A26,Einzelposten!$E$11:$E$210,$B$9),SUMIFS(Einzelposten!$J$11:$J$210,Einzelposten!$C$11:$C$210,H$1,Einzelposten!$B$11:$B$210,$A26,Einzelposten!$E$11:$E$210,$B$9)*-1),2) -> 2100 | I26: =ROUND(SUM(I25,SUMIFS(Einzelposten!$I$11:$I$210,Einzelposten!$C$11:$C$210,I$1,Einzelposten!$B$11:$B$210,$A26,Einzelposten!$E$11:$E$210,$B$9),SUMIFS(Einzelposten!$J$11:$J$210,Einzelposten!$C$11:$C$210,I$1,Einzelposten!$B$11:$B$210,$A26,Einzelposten!$E$11:$E$210,$B$9)*-1),2) -> 2100 | J26: =ROUND(SUM(J25,SUMIFS(Einzelposten!$I$11:$I$210,Einzelposten!$C$11:$C$210,J$1,Einzelposten!$B$11:$B$210,$A26,Einzelposten!$E$11:$E$210,$B$9),SUMIFS(Einzelposten!$J$11:$J$210,Einzelposten!$C$11:$C$210,J$1,Einzelposten!$B$11:$B$210,$A26,Einzelposten!$E$11:$E$210,$B$9)*-1),2) -> 2100 | K26: =ROUND(SUM(K25,SUMIFS(Einzelposten!$I$11:$I$210,Einzelposten!$C$11:$C$210,K$1,Einzelposten!$B$11:$B$210,$A26,Einzelposten!$E$11:$E$210,$B$9),SUMIFS(Einzelposten!$J$11:$J$210,Einzelposten!$C$11:$C$210,K$1,Einzelposten!$B$11:$B$210,$A26,Einzelposten!$E$11:$E$210,$B$9)*-1),2) -> 2100 | L26: =ROUND(SUM(L25,SUMIFS(Einzelposten!$I$11:$I$210,Einzelposten!$C$11:$C$210,L$1,Einzelposten!$B$11:$B$210,$A26,Einzelposten!$E$11:$E$210,$B$9),SUMIFS(Einzelposten!$J$11:$J$210,Einzelposten!$C$11:$C$210,L$1,Einzelposten!$B$11:$B$210,$A26,Einzelposten!$E$11:$E$210,$B$9)*-1),2) -> 2100 | M26: =ROUND(SUM(M25,SUMIFS(Einzelposten!$I$11:$I$210,Einzelposten!$C$11:$C$210,M$1,Einzelposten!$B$11:$B$210,$A26,Einzelposten!$E$11:$E$210,$B$9),SUMIFS(Einzelposten!$J$11:$J$210,Einzelposten!$C$11:$C$210,M$1,Einzelposten!$B$11:$B$210,$A26,Einzelposten!$E$11:$E$210,$B$9)*-1),2) -> 2100 | N26: =ROUND(SUM(N25,SUMIFS(Einzelposten!$I$11:$I$210,Einzelposten!$C$11:$C$210,N$1,Einzelposten!$B$11:$B$210,$A26,Einzelposten!$E$11:$E$210,$B$9),SUMIFS(Einzelposten!$J$11:$J$210,Einzelposten!$C$11:$C$210,N$1,Einzelposten!$B$11:$B$210,$A26,Einzelposten!$E$11:$E$210,$B$9)*-1),2) -> 2100
A27: 13 | B27: B | C27: =ROUND(SUM(C26,SUMIFS(Einzelposten!$I$11:$I$210,Einzelposten!$C$11:$C$210,C$1,Einzelposten!$B$11:$B$210,$A27,Einzelposten!$E$11:$E$210,$B$9),SUMIFS(Einzelposten!$J$11:$J$210,Einzelposten!$C$11:$C$210,C$1,Einzelposten!$B$11:$B$210,$A27,Einzelposten!$E$11:$E$210,$B$9)*-1),2) -> 2100 | D27: =ROUND(SUM(D26,SUMIFS(Einzelposten!$I$11:$I$210,Einzelposten!$C$11:$C$210,D$1,Einzelposten!$B$11:$B$210,$A27,Einzelposten!$E$11:$E$210,$B$9),SUMIFS(Einzelposten!$J$11:$J$210,Einzelposten!$C$11:$C$210,D$1,Einzelposten!$B$11:$B$210,$A27,Einzelposten!$E$11:$E$210,$B$9)*-1),2) -> 2100 | E27: =ROUND(SUM(E26,SUMIFS(Einzelposten!$I$11:$I$210,Einzelposten!$C$11:$C$210,E$1,Einzelposten!$B$11:$B$210,$A27,Einzelposten!$E$11:$E$210,$B$9),SUMIFS(Einzelposten!$J$11:$J$210,Einzelposten!$C$11:$C$210,E$1,Einzelposten!$B$11:$B$210,$A27,Einzelposten!$E$11:$E$210,$B$9)*-1),2) -> 2100 | F27: =ROUND(SUM(F26,SUMIFS(Einzelposten!$I$11:$I$210,Einzelposten!$C$11:$C$210,F$1,Einzelposten!$B$11:$B$210,$A27,Einzelposten!$E$11:$E$210,$B$9),SUMIFS(Einzelposten!$J$11:$J$210,Einzelposten!$C$11:$C$210,F$1,Einzelposten!$B$11:$B$210,$A27,Einzelposten!$E$11:$E$210,$B$9)*-1),2) -> 2100 | G27: =ROUND(SUM(G26,SUMIFS(Einzelposten!$I$11:$I$210,Einzelposten!$C$11:$C$210,G$1,Einzelposten!$B$11:$B$210,$A27,Einzelposten!$E$11:$E$210,$B$9),SUMIFS(Einzelposten!$J$11:$J$210,Einzelposten!$C$11:$C$210,G$1,Einzelposten!$B$11:$B$210,$A27,Einzelposten!$E$11:$E$210,$B$9)*-1),2) -> 2100 | H27: =ROUND(SUM(H26,SUMIFS(Einzelposten!$I$11:$I$210,Einzelposten!$C$11:$C$210,H$1,Einzelposten!$B$11:$B$210,$A27,Einzelposten!$E$11:$E$210,$B$9),SUMIFS(Einzelposten!$J$11:$J$210,Einzelposten!$C$11:$C$210,H$1,Einzelposten!$B$11:$B$210,$A27,Einzelposten!$E$11:$E$210,$B$9)*-1),2) -> 2100 | I27: =ROUND(SUM(I26,SUMIFS(Einzelposten!$I$11:$I$210,Einzelposten!$C$11:$C$210,I$1,Einzelposten!$B$11:$B$210,$A27,Einzelposten!$E$11:$E$210,$B$9),SUMIFS(Einzelposten!$J$11:$J$210,Einzelposten!$C$11:$C$210,I$1,Einzelposten!$B$11:$B$210,$A27,Einzelposten!$E$11:$E$210,$B$9)*-1),2) -> 2100 | J27: =ROUND(SUM(J26,SUMIFS(Einzelposten!$I$11:$I$210,Einzelposten!$C$11:$C$210,J$1,Einzelposten!$B$11:$B$210,$A27,Einzelposten!$E$11:$E$210,$B$9),SUMIFS(Einzelposten!$J$11:$J$210,Einzelposten!$C$11:$C$210,J$1,Einzelposten!$B$11:$B$210,$A27,Einzelposten!$E$11:$E$210,$B$9)*-1),2) -> 2100 | K27: =ROUND(SUM(K26,SUMIFS(Einzelposten!$I$11:$I$210,Einzelposten!$C$11:$C$210,K$1,Einzelposten!$B$11:$B$210,$A27,Einzelposten!$E$11:$E$210,$B$9),SUMIFS(Einzelposten!$J$11:$J$210,Einzelposten!$C$11:$C$210,K$1,Einzelposten!$B$11:$B$210,$A27,Einzelposten!$E$11:$E$210,$B$9)*-1),2) -> 2100 | L27: =ROUND(SUM(L26,SUMIFS(Einzelposten!$I$11:$I$210,Einzelposten!$C$11:$C$210,L$1,Einzelposten!$B$11:$B$210,$A27,Einzelposten!$E$11:$E$210,$B$9),SUMIFS(Einzelposten!$J$11:$J$210,Einzelposten!$C$11:$C$210,L$1,Einzelposten!$B$11:$B$210,$A27,Einzelposten!$E$11:$E$210,$B$9)*-1),2) -> 2100 | M27: =ROUND(SUM(M26,SUMIFS(Einzelposten!$I$11:$I$210,Einzelposten!$C$11:$C$210,M$1,Einzelposten!$B$11:$B$210,$A27,Einzelposten!$E$11:$E$210,$B$9),SUMIFS(Einzelposten!$J$11:$J$210,Einzelposten!$C$11:$C$210,M$1,Einzelposten!$B$11:$B$210,$A27,Einzelposten!$E$11:$E$210,$B$9)*-1),2) -> 2100 | N27: =ROUND(SUM(N26,SUMIFS(Einzelposten!$I$11:$I$210,Einzelposten!$C$11:$C$210,N$1,Einzelposten!$B$11:$B$210,$A27,Einzelposten!$E$11:$E$210,$B$9),SUMIFS(Einzelposten!$J$11:$J$210,Einzelposten!$C$11:$C$210,N$1,Einzelposten!$B$11:$B$210,$A27,Einzelposten!$E$11:$E$210,$B$9)*-1),2) -> 2100
A28: 14 | B28: B | C28: =ROUND(SUM(C27,SUMIFS(Einzelposten!$I$11:$I$210,Einzelposten!$C$11:$C$210,C$1,Einzelposten!$B$11:$B$210,$A28,Einzelposten!$E$11:$E$210,$B$9),SUMIFS(Einzelposten!$J$11:$J$210,Einzelposten!$C$11:$C$210,C$1,Einzelposten!$B$11:$B$210,$A28,Einzelposten!$E$11:$E$210,$B$9)*-1),2) -> 2100 | D28: =ROUND(SUM(D27,SUMIFS(Einzelposten!$I$11:$I$210,Einzelposten!$C$11:$C$210,D$1,Einzelposten!$B$11:$B$210,$A28,Einzelposten!$E$11:$E$210,$B$9),SUMIFS(Einzelposten!$J$11:$J$210,Einzelposten!$C$11:$C$210,D$1,Einzelposten!$B$11:$B$210,$A28,Einzelposten!$E$11:$E$210,$B$9)*-1),2) -> 2100 | E28: =ROUND(SUM(E27,SUMIFS(Einzelposten!$I$11:$I$210,Einzelposten!$C$11:$C$210,E$1,Einzelposten!$B$11:$B$210,$A28,Einzelposten!$E$11:$E$210,$B$9),SUMIFS(Einzelposten!$J$11:$J$210,Einzelposten!$C$11:$C$210,E$1,Einzelposten!$B$11:$B$210,$A28,Einzelposten!$E$11:$E$210,$B$9)*-1),2) -> 2100 | F28: =ROUND(SUM(F27,SUMIFS(Einzelposten!$I$11:$I$210,Einzelposten!$C$11:$C$210,F$1,Einzelposten!$B$11:$B$210,$A28,Einzelposten!$E$11:$E$210,$B$9),SUMIFS(Einzelposten!$J$11:$J$210,Einzelposten!$C$11:$C$210,F$1,Einzelposten!$B$11:$B$210,$A28,Einzelposten!$E$11:$E$210,$B$9)*-1),2) -> 2100 | G28: =ROUND(SUM(G27,SUMIFS(Einzelposten!$I$11:$I$210,Einzelposten!$C$11:$C$210,G$1,Einzelposten!$B$11:$B$210,$A28,Einzelposten!$E$11:$E$210,$B$9),SUMIFS(Einzelposten!$J$11:$J$210,Einzelposten!$C$11:$C$210,G$1,Einzelposten!$B$11:$B$210,$A28,Einzelposten!$E$11:$E$210,$B$9)*-1),2) -> 2100 | H28: =ROUND(SUM(H27,SUMIFS(Einzelposten!$I$11:$I$210,Einzelposten!$C$11:$C$210,H$1,Einzelposten!$B$11:$B$210,$A28,Einzelposten!$E$11:$E$210,$B$9),SUMIFS(Einzelposten!$J$11:$J$210,Einzelposten!$C$11:$C$210,H$1,Einzelposten!$B$11:$B$210,$A28,Einzelposten!$E$11:$E$210,$B$9)*-1),2) -> 2100 | I28: =ROUND(SUM(I27,SUMIFS(Einzelposten!$I$11:$I$210,Einzelposten!$C$11:$C$210,I$1,Einzelposten!$B$11:$B$210,$A28,Einzelposten!$E$11:$E$210,$B$9),SUMIFS(Einzelposten!$J$11:$J$210,Einzelposten!$C$11:$C$210,I$1,Einzelposten!$B$11:$B$210,$A28,Einzelposten!$E$11:$E$210,$B$9)*-1),2) -> 2100 | J28: =ROUND(SUM(J27,SUMIFS(Einzelposten!$I$11:$I$210,Einzelposten!$C$11:$C$210,J$1,Einzelposten!$B$11:$B$210,$A28,Einzelposten!$E$11:$E$210,$B$9),SUMIFS(Einzelposten!$J$11:$J$210,Einzelposten!$C$11:$C$210,J$1,Einzelposten!$B$11:$B$210,$A28,Einzelposten!$E$11:$E$210,$B$9)*-1),2) -> 2100 | K28: =ROUND(SUM(K27,SUMIFS(Einzelposten!$I$11:$I$210,Einzelposten!$C$11:$C$210,K$1,Einzelposten!$B$11:$B$210,$A28,Einzelposten!$E$11:$E$210,$B$9),SUMIFS(Einzelposten!$J$11:$J$210,Einzelposten!$C$11:$C$210,K$1,Einzelposten!$B$11:$B$210,$A28,Einzelposten!$E$11:$E$210,$B$9)*-1),2) -> 2100 | L28: =ROUND(SUM(L27,SUMIFS(Einzelposten!$I$11:$I$210,Einzelposten!$C$11:$C$210,L$1,Einzelposten!$B$11:$B$210,$A28,Einzelposten!$E$11:$E$210,$B$9),SUMIFS(Einzelposten!$J$11:$J$210,Einzelposten!$C$11:$C$210,L$1,Einzelposten!$B$11:$B$210,$A28,Einzelposten!$E$11:$E$210,$B$9)*-1),2) -> 2100 | M28: =ROUND(SUM(M27,SUMIFS(Einzelposten!$I$11:$I$210,Einzelposten!$C$11:$C$210,M$1,Einzelposten!$B$11:$B$210,$A28,Einzelposten!$E$11:$E$210,$B$9),SUMIFS(Einzelposten!$J$11:$J$210,Einzelposten!$C$11:$C$210,M$1,Einzelposten!$B$11:$B$210,$A28,Einzelposten!$E$11:$E$210,$B$9)*-1),2) -> 2100 | N28: =ROUND(SUM(N27,SUMIFS(Einzelposten!$I$11:$I$210,Einzelposten!$C$11:$C$210,N$1,Einzelposten!$B$11:$B$210,$A28,Einzelposten!$E$11:$E$210,$B$9),SUMIFS(Einzelposten!$J$11:$J$210,Einzelposten!$C$11:$C$210,N$1,Einzelposten!$B$11:$B$210,$A28,Einzelposten!$E$11:$E$210,$B$9)*-1),2) -> 2100
A29: 15 | B29: B | C29: =ROUND(SUM(C28,SUMIFS(Einzelposten!$I$11:$I$210,Einzelposten!$C$11:$C$210,C$1,Einzelposten!$B$11:$B$210,$A29,Einzelposten!$E$11:$E$210,$B$9),SUMIFS(Einzelposten!$J$11:$J$210,Einzelposten!$C$11:$C$210,C$1,Einzelposten!$B$11:$B$210,$A29,Einzelposten!$E$11:$E$210,$B$9)*-1),2) -> 2100 | D29: =ROUND(SUM(D28,SUMIFS(Einzelposten!$I$11:$I$210,Einzelposten!$C$11:$C$210,D$1,Einzelposten!$B$11:$B$210,$A29,Einzelposten!$E$11:$E$210,$B$9),SUMIFS(Einzelposten!$J$11:$J$210,Einzelposten!$C$11:$C$210,D$1,Einzelposten!$B$11:$B$210,$A29,Einzelposten!$E$11:$E$210,$B$9)*-1),2) -> 2100 | E29: =ROUND(SUM(E28,SUMIFS(Einzelposten!$I$11:$I$210,Einzelposten!$C$11:$C$210,E$1,Einzelposten!$B$11:$B$210,$A29,Einzelposten!$E$11:$E$210,$B$9),SUMIFS(Einzelposten!$J$11:$J$210,Einzelposten!$C$11:$C$210,E$1,Einzelposten!$B$11:$B$210,$A29,Einzelposten!$E$11:$E$210,$B$9)*-1),2) -> 2100 | F29: =ROUND(SUM(F28,SUMIFS(Einzelposten!$I$11:$I$210,Einzelposten!$C$11:$C$210,F$1,Einzelposten!$B$11:$B$210,$A29,Einzelposten!$E$11:$E$210,$B$9),SUMIFS(Einzelposten!$J$11:$J$210,Einzelposten!$C$11:$C$210,F$1,Einzelposten!$B$11:$B$210,$A29,Einzelposten!$E$11:$E$210,$B$9)*-1),2) -> 2100 | G29: =ROUND(SUM(G28,SUMIFS(Einzelposten!$I$11:$I$210,Einzelposten!$C$11:$C$210,G$1,Einzelposten!$B$11:$B$210,$A29,Einzelposten!$E$11:$E$210,$B$9),SUMIFS(Einzelposten!$J$11:$J$210,Einzelposten!$C$11:$C$210,G$1,Einzelposten!$B$11:$B$210,$A29,Einzelposten!$E$11:$E$210,$B$9)*-1),2) -> 2100 | H29: =ROUND(SUM(H28,SUMIFS(Einzelposten!$I$11:$I$210,Einzelposten!$C$11:$C$210,H$1,Einzelposten!$B$11:$B$210,$A29,Einzelposten!$E$11:$E$210,$B$9),SUMIFS(Einzelposten!$J$11:$J$210,Einzelposten!$C$11:$C$210,H$1,Einzelposten!$B$11:$B$210,$A29,Einzelposten!$E$11:$E$210,$B$9)*-1),2) -> 2100 | I29: =ROUND(SUM(I28,SUMIFS(Einzelposten!$I$11:$I$210,Einzelposten!$C$11:$C$210,I$1,Einzelposten!$B$11:$B$210,$A29,Einzelposten!$E$11:$E$210,$B$9),SUMIFS(Einzelposten!$J$11:$J$210,Einzelposten!$C$11:$C$210,I$1,Einzelposten!$B$11:$B$210,$A29,Einzelposten!$E$11:$E$210,$B$9)*-1),2) -> 2100 | J29: =ROUND(SUM(J28,SUMIFS(Einzelposten!$I$11:$I$210,Einzelposten!$C$11:$C$210,J$1,Einzelposten!$B$11:$B$210,$A29,Einzelposten!$E$11:$E$210,$B$9),SUMIFS(Einzelposten!$J$11:$J$210,Einzelposten!$C$11:$C$210,J$1,Einzelposten!$B$11:$B$210,$A29,Einzelposten!$E$11:$E$210,$B$9)*-1),2) -> 2100 | K29: =ROUND(SUM(K28,SUMIFS(Einzelposten!$I$11:$I$210,Einzelposten!$C$11:$C$210,K$1,Einzelposten!$B$11:$B$210,$A29,Einzelposten!$E$11:$E$210,$B$9),SUMIFS(Einzelposten!$J$11:$J$210,Einzelposten!$C$11:$C$210,K$1,Einzelposten!$B$11:$B$210,$A29,Einzelposten!$E$11:$E$210,$B$9)*-1),2) -> 2100 | L29: =ROUND(SUM(L28,SUMIFS(Einzelposten!$I$11:$I$210,Einzelposten!$C$11:$C$210,L$1,Einzelposten!$B$11:$B$210,$A29,Einzelposten!$E$11:$E$210,$B$9),SUMIFS(Einzelposten!$J$11:$J$210,Einzelposten!$C$11:$C$210,L$1,Einzelposten!$B$11:$B$210,$A29,Einzelposten!$E$11:$E$210,$B$9)*-1),2) -> 2100 | M29: =ROUND(SUM(M28,SUMIFS(Einzelposten!$I$11:$I$210,Einzelposten!$C$11:$C$210,M$1,Einzelposten!$B$11:$B$210,$A29,Einzelposten!$E$11:$E$210,$B$9),SUMIFS(Einzelposten!$J$11:$J$210,Einzelposten!$C$11:$C$210,M$1,Einzelposten!$B$11:$B$210,$A29,Einzelposten!$E$11:$E$210,$B$9)*-1),2) -> 2100 | N29: =ROUND(SUM(N28,SUMIFS(Einzelposten!$I$11:$I$210,Einzelposten!$C$11:$C$210,N$1,Einzelposten!$B$11:$B$210,$A29,Einzelposten!$E$11:$E$210,$B$9),SUMIFS(Einzelposten!$J$11:$J$210,Einzelposten!$C$11:$C$210,N$1,Einzelposten!$B$11:$B$210,$A29,Einzelposten!$E$11:$E$210,$B$9)*-1),2) -> 2100
A30: 16 | B30: B | C30: =ROUND(SUM(C29,SUMIFS(Einzelposten!$I$11:$I$210,Einzelposten!$C$11:$C$210,C$1,Einzelposten!$B$11:$B$210,$A30,Einzelposten!$E$11:$E$210,$B$9),SUMIFS(Einzelposten!$J$11:$J$210,Einzelposten!$C$11:$C$210,C$1,Einzelposten!$B$11:$B$210,$A30,Einzelposten!$E$11:$E$210,$B$9)*-1),2) -> 2100 | D30: =ROUND(SUM(D29,SUMIFS(Einzelposten!$I$11:$I$210,Einzelposten!$C$11:$C$210,D$1,Einzelposten!$B$11:$B$210,$A30,Einzelposten!$E$11:$E$210,$B$9),SUMIFS(Einzelposten!$J$11:$J$210,Einzelposten!$C$11:$C$210,D$1,Einzelposten!$B$11:$B$210,$A30,Einzelposten!$E$11:$E$210,$B$9)*-1),2) -> 2100 | E30: =ROUND(SUM(E29,SUMIFS(Einzelposten!$I$11:$I$210,Einzelposten!$C$11:$C$210,E$1,Einzelposten!$B$11:$B$210,$A30,Einzelposten!$E$11:$E$210,$B$9),SUMIFS(Einzelposten!$J$11:$J$210,Einzelposten!$C$11:$C$210,E$1,Einzelposten!$B$11:$B$210,$A30,Einzelposten!$E$11:$E$210,$B$9)*-1),2) -> 2100 | F30: =ROUND(SUM(F29,SUMIFS(Einzelposten!$I$11:$I$210,Einzelposten!$C$11:$C$210,F$1,Einzelposten!$B$11:$B$210,$A30,Einzelposten!$E$11:$E$210,$B$9),SUMIFS(Einzelposten!$J$11:$J$210,Einzelposten!$C$11:$C$210,F$1,Einzelposten!$B$11:$B$210,$A30,Einzelposten!$E$11:$E$210,$B$9)*-1),2) -> 2100 | G30: =ROUND(SUM(G29,SUMIFS(Einzelposten!$I$11:$I$210,Einzelposten!$C$11:$C$210,G$1,Einzelposten!$B$11:$B$210,$A30,Einzelposten!$E$11:$E$210,$B$9),SUMIFS(Einzelposten!$J$11:$J$210,Einzelposten!$C$11:$C$210,G$1,Einzelposten!$B$11:$B$210,$A30,Einzelposten!$E$11:$E$210,$B$9)*-1),2) -> 2100 | H30: =ROUND(SUM(H29,SUMIFS(Einzelposten!$I$11:$I$210,Einzelposten!$C$11:$C$210,H$1,Einzelposten!$B$11:$B$210,$A30,Einzelposten!$E$11:$E$210,$B$9),SUMIFS(Einzelposten!$J$11:$J$210,Einzelposten!$C$11:$C$210,H$1,Einzelposten!$B$11:$B$210,$A30,Einzelposten!$E$11:$E$210,$B$9)*-1),2) -> 2100 | I30: =ROUND(SUM(I29,SUMIFS(Einzelposten!$I$11:$I$210,Einzelposten!$C$11:$C$210,I$1,Einzelposten!$B$11:$B$210,$A30,Einzelposten!$E$11:$E$210,$B$9),SUMIFS(Einzelposten!$J$11:$J$210,Einzelposten!$C$11:$C$210,I$1,Einzelposten!$B$11:$B$210,$A30,Einzelposten!$E$11:$E$210,$B$9)*-1),2) -> 2100 | J30: =ROUND(SUM(J29,SUMIFS(Einzelposten!$I$11:$I$210,Einzelposten!$C$11:$C$210,J$1,Einzelposten!$B$11:$B$210,$A30,Einzelposten!$E$11:$E$210,$B$9),SUMIFS(Einzelposten!$J$11:$J$210,Einzelposten!$C$11:$C$210,J$1,Einzelposten!$B$11:$B$210,$A30,Einzelposten!$E$11:$E$210,$B$9)*-1),2) -> 2100 | K30: =ROUND(SUM(K29,SUMIFS(Einzelposten!$I$11:$I$210,Einzelposten!$C$11:$C$210,K$1,Einzelposten!$B$11:$B$210,$A30,Einzelposten!$E$11:$E$210,$B$9),SUMIFS(Einzelposten!$J$11:$J$210,Einzelposten!$C$11:$C$210,K$1,Einzelposten!$B$11:$B$210,$A30,Einzelposten!$E$11:$E$210,$B$9)*-1),2) -> 2100 | L30: =ROUND(SUM(L29,SUMIFS(Einzelposten!$I$11:$I$210,Einzelposten!$C$11:$C$210,L$1,Einzelposten!$B$11:$B$210,$A30,Einzelposten!$E$11:$E$210,$B$9),SUMIFS(Einzelposten!$J$11:$J$210,Einzelposten!$C$11:$C$210,L$1,Einzelposten!$B$11:$B$210,$A30,Einzelposten!$E$11:$E$210,$B$9)*-1),2) -> 2100 | M30: =ROUND(SUM(M29,SUMIFS(Einzelposten!$I$11:$I$210,Einzelposten!$C$11:$C$210,M$1,Einzelposten!$B$11:$B$210,$A30,Einzelposten!$E$11:$E$210,$B$9),SUMIFS(Einzelposten!$J$11:$J$210,Einzelposten!$C$11:$C$210,M$1,Einzelposten!$B$11:$B$210,$A30,Einzelposten!$E$11:$E$210,$B$9)*-1),2) -> 2100 | N30: =ROUND(SUM(N29,SUMIFS(Einzelposten!$I$11:$I$210,Einzelposten!$C$11:$C$210,N$1,Einzelposten!$B$11:$B$210,$A30,Einzelposten!$E$11:$E$210,$B$9),SUMIFS(Einzelposten!$J$11:$J$210,Einzelposten!$C$11:$C$210,N$1,Einzelposten!$B$11:$B$210,$A30,Einzelposten!$E$11:$E$210,$B$9)*-1),2) -> 2100
A31: 17 | B31: B | C31: =ROUND(SUM(C30,SUMIFS(Einzelposten!$I$11:$I$210,Einzelposten!$C$11:$C$210,C$1,Einzelposten!$B$11:$B$210,$A31,Einzelposten!$E$11:$E$210,$B$9),SUMIFS(Einzelposten!$J$11:$J$210,Einzelposten!$C$11:$C$210,C$1,Einzelposten!$B$11:$B$210,$A31,Einzelposten!$E$11:$E$210,$B$9)*-1),2) -> 2100 | D31: =ROUND(SUM(D30,SUMIFS(Einzelposten!$I$11:$I$210,Einzelposten!$C$11:$C$210,D$1,Einzelposten!$B$11:$B$210,$A31,Einzelposten!$E$11:$E$210,$B$9),SUMIFS(Einzelposten!$J$11:$J$210,Einzelposten!$C$11:$C$210,D$1,Einzelposten!$B$11:$B$210,$A31,Einzelposten!$E$11:$E$210,$B$9)*-1),2) -> 2100 | E31: =ROUND(SUM(E30,SUMIFS(Einzelposten!$I$11:$I$210,Einzelposten!$C$11:$C$210,E$1,Einzelposten!$B$11:$B$210,$A31,Einzelposten!$E$11:$E$210,$B$9),SUMIFS(Einzelposten!$J$11:$J$210,Einzelposten!$C$11:$C$210,E$1,Einzelposten!$B$11:$B$210,$A31,Einzelposten!$E$11:$E$210,$B$9)*-1),2) -> 2100 | F31: =ROUND(SUM(F30,SUMIFS(Einzelposten!$I$11:$I$210,Einzelposten!$C$11:$C$210,F$1,Einzelposten!$B$11:$B$210,$A31,Einzelposten!$E$11:$E$210,$B$9),SUMIFS(Einzelposten!$J$11:$J$210,Einzelposten!$C$11:$C$210,F$1,Einzelposten!$B$11:$B$210,$A31,Einzelposten!$E$11:$E$210,$B$9)*-1),2) -> 2100 | G31: =ROUND(SUM(G30,SUMIFS(Einzelposten!$I$11:$I$210,Einzelposten!$C$11:$C$210,G$1,Einzelposten!$B$11:$B$210,$A31,Einzelposten!$E$11:$E$210,$B$9),SUMIFS(Einzelposten!$J$11:$J$210,Einzelposten!$C$11:$C$210,G$1,Einzelposten!$B$11:$B$210,$A31,Einzelposten!$E$11:$E$210,$B$9)*-1),2) -> 2100 | H31: =ROUND(SUM(H30,SUMIFS(Einzelposten!$I$11:$I$210,Einzelposten!$C$11:$C$210,H$1,Einzelposten!$B$11:$B$210,$A31,Einzelposten!$E$11:$E$210,$B$9),SUMIFS(Einzelposten!$J$11:$J$210,Einzelposten!$C$11:$C$210,H$1,Einzelposten!$B$11:$B$210,$A31,Einzelposten!$E$11:$E$210,$B$9)*-1),2) -> 2100 | I31: =ROUND(SUM(I30,SUMIFS(Einzelposten!$I$11:$I$210,Einzelposten!$C$11:$C$210,I$1,Einzelposten!$B$11:$B$210,$A31,Einzelposten!$E$11:$E$210,$B$9),SUMIFS(Einzelposten!$J$11:$J$210,Einzelposten!$C$11:$C$210,I$1,Einzelposten!$B$11:$B$210,$A31,Einzelposten!$E$11:$E$210,$B$9)*-1),2) -> 2100 | J31: =ROUND(SUM(J30,SUMIFS(Einzelposten!$I$11:$I$210,Einzelposten!$C$11:$C$210,J$1,Einzelposten!$B$11:$B$210,$A31,Einzelposten!$E$11:$E$210,$B$9),SUMIFS(Einzelposten!$J$11:$J$210,Einzelposten!$C$11:$C$210,J$1,Einzelposten!$B$11:$B$210,$A31,Einzelposten!$E$11:$E$210,$B$9)*-1),2) -> 2100 | K31: =ROUND(SUM(K30,SUMIFS(Einzelposten!$I$11:$I$210,Einzelposten!$C$11:$C$210,K$1,Einzelposten!$B$11:$B$210,$A31,Einzelposten!$E$11:$E$210,$B$9),SUMIFS(Einzelposten!$J$11:$J$210,Einzelposten!$C$11:$C$210,K$1,Einzelposten!$B$11:$B$210,$A31,Einzelposten!$E$11:$E$210,$B$9)*-1),2) -> 2100 | L31: =ROUND(SUM(L30,SUMIFS(Einzelposten!$I$11:$I$210,Einzelposten!$C$11:$C$210,L$1,Einzelposten!$B$11:$B$210,$A31,Einzelposten!$E$11:$E$210,$B$9),SUMIFS(Einzelposten!$J$11:$J$210,Einzelposten!$C$11:$C$210,L$1,Einzelposten!$B$11:$B$210,$A31,Einzelposten!$E$11:$E$210,$B$9)*-1),2) -> 2100 | M31: =ROUND(SUM(M30,SUMIFS(Einzelposten!$I$11:$I$210,Einzelposten!$C$11:$C$210,M$1,Einzelposten!$B$11:$B$210,$A31,Einzelposten!$E$11:$E$210,$B$9),SUMIFS(Einzelposten!$J$11:$J$210,Einzelposten!$C$11:$C$210,M$1,Einzelposten!$B$11:$B$210,$A31,Einzelposten!$E$11:$E$210,$B$9)*-1),2) -> 2100 | N31: =ROUND(SUM(N30,SUMIFS(Einzelposten!$I$11:$I$210,Einzelposten!$C$11:$C$210,N$1,Einzelposten!$B$11:$B$210,$A31,Einzelposten!$E$11:$E$210,$B$9),SUMIFS(Einzelposten!$J$11:$J$210,Einzelposten!$C$11:$C$210,N$1,Einzelposten!$B$11:$B$210,$A31,Einzelposten!$E$11:$E$210,$B$9)*-1),2) -> 2100
A32: 18 | B32: B | C32: =ROUND(SUM(C31,SUMIFS(Einzelposten!$I$11:$I$210,Einzelposten!$C$11:$C$210,C$1,Einzelposten!$B$11:$B$210,$A32,Einzelposten!$E$11:$E$210,$B$9),SUMIFS(Einzelposten!$J$11:$J$210,Einzelposten!$C$11:$C$210,C$1,Einzelposten!$B$11:$B$210,$A32,Einzelposten!$E$11:$E$210,$B$9)*-1),2) -> 2100 | D32: =ROUND(SUM(D31,SUMIFS(Einzelposten!$I$11:$I$210,Einzelposten!$C$11:$C$210,D$1,Einzelposten!$B$11:$B$210,$A32,Einzelposten!$E$11:$E$210,$B$9),SUMIFS(Einzelposten!$J$11:$J$210,Einzelposten!$C$11:$C$210,D$1,Einzelposten!$B$11:$B$210,$A32,Einzelposten!$E$11:$E$210,$B$9)*-1),2) -> 2100 | E32: =ROUND(SUM(E31,SUMIFS(Einzelposten!$I$11:$I$210,Einzelposten!$C$11:$C$210,E$1,Einzelposten!$B$11:$B$210,$A32,Einzelposten!$E$11:$E$210,$B$9),SUMIFS(Einzelposten!$J$11:$J$210,Einzelposten!$C$11:$C$210,E$1,Einzelposten!$B$11:$B$210,$A32,Einzelposten!$E$11:$E$210,$B$9)*-1),2) -> 2100 | F32: =ROUND(SUM(F31,SUMIFS(Einzelposten!$I$11:$I$210,Einzelposten!$C$11:$C$210,F$1,Einzelposten!$B$11:$B$210,$A32,Einzelposten!$E$11:$E$210,$B$9),SUMIFS(Einzelposten!$J$11:$J$210,Einzelposten!$C$11:$C$210,F$1,Einzelposten!$B$11:$B$210,$A32,Einzelposten!$E$11:$E$210,$B$9)*-1),2) -> 2100 | G32: =ROUND(SUM(G31,SUMIFS(Einzelposten!$I$11:$I$210,Einzelposten!$C$11:$C$210,G$1,Einzelposten!$B$11:$B$210,$A32,Einzelposten!$E$11:$E$210,$B$9),SUMIFS(Einzelposten!$J$11:$J$210,Einzelposten!$C$11:$C$210,G$1,Einzelposten!$B$11:$B$210,$A32,Einzelposten!$E$11:$E$210,$B$9)*-1),2) -> 2100 | H32: =ROUND(SUM(H31,SUMIFS(Einzelposten!$I$11:$I$210,Einzelposten!$C$11:$C$210,H$1,Einzelposten!$B$11:$B$210,$A32,Einzelposten!$E$11:$E$210,$B$9),SUMIFS(Einzelposten!$J$11:$J$210,Einzelposten!$C$11:$C$210,H$1,Einzelposten!$B$11:$B$210,$A32,Einzelposten!$E$11:$E$210,$B$9)*-1),2) -> 2100 | I32: =ROUND(SUM(I31,SUMIFS(Einzelposten!$I$11:$I$210,Einzelposten!$C$11:$C$210,I$1,Einzelposten!$B$11:$B$210,$A32,Einzelposten!$E$11:$E$210,$B$9),SUMIFS(Einzelposten!$J$11:$J$210,Einzelposten!$C$11:$C$210,I$1,Einzelposten!$B$11:$B$210,$A32,Einzelposten!$E$11:$E$210,$B$9)*-1),2) -> 2100 | J32: =ROUND(SUM(J31,SUMIFS(Einzelposten!$I$11:$I$210,Einzelposten!$C$11:$C$210,J$1,Einzelposten!$B$11:$B$210,$A32,Einzelposten!$E$11:$E$210,$B$9),SUMIFS(Einzelposten!$J$11:$J$210,Einzelposten!$C$11:$C$210,J$1,Einzelposten!$B$11:$B$210,$A32,Einzelposten!$E$11:$E$210,$B$9)*-1),2) -> 2100 | K32: =ROUND(SUM(K31,SUMIFS(Einzelposten!$I$11:$I$210,Einzelposten!$C$11:$C$210,K$1,Einzelposten!$B$11:$B$210,$A32,Einzelposten!$E$11:$E$210,$B$9),SUMIFS(Einzelposten!$J$11:$J$210,Einzelposten!$C$11:$C$210,K$1,Einzelposten!$B$11:$B$210,$A32,Einzelposten!$E$11:$E$210,$B$9)*-1),2) -> 2100 | L32: =ROUND(SUM(L31,SUMIFS(Einzelposten!$I$11:$I$210,Einzelposten!$C$11:$C$210,L$1,Einzelposten!$B$11:$B$210,$A32,Einzelposten!$E$11:$E$210,$B$9),SUMIFS(Einzelposten!$J$11:$J$210,Einzelposten!$C$11:$C$210,L$1,Einzelposten!$B$11:$B$210,$A32,Einzelposten!$E$11:$E$210,$B$9)*-1),2) -> 2100 | M32: =ROUND(SUM(M31,SUMIFS(Einzelposten!$I$11:$I$210,Einzelposten!$C$11:$C$210,M$1,Einzelposten!$B$11:$B$210,$A32,Einzelposten!$E$11:$E$210,$B$9),SUMIFS(Einzelposten!$J$11:$J$210,Einzelposten!$C$11:$C$210,M$1,Einzelposten!$B$11:$B$210,$A32,Einzelposten!$E$11:$E$210,$B$9)*-1),2) -> 2100 | N32: =ROUND(SUM(N31,SUMIFS(Einzelposten!$I$11:$I$210,Einzelposten!$C$11:$C$210,N$1,Einzelposten!$B$11:$B$210,$A32,Einzelposten!$E$11:$E$210,$B$9),SUMIFS(Einzelposten!$J$11:$J$210,Einzelposten!$C$11:$C$210,N$1,Einzelposten!$B$11:$B$210,$A32,Einzelposten!$E$11:$E$210,$B$9)*-1),2) -> 2100
A33: 19 | B33: B | C33: =ROUND(SUM(C32,SUMIFS(Einzelposten!$I$11:$I$210,Einzelposten!$C$11:$C$210,C$1,Einzelposten!$B$11:$B$210,$A33,Einzelposten!$E$11:$E$210,$B$9),SUMIFS(Einzelposten!$J$11:$J$210,Einzelposten!$C$11:$C$210,C$1,Einzelposten!$B$11:$B$210,$A33,Einzelposten!$E$11:$E$210,$B$9)*-1),2) -> 2100 | D33: =ROUND(SUM(D32,SUMIFS(Einzelposten!$I$11:$I$210,Einzelposten!$C$11:$C$210,D$1,Einzelposten!$B$11:$B$210,$A33,Einzelposten!$E$11:$E$210,$B$9),SUMIFS(Einzelposten!$J$11:$J$210,Einzelposten!$C$11:$C$210,D$1,Einzelposten!$B$11:$B$210,$A33,Einzelposten!$E$11:$E$210,$B$9)*-1),2) -> 2100 | E33: =ROUND(SUM(E32,SUMIFS(Einzelposten!$I$11:$I$210,Einzelposten!$C$11:$C$210,E$1,Einzelposten!$B$11:$B$210,$A33,Einzelposten!$E$11:$E$210,$B$9),SUMIFS(Einzelposten!$J$11:$J$210,Einzelposten!$C$11:$C$210,E$1,Einzelposten!$B$11:$B$210,$A33,Einzelposten!$E$11:$E$210,$B$9)*-1),2) -> 2100 | F33: =ROUND(SUM(F32,SUMIFS(Einzelposten!$I$11:$I$210,Einzelposten!$C$11:$C$210,F$1,Einzelposten!$B$11:$B$210,$A33,Einzelposten!$E$11:$E$210,$B$9),SUMIFS(Einzelposten!$J$11:$J$210,Einzelposten!$C$11:$C$210,F$1,Einzelposten!$B$11:$B$210,$A33,Einzelposten!$E$11:$E$210,$B$9)*-1),2) -> 2100 | G33: =ROUND(SUM(G32,SUMIFS(Einzelposten!$I$11:$I$210,Einzelposten!$C$11:$C$210,G$1,Einzelposten!$B$11:$B$210,$A33,Einzelposten!$E$11:$E$210,$B$9),SUMIFS(Einzelposten!$J$11:$J$210,Einzelposten!$C$11:$C$210,G$1,Einzelposten!$B$11:$B$210,$A33,Einzelposten!$E$11:$E$210,$B$9)*-1),2) -> 2100 | H33: =ROUND(SUM(H32,SUMIFS(Einzelposten!$I$11:$I$210,Einzelposten!$C$11:$C$210,H$1,Einzelposten!$B$11:$B$210,$A33,Einzelposten!$E$11:$E$210,$B$9),SUMIFS(Einzelposten!$J$11:$J$210,Einzelposten!$C$11:$C$210,H$1,Einzelposten!$B$11:$B$210,$A33,Einzelposten!$E$11:$E$210,$B$9)*-1),2) -> 2100 | I33: =ROUND(SUM(I32,SUMIFS(Einzelposten!$I$11:$I$210,Einzelposten!$C$11:$C$210,I$1,Einzelposten!$B$11:$B$210,$A33,Einzelposten!$E$11:$E$210,$B$9),SUMIFS(Einzelposten!$J$11:$J$210,Einzelposten!$C$11:$C$210,I$1,Einzelposten!$B$11:$B$210,$A33,Einzelposten!$E$11:$E$210,$B$9)*-1),2) -> 2100 | J33: =ROUND(SUM(J32,SUMIFS(Einzelposten!$I$11:$I$210,Einzelposten!$C$11:$C$210,J$1,Einzelposten!$B$11:$B$210,$A33,Einzelposten!$E$11:$E$210,$B$9),SUMIFS(Einzelposten!$J$11:$J$210,Einzelposten!$C$11:$C$210,J$1,Einzelposten!$B$11:$B$210,$A33,Einzelposten!$E$11:$E$210,$B$9)*-1),2) -> 2100 | K33: =ROUND(SUM(K32,SUMIFS(Einzelposten!$I$11:$I$210,Einzelposten!$C$11:$C$210,K$1,Einzelposten!$B$11:$B$210,$A33,Einzelposten!$E$11:$E$210,$B$9),SUMIFS(Einzelposten!$J$11:$J$210,Einzelposten!$C$11:$C$210,K$1,Einzelposten!$B$11:$B$210,$A33,Einzelposten!$E$11:$E$210,$B$9)*-1),2) -> 2100 | L33: =ROUND(SUM(L32,SUMIFS(Einzelposten!$I$11:$I$210,Einzelposten!$C$11:$C$210,L$1,Einzelposten!$B$11:$B$210,$A33,Einzelposten!$E$11:$E$210,$B$9),SUMIFS(Einzelposten!$J$11:$J$210,Einzelposten!$C$11:$C$210,L$1,Einzelposten!$B$11:$B$210,$A33,Einzelposten!$E$11:$E$210,$B$9)*-1),2) -> 2100 | M33: =ROUND(SUM(M32,SUMIFS(Einzelposten!$I$11:$I$210,Einzelposten!$C$11:$C$210,M$1,Einzelposten!$B$11:$B$210,$A33,Einzelposten!$E$11:$E$210,$B$9),SUMIFS(Einzelposten!$J$11:$J$210,Einzelposten!$C$11:$C$210,M$1,Einzelposten!$B$11:$B$210,$A33,Einzelposten!$E$11:$E$210,$B$9)*-1),2) -> 2100 | N33: =ROUND(SUM(N32,SUMIFS(Einzelposten!$I$11:$I$210,Einzelposten!$C$11:$C$210,N$1,Einzelposten!$B$11:$B$210,$A33,Einzelposten!$E$11:$E$210,$B$9),SUMIFS(Einzelposten!$J$11:$J$210,Einzelposten!$C$11:$C$210,N$1,Einzelposten!$B$11:$B$210,$A33,Einzelposten!$E$11:$E$210,$B$9)*-1),2) -> 2100
A34: 20 | B34: B | C34: =ROUND(SUM(C33,SUMIFS(Einzelposten!$I$11:$I$210,Einzelposten!$C$11:$C$210,C$1,Einzelposten!$B$11:$B$210,$A34,Einzelposten!$E$11:$E$210,$B$9),SUMIFS(Einzelposten!$J$11:$J$210,Einzelposten!$C$11:$C$210,C$1,Einzelposten!$B$11:$B$210,$A34,Einzelposten!$E$11:$E$210,$B$9)*-1),2) -> 2100 | D34: =ROUND(SUM(D33,SUMIFS(Einzelposten!$I$11:$I$210,Einzelposten!$C$11:$C$210,D$1,Einzelposten!$B$11:$B$210,$A34,Einzelposten!$E$11:$E$210,$B$9),SUMIFS(Einzelposten!$J$11:$J$210,Einzelposten!$C$11:$C$210,D$1,Einzelposten!$B$11:$B$210,$A34,Einzelposten!$E$11:$E$210,$B$9)*-1),2) -> 2100 | E34: =ROUND(SUM(E33,SUMIFS(Einzelposten!$I$11:$I$210,Einzelposten!$C$11:$C$210,E$1,Einzelposten!$B$11:$B$210,$A34,Einzelposten!$E$11:$E$210,$B$9),SUMIFS(Einzelposten!$J$11:$J$210,Einzelposten!$C$11:$C$210,E$1,Einzelposten!$B$11:$B$210,$A34,Einzelposten!$E$11:$E$210,$B$9)*-1),2) -> 2100 | F34: =ROUND(SUM(F33,SUMIFS(Einzelposten!$I$11:$I$210,Einzelposten!$C$11:$C$210,F$1,Einzelposten!$B$11:$B$210,$A34,Einzelposten!$E$11:$E$210,$B$9),SUMIFS(Einzelposten!$J$11:$J$210,Einzelposten!$C$11:$C$210,F$1,Einzelposten!$B$11:$B$210,$A34,Einzelposten!$E$11:$E$210,$B$9)*-1),2) -> 2100 | G34: =ROUND(SUM(G33,SUMIFS(Einzelposten!$I$11:$I$210,Einzelposten!$C$11:$C$210,G$1,Einzelposten!$B$11:$B$210,$A34,Einzelposten!$E$11:$E$210,$B$9),SUMIFS(Einzelposten!$J$11:$J$210,Einzelposten!$C$11:$C$210,G$1,Einzelposten!$B$11:$B$210,$A34,Einzelposten!$E$11:$E$210,$B$9)*-1),2) -> 2100 | H34: =ROUND(SUM(H33,SUMIFS(Einzelposten!$I$11:$I$210,Einzelposten!$C$11:$C$210,H$1,Einzelposten!$B$11:$B$210,$A34,Einzelposten!$E$11:$E$210,$B$9),SUMIFS(Einzelposten!$J$11:$J$210,Einzelposten!$C$11:$C$210,H$1,Einzelposten!$B$11:$B$210,$A34,Einzelposten!$E$11:$E$210,$B$9)*-1),2) -> 2100 | I34: =ROUND(SUM(I33,SUMIFS(Einzelposten!$I$11:$I$210,Einzelposten!$C$11:$C$210,I$1,Einzelposten!$B$11:$B$210,$A34,Einzelposten!$E$11:$E$210,$B$9),SUMIFS(Einzelposten!$J$11:$J$210,Einzelposten!$C$11:$C$210,I$1,Einzelposten!$B$11:$B$210,$A34,Einzelposten!$E$11:$E$210,$B$9)*-1),2) -> 2100 | J34: =ROUND(SUM(J33,SUMIFS(Einzelposten!$I$11:$I$210,Einzelposten!$C$11:$C$210,J$1,Einzelposten!$B$11:$B$210,$A34,Einzelposten!$E$11:$E$210,$B$9),SUMIFS(Einzelposten!$J$11:$J$210,Einzelposten!$C$11:$C$210,J$1,Einzelposten!$B$11:$B$210,$A34,Einzelposten!$E$11:$E$210,$B$9)*-1),2) -> 2100 | K34: =ROUND(SUM(K33,SUMIFS(Einzelposten!$I$11:$I$210,Einzelposten!$C$11:$C$210,K$1,Einzelposten!$B$11:$B$210,$A34,Einzelposten!$E$11:$E$210,$B$9),SUMIFS(Einzelposten!$J$11:$J$210,Einzelposten!$C$11:$C$210,K$1,Einzelposten!$B$11:$B$210,$A34,Einzelposten!$E$11:$E$210,$B$9)*-1),2) -> 2100 | L34: =ROUND(SUM(L33,SUMIFS(Einzelposten!$I$11:$I$210,Einzelposten!$C$11:$C$210,L$1,Einzelposten!$B$11:$B$210,$A34,Einzelposten!$E$11:$E$210,$B$9),SUMIFS(Einzelposten!$J$11:$J$210,Einzelposten!$C$11:$C$210,L$1,Einzelposten!$B$11:$B$210,$A34,Einzelposten!$E$11:$E$210,$B$9)*-1),2) -> 2100 | M34: =ROUND(SUM(M33,SUMIFS(Einzelposten!$I$11:$I$210,Einzelposten!$C$11:$C$210,M$1,Einzelposten!$B$11:$B$210,$A34,Einzelposten!$E$11:$E$210,$B$9),SUMIFS(Einzelposten!$J$11:$J$210,Einzelposten!$C$11:$C$210,M$1,Einzelposten!$B$11:$B$210,$A34,Einzelposten!$E$11:$E$210,$B$9)*-1),2) -> 2100 | N34: =ROUND(SUM(N33,SUMIFS(Einzelposten!$I$11:$I$210,Einzelposten!$C$11:$C$210,N$1,Einzelposten!$B$11:$B$210,$A34,Einzelposten!$E$11:$E$210,$B$9),SUMIFS(Einzelposten!$J$11:$J$210,Einzelposten!$C$11:$C$210,N$1,Einzelposten!$B$11:$B$210,$A34,Einzelposten!$E$11:$E$210,$B$9)*-1),2) -> 2100
A35: 21 | B35: B | C35: =ROUND(SUM(C34,SUMIFS(Einzelposten!$I$11:$I$210,Einzelposten!$C$11:$C$210,C$1,Einzelposten!$B$11:$B$210,$A35,Einzelposten!$E$11:$E$210,$B$9),SUMIFS(Einzelposten!$J$11:$J$210,Einzelposten!$C$11:$C$210,C$1,Einzelposten!$B$11:$B$210,$A35,Einzelposten!$E$11:$E$210,$B$9)*-1),2) -> 2100 | D35: =ROUND(SUM(D34,SUMIFS(Einzelposten!$I$11:$I$210,Einzelposten!$C$11:$C$210,D$1,Einzelposten!$B$11:$B$210,$A35,Einzelposten!$E$11:$E$210,$B$9),SUMIFS(Einzelposten!$J$11:$J$210,Einzelposten!$C$11:$C$210,D$1,Einzelposten!$B$11:$B$210,$A35,Einzelposten!$E$11:$E$210,$B$9)*-1),2) -> 2100 | E35: =ROUND(SUM(E34,SUMIFS(Einzelposten!$I$11:$I$210,Einzelposten!$C$11:$C$210,E$1,Einzelposten!$B$11:$B$210,$A35,Einzelposten!$E$11:$E$210,$B$9),SUMIFS(Einzelposten!$J$11:$J$210,Einzelposten!$C$11:$C$210,E$1,Einzelposten!$B$11:$B$210,$A35,Einzelposten!$E$11:$E$210,$B$9)*-1),2) -> 2100 | F35: =ROUND(SUM(F34,SUMIFS(Einzelposten!$I$11:$I$210,Einzelposten!$C$11:$C$210,F$1,Einzelposten!$B$11:$B$210,$A35,Einzelposten!$E$11:$E$210,$B$9),SUMIFS(Einzelposten!$J$11:$J$210,Einzelposten!$C$11:$C$210,F$1,Einzelposten!$B$11:$B$210,$A35,Einzelposten!$E$11:$E$210,$B$9)*-1),2) -> 2100 | G35: =ROUND(SUM(G34,SUMIFS(Einzelposten!$I$11:$I$210,Einzelposten!$C$11:$C$210,G$1,Einzelposten!$B$11:$B$210,$A35,Einzelposten!$E$11:$E$210,$B$9),SUMIFS(Einzelposten!$J$11:$J$210,Einzelposten!$C$11:$C$210,G$1,Einzelposten!$B$11:$B$210,$A35,Einzelposten!$E$11:$E$210,$B$9)*-1),2) -> 2100 | H35: =ROUND(SUM(H34,SUMIFS(Einzelposten!$I$11:$I$210,Einzelposten!$C$11:$C$210,H$1,Einzelposten!$B$11:$B$210,$A35,Einzelposten!$E$11:$E$210,$B$9),SUMIFS(Einzelposten!$J$11:$J$210,Einzelposten!$C$11:$C$210,H$1,Einzelposten!$B$11:$B$210,$A35,Einzelposten!$E$11:$E$210,$B$9)*-1),2) -> 2100 | I35: =ROUND(SUM(I34,SUMIFS(Einzelposten!$I$11:$I$210,Einzelposten!$C$11:$C$210,I$1,Einzelposten!$B$11:$B$210,$A35,Einzelposten!$E$11:$E$210,$B$9),SUMIFS(Einzelposten!$J$11:$J$210,Einzelposten!$C$11:$C$210,I$1,Einzelposten!$B$11:$B$210,$A35,Einzelposten!$E$11:$E$210,$B$9)*-1),2) -> 2100 | J35: =ROUND(SUM(J34,SUMIFS(Einzelposten!$I$11:$I$210,Einzelposten!$C$11:$C$210,J$1,Einzelposten!$B$11:$B$210,$A35,Einzelposten!$E$11:$E$210,$B$9),SUMIFS(Einzelposten!$J$11:$J$210,Einzelposten!$C$11:$C$210,J$1,Einzelposten!$B$11:$B$210,$A35,Einzelposten!$E$11:$E$210,$B$9)*-1),2) -> 2100 | K35: =ROUND(SUM(K34,SUMIFS(Einzelposten!$I$11:$I$210,Einzelposten!$C$11:$C$210,K$1,Einzelposten!$B$11:$B$210,$A35,Einzelposten!$E$11:$E$210,$B$9),SUMIFS(Einzelposten!$J$11:$J$210,Einzelposten!$C$11:$C$210,K$1,Einzelposten!$B$11:$B$210,$A35,Einzelposten!$E$11:$E$210,$B$9)*-1),2) -> 2100 | L35: =ROUND(SUM(L34,SUMIFS(Einzelposten!$I$11:$I$210,Einzelposten!$C$11:$C$210,L$1,Einzelposten!$B$11:$B$210,$A35,Einzelposten!$E$11:$E$210,$B$9),SUMIFS(Einzelposten!$J$11:$J$210,Einzelposten!$C$11:$C$210,L$1,Einzelposten!$B$11:$B$210,$A35,Einzelposten!$E$11:$E$210,$B$9)*-1),2) -> 2100 | M35: =ROUND(SUM(M34,SUMIFS(Einzelposten!$I$11:$I$210,Einzelposten!$C$11:$C$210,M$1,Einzelposten!$B$11:$B$210,$A35,Einzelposten!$E$11:$E$210,$B$9),SUMIFS(Einzelposten!$J$11:$J$210,Einzelposten!$C$11:$C$210,M$1,Einzelposten!$B$11:$B$210,$A35,Einzelposten!$E$11:$E$210,$B$9)*-1),2) -> 2100 | N35: =ROUND(SUM(N34,SUMIFS(Einzelposten!$I$11:$I$210,Einzelposten!$C$11:$C$210,N$1,Einzelposten!$B$11:$B$210,$A35,Einzelposten!$E$11:$E$210,$B$9),SUMIFS(Einzelposten!$J$11:$J$210,Einzelposten!$C$11:$C$210,N$1,Einzelposten!$B$11:$B$210,$A35,Einzelposten!$E$11:$E$210,$B$9)*-1),2) -> 2100
A36: 22 | B36: B | C36: =ROUND(SUM(C35,SUMIFS(Einzelposten!$I$11:$I$210,Einzelposten!$C$11:$C$210,C$1,Einzelposten!$B$11:$B$210,$A36,Einzelposten!$E$11:$E$210,$B$9),SUMIFS(Einzelposten!$J$11:$J$210,Einzelposten!$C$11:$C$210,C$1,Einzelposten!$B$11:$B$210,$A36,Einzelposten!$E$11:$E$210,$B$9)*-1),2) -> 2100 | D36: =ROUND(SUM(D35,SUMIFS(Einzelposten!$I$11:$I$210,Einzelposten!$C$11:$C$210,D$1,Einzelposten!$B$11:$B$210,$A36,Einzelposten!$E$11:$E$210,$B$9),SUMIFS(Einzelposten!$J$11:$J$210,Einzelposten!$C$11:$C$210,D$1,Einzelposten!$B$11:$B$210,$A36,Einzelposten!$E$11:$E$210,$B$9)*-1),2) -> 2100 | E36: =ROUND(SUM(E35,SUMIFS(Einzelposten!$I$11:$I$210,Einzelposten!$C$11:$C$210,E$1,Einzelposten!$B$11:$B$210,$A36,Einzelposten!$E$11:$E$210,$B$9),SUMIFS(Einzelposten!$J$11:$J$210,Einzelposten!$C$11:$C$210,E$1,Einzelposten!$B$11:$B$210,$A36,Einzelposten!$E$11:$E$210,$B$9)*-1),2) -> 2100 | F36: =ROUND(SUM(F35,SUMIFS(Einzelposten!$I$11:$I$210,Einzelposten!$C$11:$C$210,F$1,Einzelposten!$B$11:$B$210,$A36,Einzelposten!$E$11:$E$210,$B$9),SUMIFS(Einzelposten!$J$11:$J$210,Einzelposten!$C$11:$C$210,F$1,Einzelposten!$B$11:$B$210,$A36,Einzelposten!$E$11:$E$210,$B$9)*-1),2) -> 2100 | G36: =ROUND(SUM(G35,SUMIFS(Einzelposten!$I$11:$I$210,Einzelposten!$C$11:$C$210,G$1,Einzelposten!$B$11:$B$210,$A36,Einzelposten!$E$11:$E$210,$B$9),SUMIFS(Einzelposten!$J$11:$J$210,Einzelposten!$C$11:$C$210,G$1,Einzelposten!$B$11:$B$210,$A36,Einzelposten!$E$11:$E$210,$B$9)*-1),2) -> 2100 | H36: =ROUND(SUM(H35,SUMIFS(Einzelposten!$I$11:$I$210,Einzelposten!$C$11:$C$210,H$1,Einzelposten!$B$11:$B$210,$A36,Einzelposten!$E$11:$E$210,$B$9),SUMIFS(Einzelposten!$J$11:$J$210,Einzelposten!$C$11:$C$210,H$1,Einzelposten!$B$11:$B$210,$A36,Einzelposten!$E$11:$E$210,$B$9)*-1),2) -> 2100 | I36: =ROUND(SUM(I35,SUMIFS(Einzelposten!$I$11:$I$210,Einzelposten!$C$11:$C$210,I$1,Einzelposten!$B$11:$B$210,$A36,Einzelposten!$E$11:$E$210,$B$9),SUMIFS(Einzelposten!$J$11:$J$210,Einzelposten!$C$11:$C$210,I$1,Einzelposten!$B$11:$B$210,$A36,Einzelposten!$E$11:$E$210,$B$9)*-1),2) -> 2100 | J36: =ROUND(SUM(J35,SUMIFS(Einzelposten!$I$11:$I$210,Einzelposten!$C$11:$C$210,J$1,Einzelposten!$B$11:$B$210,$A36,Einzelposten!$E$11:$E$210,$B$9),SUMIFS(Einzelposten!$J$11:$J$210,Einzelposten!$C$11:$C$210,J$1,Einzelposten!$B$11:$B$210,$A36,Einzelposten!$E$11:$E$210,$B$9)*-1),2) -> 2100 | K36: =ROUND(SUM(K35,SUMIFS(Einzelposten!$I$11:$I$210,Einzelposten!$C$11:$C$210,K$1,Einzelposten!$B$11:$B$210,$A36,Einzelposten!$E$11:$E$210,$B$9),SUMIFS(Einzelposten!$J$11:$J$210,Einzelposten!$C$11:$C$210,K$1,Einzelposten!$B$11:$B$210,$A36,Einzelposten!$E$11:$E$210,$B$9)*-1),2) -> 2100 | L36: =ROUND(SUM(L35,SUMIFS(Einzelposten!$I$11:$I$210,Einzelposten!$C$11:$C$210,L$1,Einzelposten!$B$11:$B$210,$A36,Einzelposten!$E$11:$E$210,$B$9),SUMIFS(Einzelposten!$J$11:$J$210,Einzelposten!$C$11:$C$210,L$1,Einzelposten!$B$11:$B$210,$A36,Einzelposten!$E$11:$E$210,$B$9)*-1),2) -> 2100 | M36: =ROUND(SUM(M35,SUMIFS(Einzelposten!$I$11:$I$210,Einzelposten!$C$11:$C$210,M$1,Einzelposten!$B$11:$B$210,$A36,Einzelposten!$E$11:$E$210,$B$9),SUMIFS(Einzelposten!$J$11:$J$210,Einzelposten!$C$11:$C$210,M$1,Einzelposten!$B$11:$B$210,$A36,Einzelposten!$E$11:$E$210,$B$9)*-1),2) -> 2100 | N36: =ROUND(SUM(N35,SUMIFS(Einzelposten!$I$11:$I$210,Einzelposten!$C$11:$C$210,N$1,Einzelposten!$B$11:$B$210,$A36,Einzelposten!$E$11:$E$210,$B$9),SUMIFS(Einzelposten!$J$11:$J$210,Einzelposten!$C$11:$C$210,N$1,Einzelposten!$B$11:$B$210,$A36,Einzelposten!$E$11:$E$210,$B$9)*-1),2) -> 2100
A37: 23 | B37: B | C37: =ROUND(SUM(C36,SUMIFS(Einzelposten!$I$11:$I$210,Einzelposten!$C$11:$C$210,C$1,Einzelposten!$B$11:$B$210,$A37,Einzelposten!$E$11:$E$210,$B$9),SUMIFS(Einzelposten!$J$11:$J$210,Einzelposten!$C$11:$C$210,C$1,Einzelposten!$B$11:$B$210,$A37,Einzelposten!$E$11:$E$210,$B$9)*-1),2) -> 2100 | D37: =ROUND(SUM(D36,SUMIFS(Einzelposten!$I$11:$I$210,Einzelposten!$C$11:$C$210,D$1,Einzelposten!$B$11:$B$210,$A37,Einzelposten!$E$11:$E$210,$B$9),SUMIFS(Einzelposten!$J$11:$J$210,Einzelposten!$C$11:$C$210,D$1,Einzelposten!$B$11:$B$210,$A37,Einzelposten!$E$11:$E$210,$B$9)*-1),2) -> 2100 | E37: =ROUND(SUM(E36,SUMIFS(Einzelposten!$I$11:$I$210,Einzelposten!$C$11:$C$210,E$1,Einzelposten!$B$11:$B$210,$A37,Einzelposten!$E$11:$E$210,$B$9),SUMIFS(Einzelposten!$J$11:$J$210,Einzelposten!$C$11:$C$210,E$1,Einzelposten!$B$11:$B$210,$A37,Einzelposten!$E$11:$E$210,$B$9)*-1),2) -> 2100 | F37: =ROUND(SUM(F36,SUMIFS(Einzelposten!$I$11:$I$210,Einzelposten!$C$11:$C$210,F$1,Einzelposten!$B$11:$B$210,$A37,Einzelposten!$E$11:$E$210,$B$9),SUMIFS(Einzelposten!$J$11:$J$210,Einzelposten!$C$11:$C$210,F$1,Einzelposten!$B$11:$B$210,$A37,Einzelposten!$E$11:$E$210,$B$9)*-1),2) -> 2100 | G37: =ROUND(SUM(G36,SUMIFS(Einzelposten!$I$11:$I$210,Einzelposten!$C$11:$C$210,G$1,Einzelposten!$B$11:$B$210,$A37,Einzelposten!$E$11:$E$210,$B$9),SUMIFS(Einzelposten!$J$11:$J$210,Einzelposten!$C$11:$C$210,G$1,Einzelposten!$B$11:$B$210,$A37,Einzelposten!$E$11:$E$210,$B$9)*-1),2) -> 2100 | H37: =ROUND(SUM(H36,SUMIFS(Einzelposten!$I$11:$I$210,Einzelposten!$C$11:$C$210,H$1,Einzelposten!$B$11:$B$210,$A37,Einzelposten!$E$11:$E$210,$B$9),SUMIFS(Einzelposten!$J$11:$J$210,Einzelposten!$C$11:$C$210,H$1,Einzelposten!$B$11:$B$210,$A37,Einzelposten!$E$11:$E$210,$B$9)*-1),2) -> 2100 | I37: =ROUND(SUM(I36,SUMIFS(Einzelposten!$I$11:$I$210,Einzelposten!$C$11:$C$210,I$1,Einzelposten!$B$11:$B$210,$A37,Einzelposten!$E$11:$E$210,$B$9),SUMIFS(Einzelposten!$J$11:$J$210,Einzelposten!$C$11:$C$210,I$1,Einzelposten!$B$11:$B$210,$A37,Einzelposten!$E$11:$E$210,$B$9)*-1),2) -> 2100 | J37: =ROUND(SUM(J36,SUMIFS(Einzelposten!$I$11:$I$210,Einzelposten!$C$11:$C$210,J$1,Einzelposten!$B$11:$B$210,$A37,Einzelposten!$E$11:$E$210,$B$9),SUMIFS(Einzelposten!$J$11:$J$210,Einzelposten!$C$11:$C$210,J$1,Einzelposten!$B$11:$B$210,$A37,Einzelposten!$E$11:$E$210,$B$9)*-1),2) -> 2100 | K37: =ROUND(SUM(K36,SUMIFS(Einzelposten!$I$11:$I$210,Einzelposten!$C$11:$C$210,K$1,Einzelposten!$B$11:$B$210,$A37,Einzelposten!$E$11:$E$210,$B$9),SUMIFS(Einzelposten!$J$11:$J$210,Einzelposten!$C$11:$C$210,K$1,Einzelposten!$B$11:$B$210,$A37,Einzelposten!$E$11:$E$210,$B$9)*-1),2) -> 2100 | L37: =ROUND(SUM(L36,SUMIFS(Einzelposten!$I$11:$I$210,Einzelposten!$C$11:$C$210,L$1,Einzelposten!$B$11:$B$210,$A37,Einzelposten!$E$11:$E$210,$B$9),SUMIFS(Einzelposten!$J$11:$J$210,Einzelposten!$C$11:$C$210,L$1,Einzelposten!$B$11:$B$210,$A37,Einzelposten!$E$11:$E$210,$B$9)*-1),2) -> 2100 | M37: =ROUND(SUM(M36,SUMIFS(Einzelposten!$I$11:$I$210,Einzelposten!$C$11:$C$210,M$1,Einzelposten!$B$11:$B$210,$A37,Einzelposten!$E$11:$E$210,$B$9),SUMIFS(Einzelposten!$J$11:$J$210,Einzelposten!$C$11:$C$210,M$1,Einzelposten!$B$11:$B$210,$A37,Einzelposten!$E$11:$E$210,$B$9)*-1),2) -> 2100 | N37: =ROUND(SUM(N36,SUMIFS(Einzelposten!$I$11:$I$210,Einzelposten!$C$11:$C$210,N$1,Einzelposten!$B$11:$B$210,$A37,Einzelposten!$E$11:$E$210,$B$9),SUMIFS(Einzelposten!$J$11:$J$210,Einzelposten!$C$11:$C$210,N$1,Einzelposten!$B$11:$B$210,$A37,Einzelposten!$E$11:$E$210,$B$9)*-1),2) -> 2100
A38: 24 | B38: B | C38: =ROUND(SUM(C37,SUMIFS(Einzelposten!$I$11:$I$210,Einzelposten!$C$11:$C$210,C$1,Einzelposten!$B$11:$B$210,$A38,Einzelposten!$E$11:$E$210,$B$9),SUMIFS(Einzelposten!$J$11:$J$210,Einzelposten!$C$11:$C$210,C$1,Einzelposten!$B$11:$B$210,$A38,Einzelposten!$E$11:$E$210,$B$9)*-1),2) -> 2100 | D38: =ROUND(SUM(D37,SUMIFS(Einzelposten!$I$11:$I$210,Einzelposten!$C$11:$C$210,D$1,Einzelposten!$B$11:$B$210,$A38,Einzelposten!$E$11:$E$210,$B$9),SUMIFS(Einzelposten!$J$11:$J$210,Einzelposten!$C$11:$C$210,D$1,Einzelposten!$B$11:$B$210,$A38,Einzelposten!$E$11:$E$210,$B$9)*-1),2) -> 2100 | E38: =ROUND(SUM(E37,SUMIFS(Einzelposten!$I$11:$I$210,Einzelposten!$C$11:$C$210,E$1,Einzelposten!$B$11:$B$210,$A38,Einzelposten!$E$11:$E$210,$B$9),SUMIFS(Einzelposten!$J$11:$J$210,Einzelposten!$C$11:$C$210,E$1,Einzelposten!$B$11:$B$210,$A38,Einzelposten!$E$11:$E$210,$B$9)*-1),2) -> 2100 | F38: =ROUND(SUM(F37,SUMIFS(Einzelposten!$I$11:$I$210,Einzelposten!$C$11:$C$210,F$1,Einzelposten!$B$11:$B$210,$A38,Einzelposten!$E$11:$E$210,$B$9),SUMIFS(Einzelposten!$J$11:$J$210,Einzelposten!$C$11:$C$210,F$1,Einzelposten!$B$11:$B$210,$A38,Einzelposten!$E$11:$E$210,$B$9)*-1),2) -> 2100 | G38: =ROUND(SUM(G37,SUMIFS(Einzelposten!$I$11:$I$210,Einzelposten!$C$11:$C$210,G$1,Einzelposten!$B$11:$B$210,$A38,Einzelposten!$E$11:$E$210,$B$9),SUMIFS(Einzelposten!$J$11:$J$210,Einzelposten!$C$11:$C$210,G$1,Einzelposten!$B$11:$B$210,$A38,Einzelposten!$E$11:$E$210,$B$9)*-1),2) -> 2100 | H38: =ROUND(SUM(H37,SUMIFS(Einzelposten!$I$11:$I$210,Einzelposten!$C$11:$C$210,H$1,Einzelposten!$B$11:$B$210,$A38,Einzelposten!$E$11:$E$210,$B$9),SUMIFS(Einzelposten!$J$11:$J$210,Einzelposten!$C$11:$C$210,H$1,Einzelposten!$B$11:$B$210,$A38,Einzelposten!$E$11:$E$210,$B$9)*-1),2) -> 2100 | I38: =ROUND(SUM(I37,SUMIFS(Einzelposten!$I$11:$I$210,Einzelposten!$C$11:$C$210,I$1,Einzelposten!$B$11:$B$210,$A38,Einzelposten!$E$11:$E$210,$B$9),SUMIFS(Einzelposten!$J$11:$J$210,Einzelposten!$C$11:$C$210,I$1,Einzelposten!$B$11:$B$210,$A38,Einzelposten!$E$11:$E$210,$B$9)*-1),2) -> 2100 | J38: =ROUND(SUM(J37,SUMIFS(Einzelposten!$I$11:$I$210,Einzelposten!$C$11:$C$210,J$1,Einzelposten!$B$11:$B$210,$A38,Einzelposten!$E$11:$E$210,$B$9),SUMIFS(Einzelposten!$J$11:$J$210,Einzelposten!$C$11:$C$210,J$1,Einzelposten!$B$11:$B$210,$A38,Einzelposten!$E$11:$E$210,$B$9)*-1),2) -> 2100 | K38: =ROUND(SUM(K37,SUMIFS(Einzelposten!$I$11:$I$210,Einzelposten!$C$11:$C$210,K$1,Einzelposten!$B$11:$B$210,$A38,Einzelposten!$E$11:$E$210,$B$9),SUMIFS(Einzelposten!$J$11:$J$210,Einzelposten!$C$11:$C$210,K$1,Einzelposten!$B$11:$B$210,$A38,Einzelposten!$E$11:$E$210,$B$9)*-1),2) -> 2100 | L38: =ROUND(SUM(L37,SUMIFS(Einzelposten!$I$11:$I$210,Einzelposten!$C$11:$C$210,L$1,Einzelposten!$B$11:$B$210,$A38,Einzelposten!$E$11:$E$210,$B$9),SUMIFS(Einzelposten!$J$11:$J$210,Einzelposten!$C$11:$C$210,L$1,Einzelposten!$B$11:$B$210,$A38,Einzelposten!$E$11:$E$210,$B$9)*-1),2) -> 2100 | M38: =ROUND(SUM(M37,SUMIFS(Einzelposten!$I$11:$I$210,Einzelposten!$C$11:$C$210,M$1,Einzelposten!$B$11:$B$210,$A38,Einzelposten!$E$11:$E$210,$B$9),SUMIFS(Einzelposten!$J$11:$J$210,Einzelposten!$C$11:$C$210,M$1,Einzelposten!$B$11:$B$210,$A38,Einzelposten!$E$11:$E$210,$B$9)*-1),2) -> 2100 | N38: =ROUND(SUM(N37,SUMIFS(Einzelposten!$I$11:$I$210,Einzelposten!$C$11:$C$210,N$1,Einzelposten!$B$11:$B$210,$A38,Einzelposten!$E$11:$E$210,$B$9),SUMIFS(Einzelposten!$J$11:$J$210,Einzelposten!$C$11:$C$210,N$1,Einzelposten!$B$11:$B$210,$A38,Einzelposten!$E$11:$E$210,$B$9)*-1),2) -> 2100
A39: 25 | B39: B | C39: =ROUND(SUM(C38,SUMIFS(Einzelposten!$I$11:$I$210,Einzelposten!$C$11:$C$210,C$1,Einzelposten!$B$11:$B$210,$A39,Einzelposten!$E$11:$E$210,$B$9),SUMIFS(Einzelposten!$J$11:$J$210,Einzelposten!$C$11:$C$210,C$1,Einzelposten!$B$11:$B$210,$A39,Einzelposten!$E$11:$E$210,$B$9)*-1),2) -> 2100 | D39: =ROUND(SUM(D38,SUMIFS(Einzelposten!$I$11:$I$210,Einzelposten!$C$11:$C$210,D$1,Einzelposten!$B$11:$B$210,$A39,Einzelposten!$E$11:$E$210,$B$9),SUMIFS(Einzelposten!$J$11:$J$210,Einzelposten!$C$11:$C$210,D$1,Einzelposten!$B$11:$B$210,$A39,Einzelposten!$E$11:$E$210,$B$9)*-1),2) -> 2100 | E39: =ROUND(SUM(E38,SUMIFS(Einzelposten!$I$11:$I$210,Einzelposten!$C$11:$C$210,E$1,Einzelposten!$B$11:$B$210,$A39,Einzelposten!$E$11:$E$210,$B$9),SUMIFS(Einzelposten!$J$11:$J$210,Einzelposten!$C$11:$C$210,E$1,Einzelposten!$B$11:$B$210,$A39,Einzelposten!$E$11:$E$210,$B$9)*-1),2) -> 2100 | F39: =ROUND(SUM(F38,SUMIFS(Einzelposten!$I$11:$I$210,Einzelposten!$C$11:$C$210,F$1,Einzelposten!$B$11:$B$210,$A39,Einzelposten!$E$11:$E$210,$B$9),SUMIFS(Einzelposten!$J$11:$J$210,Einzelposten!$C$11:$C$210,F$1,Einzelposten!$B$11:$B$210,$A39,Einzelposten!$E$11:$E$210,$B$9)*-1),2) -> 2100 | G39: =ROUND(SUM(G38,SUMIFS(Einzelposten!$I$11:$I$210,Einzelposten!$C$11:$C$210,G$1,Einzelposten!$B$11:$B$210,$A39,Einzelposten!$E$11:$E$210,$B$9),SUMIFS(Einzelposten!$J$11:$J$210,Einzelposten!$C$11:$C$210,G$1,Einzelposten!$B$11:$B$210,$A39,Einzelposten!$E$11:$E$210,$B$9)*-1),2) -> 2100 | H39: =ROUND(SUM(H38,SUMIFS(Einzelposten!$I$11:$I$210,Einzelposten!$C$11:$C$210,H$1,Einzelposten!$B$11:$B$210,$A39,Einzelposten!$E$11:$E$210,$B$9),SUMIFS(Einzelposten!$J$11:$J$210,Einzelposten!$C$11:$C$210,H$1,Einzelposten!$B$11:$B$210,$A39,Einzelposten!$E$11:$E$210,$B$9)*-1),2) -> 2100 | I39: =ROUND(SUM(I38,SUMIFS(Einzelposten!$I$11:$I$210,Einzelposten!$C$11:$C$210,I$1,Einzelposten!$B$11:$B$210,$A39,Einzelposten!$E$11:$E$210,$B$9),SUMIFS(Einzelposten!$J$11:$J$210,Einzelposten!$C$11:$C$210,I$1,Einzelposten!$B$11:$B$210,$A39,Einzelposten!$E$11:$E$210,$B$9)*-1),2) -> 2100 | J39: =ROUND(SUM(J38,SUMIFS(Einzelposten!$I$11:$I$210,Einzelposten!$C$11:$C$210,J$1,Einzelposten!$B$11:$B$210,$A39,Einzelposten!$E$11:$E$210,$B$9),SUMIFS(Einzelposten!$J$11:$J$210,Einzelposten!$C$11:$C$210,J$1,Einzelposten!$B$11:$B$210,$A39,Einzelposten!$E$11:$E$210,$B$9)*-1),2) -> 2100 | K39: =ROUND(SUM(K38,SUMIFS(Einzelposten!$I$11:$I$210,Einzelposten!$C$11:$C$210,K$1,Einzelposten!$B$11:$B$210,$A39,Einzelposten!$E$11:$E$210,$B$9),SUMIFS(Einzelposten!$J$11:$J$210,Einzelposten!$C$11:$C$210,K$1,Einzelposten!$B$11:$B$210,$A39,Einzelposten!$E$11:$E$210,$B$9)*-1),2) -> 2100 | L39: =ROUND(SUM(L38,SUMIFS(Einzelposten!$I$11:$I$210,Einzelposten!$C$11:$C$210,L$1,Einzelposten!$B$11:$B$210,$A39,Einzelposten!$E$11:$E$210,$B$9),SUMIFS(Einzelposten!$J$11:$J$210,Einzelposten!$C$11:$C$210,L$1,Einzelposten!$B$11:$B$210,$A39,Einzelposten!$E$11:$E$210,$B$9)*-1),2) -> 2100 | M39: =ROUND(SUM(M38,SUMIFS(Einzelposten!$I$11:$I$210,Einzelposten!$C$11:$C$210,M$1,Einzelposten!$B$11:$B$210,$A39,Einzelposten!$E$11:$E$210,$B$9),SUMIFS(Einzelposten!$J$11:$J$210,Einzelposten!$C$11:$C$210,M$1,Einzelposten!$B$11:$B$210,$A39,Einzelposten!$E$11:$E$210,$B$9)*-1),2) -> 2100 | N39: =ROUND(SUM(N38,SUMIFS(Einzelposten!$I$11:$I$210,Einzelposten!$C$11:$C$210,N$1,Einzelposten!$B$11:$B$210,$A39,Einzelposten!$E$11:$E$210,$B$9),SUMIFS(Einzelposten!$J$11:$J$210,Einzelposten!$C$11:$C$210,N$1,Einzelposten!$B$11:$B$210,$A39,Einzelposten!$E$11:$E$210,$B$9)*-1),2) -> 2100
A40: 26 | B40: B | C40: =ROUND(SUM(C39,SUMIFS(Einzelposten!$I$11:$I$210,Einzelposten!$C$11:$C$210,C$1,Einzelposten!$B$11:$B$210,$A40,Einzelposten!$E$11:$E$210,$B$9),SUMIFS(Einzelposten!$J$11:$J$210,Einzelposten!$C$11:$C$210,C$1,Einzelposten!$B$11:$B$210,$A40,Einzelposten!$E$11:$E$210,$B$9)*-1),2) -> 2100 | D40: =ROUND(SUM(D39,SUMIFS(Einzelposten!$I$11:$I$210,Einzelposten!$C$11:$C$210,D$1,Einzelposten!$B$11:$B$210,$A40,Einzelposten!$E$11:$E$210,$B$9),SUMIFS(Einzelposten!$J$11:$J$210,Einzelposten!$C$11:$C$210,D$1,Einzelposten!$B$11:$B$210,$A40,Einzelposten!$E$11:$E$210,$B$9)*-1),2) -> 2100 | E40: =ROUND(SUM(E39,SUMIFS(Einzelposten!$I$11:$I$210,Einzelposten!$C$11:$C$210,E$1,Einzelposten!$B$11:$B$210,$A40,Einzelposten!$E$11:$E$210,$B$9),SUMIFS(Einzelposten!$J$11:$J$210,Einzelposten!$C$11:$C$210,E$1,Einzelposten!$B$11:$B$210,$A40,Einzelposten!$E$11:$E$210,$B$9)*-1),2) -> 2100 | F40: =ROUND(SUM(F39,SUMIFS(Einzelposten!$I$11:$I$210,Einzelposten!$C$11:$C$210,F$1,Einzelposten!$B$11:$B$210,$A40,Einzelposten!$E$11:$E$210,$B$9),SUMIFS(Einzelposten!$J$11:$J$210,Einzelposten!$C$11:$C$210,F$1,Einzelposten!$B$11:$B$210,$A40,Einzelposten!$E$11:$E$210,$B$9)*-1),2) -> 2100 | G40: =ROUND(SUM(G39,SUMIFS(Einzelposten!$I$11:$I$210,Einzelposten!$C$11:$C$210,G$1,Einzelposten!$B$11:$B$210,$A40,Einzelposten!$E$11:$E$210,$B$9),SUMIFS(Einzelposten!$J$11:$J$210,Einzelposten!$C$11:$C$210,G$1,Einzelposten!$B$11:$B$210,$A40,Einzelposten!$E$11:$E$210,$B$9)*-1),2) -> 2100 | H40: =ROUND(SUM(H39,SUMIFS(Einzelposten!$I$11:$I$210,Einzelposten!$C$11:$C$210,H$1,Einzelposten!$B$11:$B$210,$A40,Einzelposten!$E$11:$E$210,$B$9),SUMIFS(Einzelposten!$J$11:$J$210,Einzelposten!$C$11:$C$210,H$1,Einzelposten!$B$11:$B$210,$A40,Einzelposten!$E$11:$E$210,$B$9)*-1),2) -> 2100 | I40: =ROUND(SUM(I39,SUMIFS(Einzelposten!$I$11:$I$210,Einzelposten!$C$11:$C$210,I$1,Einzelposten!$B$11:$B$210,$A40,Einzelposten!$E$11:$E$210,$B$9),SUMIFS(Einzelposten!$J$11:$J$210,Einzelposten!$C$11:$C$210,I$1,Einzelposten!$B$11:$B$210,$A40,Einzelposten!$E$11:$E$210,$B$9)*-1),2) -> 2100 | J40: =ROUND(SUM(J39,SUMIFS(Einzelposten!$I$11:$I$210,Einzelposten!$C$11:$C$210,J$1,Einzelposten!$B$11:$B$210,$A40,Einzelposten!$E$11:$E$210,$B$9),SUMIFS(Einzelposten!$J$11:$J$210,Einzelposten!$C$11:$C$210,J$1,Einzelposten!$B$11:$B$210,$A40,Einzelposten!$E$11:$E$210,$B$9)*-1),2) -> 2100 | K40: =ROUND(SUM(K39,SUMIFS(Einzelposten!$I$11:$I$210,Einzelposten!$C$11:$C$210,K$1,Einzelposten!$B$11:$B$210,$A40,Einzelposten!$E$11:$E$210,$B$9),SUMIFS(Einzelposten!$J$11:$J$210,Einzelposten!$C$11:$C$210,K$1,Einzelposten!$B$11:$B$210,$A40,Einzelposten!$E$11:$E$210,$B$9)*-1),2) -> 2100 | L40: =ROUND(SUM(L39,SUMIFS(Einzelposten!$I$11:$I$210,Einzelposten!$C$11:$C$210,L$1,Einzelposten!$B$11:$B$210,$A40,Einzelposten!$E$11:$E$210,$B$9),SUMIFS(Einzelposten!$J$11:$J$210,Einzelposten!$C$11:$C$210,L$1,Einzelposten!$B$11:$B$210,$A40,Einzelposten!$E$11:$E$210,$B$9)*-1),2) -> 2100 | M40: =ROUND(SUM(M39,SUMIFS(Einzelposten!$I$11:$I$210,Einzelposten!$C$11:$C$210,M$1,Einzelposten!$B$11:$B$210,$A40,Einzelposten!$E$11:$E$210,$B$9),SUMIFS(Einzelposten!$J$11:$J$210,Einzelposten!$C$11:$C$210,M$1,Einzelposten!$B$11:$B$210,$A40,Einzelposten!$E$11:$E$210,$B$9)*-1),2) -> 2100 | N40: =ROUND(SUM(N39,SUMIFS(Einzelposten!$I$11:$I$210,Einzelposten!$C$11:$C$210,N$1,Einzelposten!$B$11:$B$210,$A40,Einzelposten!$E$11:$E$210,$B$9),SUMIFS(Einzelposten!$J$11:$J$210,Einzelposten!$C$11:$C$210,N$1,Einzelposten!$B$11:$B$210,$A40,Einzelposten!$E$11:$E$210,$B$9)*-1),2) -> 2100
A41: 27 | B41: B | C41: =ROUND(SUM(C40,SUMIFS(Einzelposten!$I$11:$I$210,Einzelposten!$C$11:$C$210,C$1,Einzelposten!$B$11:$B$210,$A41,Einzelposten!$E$11:$E$210,$B$9),SUMIFS(Einzelposten!$J$11:$J$210,Einzelposten!$C$11:$C$210,C$1,Einzelposten!$B$11:$B$210,$A41,Einzelposten!$E$11:$E$210,$B$9)*-1),2) -> 2100 | D41: =ROUND(SUM(D40,SUMIFS(Einzelposten!$I$11:$I$210,Einzelposten!$C$11:$C$210,D$1,Einzelposten!$B$11:$B$210,$A41,Einzelposten!$E$11:$E$210,$B$9),SUMIFS(Einzelposten!$J$11:$J$210,Einzelposten!$C$11:$C$210,D$1,Einzelposten!$B$11:$B$210,$A41,Einzelposten!$E$11:$E$210,$B$9)*-1),2) -> 2100 | E41: =ROUND(SUM(E40,SUMIFS(Einzelposten!$I$11:$I$210,Einzelposten!$C$11:$C$210,E$1,Einzelposten!$B$11:$B$210,$A41,Einzelposten!$E$11:$E$210,$B$9),SUMIFS(Einzelposten!$J$11:$J$210,Einzelposten!$C$11:$C$210,E$1,Einzelposten!$B$11:$B$210,$A41,Einzelposten!$E$11:$E$210,$B$9)*-1),2) -> 2100 | F41: =ROUND(SUM(F40,SUMIFS(Einzelposten!$I$11:$I$210,Einzelposten!$C$11:$C$210,F$1,Einzelposten!$B$11:$B$210,$A41,Einzelposten!$E$11:$E$210,$B$9),SUMIFS(Einzelposten!$J$11:$J$210,Einzelposten!$C$11:$C$210,F$1,Einzelposten!$B$11:$B$210,$A41,Einzelposten!$E$11:$E$210,$B$9)*-1),2) -> 2100 | G41: =ROUND(SUM(G40,SUMIFS(Einzelposten!$I$11:$I$210,Einzelposten!$C$11:$C$210,G$1,Einzelposten!$B$11:$B$210,$A41,Einzelposten!$E$11:$E$210,$B$9),SUMIFS(Einzelposten!$J$11:$J$210,Einzelposten!$C$11:$C$210,G$1,Einzelposten!$B$11:$B$210,$A41,Einzelposten!$E$11:$E$210,$B$9)*-1),2) -> 2100 | H41: =ROUND(SUM(H40,SUMIFS(Einzelposten!$I$11:$I$210,Einzelposten!$C$11:$C$210,H$1,Einzelposten!$B$11:$B$210,$A41,Einzelposten!$E$11:$E$210,$B$9),SUMIFS(Einzelposten!$J$11:$J$210,Einzelposten!$C$11:$C$210,H$1,Einzelposten!$B$11:$B$210,$A41,Einzelposten!$E$11:$E$210,$B$9)*-1),2) -> 2100 | I41: =ROUND(SUM(I40,SUMIFS(Einzelposten!$I$11:$I$210,Einzelposten!$C$11:$C$210,I$1,Einzelposten!$B$11:$B$210,$A41,Einzelposten!$E$11:$E$210,$B$9),SUMIFS(Einzelposten!$J$11:$J$210,Einzelposten!$C$11:$C$210,I$1,Einzelposten!$B$11:$B$210,$A41,Einzelposten!$E$11:$E$210,$B$9)*-1),2) -> 2100 | J41: =ROUND(SUM(J40,SUMIFS(Einzelposten!$I$11:$I$210,Einzelposten!$C$11:$C$210,J$1,Einzelposten!$B$11:$B$210,$A41,Einzelposten!$E$11:$E$210,$B$9),SUMIFS(Einzelposten!$J$11:$J$210,Einzelposten!$C$11:$C$210,J$1,Einzelposten!$B$11:$B$210,$A41,Einzelposten!$E$11:$E$210,$B$9)*-1),2) -> 2100 | K41: =ROUND(SUM(K40,SUMIFS(Einzelposten!$I$11:$I$210,Einzelposten!$C$11:$C$210,K$1,Einzelposten!$B$11:$B$210,$A41,Einzelposten!$E$11:$E$210,$B$9),SUMIFS(Einzelposten!$J$11:$J$210,Einzelposten!$C$11:$C$210,K$1,Einzelposten!$B$11:$B$210,$A41,Einzelposten!$E$11:$E$210,$B$9)*-1),2) -> 2100 | L41: =ROUND(SUM(L40,SUMIFS(Einzelposten!$I$11:$I$210,Einzelposten!$C$11:$C$210,L$1,Einzelposten!$B$11:$B$210,$A41,Einzelposten!$E$11:$E$210,$B$9),SUMIFS(Einzelposten!$J$11:$J$210,Einzelposten!$C$11:$C$210,L$1,Einzelposten!$B$11:$B$210,$A41,Einzelposten!$E$11:$E$210,$B$9)*-1),2) -> 2100 | M41: =ROUND(SUM(M40,SUMIFS(Einzelposten!$I$11:$I$210,Einzelposten!$C$11:$C$210,M$1,Einzelposten!$B$11:$B$210,$A41,Einzelposten!$E$11:$E$210,$B$9),SUMIFS(Einzelposten!$J$11:$J$210,Einzelposten!$C$11:$C$210,M$1,Einzelposten!$B$11:$B$210,$A41,Einzelposten!$E$11:$E$210,$B$9)*-1),2) -> 2100 | N41: =ROUND(SUM(N40,SUMIFS(Einzelposten!$I$11:$I$210,Einzelposten!$C$11:$C$210,N$1,Einzelposten!$B$11:$B$210,$A41,Einzelposten!$E$11:$E$210,$B$9),SUMIFS(Einzelposten!$J$11:$J$210,Einzelposten!$C$11:$C$210,N$1,Einzelposten!$B$11:$B$210,$A41,Einzelposten!$E$11:$E$210,$B$9)*-1),2) -> 2100
A42: 28 | B42: B | C42: =ROUND(SUM(C41,SUMIFS(Einzelposten!$I$11:$I$210,Einzelposten!$C$11:$C$210,C$1,Einzelposten!$B$11:$B$210,$A42,Einzelposten!$E$11:$E$210,$B$9),SUMIFS(Einzelposten!$J$11:$J$210,Einzelposten!$C$11:$C$210,C$1,Einzelposten!$B$11:$B$210,$A42,Einzelposten!$E$11:$E$210,$B$9)*-1),2) -> 2100 | D42: =ROUND(SUM(D41,SUMIFS(Einzelposten!$I$11:$I$210,Einzelposten!$C$11:$C$210,D$1,Einzelposten!$B$11:$B$210,$A42,Einzelposten!$E$11:$E$210,$B$9),SUMIFS(Einzelposten!$J$11:$J$210,Einzelposten!$C$11:$C$210,D$1,Einzelposten!$B$11:$B$210,$A42,Einzelposten!$E$11:$E$210,$B$9)*-1),2) -> 2100 | E42: =ROUND(SUM(E41,SUMIFS(Einzelposten!$I$11:$I$210,Einzelposten!$C$11:$C$210,E$1,Einzelposten!$B$11:$B$210,$A42,Einzelposten!$E$11:$E$210,$B$9),SUMIFS(Einzelposten!$J$11:$J$210,Einzelposten!$C$11:$C$210,E$1,Einzelposten!$B$11:$B$210,$A42,Einzelposten!$E$11:$E$210,$B$9)*-1),2) -> 2100 | F42: =ROUND(SUM(F41,SUMIFS(Einzelposten!$I$11:$I$210,Einzelposten!$C$11:$C$210,F$1,Einzelposten!$B$11:$B$210,$A42,Einzelposten!$E$11:$E$210,$B$9),SUMIFS(Einzelposten!$J$11:$J$210,Einzelposten!$C$11:$C$210,F$1,Einzelposten!$B$11:$B$210,$A42,Einzelposten!$E$11:$E$210,$B$9)*-1),2) -> 2100 | G42: =ROUND(SUM(G41,SUMIFS(Einzelposten!$I$11:$I$210,Einzelposten!$C$11:$C$210,G$1,Einzelposten!$B$11:$B$210,$A42,Einzelposten!$E$11:$E$210,$B$9),SUMIFS(Einzelposten!$J$11:$J$210,Einzelposten!$C$11:$C$210,G$1,Einzelposten!$B$11:$B$210,$A42,Einzelposten!$E$11:$E$210,$B$9)*-1),2) -> 2100 | H42: =ROUND(SUM(H41,SUMIFS(Einzelposten!$I$11:$I$210,Einzelposten!$C$11:$C$210,H$1,Einzelposten!$B$11:$B$210,$A42,Einzelposten!$E$11:$E$210,$B$9),SUMIFS(Einzelposten!$J$11:$J$210,Einzelposten!$C$11:$C$210,H$1,Einzelposten!$B$11:$B$210,$A42,Einzelposten!$E$11:$E$210,$B$9)*-1),2) -> 2100 | I42: =ROUND(SUM(I41,SUMIFS(Einzelposten!$I$11:$I$210,Einzelposten!$C$11:$C$210,I$1,Einzelposten!$B$11:$B$210,$A42,Einzelposten!$E$11:$E$210,$B$9),SUMIFS(Einzelposten!$J$11:$J$210,Einzelposten!$C$11:$C$210,I$1,Einzelposten!$B$11:$B$210,$A42,Einzelposten!$E$11:$E$210,$B$9)*-1),2) -> 2100 | J42: =ROUND(SUM(J41,SUMIFS(Einzelposten!$I$11:$I$210,Einzelposten!$C$11:$C$210,J$1,Einzelposten!$B$11:$B$210,$A42,Einzelposten!$E$11:$E$210,$B$9),SUMIFS(Einzelposten!$J$11:$J$210,Einzelposten!$C$11:$C$210,J$1,Einzelposten!$B$11:$B$210,$A42,Einzelposten!$E$11:$E$210,$B$9)*-1),2) -> 2100 | K42: =ROUND(SUM(K41,SUMIFS(Einzelposten!$I$11:$I$210,Einzelposten!$C$11:$C$210,K$1,Einzelposten!$B$11:$B$210,$A42,Einzelposten!$E$11:$E$210,$B$9),SUMIFS(Einzelposten!$J$11:$J$210,Einzelposten!$C$11:$C$210,K$1,Einzelposten!$B$11:$B$210,$A42,Einzelposten!$E$11:$E$210,$B$9)*-1),2) -> 2100 | L42: =ROUND(SUM(L41,SUMIFS(Einzelposten!$I$11:$I$210,Einzelposten!$C$11:$C$210,L$1,Einzelposten!$B$11:$B$210,$A42,Einzelposten!$E$11:$E$210,$B$9),SUMIFS(Einzelposten!$J$11:$J$210,Einzelposten!$C$11:$C$210,L$1,Einzelposten!$B$11:$B$210,$A42,Einzelposten!$E$11:$E$210,$B$9)*-1),2) -> 2100 | M42: =ROUND(SUM(M41,SUMIFS(Einzelposten!$I$11:$I$210,Einzelposten!$C$11:$C$210,M$1,Einzelposten!$B$11:$B$210,$A42,Einzelposten!$E$11:$E$210,$B$9),SUMIFS(Einzelposten!$J$11:$J$210,Einzelposten!$C$11:$C$210,M$1,Einzelposten!$B$11:$B$210,$A42,Einzelposten!$E$11:$E$210,$B$9)*-1),2) -> 2100 | N42: =ROUND(SUM(N41,SUMIFS(Einzelposten!$I$11:$I$210,Einzelposten!$C$11:$C$210,N$1,Einzelposten!$B$11:$B$210,$A42,Einzelposten!$E$11:$E$210,$B$9),SUMIFS(Einzelposten!$J$11:$J$210,Einzelposten!$C$11:$C$210,N$1,Einzelposten!$B$11:$B$210,$A42,Einzelposten!$E$11:$E$210,$B$9)*-1),2) -> 2100
A43: 29 | B43: B | C43: =ROUND(SUM(C42,SUMIFS(Einzelposten!$I$11:$I$210,Einzelposten!$C$11:$C$210,C$1,Einzelposten!$B$11:$B$210,$A43,Einzelposten!$E$11:$E$210,$B$9),SUMIFS(Einzelposten!$J$11:$J$210,Einzelposten!$C$11:$C$210,C$1,Einzelposten!$B$11:$B$210,$A43,Einzelposten!$E$11:$E$210,$B$9)*-1),2) -> 2100 | D43: =ROUND(SUM(D42,SUMIFS(Einzelposten!$I$11:$I$210,Einzelposten!$C$11:$C$210,D$1,Einzelposten!$B$11:$B$210,$A43,Einzelposten!$E$11:$E$210,$B$9),SUMIFS(Einzelposten!$J$11:$J$210,Einzelposten!$C$11:$C$210,D$1,Einzelposten!$B$11:$B$210,$A43,Einzelposten!$E$11:$E$210,$B$9)*-1),2) -> 2100 | E43: =ROUND(SUM(E42,SUMIFS(Einzelposten!$I$11:$I$210,Einzelposten!$C$11:$C$210,E$1,Einzelposten!$B$11:$B$210,$A43,Einzelposten!$E$11:$E$210,$B$9),SUMIFS(Einzelposten!$J$11:$J$210,Einzelposten!$C$11:$C$210,E$1,Einzelposten!$B$11:$B$210,$A43,Einzelposten!$E$11:$E$210,$B$9)*-1),2) -> 2100 | F43: =ROUND(SUM(F42,SUMIFS(Einzelposten!$I$11:$I$210,Einzelposten!$C$11:$C$210,F$1,Einzelposten!$B$11:$B$210,$A43,Einzelposten!$E$11:$E$210,$B$9),SUMIFS(Einzelposten!$J$11:$J$210,Einzelposten!$C$11:$C$210,F$1,Einzelposten!$B$11:$B$210,$A43,Einzelposten!$E$11:$E$210,$B$9)*-1),2) -> 2100 | G43: =ROUND(SUM(G42,SUMIFS(Einzelposten!$I$11:$I$210,Einzelposten!$C$11:$C$210,G$1,Einzelposten!$B$11:$B$210,$A43,Einzelposten!$E$11:$E$210,$B$9),SUMIFS(Einzelposten!$J$11:$J$210,Einzelposten!$C$11:$C$210,G$1,Einzelposten!$B$11:$B$210,$A43,Einzelposten!$E$11:$E$210,$B$9)*-1),2) -> 2100 | H43: =ROUND(SUM(H42,SUMIFS(Einzelposten!$I$11:$I$210,Einzelposten!$C$11:$C$210,H$1,Einzelposten!$B$11:$B$210,$A43,Einzelposten!$E$11:$E$210,$B$9),SUMIFS(Einzelposten!$J$11:$J$210,Einzelposten!$C$11:$C$210,H$1,Einzelposten!$B$11:$B$210,$A43,Einzelposten!$E$11:$E$210,$B$9)*-1),2) -> 2100 | I43: =ROUND(SUM(I42,SUMIFS(Einzelposten!$I$11:$I$210,Einzelposten!$C$11:$C$210,I$1,Einzelposten!$B$11:$B$210,$A43,Einzelposten!$E$11:$E$210,$B$9),SUMIFS(Einzelposten!$J$11:$J$210,Einzelposten!$C$11:$C$210,I$1,Einzelposten!$B$11:$B$210,$A43,Einzelposten!$E$11:$E$210,$B$9)*-1),2) -> 2100 | J43: =ROUND(SUM(J42,SUMIFS(Einzelposten!$I$11:$I$210,Einzelposten!$C$11:$C$210,J$1,Einzelposten!$B$11:$B$210,$A43,Einzelposten!$E$11:$E$210,$B$9),SUMIFS(Einzelposten!$J$11:$J$210,Einzelposten!$C$11:$C$210,J$1,Einzelposten!$B$11:$B$210,$A43,Einzelposten!$E$11:$E$210,$B$9)*-1),2) -> 2100 | K43: =ROUND(SUM(K42,SUMIFS(Einzelposten!$I$11:$I$210,Einzelposten!$C$11:$C$210,K$1,Einzelposten!$B$11:$B$210,$A43,Einzelposten!$E$11:$E$210,$B$9),SUMIFS(Einzelposten!$J$11:$J$210,Einzelposten!$C$11:$C$210,K$1,Einzelposten!$B$11:$B$210,$A43,Einzelposten!$E$11:$E$210,$B$9)*-1),2) -> 2100 | L43: =ROUND(SUM(L42,SUMIFS(Einzelposten!$I$11:$I$210,Einzelposten!$C$11:$C$210,L$1,Einzelposten!$B$11:$B$210,$A43,Einzelposten!$E$11:$E$210,$B$9),SUMIFS(Einzelposten!$J$11:$J$210,Einzelposten!$C$11:$C$210,L$1,Einzelposten!$B$11:$B$210,$A43,Einzelposten!$E$11:$E$210,$B$9)*-1),2) -> 2100 | M43: =ROUND(SUM(M42,SUMIFS(Einzelposten!$I$11:$I$210,Einzelposten!$C$11:$C$210,M$1,Einzelposten!$B$11:$B$210,$A43,Einzelposten!$E$11:$E$210,$B$9),SUMIFS(Einzelposten!$J$11:$J$210,Einzelposten!$C$11:$C$210,M$1,Einzelposten!$B$11:$B$210,$A43,Einzelposten!$E$11:$E$210,$B$9)*-1),2) -> 2100 | N43: =ROUND(SUM(N42,SUMIFS(Einzelposten!$I$11:$I$210,Einzelposten!$C$11:$C$210,N$1,Einzelposten!$B$11:$B$210,$A43,Einzelposten!$E$11:$E$210,$B$9),SUMIFS(Einzelposten!$J$11:$J$210,Einzelposten!$C$11:$C$210,N$1,Einzelposten!$B$11:$B$210,$A43,Einzelposten!$E$11:$E$210,$B$9)*-1),2) -> 2100
A44: 30 | B44: B | C44: =ROUND(SUM(C43,SUMIFS(Einzelposten!$I$11:$I$210,Einzelposten!$C$11:$C$210,C$1,Einzelposten!$B$11:$B$210,$A44,Einzelposten!$E$11:$E$210,$B$9),SUMIFS(Einzelposten!$J$11:$J$210,Einzelposten!$C$11:$C$210,C$1,Einzelposten!$B$11:$B$210,$A44,Einzelposten!$E$11:$E$210,$B$9)*-1),2) -> 2100 | D44: =ROUND(SUM(D43,SUMIFS(Einzelposten!$I$11:$I$210,Einzelposten!$C$11:$C$210,D$1,Einzelposten!$B$11:$B$210,$A44,Einzelposten!$E$11:$E$210,$B$9),SUMIFS(Einzelposten!$J$11:$J$210,Einzelposten!$C$11:$C$210,D$1,Einzelposten!$B$11:$B$210,$A44,Einzelposten!$E$11:$E$210,$B$9)*-1),2) -> 2100 | E44: =ROUND(SUM(E43,SUMIFS(Einzelposten!$I$11:$I$210,Einzelposten!$C$11:$C$210,E$1,Einzelposten!$B$11:$B$210,$A44,Einzelposten!$E$11:$E$210,$B$9),SUMIFS(Einzelposten!$J$11:$J$210,Einzelposten!$C$11:$C$210,E$1,Einzelposten!$B$11:$B$210,$A44,Einzelposten!$E$11:$E$210,$B$9)*-1),2) -> 2100 | F44: =ROUND(SUM(F43,SUMIFS(Einzelposten!$I$11:$I$210,Einzelposten!$C$11:$C$210,F$1,Einzelposten!$B$11:$B$210,$A44,Einzelposten!$E$11:$E$210,$B$9),SUMIFS(Einzelposten!$J$11:$J$210,Einzelposten!$C$11:$C$210,F$1,Einzelposten!$B$11:$B$210,$A44,Einzelposten!$E$11:$E$210,$B$9)*-1),2) -> 2100 | G44: =ROUND(SUM(G43,SUMIFS(Einzelposten!$I$11:$I$210,Einzelposten!$C$11:$C$210,G$1,Einzelposten!$B$11:$B$210,$A44,Einzelposten!$E$11:$E$210,$B$9),SUMIFS(Einzelposten!$J$11:$J$210,Einzelposten!$C$11:$C$210,G$1,Einzelposten!$B$11:$B$210,$A44,Einzelposten!$E$11:$E$210,$B$9)*-1),2) -> 2100 | H44: =ROUND(SUM(H43,SUMIFS(Einzelposten!$I$11:$I$210,Einzelposten!$C$11:$C$210,H$1,Einzelposten!$B$11:$B$210,$A44,Einzelposten!$E$11:$E$210,$B$9),SUMIFS(Einzelposten!$J$11:$J$210,Einzelposten!$C$11:$C$210,H$1,Einzelposten!$B$11:$B$210,$A44,Einzelposten!$E$11:$E$210,$B$9)*-1),2) -> 2100 | I44: =ROUND(SUM(I43,SUMIFS(Einzelposten!$I$11:$I$210,Einzelposten!$C$11:$C$210,I$1,Einzelposten!$B$11:$B$210,$A44,Einzelposten!$E$11:$E$210,$B$9),SUMIFS(Einzelposten!$J$11:$J$210,Einzelposten!$C$11:$C$210,I$1,Einzelposten!$B$11:$B$210,$A44,Einzelposten!$E$11:$E$210,$B$9)*-1),2) -> 2100 | J44: =ROUND(SUM(J43,SUMIFS(Einzelposten!$I$11:$I$210,Einzelposten!$C$11:$C$210,J$1,Einzelposten!$B$11:$B$210,$A44,Einzelposten!$E$11:$E$210,$B$9),SUMIFS(Einzelposten!$J$11:$J$210,Einzelposten!$C$11:$C$210,J$1,Einzelposten!$B$11:$B$210,$A44,Einzelposten!$E$11:$E$210,$B$9)*-1),2) -> 2100 | K44: =ROUND(SUM(K43,SUMIFS(Einzelposten!$I$11:$I$210,Einzelposten!$C$11:$C$210,K$1,Einzelposten!$B$11:$B$210,$A44,Einzelposten!$E$11:$E$210,$B$9),SUMIFS(Einzelposten!$J$11:$J$210,Einzelposten!$C$11:$C$210,K$1,Einzelposten!$B$11:$B$210,$A44,Einzelposten!$E$11:$E$210,$B$9)*-1),2) -> 2100 | L44: =ROUND(SUM(L43,SUMIFS(Einzelposten!$I$11:$I$210,Einzelposten!$C$11:$C$210,L$1,Einzelposten!$B$11:$B$210,$A44,Einzelposten!$E$11:$E$210,$B$9),SUMIFS(Einzelposten!$J$11:$J$210,Einzelposten!$C$11:$C$210,L$1,Einzelposten!$B$11:$B$210,$A44,Einzelposten!$E$11:$E$210,$B$9)*-1),2) -> 2100 | M44: =ROUND(SUM(M43,SUMIFS(Einzelposten!$I$11:$I$210,Einzelposten!$C$11:$C$210,M$1,Einzelposten!$B$11:$B$210,$A44,Einzelposten!$E$11:$E$210,$B$9),SUMIFS(Einzelposten!$J$11:$J$210,Einzelposten!$C$11:$C$210,M$1,Einzelposten!$B$11:$B$210,$A44,Einzelposten!$E$11:$E$210,$B$9)*-1),2) -> 2100 | N44: =ROUND(SUM(N43,SUMIFS(Einzelposten!$I$11:$I$210,Einzelposten!$C$11:$C$210,N$1,Einzelposten!$B$11:$B$210,$A44,Einzelposten!$E$11:$E$210,$B$9),SUMIFS(Einzelposten!$J$11:$J$210,Einzelposten!$C$11:$C$210,N$1,Einzelposten!$B$11:$B$210,$A44,Einzelposten!$E$11:$E$210,$B$9)*-1),2) -> 2100
A45: 31 | B45: B | C45: =ROUND(SUM(C44,SUMIFS(Einzelposten!$I$11:$I$210,Einzelposten!$C$11:$C$210,C$1,Einzelposten!$B$11:$B$210,$A45,Einzelposten!$E$11:$E$210,$B$9),SUMIFS(Einzelposten!$J$11:$J$210,Einzelposten!$C$11:$C$210,C$1,Einzelposten!$B$11:$B$210,$A45,Einzelposten!$E$11:$E$210,$B$9)*-1),2) -> 2100 | D45: =ROUND(SUM(D44,SUMIFS(Einzelposten!$I$11:$I$210,Einzelposten!$C$11:$C$210,D$1,Einzelposten!$B$11:$B$210,$A45,Einzelposten!$E$11:$E$210,$B$9),SUMIFS(Einzelposten!$J$11:$J$210,Einzelposten!$C$11:$C$210,D$1,Einzelposten!$B$11:$B$210,$A45,Einzelposten!$E$11:$E$210,$B$9)*-1),2) -> 2100 | E45: =ROUND(SUM(E44,SUMIFS(Einzelposten!$I$11:$I$210,Einzelposten!$C$11:$C$210,E$1,Einzelposten!$B$11:$B$210,$A45,Einzelposten!$E$11:$E$210,$B$9),SUMIFS(Einzelposten!$J$11:$J$210,Einzelposten!$C$11:$C$210,E$1,Einzelposten!$B$11:$B$210,$A45,Einzelposten!$E$11:$E$210,$B$9)*-1),2) -> 2100 | F45: =ROUND(SUM(F44,SUMIFS(Einzelposten!$I$11:$I$210,Einzelposten!$C$11:$C$210,F$1,Einzelposten!$B$11:$B$210,$A45,Einzelposten!$E$11:$E$210,$B$9),SUMIFS(Einzelposten!$J$11:$J$210,Einzelposten!$C$11:$C$210,F$1,Einzelposten!$B$11:$B$210,$A45,Einzelposten!$E$11:$E$210,$B$9)*-1),2) -> 2100 | G45: =ROUND(SUM(G44,SUMIFS(Einzelposten!$I$11:$I$210,Einzelposten!$C$11:$C$210,G$1,Einzelposten!$B$11:$B$210,$A45,Einzelposten!$E$11:$E$210,$B$9),SUMIFS(Einzelposten!$J$11:$J$210,Einzelposten!$C$11:$C$210,G$1,Einzelposten!$B$11:$B$210,$A45,Einzelposten!$E$11:$E$210,$B$9)*-1),2) -> 2100 | H45: =ROUND(SUM(H44,SUMIFS(Einzelposten!$I$11:$I$210,Einzelposten!$C$11:$C$210,H$1,Einzelposten!$B$11:$B$210,$A45,Einzelposten!$E$11:$E$210,$B$9),SUMIFS(Einzelposten!$J$11:$J$210,Einzelposten!$C$11:$C$210,H$1,Einzelposten!$B$11:$B$210,$A45,Einzelposten!$E$11:$E$210,$B$9)*-1),2) -> 2100 | I45: =ROUND(SUM(I44,SUMIFS(Einzelposten!$I$11:$I$210,Einzelposten!$C$11:$C$210,I$1,Einzelposten!$B$11:$B$210,$A45,Einzelposten!$E$11:$E$210,$B$9),SUMIFS(Einzelposten!$J$11:$J$210,Einzelposten!$C$11:$C$210,I$1,Einzelposten!$B$11:$B$210,$A45,Einzelposten!$E$11:$E$210,$B$9)*-1),2) -> 2100 | J45: =ROUND(SUM(J44,SUMIFS(Einzelposten!$I$11:$I$210,Einzelposten!$C$11:$C$210,J$1,Einzelposten!$B$11:$B$210,$A45,Einzelposten!$E$11:$E$210,$B$9),SUMIFS(Einzelposten!$J$11:$J$210,Einzelposten!$C$11:$C$210,J$1,Einzelposten!$B$11:$B$210,$A45,Einzelposten!$E$11:$E$210,$B$9)*-1),2) -> 2100 | K45: =ROUND(SUM(K44,SUMIFS(Einzelposten!$I$11:$I$210,Einzelposten!$C$11:$C$210,K$1,Einzelposten!$B$11:$B$210,$A45,Einzelposten!$E$11:$E$210,$B$9),SUMIFS(Einzelposten!$J$11:$J$210,Einzelposten!$C$11:$C$210,K$1,Einzelposten!$B$11:$B$210,$A45,Einzelposten!$E$11:$E$210,$B$9)*-1),2) -> 2100 | L45: =ROUND(SUM(L44,SUMIFS(Einzelposten!$I$11:$I$210,Einzelposten!$C$11:$C$210,L$1,Einzelposten!$B$11:$B$210,$A45,Einzelposten!$E$11:$E$210,$B$9),SUMIFS(Einzelposten!$J$11:$J$210,Einzelposten!$C$11:$C$210,L$1,Einzelposten!$B$11:$B$210,$A45,Einzelposten!$E$11:$E$210,$B$9)*-1),2) -> 2100 | M45: =ROUND(SUM(M44,SUMIFS(Einzelposten!$I$11:$I$210,Einzelposten!$C$11:$C$210,M$1,Einzelposten!$B$11:$B$210,$A45,Einzelposten!$E$11:$E$210,$B$9),SUMIFS(Einzelposten!$J$11:$J$210,Einzelposten!$C$11:$C$210,M$1,Einzelposten!$B$11:$B$210,$A45,Einzelposten!$E$11:$E$210,$B$9)*-1),2) -> 2100 | N45: =ROUND(SUM(N44,SUMIFS(Einzelposten!$I$11:$I$210,Einzelposten!$C$11:$C$210,N$1,Einzelposten!$B$11:$B$210,$A45,Einzelposten!$E$11:$E$210,$B$9),SUMIFS(Einzelposten!$J$11:$J$210,Einzelposten!$C$11:$C$210,N$1,Einzelposten!$B$11:$B$210,$A45,Einzelposten!$E$11:$E$210,$B$9)*-1),2) -> 2100
A46: 1 | B46: Feb | C46: =D15 -> 2100
A47: 2 | B47: Feb | C47: =D16 -> 2100
A48: 3 | B48: Feb | C48: =D17 -> 2100
A49: 4 | B49: Feb | C49: 2100
A50: 5 | B50: Feb | C50: 2100
A51: 6 | B51: Feb | C51: 2100
A52: 7 | B52: Feb | C52: 2100
A53: 8 | B53: Feb | C53: 2100
A54: 9 | B54: Feb | C54: 2100
A55: 10 | B55: Feb | C55: 2100
A56: 11 | B56: Feb | C56: 2100
A57: 12 | B57: Feb | C57: 2100
A58: 13 | B58: Feb | C58: 2100
A59: 14 | B59: Feb | C59: 2100
A60: 15 | B60: Feb | C60: 2100
A61: 16 | B61: Feb | C61: 2100
A62: 17 | B62: Feb | C62: 2100
A63: 18 | B63: Feb | C63: 2100
A64: 19 | B64: Feb | C64: 2100
A65: 20 | B65: Feb | C65: 2100
A66: 21 | B66: Feb | C66: 2100
A67: 22 | B67: Feb | C67: 2100
A68: 23 | B68: Feb | C68: 2100
A69: 24 | B69: Feb | C69: 2100
A70: 25 | B70: Feb | C70: 2100
A71: 26 | B71: Feb | C71: 2100
A72: 27 | B72: Feb | C72: 2100
A73: 28 | B73: Feb | C73: 2100
A74: 29 | B74: Feb | C74: 2100
A75: 1 | B75: Mär | C75: =E15 -> 2100
A76: 2 | B76: Mär | C76: =E16 -> 2100
A77: 3 | B77: Mär | C77: 2100
A78: 4 | B78: Mär | C78: 2100
A79: 5 | B79: Mär | C79: 2100
A80: 6 | B80: Mär | C80: 2100
A81: 7 | B81: Mär | C81: 2100
A82: 8 | B82: Mär | C82: 2100
A83: 9 | B83: Mär | C83: 2100
A84: 10 | B84: Mär | C84: 2100
A85: 11 | B85: Mär | C85: 2100
A86: 12 | B86: Mär | C86: 2100
A87: 13 | B87: Mär | C87: 2100
A88: 14 | B88: Mär | C88: 2100
A89: 15 | B89: Mär | C89: 2100
A90: 16 | B90: Mär | C90: 2100
A91: 17 | B91: Mär | C91: 2100
A92: 18 | B92: Mär | C92: 2100
A93: 19 | B93: Mär | C93: 2100
A94: 20 | B94: Mär | C94: 2100
A95: 21 | B95: Mär | C95: 2100
A96: 22 | B96: Mär | C96: 2100
A97: 23 | B97: Mär | C97: 2100
A98: 24 | B98: Mär | C98: 2100
A99: 25 | B99: Mär | C99: 2100
A100: 26 | B100: Mär | C100: 2100
A101: 27 | B101: Mär | C101: 2100
A102: 28 | B102: Mär | C102: 2100
A103: 29 | B103: Mär | C103: 2100
A104: 30 | B104: Mär | C104: 2100
A105: 31 | B105: Mär | C105: 2100
A106: 1 | B106: Apr | C106: =F15 -> 2100
A107: 2 | B107: Apr | C107: =F16 -> 2100
A108: 3 | B108: Apr | C108: =F17 -> 2100
A109: 4 | B109: Apr | C109: 2100
A110: 5 | B110: Apr | C110: 2100
A111: 6 | B111: Apr | C111: 2100
A112: 7 | B112: Apr | C112: 2100
A113: 8 | B113: Apr | C113: 2100
A114: 9 | B114: Apr | C114: 2100
A115: 10 | B115: Apr | C115: 2100
A116: 11 | B116: Apr | C116: 2100
A117: 12 | B117: Apr | C117: 2100
A118: 13 | B118: Apr | C118: 2100
A119: 14 | B119: Apr | C119: 2100
A120: 15 | B120: Apr | C120: 2100
A121: 16 | B121: Apr | C121: 2100
A122: 17 | B122: Apr | C122: 2100
A123: 18 | B123: Apr | C123: 2100
A124: 19 | B124: Apr | C124: 2100
A125: 20 | B125: Apr | C125: 2100
A126: 21 | B126: Apr | C126: 2100
A127: 22 | B127: Apr | C127: 2100
A128: 23 | B128: Apr | C128: 2100
A129: 24 | B129: Apr | C129: 2100
A130: 25 | B130: Apr | C130: 2100
A131: 26 | B131: Apr | C131: 2100
A132: 27 | B132: Apr | C132: 2100
A133: 28 | B133: Apr | C133: 2100
A134: 29 | B134: Apr | C134: 2100
A135: 30 | B135: Apr | C135: 2100
A136: 1 | B136: Mai | C136: =G15 -> 2100
A137: 2 | B137: Mai | C137: =G16 -> 2100
A138: 3 | B138: Mai | C138: =G17 -> 2100
A139: 4 | B139: Mai | C139: 2100
A140: 5 | B140: Mai | C140: 2100
A141: 6 | B141: Mai | C141: 2100
A142: 7 | B142: Mai | C142: 2100
A143: 8 | B143: Mai | C143: 2100
A144: 9 | B144: Mai | C144: 2100
A145: 10 | B145: Mai | C145: 2100
A146: 11 | B146: Mai | C146: 2100
A147: 12 | B147: Mai | C147: 2100
A148: 13 | B148: Mai | C148: 2100
A149: 14 | B149: Mai | C149: 2100
A150: 15 | B150: Mai | C150: 2100
A151: 16 | B151: Mai | C151: 2100
A152: 17 | B152: Mai | C152: 2100
A153: 18 | B153: Mai | C153: 2100
A154: 19 | B154: Mai | C154: 2100
A155: 20 | B155: Mai | C155: 2100
A156: 21 | B156: Mai | C156: 2100
A157: 22 | B157: Mai | C157: 2100
A158: 23 | B158: Mai | C158: 2100
A159: 24 | B159: Mai | C159: 2100
A160: 25 | B160: Mai | C160: 2100
A161: 26 | B161: Mai | C161: 2100
A162: 27 | B162: Mai | C162: 2100
A163: 28 | B163: Mai | C163: 2100
A164: 29 | B164: Mai | C164: 2100
A165: 30 | B165: Mai | C165: 2100
A166: 31 | B166: Mai | C166: 2100
A167: 1 | B167: Jun | C167: =H15 -> 2100
A168: 2 | B168: Jun | C168: =H16 -> 2100
A169: 3 | B169: Jun | C169: 2100
A170: 4 | B170: Jun | C170: 2100
A171: 5 | B171: Jun | C171: 2100
A172: 6 | B172: Jun | C172: 2100
A173: 7 | B173: Jun | C173: 2100
A174: 8 | B174: Jun | C174: 2100
A175: 9 | B175: Jun | C175: 2100
A176: 10 | B176: Jun | C176: 2100
A177: 11 | B177: Jun | C177: 2100
A178: 12 | B178: Jun | C178: 2100
A179: 13 | B179: Jun | C179: 2100
A180: 14 | B180: Jun | C180: 2100
A181: 15 | B181: Jun | C181: 2100
A182: 16 | B182: Jun | C182: 2100
A183: 17 | B183: Jun | C183: 2100
A184: 18 | B184: Jun | C184: 2100
A185: 19 | B185: Jun | C185: 2100
A186: 20 | B186: Jun | C186: 2100
A187: 21 | B187: Jun | C187: 2100
A188: 22 | B188: Jun | C188: 2100
A189: 23 | B189: Jun | C189: 2100
A190: 24 | B190: Jun | C190: 2100
A191: 25 | B191: Jun | C191: 2100
A192: 26 | B192: Jun | C192: 2100
A193: 27 | B193: Jun | C193: 2100
A194: 28 | B194: Jun | C194: 2100
A195: 29 | B195: Jun | C195: 2100
A196: 30 | B196: Jun | C196: 2100
A197: 1 | B197: Jul | C197: =I15 -> 2100
A198: 2 | B198: Jul | C198: =I16 -> 2100
A199: 3 | B199: Jul | C199: 2100
A200: 4 | B200: Jul | C200: 2100
A201: 5 | B201: Jul | C201: 2100
A202: 6 | B202: Jul | C202: 2100
A203: 7 | B203: Jul | C203: 2100
... 177 more rows

Sheet Druckansicht
A3: =CONCATENATE("Einnahmen-Ausgaben-Rechnung für das Jahr ",YEAR(Einzelposten!D11)) -> Einnahmen-Ausgaben-Rechnung für das Jahr 2025
A5: I | B5: E i n n a h m e n
B6: 1. | C6: =Übersicht!C3 -> Erlöse | F6: =Monate!P3 -> 2000
B7: 2. | C7: =Übersicht!C4 -> sonstige Erlöse | F7: =Monate!P4 -> 0
F8: =SUM(F6:F7) -> 2000
A9: II | B9: A u s g a b e n
B10: 1. | C10: =Übersicht!C5 -> Wareneinkauf | F10: =Monate!P5 -> 0
B11: 2. | C11: =Übersicht!C6 -> Fremdleistungen | F11: =Monate!P6 -> 0
B12: 3. | C12: =Übersicht!C7 -> Personalkosten | F12: =Monate!P7 -> 0
B13: 4. | C13: Absetzung für Abnutzung | F13: =SUM(Monate!P8:P9) -> -27.78
B14: 5. | C14: sonstige Ausgaben | F14: =SUM(E15:E31) -> -346.9
C15: - | D15: =Übersicht!C10 -> Abgaben und Beiträge | E15: =Monate!P10 -> 0
C16: - | D16: =Übersicht!C11 -> Instandhaltungen, Kleinmaterialien | E16: =Monate!P11 -> 0
C17: - | D17: =Übersicht!C12 -> Energie-, Betriebskosten | E17: =Monate!P12 -> 0
C18: - | D18: =Übersicht!C13 -> Porto-, Fracht-, Transportaufwand d. Dritte | E18: =Monate!P13 -> 0
C19: - | D19: =Übersicht!C14 -> KFZ-Aufwand (ohne AfA, Leasing u. Kilometergeld | E19: =Monate!P14 -> -5.9
C20: - | D20: =Übersicht!C15 -> Reise-, Fahrtspesen, Taggelder (inkl. Kilometergelder) | E20: =Monate!P15 -> 0
C21: - | D21: =Übersicht!C16 -> Telekommunikation | E21: =Monate!P16 -> 0
C22: - | D22: =Übersicht!C17 -> Geschäftsmieten, Leasing, Raumkosten | E22: =Monate!P17 -> -300
C23: - | D23: =Übersicht!C18 -> Lizenz- u. Wartungsgebühren, Provisionen | E23: =Monate!P18 -> 0
C24: - | D24: =Übersicht!C19 -> Büromaterial, Fachliteratur | E24: =Monate!P19 -> -41
C25: - | D25: =Übersicht!C20 -> Werbung, Repräsentationen | E25: =Monate!P20 -> 0
C26: - | D26: =Übersicht!C21 -> Versicherung, Beratung | E26: =Monate!P21 -> 0
C27: - | D27: =Übersicht!C22 -> Pflichtversicherung Unternehmer (SVA) | E27: =Monate!P22 -> 0
C28: - | D28: =Übersicht!C23 -> Aus- und Fortbildung, Seminare | E28: =Monate!P23 -> 0
C29: - | D29: =Übersicht!C24 -> Spesen des Geldverkehrs | E29: =Monate!P24 -> 0
C30: - | D30: =Übersicht!C25 -> sonstige Aufwendungen | E30: =Monate!P25 -> 0
C31: - | D31: =Übersicht!C26 -> Zinsen und ähnliche Aufwendungen | E31: =Monate!P26 -> 0
F32: =SUM(F10:F14) -> -374.68
A33: III | B33: =Übersicht!C27 -> G e w i n n ( Ü b e r s c h u s s ) | F33: =SUM(F8,F32) -> 1625.32

Sheet ESt-Tarif 2025
A1: ESt-Tariftabelle 2025 (AT) | F1: rvo.at | G1: rvo.at
A2: ESt-Tarif 2025 | B2: Grenz% 2025 | C2: Bandbreite | D2: Additiv | E2: %steigerung
A3: 13308 | B3: 0 | C3: =0-A3 -> -13308 | D3: 0 | E3: 0
A4: 21617 | B4: -0.2 | C4: =A3-A4 -> -8309 | D4: =B4*C4 -> 1661.8 | E4: =B3-B4 -> 0.2
A5: 35836 | B5: -0.3 | C5: -14219 | D5: =B5*C5+D4 -> 5927.5 | E5: 0.1
A6: 69166 | B6: -0.4 | C6: -33330 | D6: =B6*C6+D5 -> 19259.5 | E6: 0.1
A7: 103072 | B7: -0.48 | C7: -33906 | D7: =B7*C7+D6 -> 35534.38 | E7: 0.08
A8: 1000000 | B8: -0.5 | C8: -896928 | D8: =B8*C8+D7 -> 483998.38 | E8: 0.02
A9: > | B9: -0.55 | E9: 0.05
A11: Einkommen | B11: Grenz% 2025 | C11: Steuer 2025 | D11: Steuer 2024 | E11: Vorteil 2025:2024 | F11: Effektiv% 2025 | G11: Vorteil 2025:2024
A12: 25000 | B12: =ROUND(IF(A12<=A3,B3,IF(A12<=A4,B4,IF(A12<=A5,B5,IF(A12<=A6,B6,IF(A12<=A7,B7,IF(A12<=A8,B8,B9)))))),3) -> -0.3 | C12: =ROUND(IF(A12<13308,0,IF(A12<21617,(A12-13308)*-0.2,IF(A12<35836,(A12-21617)*-0.3-1661.8,IF(A12<69166,(A12-35836)*-0.4-5927.5,IF(A12<103072,(A12-69166)*-0.48-19259.5,IF(A12<1000000,(A12-103072)*-0.5-35534.38,(A12-1000000)*-0.55-483998.38)))))),2) -> -2676.7 | D12: =ROUND(IF(A12<12816,0,IF(A12<20818,(A12-12816)*-0.2,IF(A12<34513,(A12-20818)*-0.3-1600.4,IF(A12<66612,(A12-34513)*-0.4-5708.9,IF(A12<99266,(A12-66612)*-0.48-18548.5,IF(A12<1000000,(A12-99266)*-0.5-34222.42,(A12-1000000)*-0.55-484589.42)))))),2) -> -2855 | E12: =C12-D12 -> 178.3 | F12: =ROUND(D12/A12,4) -> -0.1142 | G12: =ROUND(E12/A12,4) -> 0.0071 | I12: Anmerkung: | J12: Die steuerbegünstigten 13.+14. Bezüge sind im "Einkommen" nicht enthalten!
A13: 11000 | B13: =ROUND(IF(A13<=11000,0,IF(A13<=18000,"-25 %",IF(A13<=31000,"-35 %",IF(A13<=60000,"-42 %",IF(A13<=90000,"-48 %",IF(A13<=1000000,"-50 %","-55 %")))))),2) -> 0 | C13: =ROUND(IF(A13<$A$3,0,IF(A13<$A$4,(A13-$A$3)*$B$4,IF(A13<$A$5,(A13-$A$4)*$B$5-$D$4,IF(A13<$A$6,(A13-$A$5)*$B$6-$D$5,IF(A13<$A$7,(A13-$A$6)*$B$7-$D$6,IF(A13<$A$8,(A13-$A$7)*$B$8-$D$7,(A13-$A$8)*$B$9-$D$8)))))),2) -> 0 | D13: =ROUND(IF(A13<12816,0,IF(A13<20818,(A13-12816)*-0.2,IF(A13<34513,(A13-20818)*-0.3-1600.4,IF(A13<66612,(A13-34513)*-0.4-5708.9,IF(A13<99266,(A13-66612)*-0.48-18548.5,IF(A13<1000000,(A13-99266)*-0.5-34222.42,(A13-1000000)*-0.55-484589.42)))))),2) -> 0 | E13: 0 | F13: =ROUND(C13/A13,4) -> 0 | G13: 0 | J13: Gleiches gilt für die Gewinnfreibeträge.
A14: 12000 | B14: 0 | C14: 0 | D14: =ROUND(IF(A14<12816,0,IF(A14<20818,(A14-12816)*-0.2,IF(A14<34513,(A14-20818)*-0.3-1600.4,IF(A14<66612,(A14-34513)*-0.4-5708.9,IF(A14<99266,(A14-66612)*-0.48-18548.5,IF(A14<1000000,(A14-99266)*-0.5-34222.42,(A14-1000000)*-0.55-484589.42)))))),2) -> 0 | E14: 0 | F14: =ROUND(D14/A14,4) -> 0 | G14: 0
A15: 13000 | B15: 0 | C15: 0 | D15: -36.8 | E15: 36.8 | F15: 0 | G15: 0.0028
A16: 14000 | B16: -0.2 | C16: -138.4 | D16: -236.8 | E16: 98.4 | F16: -0.0099 | G16: 0.007
A17: 15000 | B17: -0.2 | C17: -338.4 | D17: -436.8 | E17: 98.4 | F17: -0.0226 | G17: 0.0066
A18: 16000 | B18: -0.2 | C18: -538.4 | D18: -636.8 | E18: 98.4 | F18: -0.0337 | G18: 0.0062
A19: 17000 | B19: -0.2 | C19: -738.4 | D19: -836.8 | E19: 98.4 | F19: -0.0434 | G19: 0.0058
A20: 18000 | B20: -0.2 | C20: -938.4 | D20: -1036.8 | E20: 98.4 | F20: -0.0521 | G20: 0.0055
A21: 19000 | B21: -0.2 | C21: -1138.4 | D21: -1236.8 | E21: 98.4 | F21: -0.0599 | G21: 0.0052
A22: 21000 | B22: -0.2 | C22: -1538.4 | D22: -1655 | E22: 116.6 | F22: -0.0733 | G22: 0.0056
A23: 23000 | B23: -0.3 | C23: -2076.7 | D23: -2255 | E23: 178.3 | F23: -0.0903 | G23: 0.0078
A24: 25000 | B24: -0.3 | C24: -2676.7 | D24: -2855 | E24: 178.3 | F24: -0.1071 | G24: 0.0071
A25: 27000 | B25: -0.3 | C25: -3276.7 | D25: -3455 | E25: 178.3 | F25: -0.1214 | G25: 0.0066
A26: 29000 | B26: -0.3 | C26: -3876.7 | D26: -4055 | E26: 178.3 | F26: -0.1337 | G26: 0.0061
A27: 31000 | B27: -0.3 | C27: -4476.7 | D27: -4655 | E27: 178.3 | F27: -0.1444 | G27: 0.0058
A28: 32000 | B28: -0.3 | C28: -4776.7 | D28: -4955 | E28: 178.3 | F28: -0.1493 | G28: 0.0056
A29: 34000 | B29: -0.3 | C29: -5376.7 | D29: -5555 | E29: 178.3 | F29: -0.1581 | G29: 0.0052
A30: 36000 | B30: -0.4 | C30: -5993.1 | D30: -6303.7 | E30: 310.6 | F30: -0.1665 | G30: 0.0086
A31: 38000 | B31: -0.4 | C31: -6793.1 | D31: -7103.7 | E31: 310.6 | F31: -0.1788 | G31: 0.0082
A32: 40000 | B32: -0.4 | C32: -7593.1 | D32: -7903.7 | E32: 310.6 | F32: -0.1898 | G32: 0.0078
A33: 45000 | B33: -0.4 | C33: -9593.1 | D33: -9903.7 | E33: 310.6 | F33: -0.2132 | G33: 0.0069
A34: 50000 | B34: -0.4 | C34: -11593.1 | D34: -11903.7 | E34: 310.6 | F34: -0.2319 | G34: 0.0062
A35: 55000 | B35: -0.4 | C35: -13593.1 | D35: -13903.7 | E35: 310.6 | F35: -0.2471 | G35: 0.0056
A36: 60000 | B36: -0.4 | C36: -15593.1 | D36: -15903.7 | E36: 310.6 | F36: -0.2599 | G36: 0.0052
A37: 65000 | B37: -0.4 | C37: -17593.1 | D37: -17903.7 | E37: 310.6 | F37: -0.2707 | G37: 0.0048
A38: 70000 | B38: =ROUND(IF(A38<=11000,0,IF(A38<=18000,"-25 %",IF(A38<=31000,"-35 %",IF(A38<=60000,"-42 %",IF(A38<=90000,"-48 %",IF(A38<=1000000,"-50 %","-55 %")))))),2) -> -0.48 | C38: -19659.82 | D38: -20174.74 | E38: 514.92 | F38: -0.2809 | G38: 0.0074
A39: 75000 | B39: -0.48 | C39: -22059.82 | D39: -22574.74 | E39: 514.92 | F39: -0.2941 | G39: 0.0069
A40: 80000 | B40: -0.48 | C40: -24459.82 | D40: -24974.74 | E40: 514.92 | F40: -0.3057 | G40: 0.0064
A41: 85000 | B41: -0.48 | C41: -26859.82 | D41: -27374.74 | E41: 514.92 | F41: -0.316 | G41: 0.0061
A42: 90000 | B42: -0.48 | C42: -29259.82 | D42: -29774.74 | E42: 514.92 | F42: -0.3251 | G42: 0.0057
A43: 95000 | B43: -0.48 | C43: -31659.82 | D43: -32174.74 | E43: 514.92 | F43: -0.3333 | G43: 0.0054
A44: 100000 | B44: -0.48 | C44: -34059.82 | D44: -34589.42 | E44: 529.6 | F44: -0.3406 | G44: 0.0053
A45: 200000 | B45: -0.5 | C45: -83998.38 | D45: -84589.42 | E45: 591.04 | F45: -0.42 | G45: 0.003
A46: 300000 | B46: -0.5 | C46: -133998.38 | D46: -134589.42 | E46: 591.04 | F46: -0.4467 | G46: 0.002
A47: 400000 | B47: -0.5 | C47: -183998.38 | D47: -184589.42 | E47: 591.04 | F47: -0.46 | G47: 0.0015
A48: 500000 | B48: -0.5 | C48: -233998.38 | D48: -234589.42 | E48: 591.04 | F48: -0.468 | G48: 0.0012
A49: 600000 | B49: -0.5 | C49: -283998.38 | D49: -284589.42 | E49: 591.04 | F49: -0.4733 | G49: 0.001
A50: 700000 | B50: -0.5 | C50: -333998.38 | D50: -334589.42 | E50: 591.04 | F50: -0.4771 | G50: 0.0008
A51: 800000 | B51: -0.5 | C51: -383998.38 | D51: -384589.42 | E51: 591.04 | F51: -0.48 | G51: 0.0007
A52: 900000 | B52: -0.5 | C52: -433998.38 | D52: -434589.42 | E52: 591.04 | F52: -0.4822 | G52: 0.0007
A53: 1000000 | B53: -0.5 | C53: -483998.38 | D53: -484589.42 | E53: 591.04 | F53: -0.484 | G53: 0.0006
A54: 1010000 | B54: -0.55 | C54: -489498.38 | D54: -490089.42 | E54: 591.04 | F54: -0.4847 | G54: 0.0006
A55: 1020000 | B55: -0.55 | C55: -494998.38 | D55: -495589.42 | E55: 591.04 | F55: -0.4853 | G55: 0.0006
A56: 1030000 | B56: -0.55 | C56: -500498.38 | D56: -501089.42 | E56: 591.04 | F56: -0.4859 | G56: 0.0006
A57: 1040000 | B57: -0.55 | C57: -505998.38 | D57: -506589.42 | E57: 591.04 | F57: -0.4865 | G57: 0.0006
A58: 1047100 | B58: -0.55 | C58: -509903.38 | D58: -510494.42 | E58: 591.04 | F58: -0.487 | G58: 0.0006
A59: 1050000 | B59: -0.55 | C59: -511498.38 | D59: -512089.42 | E59: 591.04 | F59: -0.4871 | G59: 0.0006
A60: 1060000 | B60: -0.55 | C60: -516998.38 | D60: -517589.42 | E60: 591.04 | F60: -0.4877 | G60: 0.0006
A61: 1070000 | B61: -0.55 | C61: -522498.38 | D61: -523089.42 | E61: 591.04 | F61: -0.4883 | G61: 0.0006
A62: 1080000 | B62: -0.55 | C62: -527998.38 | D62: -528589.42 | E62: 591.04 | F62: -0.4889 | G62: 0.0005
A63: 1090000 | B63: -0.55 | C63: -533498.38 | D63: -534089.42 | E63: 591.04 | F63: -0.4894 | G63: 0.0005
A64: 1100000 | B64: -0.55 | C64: -538998.38 | D64: -539589.42 | E64: 591.04 | F64: -0.49 | G64: 0.0005
A65: 1150000 | B65: -0.55 | C65: -566498.38 | D65: -567089.42 | E65: 591.04 | F65: -0.4926 | G65: 0.0005
A66: 1200000 | B66: -0.55 | C66: -593998.38 | D66: -594589.42 | E66: 591.04 | F66: -0.495 | G66: 0.0005
A67: 1300000 | B67: -0.55 | C67: -648998.38 | D67: -649589.42 | E67: 591.04 | F67: -0.4992 | G67: 0.0005
A68: 1400000 | B68: -0.55 | C68: -703998.38 | D68: -704589.42 | E68: 591.04 | F68: -0.5029 | G68: 0.0004
A69: 1500000 | B69: -0.55 | C69: -758998.38 | D69: -759589.42 | E69: 591.04 | F69: -0.506 | G69: 0.0004
A70: 1600000 | B70: -0.55 | C70: -813998.38 | D70: -814589.42 | E70: 591.04 | F70: -0.5087 | G70: 0.0004
A71: 1700000 | B71: -0.55 | C71: -868998.38 | D71: -869589.42 | E71: 591.04 | F71: -0.5112 | G71: 0.0003
A72: 1800000 | B72: -0.55 | C72: -923998.38 | D72: -924589.42 | E72: 591.04 | F72: -0.5133 | G72: 0.0003
A73: 1900000 | B73: -0.55 | C73: -978998.38 | D73: -979589.42 | E73: 591.04 | F73: -0.5153 | G73: 0.0003
A74: 2000000 | B74: -0.55 | C74: -1033998.38 | D74: -1034589.42 | E74: 591.04 | F74: -0.517 | G74: 0.0003

Sheet ESt-Tarif 2024
A1: ESt-Tariftabelle 2024 (AT) | F1: rvo.at | G1: rvo.at
A2: ESt-Tarif 2024 | B2: Grenz% 2023 | C2: Bandbreite | D2: Additiv | E2: %steigerung
A3: 12816 | B3: 0 | C3: =0-A3 -> -12816 | D3: 0 | E3: 0
A4: 20818 | B4: -0.2 | C4: =A3-A4 -> -8002 | D4: =B4*C4 -> 1600.4 | E4: =B3-B4 -> 0.2
A5: 34513 | B5: -0.3 | C5: -13695 | D5: =B5*C5+D4 -> 5708.9 | E5: 0.1
A6: 66612 | B6: -0.4 | C6: -32099 | D6: =B6*C6+D5 -> 18548.5 | E6: 0.1
A7: 99266 | B7: -0.48 | C7: -32654 | D7: =B7*C7+D6 -> 34222.42 | E7: 0.08
A8: 1000000 | B8: -0.5 | C8: -900734 | D8: =B8*C8+D7 -> 484589.42 | E8: 0.02
A9: > | B9: -0.55 | E9: 0.05
A11: Einkommen | B11: Grenz% 2024 | C11: Steuer 2024 | D11: Steuer 2023 | E11: Vorteil 2024:2023 | F11: Effektiv% 2024 | G11: Vorteil 2024:2023
A12: 25000 | B12: =ROUND(IF(A12<=A3,B3,IF(A12<=A4,B4,IF(A12<=A5,B5,IF(A12<=A6,B6,IF(A12<=A7,B7,IF(A12<=A8,B8,B9)))))),3) -> -0.3 | C12: =ROUND(IF(A12<12816,0,IF(A12<20818,(A12-12816)*-0.2,IF(A12<34513,(A12-20818)*-0.3-1600.4,IF(A12<66612,(A12-34513)*-0.4-5708.9,IF(A12<99266,(A12-66612)*-0.48-18548.5,IF(A12<1000000,(A12-99266)*-0.5-34222.42,(A12-1000000)*-0.55-484589.42)))))),2) -> -2855 | D12: =ROUND(IF(A12<11693,0,IF(A12<19134,(A12-11693)*-0.2,IF(A12<32075,(A12-19134)*-0.3-1488.2,IF(A12<62080,(A12-32075)*-0.41-5370.5,IF(A12<93120,(A12-62080)*-0.48-17672.55,IF(A12<1000000,(A12-93120)*-0.5-32571.75,(A12-1000000)*-0.55-486011.75)))))),2) -> -3248 | E12: =C12-D12 -> 393 | F12: =ROUND(C12/A12,4) -> -0.1142 | G12: =ROUND(E12/A12,4) -> 0.0157 | I12: Anmerkung: | J12: Die steuerbegünstigten 13.+14. Bezüge sind im "Einkommen" nicht enthalten!
A13: 11000 | B13: =ROUND(IF(A13<=11000,0,IF(A13<=18000,"-25 %",IF(A13<=31000,"-35 %",IF(A13<=60000,"-42 %",IF(A13<=90000,"-48 %",IF(A13<=1000000,"-50 %","-55 %")))))),2) -> 0 | C13: =ROUND(IF($A13<$A$3,0,IF($A13<$A$4,($A13-$A$3)*$B$4,IF($A13<$A$5,($A13-$A$4)*$B$5-$D$4,IF($A13<$A$6,($A13-$A$5)*$B$6-$D$5,IF($A13<$A$7,($A13-$A$6)*$B$7-$D$6,IF($A13<$A$8,($A13-$A$7)*$B$8-$D$7,($A13-$A$8)*$B$9-$D$8)))))),2) -> 0 | D13: =ROUND(IF(A13<11693,0,IF(A13<19134,(A13-11693)*-0.2,IF(A13<32075,(A13-19134)*-0.3-1488.2,IF(A13<62080,(A13-32075)*-0.41-5370.5,IF(A13<93120,(A13-62080)*-0.48-17672.55,IF(A13<1000000,(A13-93120)*-0.5-32571.75,(A13-1000000)*-0.55-486011.75)))))),2) -> 0 | E13: =C13-D13 -> 0 | F13: 0 | G13: 0 | J13: Gleiches gilt für die Gewinnfreibeträge.
A14: 12000 | B14: -0.2 | C14: =ROUND(IF(A14<$A$3,0,IF(A14<$A$4,(A14-$A$3)*$B$4,IF(A14<$A$5,(A14-$A$4)*$B$5-$D$4,IF(A14<$A$6,(A14-$A$5)*$B$6-$D$5,IF(A14<$A$7,(A14-$A$6)*$B$7-$D$6,IF(A14<$A$8,(A14-$A$7)*$B$8-$D$7,(A14-$A$8)*$B$9-$D$8)))))),2) -> 0 | D14: =ROUND(IF(A14<11693,0,IF(A14<19134,(A14-11693)*-0.2,IF(A14<32075,(A14-19134)*-0.3-1488.2,IF(A14<62080,(A14-32075)*-0.41-5370.5,IF(A14<93120,(A14-62080)*-0.48-17672.55,IF(A14<1000000,(A14-93120)*-0.5-32571.75,(A14-1000000)*-0.55-486011.75)))))),2) -> -61.4 | E14: 61.4 | F14: 0 | G14: 0.0051
A15: 13000 | B15: -0.2 | C15: -36.8 | D15: -261.4 | E15: 224.6 | F15: -0.0028 | G15: 0.0173
A16: 14000 | B16: -0.2 | C16: -236.8 | D16: -461.4 | E16: 224.6 | F16: -0.0169 | G16: 0.016
A17: 15000 | B17: -0.2 | C17: -436.8 | D17: -661.4 | E17: 224.6 | F17: -0.0291 | G17: 0.015
A18: 16000 | B18: -0.2 | C18: -636.8 | D18: -861.4 | E18: 224.6 | F18: -0.0398 | G18: 0.014
A19: 17000 | B19: -0.2 | C19: -836.8 | D19: -1061.4 | E19: 224.6 | F19: -0.0492 | G19: 0.0132
A20: 18000 | B20: -0.2 | C20: -1036.8 | D20: -1261.4 | E20: 224.6 | F20: -0.0576 | G20: 0.0125
A21: 19000 | B21: -0.2 | C21: -1236.8 | D21: -1461.4 | E21: 224.6 | F21: -0.0651 | G21: 0.0118
A22: 21000 | B22: -0.3 | C22: -1655 | D22: -2048 | E22: 393 | F22: -0.0788 | G22: 0.0187
A23: 23000 | B23: -0.3 | C23: -2255 | D23: -2648 | E23: 393 | F23: -0.098 | G23: 0.0171
A24: 25000 | B24: -0.3 | C24: -2855 | D24: -3248 | E24: 393 | F24: -0.1142 | G24: 0.0157
A25: 27000 | B25: -0.3 | C25: -3455 | D25: -3848 | E25: 393 | F25: -0.128 | G25: 0.0146
A26: 29000 | B26: -0.3 | C26: -4055 | D26: -4448 | E26: 393 | F26: -0.1398 | G26: 0.0136
A27: 31000 | B27: -0.3 | C27: -4655 | D27: -5048 | E27: 393 | F27: -0.1502 | G27: 0.0127
A28: 32000 | B28: -0.3 | C28: -4955 | D28: -5348 | E28: 393 | F28: -0.1548 | G28: 0.0123
A29: 34000 | B29: -0.4 | C29: -5555 | D29: -6159.75 | E29: 604.75 | F29: -0.1634 | G29: 0.0178
A30: 36000 | B30: -0.4 | C30: -6303.7 | D30: -6979.75 | E30: 676.05 | F30: -0.1751 | G30: 0.0188
A31: 38000 | B31: -0.4 | C31: -7103.7 | D31: -7799.75 | E31: 696.05 | F31: -0.1869 | G31: 0.0183
A32: 40000 | B32: -0.4 | C32: -7903.7 | D32: -8619.75 | E32: 716.05 | F32: -0.1976 | G32: 0.0179
A33: 45000 | B33: -0.4 | C33: -9903.7 | D33: -10669.75 | E33: 766.05 | F33: -0.2201 | G33: 0.017
A34: 50000 | B34: -0.4 | C34: -11903.7 | D34: -12719.75 | E34: 816.05 | F34: -0.2381 | G34: 0.0163
A35: 55000 | B35: -0.4 | C35: -13903.7 | D35: -14769.75 | E35: 866.05 | F35: -0.2528 | G35: 0.0157
A36: 60000 | B36: -0.4 | C36: -15903.7 | D36: -16819.75 | E36: 916.05 | F36: -0.2651 | G36: 0.0153
A37: 65000 | B37: =ROUND(IF(A37<=11000,0,IF(A37<=18000,"-25 %",IF(A37<=31000,"-35 %",IF(A37<=60000,"-42 %",IF(A37<=90000,"-48 %",IF(A37<=1000000,"-50 %","-55 %")))))),2) -> -0.48 | C37: -17903.7 | D37: -19074.15 | E37: 1170.45 | F37: -0.2754 | G37: 0.018
A38: 70000 | B38: -0.48 | C38: -20174.74 | D38: -21474.15 | E38: 1299.41 | F38: -0.2882 | G38: 0.0186
A39: 75000 | B39: -0.48 | C39: -22574.74 | D39: -23874.15 | E39: 1299.41 | F39: -0.301 | G39: 0.0173
A40: 80000 | B40: -0.48 | C40: -24974.74 | D40: -26274.15 | E40: 1299.41 | F40: -0.3122 | G40: 0.0162
A41: 85000 | B41: -0.48 | C41: -27374.74 | D41: -28674.15 | E41: 1299.41 | F41: -0.3221 | G41: 0.0153
A42: 90000 | B42: -0.48 | C42: -29774.74 | D42: -31074.15 | E42: 1299.41 | F42: -0.3308 | G42: 0.0144
A43: 95000 | B43: -0.48 | C43: -32174.74 | D43: -33511.75 | E43: 1337.01 | F43: -0.3387 | G43: 0.0141
A44: 100000 | B44: -0.5 | C44: -34589.42 | D44: -36011.75 | E44: 1422.33 | F44: -0.3459 | G44: 0.0142
A45: 200000 | B45: -0.5 | C45: -84589.42 | D45: -86011.75 | E45: 1422.33 | F45: -0.4229 | G45: 0.0071
A46: 300000 | B46: -0.5 | C46: -134589.42 | D46: -136011.75 | E46: 1422.33 | F46: -0.4486 | G46: 0.0047
A47: 400000 | B47: -0.5 | C47: -184589.42 | D47: -186011.75 | E47: 1422.33 | F47: -0.4615 | G47: 0.0036
A48: 500000 | B48: -0.5 | C48: -234589.42 | D48: -236011.75 | E48: 1422.33 | F48: -0.4692 | G48: 0.0028
A49: 600000 | B49: -0.5 | C49: -284589.42 | D49: -286011.75 | E49: 1422.33 | F49: -0.4743 | G49: 0.0024
A50: 700000 | B50: -0.5 | C50: -334589.42 | D50: -336011.75 | E50: 1422.33 | F50: -0.478 | G50: 0.002
A51: 800000 | B51: -0.5 | C51: -384589.42 | D51: -386011.75 | E51: 1422.33 | F51: -0.4807 | G51: 0.0018
A52: 900000 | B52: -0.5 | C52: -434589.42 | D52: -436011.75 | E52: 1422.33 | F52: -0.4829 | G52: 0.0016
A53: 1000000 | B53: -0.5 | C53: -484589.42 | D53: -486011.75 | E53: 1422.33 | F53: -0.4846 | G53: 0.0014
A54: 1010000 | B54: -0.55 | C54: -490089.42 | D54: -491511.75 | E54: 1422.33 | F54: -0.4852 | G54: 0.0014
A55: 1020000 | B55: -0.55 | C55: -495589.42 | D55: -497011.75 | E55: 1422.33 | F55: -0.4859 | G55: 0.0014
A56: 1030000 | B56: -0.55 | C56: -501089.42 | D56: -502511.75 | E56: 1422.33 | F56: -0.4865 | G56: 0.0014
A57: 1040000 | B57: -0.55 | C57: -506589.42 | D57: -508011.75 | E57: 1422.33 | F57: -0.4871 | G57: 0.0014
A58: 1047100 | B58: -0.55 | C58: -510494.42 | D58: -511916.75 | E58: 1422.33 | F58: -0.4875 | G58: 0.0014
A59: 1050000 | B59: -0.55 | C59: -512089.42 | D59: -513511.75 | E59: 1422.33 | F59: -0.4877 | G59: 0.0014
A60: 1060000 | B60: -0.55 | C60: -517589.42 | D60: -519011.75 | E60: 1422.33 | F60: -0.4883 | G60: 0.0013
A61: 1070000 | B61: -0.55 | C61: -523089.42 | D61: -524511.75 | E61: 1422.33 | F61: -0.4889 | G61: 0.0013
A62: 1080000 | B62: -0.55 | C62: -528589.42 | D62: -530011.75 | E62: 1422.33 | F62: -0.4894 | G62: 0.0013
A63: 1090000 | B63: -0.55 | C63: -534089.42 | D63: -535511.75 | E63: 1422.33 | F63: -0.49 | G63: 0.0013
A64: 1100000 | B64: -0.55 | C64: -539589.42 | D64: -541011.75 | E64: 1422.33 | F64: -0.4905 | G64: 0.0013
A65: 1150000 | B65: -0.55 | C65: -567089.42 | D65: -568511.75 | E65: 1422.33 | F65: -0.4931 | G65: 0.0012
A66: 1200000 | B66: -0.55 | C66: -594589.42 | D66: -596011.75 | E66: 1422.33 | F66: -0.4955 | G66: 0.0012
A67: 1300000 | B67: -0.55 | C67: -649589.42 | D67: -651011.75 | E67: 1422.33 | F67: -0.4997 | G67: 0.0011
A68: 1400000 | B68: -0.55 | C68: -704589.42 | D68: -706011.75 | E68: 1422.33 | F68: -0.5033 | G68: 0.001
A69: 1500000 | B69: -0.55 | C69: -759589.42 | D69: -761011.75 | E69: 1422.33 | F69: -0.5064 | G69: 0.0009
A70: 1600000 | B70: -0.55 | C70: -814589.42 | D70: -816011.75 | E70: 1422.33 | F70: -0.5091 | G70: 0.0009
A71: 1700000 | B71: -0.55 | C71: -869589.42 | D71: -871011.75 | E71: 1422.33 | F71: -0.5115 | G71: 0.0008
A72: 1800000 | B72: -0.55 | C72: -924589.42 | D72: -926011.75 | E72: 1422.33 | F72: -0.5137 | G72: 0.0008
A73: 1900000 | B73: -0.55 | C73: -979589.42 | D73: -981011.75 | E73: 1422.33 | F73: -0.5156 | G73: 0.0007
A74: 2000000 | B74: -0.55 | C74: -1034589.42 | D74: -1036011.75 | E74: 1422.33 | F74: -0.5173 | G74: 0.0007

Sheet ESt-Tarif 2023
A1: ESt-Tariftabelle 2023 (AT) | G1: rvo.at | H1: rvo.at
A2: ESt-Tarif 2023 | B2: Grenz% 2023 | C2: Bandbreite | D2: Additiv | E2: %steigerung
A3: 11693 | B3: 0 | C3: =0-A3 -> -11693 | D3: 0 | E3: 0
A4: 19134 | B4: -0.2 | C4: =A3-A4 -> -7441 | D4: =B4*C4 -> 1488.2 | E4: =B3-B4 -> 0.2
A5: 32075 | B5: -0.3 | C5: -12941 | D5: =B5*C5+D4 -> 5370.5 | E5: 0.1
A6: 62080 | B6: -0.41 | C6: -30005 | D6: =B6*C6+D5 -> 17672.55 | E6: 0.11
A7: 93120 | B7: -0.48 | C7: -31040 | D7: =B7*C7+D6 -> 32571.75 | E7: 0.07
A8: 1000000 | B8: -0.5 | C8: -906880 | D8: =B8*C8+D7 -> 486011.75 | E8: 0.02
A9: > | B9: -0.55 | E9: 0.05
A11: Einkommen | B11: Grenz% 2023 | C11: Steuer 2023 | D11: Steuer 2022 | E11: Vorteil 2023:2022 | F11: Steuer 2015 | H11: Effektiv% 2022 | I11: Vorteil 2023:2022
A12: 25000 | B12: =ROUND(IF(A12<=A3,B3,IF(A12<=A4,B4,IF(A12<=A5,B5,IF(A12<=A6,B6,IF(A12<=A7,B7,IF(A12<=A8,B8,B9)))))),3) -> -0.3 | C12: =ROUND(IF(A12<$A$3,0,IF(A12<$A$4,(A12-$A$3)*$B$4,IF(A12<$A$5,(A12-$A$4)*$B$5-$D$4,IF(A12<$A$6,(A12-$A$5)*$B$6-$D$5,IF(A12<$A$7,(A12-$A$6)*$B$7-$D$6,IF(A12<$A$8,(A12-$A$7)*$B$8-$D$7,(A12-$A$8)*$B$9-$D$8)))))),2) -> -3248 | D12: =ROUND(IF(A12<11000,0,IF(A12<18000,(A12-11000)*-0.2,IF(A12<31000,(A12-18000)*-0.325-1400,IF(A12<60000,(A12-31000)*-0.42-5625,IF(A12<90000,(A12-60000)*-0.48-17805,IF(A12<1000000,(A12-90000)*-0.5-32205,(A12-1000000)*-0.55-487205)))))),2) -> -3675 | E12: =G12-D12 -> 427 | F12: =ROUND(IF(A12<=11000,0,IF(A12<=25000,(A12-11000)*5110/14000,IF(A12<=60000,(A12-25000)*15125/35000+5110,(A12-60000)*0.5+20235)))*-1,2) -> -5110 | G12: =ROUND(IF(A12<11693,0,IF(A12<19134,(A12-11693)*-0.2,IF(A12<32075,(A12-19134)*-0.3-1488.2,IF(A12<62080,(A12-32075)*-0.41-5370.5,IF(A12<93120,(A12-62080)*-0.48-17672.55,IF(A12<1000000,(A12-93120)*-0.5-32571.75,(A12-1000000)*-0.55-486011.75)))))),2) -> -3248 | H12: =ROUND(C12/A12,4) -> -0.1299 | I12: =ROUND(E12/A12,4) -> 0.0171 | J12: Anmerkung: | K12: Die steuerbegünstigten 13.+14. Bezüge sind im "Einkommen" nicht enthalten!
A13: 11000 | B13: =ROUND(IF(A13<=11000,0,IF(A13<=18000,"-25 %",IF(A13<=31000,"-35 %",IF(A13<=60000,"-42 %",IF(A13<=90000,"-48 %",IF(A13<=1000000,"-50 %","-55 %")))))),2) -> 0 | C13: 0 | D13: =ROUND(IF(A13<11000,0,IF(A13<18000,(A13-11000)*-0.2,IF(A13<31000,(A13-18000)*-0.325-1400,IF(A13<60000,(A13-31000)*-0.42-5625,IF(A13<90000,(A13-60000)*-0.48-17805,IF(A13<1000000,(A13-90000)*-0.5-32205,(A13-1000000)*-0.55-487205)))))),2) -> 0 | E13: =C13-F13 -> 0 | F13: =ROUND(IF(A13<=11000,0,IF(A13<=25000,(A13-11000)*5110/14000,IF(A13<=60000,(A13-25000)*15125/35000+5110,(A13-60000)*0.5+20235)))*-1,2) -> 0 | G13: =ROUND(IF(A13<11000,0,IF(A13<18000,(A13-11000)*-0.25,IF(A13<31000,(A13-18000)*-0.35-1750,IF(A13<60000,(A13-31000)*-0.42-6300,IF(A13<90000,(A13-60000)*-0.48-18480,IF(A13<1000000,(A13-90000)*-0.5-32880,(A13-1000000)*-0.55-487880)))))),2) -> 0 | H13: 0 | I13: 0 | K13: Gleiches gilt für die Gewinnfreibeträge.
A14: 12000 | B14: -0.2 | C14: -61.4 | D14: -200 | E14: =C14-D14 -> 138.6 | F14: -365 | G14: -250 | H14: -0.0051 | I14: 0.0116
A15: 13000 | B15: -0.2 | C15: -261.4 | D15: -400 | E15: 138.6 | F15: -730 | G15: -500 | H15: -0.0201 | I15: 0.0107
A16: 14000 | B16: -0.2 | C16: -461.4 | D16: -600 | E16: 138.6 | F16: -1095 | G16: -750 | H16: -0.033 | I16: 0.0099
A17: 15000 | B17: -0.2 | C17: -661.4 | D17: -800 | E17: 138.6 | F17: -1460 | G17: -1000 | H17: -0.0441 | I17: 0.0092
A18: 16000 | B18: -0.2 | C18: -861.4 | D18: -1000 | E18: 138.6 | F18: -1825 | H18: -0.0538 | I18: 0.0087
A19: 17000 | B19: -0.2 | C19: -1061.4 | D19: -1200 | E19: 138.6 | F19: -2190 | H19: -0.0624 | I19: 0.0082
A20: 18000 | B20: -0.2 | C20: -1261.4 | D20: -1400 | E20: 138.6 | F20: -2555 | H20: -0.0701 | I20: 0.0077
A21: 19000 | B21: -0.2 | C21: -1461.4 | D21: -1725 | E21: 263.6 | F21: -2920 | G21: =ROUND(IF(A21<11000,0,IF(A21<18000,(A21-11000)*-0.25,IF(A21<31000,(A21-18000)*-0.35-1750,IF(A21<60000,(A21-31000)*-0.42-6300,IF(A21<90000,(A21-60000)*-0.48-18480,IF(A21<1000000,(A21-90000)*-0.5-32880,(A21-1000000)*-0.55-487880)))))),2) -> -2100 | H21: -0.0769 | I21: 0.0139
A22: 21000 | B22: -0.3 | C22: -2048 | D22: -2375 | E22: 327 | F22: -3650 | G22: -2800 | H22: -0.0975 | I22: 0.0156
A23: 23000 | B23: -0.3 | C23: -2648 | D23: -3025 | E23: 377 | F23: -4380 | G23: -3500 | H23: -0.1151 | I23: 0.0164
A24: 25000 | B24: -0.3 | C24: -3248 | D24: -3675 | E24: 427 | F24: -5110 | G24: -4200 | H24: -0.1299 | I24: 0.0171
A25: 27000 | B25: -0.3 | C25: -3848 | D25: -4325 | E25: 477 | F25: -5974.29 | G25: -4900 | H25: -0.1425 | I25: 0.0177
A26: 29000 | B26: -0.3 | C26: -4448 | D26: -4975 | E26: 527 | F26: -6838.57 | G26: -5600 | H26: -0.1534 | I26: 0.0182
A27: 31000 | B27: -0.3 | C27: -5048 | D27: -5625 | E27: 577 | F27: -7702.86 | G27: -6300 | H27: -0.1628 | I27: 0.0186
A28: 32000 | B28: -0.3 | C28: -5348 | D28: -6045 | E28: 697 | F28: -8135 | G28: -6720 | H28: -0.1671 | I28: 0.0218
A29: 34000 | B29: -0.41 | C29: -6159.75 | D29: -6885 | E29: 725.25 | F29: -8999.29 | G29: -7560 | H29: -0.1812 | I29: 0.0213
A30: 36000 | B30: -0.41 | C30: -6979.75 | D30: -7725 | E30: 745.25 | F30: -9863.57 | G30: -8400 | H30: -0.1939 | I30: 0.0207
A31: 38000 | B31: -0.41 | C31: -7799.75 | D31: -8565 | E31: 765.25 | F31: -10727.86 | G31: -9240 | H31: -0.2053 | I31: 0.0201
A32: 40000 | B32: -0.41 | C32: -8619.75 | D32: -9405 | E32: 785.25 | F32: -11592.14 | G32: -10080 | H32: -0.2155 | I32: 0.0196
A33: 45000 | B33: -0.41 | C33: -10669.75 | D33: -11505 | E33: 835.25 | F33: -13752.86 | G33: -12180 | H33: -0.2371 | I33: 0.0186
A34: 50000 | B34: -0.41 | C34: -12719.75 | D34: -13605 | E34: 885.25 | F34: -15913.57 | G34: -14280 | H34: -0.2544 | I34: 0.0177
A35: 55000 | B35: -0.41 | C35: -14769.75 | D35: -15705 | E35: 935.25 | F35: -18074.29 | G35: -16380 | H35: -0.2685 | I35: 0.017
A36: 60000 | B36: -0.41 | C36: -16819.75 | D36: -17805 | E36: 985.25 | F36: -20235 | G36: -18480 | H36: -0.2803 | I36: 0.0164
A37: 65000 | B37: =ROUND(IF(A37<=11000,0,IF(A37<=18000,"-25 %",IF(A37<=31000,"-35 %",IF(A37<=60000,"-42 %",IF(A37<=90000,"-48 %",IF(A37<=1000000,"-50 %","-55 %")))))),2) -> -0.48 | C37: -19074.15 | D37: -20205 | E37: 1130.85 | F37: -22735 | G37: -20880 | H37: -0.2934 | I37: 0.0174
A38: 70000 | B38: -0.48 | C38: -21474.15 | D38: -22605 | E38: 1130.85 | F38: -25235 | G38: -23280 | H38: -0.3068 | I38: 0.0162
A39: 75000 | B39: -0.48 | C39: -23874.15 | D39: -25005 | E39: 1130.85 | F39: -27735 | G39: -25680 | H39: -0.3183 | I39: 0.0151
A40: 80000 | B40: -0.48 | C40: -26274.15 | D40: -27405 | E40: 1130.85 | F40: -30235 | G40: -28080 | H40: -0.3284 | I40: 0.0141
A41: 85000 | B41: -0.48 | C41: -28674.15 | D41: -29805 | E41: 1130.85 | F41: -32735 | G41: -30480 | H41: -0.3373 | I41: 0.0133
A42: 90000 | B42: -0.48 | C42: -31074.15 | D42: -32205 | E42: 1130.85 | F42: -35235 | G42: -32880 | H42: -0.3453 | I42: 0.0126
A43: 95000 | B43: -0.48 | C43: -33511.75 | D43: -34705 | E43: 1193.25 | F43: -37735 | G43: -35380 | H43: -0.3528 | I43: 0.0126
A44: 100000 | B44: -0.5 | C44: -36011.75 | D44: -37205 | E44: 1193.25 | F44: -40235 | G44: -37880 | H44: -0.3601 | I44: 0.0119
A45: 200000 | B45: -0.5 | C45: -86011.75 | D45: -87205 | E45: 1193.25 | F45: -90235 | G45: -87880 | H45: -0.4301 | I45: 0.006
A46: 300000 | B46: -0.5 | C46: -136011.75 | D46: -137205 | E46: 1193.25 | F46: -140235 | G46: -137880 | H46: -0.4534 | I46: 0.004
A47: 400000 | B47: -0.5 | C47: -186011.75 | D47: -187205 | E47: 1193.25 | F47: -190235 | G47: -187880 | H47: -0.465 | I47: 0.003
A48: 500000 | B48: -0.5 | C48: -236011.75 | D48: -237205 | E48: 1193.25 | F48: -240235 | G48: -237880 | H48: -0.472 | I48: 0.0024
A49: 600000 | B49: -0.5 | C49: -286011.75 | D49: -287205 | E49: 1193.25 | F49: -290235 | G49: -287880 | H49: -0.4767 | I49: 0.002
A50: 700000 | B50: -0.5 | C50: -336011.75 | D50: -337205 | E50: 1193.25 | F50: -340235 | G50: -337880 | H50: -0.48 | I50: 0.0017
A51: 800000 | B51: -0.5 | C51: -386011.75 | D51: -387205 | E51: 1193.25 | F51: -390235 | G51: -387880 | H51: -0.4825 | I51: 0.0015
A52: 900000 | B52: -0.5 | C52: -436011.75 | D52: -437205 | E52: 1193.25 | F52: -440235 | G52: -437880 | H52: -0.4845 | I52: 0.0013
A53: 1000000 | B53: -0.5 | C53: -486011.75 | D53: -487205 | E53: 1193.25 | F53: -490235 | G53: -487880 | H53: -0.486 | I53: 0.0012
A54: 1010000 | B54: -0.55 | C54: -491511.75 | D54: -492705 | E54: 1193.25 | F54: -495235 | G54: -493380 | H54: -0.4866 | I54: 0.0012
A55: 1020000 | B55: -0.55 | C55: -497011.75 | D55: -498205 | E55: 1193.25 | F55: -500235 | G55: -498880 | H55: -0.4873 | I55: 0.0012
A56: 1030000 | B56: -0.55 | C56: -502511.75 | D56: -503705 | E56: 1193.25 | F56: -505235 | G56: -504380 | H56: -0.4879 | I56: 0.0012
A57: 1040000 | B57: -0.55 | C57: -508011.75 | D57: -509205 | E57: 1193.25 | F57: -510235 | G57: -509880 | H57: -0.4885 | I57: 0.0011
A58: 1047100 | B58: -0.55 | C58: -511916.75 | D58: -513110 | E58: 1193.25 | F58: -513785 | G58: -513785 | H58: -0.4889 | I58: 0.0011
A59: 1050000 | B59: -0.55 | C59: -513511.75 | D59: -514705 | E59: 1193.25 | F59: -515235 | G59: -515380 | H59: -0.4891 | I59: 0.0011
A60: 1060000 | B60: -0.55 | C60: -519011.75 | D60: -520205 | E60: 1193.25 | F60: -520235 | G60: -520880 | H60: -0.4896 | I60: 0.0011
A61: 1070000 | B61: -0.55 | C61: -524511.75 | D61: -525705 | E61: 1193.25 | F61: -525235 | G61: -526380 | H61: -0.4902 | I61: 0.0011
A62: 1080000 | B62: -0.55 | C62: -530011.75 | D62: -531205 | E62: 1193.25 | F62: -530235 | G62: -531880 | H62: -0.4908 | I62: 0.0011
A63: 1090000 | B63: -0.55 | C63: -535511.75 | D63: -536705 | E63: 1193.25 | F63: -535235 | G63: -537380 | H63: -0.4913 | I63: 0.0011
A64: 1100000 | B64: -0.55 | C64: -541011.75 | D64: -542205 | E64: 1193.25 | F64: -540235 | G64: -542880 | H64: -0.4918 | I64: 0.0011
A65: 1150000 | B65: -0.55 | C65: -568511.75 | D65: -569705 | E65: 1193.25 | F65: -565235 | G65: -570380 | H65: -0.4944 | I65: 0.001
A66: 1200000 | B66: -0.55 | C66: -596011.75 | D66: -597205 | E66: 1193.25 | F66: -590235 | G66: -597880 | H66: -0.4967 | I66: 0.001
A67: 1300000 | B67: -0.55 | C67: -651011.75 | D67: -652205 | E67: 1193.25 | F67: -640235 | G67: -652880 | H67: -0.5008 | I67: 0.0009
A68: 1400000 | B68: -0.55 | C68: -706011.75 | D68: -707205 | E68: 1193.25 | F68: -690235 | G68: -707880 | H68: -0.5043 | I68: 0.0009
A69: 1500000 | B69: -0.55 | C69: -761011.75 | D69: -762205 | E69: 1193.25 | F69: -740235 | G69: -762880 | H69: -0.5073 | I69: 0.0008
A70: 1600000 | B70: -0.55 | C70: -816011.75 | D70: -817205 | E70: 1193.25 | F70: -790235 | G70: -817880 | H70: -0.51 | I70: 0.0007
A71: 1700000 | B71: -0.55 | C71: -871011.75 | D71: -872205 | E71: 1193.25 | F71: -840235 | G71: -872880 | H71: -0.5124 | I71: 0.0007
A72: 1800000 | B72: -0.55 | C72: -926011.75 | D72: -927205 | E72: 1193.25 | F72: -890235 | G72: -927880 | H72: -0.5145 | I72: 0.0007
A73: 1900000 | B73: -0.55 | C73: -981011.75 | D73: -982205 | E73: 1193.25 | F73: -940235 | G73: -982880 | H73: -0.5163 | I73: 0.0006
A74: 2000000 | B74: -0.55 | C74: -1036011.75 | D74: -1037205 | E74: 1193.25 | F74: -990235 | G74: -1037880 | H74: -0.518 | I74: 0.0006

Sheet ESt-Tarif 2022
A1: ESt-Tariftabelle 2022 (AT) "Regierungsvorlage" | G1: rvo.at | H1: rvo.at
A2: ESt-Tarif 2022 | B2: Grenz% 2022 | C2: Bandbreite | D2: Additiv | E2: %steigerung
A3: 11000 | B3: 0 | C3: -11000 | D3: 0 | E3: 0 | J3: Wer in dieser Einkommensteuer-Tariftabelle 2020 eine Systematik erkennen kann ist spitze!
A4: 18000 | B4: -0.2 | C4: =A3-A4 -> -7000 | D4: =B4*C4 -> 1400 | E4: =B3-B4 -> 0.2 | J4: Man darf die Hoffnung nie aufgeben!
A5: 31000 | B5: -0.325 | C5: -13000 | D5: =B5*C5+D4 -> 5625 | E5: 0.125 | J5: "Sicher Vielleicht kommt mal wer und fragt, …"???
A6: 60000 | B6: -0.42 | C6: -29000 | D6: =B6*C6+D5 -> 17805 | E6: 0.095
A7: 90000 | B7: -0.48 | C7: -30000 | D7: =B7*C7+D6 -> 32205 | E7: 0.06
A8: 1000000 | B8: -0.5 | C8: -910000 | D8: =B8*C8+D7 -> 487205 | E8: 0.02
A9: > | B9: -0.55 | E9: 0.05
A11: Einkommen | B11: Grenz% 2022 | C11: Steuer 2022 | D11: Steuer 2019 | E11: Vorteil 2022:2019 | F11: Steuer 2015 | H11: Effektiv% 2022 | I11: Vorteil 2022:2019
A12: 25000 | B12: =ROUND(IF(A12<=11000,0,IF(A12<=18000,"-20 %",IF(A12<=31000,"-32,5 %",IF(A12<=60000,"-42 %",IF(A12<=90000,"-48 %",IF(A12<=1000000,"-50 %","-55 %")))))),3) -> -0.325 | C12: =ROUND(IF(A12<$A$3,0,IF(A12<$A$4,(A12-$A$3)*$B$4,IF(A12<$A$5,(A12-$A$4)*$B$5-$D$4,IF(A12<$A$6,(A12-$A$5)*$B$6-$D$5,IF(A12<$A$7,(A12-$A$6)*$B$7-$D$6,IF(A12<$A$8,(A12-$A$7)*$B$8-$D$7,(A12-$A$8)*$B$9-$D$8)))))),2) -> -3675 | D12: =ROUND(IF(A12<11000,0,IF(A12<18000,(A12-11000)*-0.25,IF(A12<31000,(A12-18000)*-0.35-1750,IF(A12<60000,(A12-31000)*-0.42-6300,IF(A12<90000,(A12-60000)*-0.48-18480,IF(A12<1000000,(A12-90000)*-0.5-32880,(A12-1000000)*-0.55-487880)))))),2) -> -4200 | E12: =G12-D12 -> 525 | F12: =ROUND(IF(A12<=11000,0,IF(A12<=25000,(A12-11000)*5110/14000,IF(A12<=60000,(A12-25000)*15125/35000+5110,(A12-60000)*0.5+20235)))*-1,2) -> -5110 | G12: =ROUND(IF(A12<11000,0,IF(A12<18000,(A12-11000)*-0.2,IF(A12<31000,(A12-18000)*-0.325-1400,IF(A12<60000,(A12-31000)*-0.42-5625,IF(A12<90000,(A12-60000)*-0.48-17805,IF(A12<1000000,(A12-90000)*-0.5-32205,(A12-1000000)*-0.55-487205)))))),2) -> -3675 | H12: =ROUND(C12/A12,4) -> -0.147 | I12: =ROUND(E12/A12,4) -> 0.021 | J12: Anmerkung: | K12: Die steuerbegünstigten 13.+14. Bezüge sind im "Einkommen" nicht enthalten!
A13: 11000 | B13: =ROUND(IF(A13<=11000,0,IF(A13<=18000,"-25 %",IF(A13<=31000,"-35 %",IF(A13<=60000,"-42 %",IF(A13<=90000,"-48 %",IF(A13<=1000000,"-50 %","-55 %")))))),2) -> 0 | C13: 0 | D13: =ROUND(IF(A13<11000,0,IF(A13<18000,(A13-11000)*-0.25,IF(A13<31000,(A13-18000)*-0.35-1750,IF(A13<60000,(A13-31000)*-0.42-6300,IF(A13<90000,(A13-60000)*-0.48-18480,IF(A13<1000000,(A13-90000)*-0.5-32880,(A13-1000000)*-0.55-487880)))))),2) -> 0 | E13: =C13-F13 -> 0 | F13: =ROUND(IF(A13<=11000,0,IF(A13<=25000,(A13-11000)*5110/14000,IF(A13<=60000,(A13-25000)*15125/35000+5110,(A13-60000)*0.5+20235)))*-1,2) -> 0 | G13: =ROUND(IF(A13<11000,0,IF(A13<18000,(A13-11000)*-0.25,IF(A13<31000,(A13-18000)*-0.35-1750,IF(A13<60000,(A13-31000)*-0.42-6300,IF(A13<90000,(A13-60000)*-0.48-18480,IF(A13<1000000,(A13-90000)*-0.5-32880,(A13-1000000)*-0.55-487880)))))),2) -> 0 | H13: 0 | I13: 0 | K13: Gleiches gilt für die Gewinnfreibeträge.
A14: 12000 | B14: -0.2 | C14: -200 | D14: =ROUND(IF(A14<11000,0,IF(A14<18000,(A14-11000)*-0.25,IF(A14<31000,(A14-18000)*-0.35-1750,IF(A14<60000,(A14-31000)*-0.42-6300,IF(A14<90000,(A14-60000)*-0.48-18480,IF(A14<1000000,(A14-90000)*-0.5-32880,(A14-1000000)*-0.55-487880)))))),2) -> -250 | E14: =C14-D14 -> 50 | F14: -365 | G14: -250 | H14: -0.0167 | I14: 0.0042
A15: 13000 | B15: -0.2 | C15: -400 | D15: =ROUND(IF(A15<11000,0,IF(A15<18000,(A15-11000)*-0.25,IF(A15<31000,(A15-18000)*-0.35-1750,IF(A15<60000,(A15-31000)*-0.42-6300,IF(A15<90000,(A15-60000)*-0.48-18480,IF(A15<1000000,(A15-90000)*-0.5-32880,(A15-1000000)*-0.55-487880)))))),2) -> -500 | E15: 100 | F15: -730 | G15: -500 | H15: -0.0308 | I15: 0.0077
A16: 14000 | B16: -0.2 | C16: -600 | D16: -750 | E16: 150 | F16: -1095 | G16: -750 | H16: -0.0429 | I16: 0.0107
A17: 15000 | B17: -0.2 | C17: -800 | D17: -1000 | E17: 200 | F17: -1460 | G17: -1000 | H17: -0.0533 | I17: 0.0133
A18: 16000 | B18: -0.2 | C18: -1000 | D18: -1250 | E18: 250 | F18: -1825 | H18: -0.0625 | I18: 0.0156
A19: 17000 | B19: -0.2 | C19: -1200 | D19: -1500 | E19: 300 | F19: -2190 | H19: -0.0706 | I19: 0.0176
A20: 18000 | B20: -0.2 | C20: -1400 | D20: -1750 | E20: 350 | F20: -2555 | H20: -0.0778 | I20: 0.0194
A21: 19000 | B21: -0.325 | C21: -1725 | D21: -2100 | E21: 375 | F21: -2920 | G21: =ROUND(IF(A21<11000,0,IF(A21<18000,(A21-11000)*-0.25,IF(A21<31000,(A21-18000)*-0.35-1750,IF(A21<60000,(A21-31000)*-0.42-6300,IF(A21<90000,(A21-60000)*-0.48-18480,IF(A21<1000000,(A21-90000)*-0.5-32880,(A21-1000000)*-0.55-487880)))))),2) -> -2100 | H21: -0.0908 | I21: 0.0197
A22: 21000 | B22: -0.325 | C22: -2375 | D22: -2800 | E22: 425 | F22: -3650 | G22: -2800 | H22: -0.1131 | I22: 0.0202
A23: 23000 | B23: -0.325 | C23: -3025 | D23: -3500 | E23: 475 | F23: -4380 | G23: -3500 | H23: -0.1315 | I23: 0.0207
A24: 25000 | B24: -0.325 | C24: -3675 | D24: -4200 | E24: 525 | F24: -5110 | G24: -4200 | H24: -0.147 | I24: 0.021
A25: 27000 | B25: -0.325 | C25: -4325 | D25: -4900 | E25: 575 | F25: -5974.29 | G25: -4900 | H25: -0.1602 | I25: 0.0213
A26: 29000 | B26: -0.325 | C26: -4975 | D26: -5600 | E26: 625 | F26: -6838.57 | G26: -5600 | H26: -0.1716 | I26: 0.0216
A27: 31000 | B27: -0.325 | C27: -5625 | D27: -6300 | E27: 675 | F27: -7702.86 | G27: -6300 | H27: -0.1815 | I27: 0.0218
A28: 32000 | B28: =ROUND(IF(A28<=11000,0,IF(A28<=18000,"-25 %",IF(A28<=31000,"-35 %",IF(A28<=60000,"-42 %",IF(A28<=90000,"-48 %",IF(A28<=1000000,"-50 %","-55 %")))))),2) -> -0.42 | C28: -6045 | D28: -6720 | E28: 675 | F28: -8135 | G28: -6720 | H28: -0.1889 | I28: 0.0211
A29: 34000 | B29: -0.42 | C29: -6885 | D29: -7560 | E29: 675 | F29: -8999.29 | G29: -7560 | H29: -0.2025 | I29: 0.0199
A30: 36000 | B30: -0.42 | C30: -7725 | D30: -8400 | E30: 675 | F30: -9863.57 | G30: -8400 | H30: -0.2146 | I30: 0.0188
A31: 38000 | B31: -0.42 | C31: -8565 | D31: -9240 | E31: 675 | F31: -10727.86 | G31: -9240 | H31: -0.2254 | I31: 0.0178
A32: 40000 | B32: -0.42 | C32: -9405 | D32: -10080 | E32: 675 | F32: -11592.14 | G32: -10080 | H32: -0.2351 | I32: 0.0169
A33: 45000 | B33: -0.42 | C33: -11505 | D33: -12180 | E33: 675 | F33: -13752.86 | G33: -12180 | H33: -0.2557 | I33: 0.015
A34: 50000 | B34: -0.42 | C34: -13605 | D34: -14280 | E34: 675 | F34: -15913.57 | G34: -14280 | H34: -0.2721 | I34: 0.0135
A35: 55000 | B35: -0.42 | C35: -15705 | D35: -16380 | E35: 675 | F35: -18074.29 | G35: -16380 | H35: -0.2855 | I35: 0.0123
A36: 60000 | B36: -0.42 | C36: -17805 | D36: -18480 | E36: 675 | F36: -20235 | G36: -18480 | H36: -0.2968 | I36: 0.0113
A37: 65000 | B37: -0.48 | C37: -20205 | D37: -20880 | E37: 675 | F37: -22735 | G37: -20880 | H37: -0.3108 | I37: 0.0104
A38: 70000 | B38: -0.48 | C38: -22605 | D38: -23280 | E38: 675 | F38: -25235 | G38: -23280 | H38: -0.3229 | I38: 0.0096
A39: 75000 | B39: -0.48 | C39: -25005 | D39: -25680 | E39: 675 | F39: -27735 | G39: -25680 | H39: -0.3334 | I39: 0.009
A40: 80000 | B40: -0.48 | C40: -27405 | D40: -28080 | E40: 675 | F40: -30235 | G40: -28080 | H40: -0.3426 | I40: 0.0084
A41: 85000 | B41: -0.48 | C41: -29805 | D41: -30480 | E41: 675 | F41: -32735 | G41: -30480 | H41: -0.3506 | I41: 0.0079
A42: 90000 | B42: -0.48 | C42: -32205 | D42: -32880 | E42: 675 | F42: -35235 | G42: -32880 | H42: -0.3578 | I42: 0.0075
A43: 95000 | B43: -0.5 | C43: -34705 | D43: -35380 | E43: 675 | F43: -37735 | G43: -35380 | H43: -0.3653 | I43: 0.0071
A44: 100000 | B44: -0.5 | C44: -37205 | D44: -37880 | E44: 675 | F44: -40235 | G44: -37880 | H44: -0.3721 | I44: 0.0068
A45: 200000 | B45: -0.5 | C45: -87205 | D45: -87880 | E45: 675 | F45: -90235 | G45: -87880 | H45: -0.436 | I45: 0.0034
A46: 300000 | B46: -0.5 | C46: -137205 | D46: -137880 | E46: 675 | F46: -140235 | G46: -137880 | H46: -0.4574 | I46: 0.0023
A47: 400000 | B47: -0.5 | C47: -187205 | D47: -187880 | E47: 675 | F47: -190235 | G47: -187880 | H47: -0.468 | I47: 0.0017
A48: 500000 | B48: -0.5 | C48: -237205 | D48: -237880 | E48: 675 | F48: -240235 | G48: -237880 | H48: -0.4744 | I48: 0.0014
A49: 600000 | B49: -0.5 | C49: -287205 | D49: -287880 | E49: 675 | F49: -290235 | G49: -287880 | H49: -0.4787 | I49: 0.0011
A50: 700000 | B50: -0.5 | C50: -337205 | D50: -337880 | E50: 675 | F50: -340235 | G50: -337880 | H50: -0.4817 | I50: 0.001
A51: 800000 | B51: -0.5 | C51: -387205 | D51: -387880 | E51: 675 | F51: -390235 | G51: -387880 | H51: -0.484 | I51: 0.0008
A52: 900000 | B52: -0.5 | C52: -437205 | D52: -437880 | E52: 675 | F52: -440235 | G52: -437880 | H52: -0.4858 | I52: 0.0008
A53: 1000000 | B53: -0.5 | C53: -487205 | D53: -487880 | E53: 675 | F53: -490235 | G53: -487880 | H53: -0.4872 | I53: 0.0007
A54: 1010000 | B54: -0.55 | C54: -492705 | D54: -493380 | E54: 675 | F54: -495235 | G54: -493380 | H54: -0.4878 | I54: 0.0007
A55: 1020000 | B55: -0.55 | C55: -498205 | D55: -498880 | E55: 675 | F55: -500235 | G55: -498880 | H55: -0.4884 | I55: 0.0007
A56: 1030000 | B56: -0.55 | C56: -503705 | D56: -504380 | E56: 675 | F56: -505235 | G56: -504380 | H56: -0.489 | I56: 0.0007
A57: 1040000 | B57: -0.55 | C57: -509205 | D57: -509880 | E57: 675 | F57: -510235 | G57: -509880 | H57: -0.4896 | I57: 0.0006
A58: 1047100 | B58: -0.55 | C58: -513110 | D58: -513785 | E58: 675 | F58: -513785 | G58: -513785 | H58: -0.49 | I58: 0.0006
A59: 1050000 | B59: -0.55 | C59: -514705 | D59: -515380 | E59: 675 | F59: -515235 | G59: -515380 | H59: -0.4902 | I59: 0.0006
A60: 1060000 | B60: -0.55 | C60: -520205 | D60: -520880 | E60: 675 | F60: -520235 | G60: -520880 | H60: -0.4908 | I60: 0.0006
A61: 1070000 | B61: -0.55 | C61: -525705 | D61: -526380 | E61: 675 | F61: -525235 | G61: -526380 | H61: -0.4913 | I61: 0.0006
A62: 1080000 | B62: -0.55 | C62: -531205 | D62: -531880 | E62: 675 | F62: -530235 | G62: -531880 | H62: -0.4919 | I62: 0.0006
A63: 1090000 | B63: -0.55 | C63: -536705 | D63: -537380 | E63: 675 | F63: -535235 | G63: -537380 | H63: -0.4924 | I63: 0.0006
A64: 1100000 | B64: -0.55 | C64: -542205 | D64: -542880 | E64: 675 | F64: -540235 | G64: -542880 | H64: -0.4929 | I64: 0.0006
A65: 1150000 | B65: -0.55 | C65: -569705 | D65: -570380 | E65: 675 | F65: -565235 | G65: -570380 | H65: -0.4954 | I65: 0.0006
A66: 1200000 | B66: -0.55 | C66: -597205 | D66: -597880 | E66: 675 | F66: -590235 | G66: -597880 | H66: -0.4977 | I66: 0.0006
A67: 1300000 | B67: -0.55 | C67: -652205 | D67: -652880 | E67: 675 | F67: -640235 | G67: -652880 | H67: -0.5017 | I67: 0.0005
A68: 1400000 | B68: -0.55 | C68: -707205 | D68: -707880 | E68: 675 | F68: -690235 | G68: -707880 | H68: -0.5051 | I68: 0.0005
A69: 1500000 | B69: -0.55 | C69: -762205 | D69: -762880 | E69: 675 | F69: -740235 | G69: -762880 | H69: -0.5081 | I69: 0.0005
A70: 1600000 | B70: -0.55 | C70: -817205 | D70: -817880 | E70: 675 | F70: -790235 | G70: -817880 | H70: -0.5108 | I70: 0.0004
A71: 1700000 | B71: -0.55 | C71: -872205 | D71: -872880 | E71: 675 | F71: -840235 | G71: -872880 | H71: -0.5131 | I71: 0.0004
A72: 1800000 | B72: -0.55 | C72: -927205 | D72: -927880 | E72: 675 | F72: -890235 | G72: -927880 | H72: -0.5151 | I72: 0.0004
A73: 1900000 | B73: -0.55 | C73: -982205 | D73: -982880 | E73: 675 | F73: -940235 | G73: -982880 | H73: -0.517 | I73: 0.0004
A74: 2000000 | B74: -0.55 | C74: -1037205 | D74: -1037880 | E74: 675 | F74: -990235 | G74: -1037880 | H74: -0.5186 | I74: 0.0003

Sheet ESt-Tarif 2020
A1: ESt-Tariftabelle 2020 (AT) | G1: rvo.at | H1: rvo.at
A2: ESt-Tarif 2020 | B2: Grenz% 2020 | C2: Bandbreite | D2: Additiv | E2: %steigerung
A3: 11000 | B3: 0 | C3: -11000 | D3: 0 | E3: 0 | J3: Wer in dieser Einkommensteuer-Tariftabelle 2020 eine Systematik erkennen kann ist spitze!
A4: 18000 | B4: -0.2 | C4: =A3-A4 -> -7000 | D4: =B4*C4 -> 1400 | E4: =B3-B4 -> 0.2 | J4: Man darf die Hoffnung nie aufgeben!
A5: 31000 | B5: -0.35 | C5: -13000 | D5: =B5*C5+D4 -> 5950 | E5: 0.15 | J5: "Sicher Vielleicht kommt mal wer und fragt, …"???
A6: 60000 | B6: -0.42 | C6: -29000 | D6: =B6*C6+D5 -> 18130 | E6: 0.07
A7: 90000 | B7: -0.48 | C7: -30000 | D7: =B7*C7+D6 -> 32530 | E7: 0.06
A8: 1000000 | B8: -0.5 | C8: -910000 | D8: =B8*C8+D7 -> 487530 | E8: 0.02
A9: > | B9: -0.55 | E9: 0.05
A11: Einkommen | B11: Grenz% 2020 | C11: Steuer 2020 | D11: Steuer 2019 | E11: Vorteil 2020:2019 | F11: Steuer 2015 | H11: Effektiv% 2020 | I11: Vorteil 2020:2019
A12: 20000 | B12: =ROUND(IF(A12<=11000,0,IF(A12<=18000,"-20 %",IF(A12<=31000,"-35 %",IF(A12<=60000,"-42 %",IF(A12<=90000,"-48 %",IF(A12<=1000000,"-50 %","-55 %")))))),2) -> -0.35 | C12: =ROUND(IF(A12<$A$3,0,IF(A12<$A$4,(A12-$A$3)*$B$4,IF(A12<$A$5,(A12-$A$4)*$B$5-$D$4,IF(A12<$A$6,(A12-$A$5)*$B$6-$D$5,IF(A12<$A$7,(A12-$A$6)*$B$7-$D$6,IF(A12<$A$8,(A12-$A$7)*$B$8-$D$7,(A12-$A$8)*$B$9-$D$8)))))),2) -> -2100 | D12: =ROUND(IF(A12<11000,0,IF(A12<18000,(A12-11000)*-0.25,IF(A12<31000,(A12-18000)*-0.35-1750,IF(A12<60000,(A12-31000)*-0.42-6300,IF(A12<90000,(A12-60000)*-0.48-18480,IF(A12<1000000,(A12-90000)*-0.5-32880,(A12-1000000)*-0.55-487880)))))),2) -> -2450 | E12: =G12-D12 -> 350 | F12: =ROUND(IF(A12<=11000,0,IF(A12<=25000,(A12-11000)*5110/14000,IF(A12<=60000,(A12-25000)*15125/35000+5110,(A12-60000)*0.5+20235)))*-1,2) -> -3285 | G12: =ROUND(IF(A12<11000,0,IF(A12<18000,(A12-11000)*-0.2,IF(A12<31000,(A12-18000)*-0.35-1400,IF(A12<60000,(A12-31000)*-0.42-5950,IF(A12<90000,(A12-60000)*-0.48-18130,IF(A12<1000000,(A12-90000)*-0.5-32530,(A12-1000000)*-0.55-487530)))))),2) -> -2100 | H12: =ROUND(C12/A12,4) -> -0.105 | I12: =ROUND(E12/A12,4) -> 0.0175 | J12: Anmerkung: | K12: Die steuerbegünstigten 13.+14. Bezüge sind im "Einkommen" nicht enthalten!
A13: 11000 | B13: =ROUND(IF(A13<=11000,0,IF(A13<=18000,"-25 %",IF(A13<=31000,"-35 %",IF(A13<=60000,"-42 %",IF(A13<=90000,"-48 %",IF(A13<=1000000,"-50 %","-55 %")))))),2) -> 0 | C13: 0 | D13: =ROUND(IF(A13<11000,0,IF(A13<18000,(A13-11000)*-0.25,IF(A13<31000,(A13-18000)*-0.35-1750,IF(A13<60000,(A13-31000)*-0.42-6300,IF(A13<90000,(A13-60000)*-0.48-18480,IF(A13<1000000,(A13-90000)*-0.5-32880,(A13-1000000)*-0.55-487880)))))),2) -> 0 | E13: =C13-F13 -> 0 | F13: =ROUND(IF(A13<=11000,0,IF(A13<=25000,(A13-11000)*5110/14000,IF(A13<=60000,(A13-25000)*15125/35000+5110,(A13-60000)*0.5+20235)))*-1,2) -> 0 | G13: =ROUND(IF(A13<11000,0,IF(A13<18000,(A13-11000)*-0.25,IF(A13<31000,(A13-18000)*-0.35-1750,IF(A13<60000,(A13-31000)*-0.42-6300,IF(A13<90000,(A13-60000)*-0.48-18480,IF(A13<1000000,(A13-90000)*-0.5-32880,(A13-1000000)*-0.55-487880)))))),2) -> 0 | H13: 0 | I13: 0 | K13: Gleiches gilt für die Gewinnfreibeträge.
A14: 12000 | B14: -0.2 | C14: -200 | D14: =ROUND(IF(A14<11000,0,IF(A14<18000,(A14-11000)*-0.25,IF(A14<31000,(A14-18000)*-0.35-1750,IF(A14<60000,(A14-31000)*-0.42-6300,IF(A14<90000,(A14-60000)*-0.48-18480,IF(A14<1000000,(A14-90000)*-0.5-32880,(A14-1000000)*-0.55-487880)))))),2) -> -250 | E14: =C14-D14 -> 50 | F14: -365 | G14: -250 | H14: -0.0167 | I14: 0.0042
A15: 13000 | B15: -0.2 | C15: -400 | D15: =ROUND(IF(A15<11000,0,IF(A15<18000,(A15-11000)*-0.25,IF(A15<31000,(A15-18000)*-0.35-1750,IF(A15<60000,(A15-31000)*-0.42-6300,IF(A15<90000,(A15-60000)*-0.48-18480,IF(A15<1000000,(A15-90000)*-0.5-32880,(A15-1000000)*-0.55-487880)))))),2) -> -500 | E15: 100 | F15: -730 | G15: -500 | H15: -0.0308 | I15: 0.0077
A16: 14000 | B16: -0.2 | C16: -600 | D16: -750 | E16: 150 | F16: -1095 | G16: -750 | H16: -0.0429 | I16: 0.0107
A17: 15000 | B17: -0.2 | C17: -800 | D17: -1000 | E17: 200 | F17: -1460 | G17: -1000 | H17: -0.0533 | I17: 0.0133
A18: 16000 | B18: -0.2 | C18: -1000 | D18: -1250 | E18: 250 | F18: -1825 | H18: -0.0625 | I18: 0.0156
A19: 17000 | B19: -0.2 | C19: -1200 | D19: -1500 | E19: 300 | F19: -2190 | H19: -0.0706 | I19: 0.0176
A20: 18000 | B20: -0.2 | C20: -1400 | D20: -1750 | E20: 350 | F20: -2555 | H20: -0.0778 | I20: 0.0194
A21: 19000 | B21: =ROUND(IF(A21<=11000,0,IF(A21<=18000,"-25 %",IF(A21<=31000,"-35 %",IF(A21<=60000,"-42 %",IF(A21<=90000,"-48 %",IF(A21<=1000000,"-50 %","-55 %")))))),2) -> -0.35 | C21: -1750 | D21: -2100 | E21: 350 | F21: -2920 | G21: =ROUND(IF(A21<11000,0,IF(A21<18000,(A21-11000)*-0.25,IF(A21<31000,(A21-18000)*-0.35-1750,IF(A21<60000,(A21-31000)*-0.42-6300,IF(A21<90000,(A21-60000)*-0.48-18480,IF(A21<1000000,(A21-90000)*-0.5-32880,(A21-1000000)*-0.55-487880)))))),2) -> -2100 | H21: -0.0921 | I21: 0.0184
A22: 21000 | B22: -0.35 | C22: -2450 | D22: -2800 | E22: 350 | F22: -3650 | G22: -2800 | H22: -0.1167 | I22: 0.0167
A23: 23000 | B23: -0.35 | C23: -3150 | D23: -3500 | E23: 350 | F23: -4380 | G23: -3500 | H23: -0.137 | I23: 0.0152
A24: 25000 | B24: -0.35 | C24: -3850 | D24: -4200 | E24: 350 | F24: -5110 | G24: -4200 | H24: -0.154 | I24: 0.014
A25: 27000 | B25: -0.35 | C25: -4550 | D25: -4900 | E25: 350 | F25: -5974.29 | G25: -4900 | H25: -0.1685 | I25: 0.013
A26: 29000 | B26: -0.35 | C26: -5250 | D26: -5600 | E26: 350 | F26: -6838.57 | G26: -5600 | H26: -0.181 | I26: 0.0121
A27: 31000 | B27: -0.35 | C27: -5950 | D27: -6300 | E27: 350 | F27: -7702.86 | G27: -6300 | H27: -0.1919 | I27: 0.0113
A28: 32000 | B28: -0.42 | C28: -6370 | D28: -6720 | E28: 350 | F28: -8135 | G28: -6720 | H28: -0.1991 | I28: 0.0109
A29: 34000 | B29: -0.42 | C29: -7210 | D29: -7560 | E29: 350 | F29: -8999.29 | G29: -7560 | H29: -0.2121 | I29: 0.0103
A30: 36000 | B30: -0.42 | C30: -8050 | D30: -8400 | E30: 350 | F30: -9863.57 | G30: -8400 | H30: -0.2236 | I30: 0.0097
A31: 38000 | B31: -0.42 | C31: -8890 | D31: -9240 | E31: 350 | F31: -10727.86 | G31: -9240 | H31: -0.2339 | I31: 0.0092
A32: 40000 | B32: -0.42 | C32: -9730 | D32: -10080 | E32: 350 | F32: -11592.14 | G32: -10080 | H32: -0.2433 | I32: 0.0088
A33: 45000 | B33: -0.42 | C33: -11830 | D33: -12180 | E33: 350 | F33: -13752.86 | G33: -12180 | H33: -0.2629 | I33: 0.0078
A34: 50000 | B34: -0.42 | C34: -13930 | D34: -14280 | E34: 350 | F34: -15913.57 | G34: -14280 | H34: -0.2786 | I34: 0.007
A35: 55000 | B35: -0.42 | C35: -16030 | D35: -16380 | E35: 350 | F35: -18074.29 | G35: -16380 | H35: -0.2915 | I35: 0.0064
A36: 60000 | B36: -0.42 | C36: -18130 | D36: -18480 | E36: 350 | F36: -20235 | G36: -18480 | H36: -0.3022 | I36: 0.0058
A37: 65000 | B37: -0.48 | C37: -20530 | D37: -20880 | E37: 350 | F37: -22735 | G37: -20880 | H37: -0.3158 | I37: 0.0054
A38: 70000 | B38: -0.48 | C38: -22930 | D38: -23280 | E38: 350 | F38: -25235 | G38: -23280 | H38: -0.3276 | I38: 0.005
A39: 75000 | B39: -0.48 | C39: -25330 | D39: -25680 | E39: 350 | F39: -27735 | G39: -25680 | H39: -0.3377 | I39: 0.0047
A40: 80000 | B40: -0.48 | C40: -27730 | D40: -28080 | E40: 350 | F40: -30235 | G40: -28080 | H40: -0.3466 | I40: 0.0044
A41: 85000 | B41: -0.48 | C41: -30130 | D41: -30480 | E41: 350 | F41: -32735 | G41: -30480 | H41: -0.3545 | I41: 0.0041
A42: 90000 | B42: -0.48 | C42: -32530 | D42: -32880 | E42: 350 | F42: -35235 | G42: -32880 | H42: -0.3614 | I42: 0.0039
A43: 95000 | B43: -0.5 | C43: -35030 | D43: -35380 | E43: 350 | F43: -37735 | G43: -35380 | H43: -0.3687 | I43: 0.0037
A44: 100000 | B44: -0.5 | C44: -37530 | D44: -37880 | E44: 350 | F44: -40235 | G44: -37880 | H44: -0.3753 | I44: 0.0035
A45: 200000 | B45: -0.5 | C45: -87530 | D45: -87880 | E45: 350 | F45: -90235 | G45: -87880 | H45: -0.4377 | I45: 0.0018
